{"text_format":"1","workbook":"xlsx","n_sheets":4,"sheets":["累計","月次時間比較表フィルター","作業時間比較表(全体)貼付け用","マニュアル"],"not_rendered":{"charts":0,"images":0,"macros":1,"external_links":0,"defined_names":2,"comments":1,"pivot_tables":0},"unopened":[],"bounds":{"document_bytes":16777216,"sheet_cells":100000,"rows_first":2000,"rows_last":500,"rows_between":2000,"halvings":0,"cell_chars":16384,"cell_head_chars":4096},"cells_cut":0,"cells_raw":0,"read":"whole","date_system":"1900"}

{"sheet":"累計","index":0,"n_rows":17330,"n_cols":17,"rows_kept":4500,"cut":true,"hidden":false,"merged":[],"bounds":{"rows_first":2000,"rows_last":500,"rows_between":2000,"halvings":0}}
[null,null,null,null,null,null,null,null,null,null,"作成日"]
[null,null,null,{"$f":"TODAY()","v":"2023-09-10"},"R〇年度",null,null,null,null,"作業にかかった時間（ジャンル名）",null,"単位：時間",null,"2023/8","作業にかかった時間"]
["全ての順番","月次順番","作業№","①作業分類","②日付","開始時","～","終了時","③№","作業分類","④備考","⑤時間",null,"作業№","⑥ジャンル","⑦時間内訳","⑧割合"]
[null,null,1,"現金処理","2023-08-30","10:30:00","～","10:31:00",1,{"$f":"VLOOKUP(I4,$C:$D,2,0)","v":"現金処理"},null,{"$f":"H4-F4","v":"00:01:00"},null,1,"現金処理",{"$f":"SUMIF(J:J,O4,L:L)","v":6.9444444444449749E-4},{"$f":"P4/$P$145","v":5.5555555555559799E-3}]
[null,null,2,"電話","2023-08-30","10:31:00","～","11:00:00",2,"電話",null,"00:29:00",null,2,"電話",2.0138888888888817E-2,0.16111111111111054]
[null,null,3,"メール","2023-08-30","11:00:00","～","11:15:00",3,"メール",null,"00:15:00",null,3,"メール",1.0416666666666685E-2,8.3333333333333481E-2]
[null,null,4,"記帳作業","2023-08-30","11:15:00","～","12:00:00",4,"記帳作業",null,"00:45:00",null,4,"記帳作業",3.125E-2,0.25]
[null,null,5,"分析","2023-08-30","13:00:00","～","14:00:00",5,"分析",null,"01:00:00",null,5,"分析",4.1666666666666741E-2,0.33333333333333393]
[null,null,6,"SNS連絡","2023-08-30","14:00:00","～","14:30:00",6,"SNS連絡",null,"00:30:00",null,6,"SNS連絡",2.0833333333333259E-2,0.16666666666666607]
[null,null,7,null,null,null,"～",null,null,{"$error":"#N/A"},null,"00:00:00",null,7,null,0,0]
[null,null,8,null,null,null,"～",null,null,{"$error":"#N/A"},null,"00:00:00",null,8,null,0,0]
[null,null,9,null,null,null,"～",null,null,{"$error":"#N/A"},null,"00:00:00",null,9,null,0,0]
[null,null,10,null,null,null,"～",null,null,{"$error":"#N/A"},null,"00:00:00",null,10,null,0,0]
[null,null,11,null,null,null,"～",null,null,{"$error":"#N/A"},null,"00:00:00",null,11,null,0,0]
[null,null,12,null,null,null,"～",null,null,{"$error":"#N/A"},null,"00:00:00",null,12,null,0,0]
[null,null,13,null,null,null,"～",null,null,{"$error":"#N/A"},null,"00:00:00",null,13,null,0,0]
[null,null,14,null,null,null,"～",null,null,{"$error":"#N/A"},null,"00:00:00",null,14,null,0,0]
[null,null,15,null,null,null,"～",null,null,{"$error":"#N/A"},null,"00:00:00",null,15,null,0,0]
[null,null,16,null,null,null,"～",null,null,{"$error":"#N/A"},null,"00:00:00",null,16,null,0,0]
[null,null,17,null,null,null,"～",null,null,{"$error":"#N/A"},null,"00:00:00",null,17,null,0,0]
[null,null,18,null,null,null,"～",null,null,{"$error":"#N/A"},null,"00:00:00",null,18,null,0,0]
[null,null,19,null,null,null,"～",null,null,{"$error":"#N/A"},null,"00:00:00",null,19,null,0,0]
[null,null,20,null,null,null,"～",null,null,{"$error":"#N/A"},null,"00:00:00",null,20,null,0,0]
[null,null,null,null,null,null,"～",null,null,{"$error":"#N/A"},null,"00:00:00",null,null,null,0,0]
[null,null,null,null,null,null,"～",null,null,{"$error":"#N/A"},null,"00:00:00",null,null,null,0,0]
[null,null,null,null,null,null,"～",null,null,{"$error":"#N/A"},null,"00:00:00",null,null,null,0,0]
[null,null,null,null,null,null,"～",null,null,{"$error":"#N/A"},null,"00:00:00",null,null,null,0,0]
[null,null,null,null,null,null,"～",null,null,{"$error":"#N/A"},null,"00:00:00",null,null,null,0,0]
[null,null,null,null,null,null,"～",null,null,{"$error":"#N/A"},null,"00:00:00",null,null,null,0,0]
[null,null,null,null,null,null,"～",null,null,{"$error":"#N/A"},null,"00:00:00",null,null,null,0,0]
[null,null,null,null,null,null,"～",null,null,{"$error":"#N/A"},null,"00:00:00",null,null,null,0,0]
[null,null,null,null,null,null,"～",null,null,{"$error":"#N/A"},null,"00:00:00",null,null,null,0,0]
[null,null,null,null,null,null,"～",null,null,{"$error":"#N/A"},null,"00:00:00",null,null,null,0,0]
[null,null,null,null,null,null,"～",null,null,{"$error":"#N/A"},null,"00:00:00",null,null,null,0,0]
[null,null,null,null,null,null,"～",null,null,{"$error":"#N/A"},null,"00:00:00",null,null,null,0,0]
[null,null,null,null,null,null,"～",null,null,{"$error":"#N/A"},null,"00:00:00",null,null,null,{"$f":"SUMIF(J:J,O36,L:L)","v":0},{"$f":"P36/$P$145","v":0}]
[null,null,null,null,null,null,"～",null,null,{"$error":"#N/A"},null,"00:00:00",null,null,null,0,0]
[null,null,null,null,null,null,"～",null,null,{"$error":"#N/A"},null,"00:00:00",null,null,null,0,0]
[null,null,null,null,null,null,"～",null,null,{"$error":"#N/A"},null,"00:00:00",null,null,null,0,0]
[null,null,null,null,null,null,"～",null,null,{"$error":"#N/A"},null,"00:00:00",null,null,null,0,0]
[null,null,null,null,null,null,"～",null,null,{"$error":"#N/A"},null,"00:00:00",null,null,null,0,0]
[null,null,null,null,null,null,"～",null,null,{"$error":"#N/A"},null,"00:00:00",null,null,null,0,0]
[null,null,null,null,null,null,"～",null,null,{"$error":"#N/A"},null,"00:00:00",null,null,null,0,0]
[null,null,null,null,null,null,"～",null,null,{"$error":"#N/A"},null,"00:00:00",null,null,null,0,0]
[null,null,null,null,null,null,"～",null,null,{"$error":"#N/A"},null,"00:00:00",null,null,null,0,0]
[null,null,null,null,null,null,"～",null,null,{"$error":"#N/A"},null,"00:00:00",null,null,null,0,0]
[null,null,null,null,null,null,"～",null,null,{"$error":"#N/A"},null,"00:00:00",null,null,null,0,0]
[null,null,null,null,null,null,"～",null,null,{"$error":"#N/A"},null,"00:00:00",null,null,null,0,0]
[null,null,null,null,null,null,"～",null,null,{"$error":"#N/A"},null,"00:00:00",null,null,null,0,0]
[null,null,null,null,null,null,"～",null,null,{"$error":"#N/A"},null,"00:00:00",null,null,null,0,0]
[null,null,null,null,null,null,"～",null,null,{"$error":"#N/A"},null,"00:00:00",null,null,null,0,0]
[null,null,null,null,null,null,"～",null,null,{"$error":"#N/A"},null,"00:00:00",null,null,null,0,0]
[null,null,null,null,null,null,"～",null,null,{"$error":"#N/A"},null,"00:00:00",null,null,null,0,0]
[null,null,null,null,null,null,"～",null,null,{"$error":"#N/A"},null,"00:00:00",null,null,null,0,0]
[null,null,null,null,null,null,"～",null,null,{"$error":"#N/A"},null,"00:00:00",null,null,null,0,0]
[null,null,null,null,null,null,"～",null,null,{"$error":"#N/A"},null,"00:00:00",null,null,null,0,0]
[null,null,null,null,null,null,"～",null,null,{"$error":"#N/A"},null,"00:00:00",null,null,null,0,0]
[null,null,null,null,null,null,"～",null,null,{"$error":"#N/A"},null,"00:00:00",null,null,null,0,0]
[null,null,null,null,null,null,"～",null,null,{"$error":"#N/A"},null,"00:00:00",null,null,null,0,0]
[null,null,null,null,null,null,"～",null,null,{"$error":"#N/A"},null,"00:00:00",null,null,null,0,0]
[null,null,null,null,null,null,"～",null,null,{"$error":"#N/A"},null,"00:00:00",null,null,null,0,0]
[null,null,null,null,null,null,"～",null,null,{"$error":"#N/A"},null,"00:00:00",null,null,null,0,0]
[null,null,null,null,null,null,"～",null,null,{"$error":"#N/A"},null,"00:00:00",null,null,null,0,0]
[null,null,null,null,null,null,"～",null,null,{"$error":"#N/A"},null,"00:00:00",null,null,null,0,0]
[null,null,null,null,null,null,"～",null,null,{"$error":"#N/A"},null,"00:00:00",null,null,null,0,0]
[null,null,null,null,null,null,"～",null,null,{"$error":"#N/A"},null,"00:00:00",null,null,null,0,0]
[null,null,null,null,null,null,"～",null,null,{"$error":"#N/A"},null,"00:00:00",null,null,null,0,0]
[null,null,null,null,null,null,"～",null,null,{"$f":"VLOOKUP(I68,$C:$D,2,0)","v":{"$error":"#N/A"}},null,{"$f":"H68-F68","v":"00:00:00"},null,null,null,{"$f":"SUMIF(J:J,O68,L:L)","v":0},{"$f":"P68/$P$145","v":0}]
[null,null,null,null,null,null,"～",null,null,{"$error":"#N/A"},null,"00:00:00",null,null,null,0,0]
[null,null,null,null,null,null,"～",null,null,{"$error":"#N/A"},null,"00:00:00",null,null,null,0,0]
[null,null,null,null,null,null,"～",null,null,{"$error":"#N/A"},null,"00:00:00",null,null,null,0,0]
[null,null,null,null,null,null,"～",null,null,{"$error":"#N/A"},null,"00:00:00",null,null,null,0,0]
[null,null,null,null,null,null,"～",null,null,{"$error":"#N/A"},null,"00:00:00",null,null,null,0,0]
[null,null,null,null,null,null,"～",null,null,{"$error":"#N/A"},null,"00:00:00",null,null,null,0,0]
[null,null,null,null,null,null,"～",null,null,{"$error":"#N/A"},null,"00:00:00",null,null,null,0,0]
[null,null,null,null,null,null,"～",null,null,{"$error":"#N/A"},null,"00:00:00",null,null,null,0,0]
[null,null,null,null,null,null,"～",null,null,{"$error":"#N/A"},null,"00:00:00",null,null,null,0,0]
[null,null,null,null,null,null,"～",null,null,{"$error":"#N/A"},null,"00:00:00",null,null,null,0,0]
[null,null,null,null,null,null,"～",null,null,{"$error":"#N/A"},null,"00:00:00",null,null,null,0,0]
[null,null,null,null,null,null,"～",null,null,{"$error":"#N/A"},null,"00:00:00",null,null,null,0,0]
[null,null,null,null,null,null,"～",null,null,{"$error":"#N/A"},null,"00:00:00",null,null,null,0,0]
[null,null,null,null,null,null,"～",null,null,{"$error":"#N/A"},null,"00:00:00",null,null,null,0,0]
[null,null,null,null,null,null,"～",null,null,{"$error":"#N/A"},null,"00:00:00",null,null,null,0,0]
[null,null,null,null,null,null,"～",null,null,{"$error":"#N/A"},null,"00:00:00",null,null,null,0,0]
[null,null,null,null,null,null,"～",null,null,{"$error":"#N/A"},null,"00:00:00",null,null,null,0,0]
[null,null,null,null,null,null,"～",null,null,{"$error":"#N/A"},null,"00:00:00",null,null,null,0,0]
[null,null,null,null,null,null,"～",null,null,{"$error":"#N/A"},null,"00:00:00",null,null,null,0,0]
[null,null,null,null,null,null,"～",null,null,{"$error":"#N/A"},null,"00:00:00",null,null,null,0,0]
[null,null,null,null,null,null,"～",null,null,{"$error":"#N/A"},null,"00:00:00",null,null,null,0,0]
[null,null,null,null,null,null,"～",null,null,{"$error":"#N/A"},null,"00:00:00",null,null,null,0,0]
[null,null,null,null,null,null,"～",null,null,{"$error":"#N/A"},null,"00:00:00",null,null,null,0,0]
[null,null,null,null,null,null,"～",null,null,{"$error":"#N/A"},null,"00:00:00",null,null,null,0,0]
[null,null,null,null,null,null,"～",null,null,{"$error":"#N/A"},null,"00:00:00",null,null,null,0,0]
[null,null,null,null,null,null,"～",null,null,{"$error":"#N/A"},null,"00:00:00",null,null,null,0,0]
[null,null,null,null,null,null,"～",null,null,{"$error":"#N/A"},null,"00:00:00",null,null,null,0,0]
[null,null,null,null,null,null,"～",null,null,{"$error":"#N/A"},null,"00:00:00",null,null,null,0,0]
[null,null,null,null,null,null,"～",null,null,{"$error":"#N/A"},null,"00:00:00",null,null,null,0,0]
[null,null,null,null,null,null,"～",null,null,{"$error":"#N/A"},null,"00:00:00",null,null,null,0,0]
[null,null,null,null,null,null,"～",null,null,{"$error":"#N/A"},null,"00:00:00",null,null,null,0,0]
[null,null,null,null,null,null,"～",null,null,{"$error":"#N/A"},null,"00:00:00",null,null,null,{"$f":"SUMIF(J:J,O100,L:L)","v":0},{"$f":"P100/$P$145","v":0}]
[null,null,null,null,null,null,"～",null,null,{"$error":"#N/A"},null,"00:00:00",null,null,null,0,0]
[null,null,null,null,null,null,"～",null,null,{"$error":"#N/A"},null,"00:00:00",null,null,null,0,0]
[null,null,null,null,null,null,"～",null,null,{"$error":"#N/A"},null,"00:00:00",null,null,null,0,0]
[null,null,null,null,null,null,"～",null,null,{"$error":"#N/A"},null,"00:00:00",null,null,null,0,0]
[null,null,null,null,null,null,"～",null,null,{"$error":"#N/A"},null,"00:00:00",null,null,null,0,0]
[null,null,null,null,null,null,"～",null,null,{"$error":"#N/A"},null,"00:00:00",null,null,null,0,0]
[null,null,null,null,null,null,"～",null,null,{"$error":"#N/A"},null,"00:00:00",null,null,null,0,0]
[null,null,null,null,null,null,"～",null,null,{"$error":"#N/A"},null,"00:00:00",null,null,null,0,0]
[null,null,null,null,null,null,"～",null,null,{"$error":"#N/A"},null,"00:00:00",null,null,null,0,0]
[null,null,null,null,null,null,"～",null,null,{"$error":"#N/A"},null,"00:00:00",null,null,null,0,0]
[null,null,null,null,null,null,"～",null,null,{"$error":"#N/A"},null,"00:00:00",null,null,null,0,0]
[null,null,null,null,null,null,"～",null,null,{"$error":"#N/A"},null,"00:00:00",null,null,null,0,0]
[null,null,null,null,null,null,"～",null,null,{"$error":"#N/A"},null,"00:00:00",null,null,null,0,0]
[null,null,null,null,null,null,"～",null,null,{"$error":"#N/A"},null,"00:00:00",null,null,null,0,0]
[null,null,null,null,null,null,"～",null,null,{"$error":"#N/A"},null,"00:00:00",null,null,null,0,0]
[null,null,null,null,null,null,"～",null,null,{"$error":"#N/A"},null,"00:00:00",null,null,null,0,0]
[null,null,null,null,null,null,"～",null,null,{"$error":"#N/A"},null,"00:00:00",null,null,null,0,0]
[null,null,null,null,null,null,"～",null,null,{"$error":"#N/A"},null,"00:00:00",null,null,null,0,0]
[null,null,null,null,null,null,"～",null,null,{"$error":"#N/A"},null,"00:00:00",null,null,null,0,0]
[null,null,null,null,null,null,"～",null,null,{"$error":"#N/A"},null,"00:00:00",null,null,null,0,0]
[null,null,null,null,null,null,"～",null,null,{"$error":"#N/A"},null,"00:00:00",null,null,null,0,0]
[null,null,null,null,null,null,"～",null,null,{"$error":"#N/A"},null,"00:00:00",null,null,null,0,{"$f":"P122/$P$145","v":0}]
[null,null,null,null,null,null,"～",null,null,{"$error":"#N/A"},null,"00:00:00",null,null,null,0,0]
[null,null,null,null,null,null,"～",null,null,{"$error":"#N/A"},null,"00:00:00",null,null,null,0,0]
[null,null,null,null,null,null,"～",null,null,{"$error":"#N/A"},null,"00:00:00",null,null,null,0,0]
[null,null,null,null,null,null,"～",null,null,{"$error":"#N/A"},null,"00:00:00",null,null,null,0,0]
[null,null,null,null,null,null,"～",null,null,{"$error":"#N/A"},null,"00:00:00",null,null,null,0,0]
[null,null,null,null,null,null,"～",null,null,{"$error":"#N/A"},null,"00:00:00",null,null,null,0,0]
[null,null,null,null,null,null,"～",null,null,{"$error":"#N/A"},null,"00:00:00",null,null,null,0,0]
[null,null,null,null,null,null,"～",null,null,{"$error":"#N/A"},null,"00:00:00",null,null,null,0,0]
[null,null,null,null,null,null,"～",null,null,{"$error":"#N/A"},null,"00:00:00",null,null,null,0,0]
[null,null,null,null,null,null,"～",null,null,{"$f":"VLOOKUP(I132,$C:$D,2,0)","v":{"$error":"#N/A"}},null,{"$f":"H132-F132","v":"00:00:00"},null,null,null,{"$f":"SUMIF(J:J,O132,L:L)","v":0},{"$f":"P132/$P$145","v":0}]
[null,null,null,null,null,null,"～",null,null,{"$error":"#N/A"},null,"00:00:00",null,null,null,0,0]
[null,null,null,null,null,null,"～",null,null,{"$error":"#N/A"},null,"00:00:00",null,null,null,0,0]
[null,null,null,null,null,null,"～",null,null,{"$error":"#N/A"},null,"00:00:00",null,null,null,0,0]
[null,null,null,null,null,null,"～",null,null,{"$error":"#N/A"},null,"00:00:00",null,null,null,0,0]
[null,null,null,null,null,null,"～",null,null,{"$error":"#N/A"},null,"00:00:00",null,null,null,0,0]
[null,null,null,null,null,null,"～",null,null,{"$error":"#N/A"},null,"00:00:00",null,null,null,0,0]
[null,null,null,null,null,null,"～",null,null,{"$error":"#N/A"},null,"00:00:00",null,null,null,0,0]
[null,null,null,null,null,null,"～",null,null,{"$error":"#N/A"},null,"00:00:00",null,null,null,0,0]
[null,null,null,null,null,null,"～",null,null,{"$error":"#N/A"},null,"00:00:00",null,null,null,0,0]
[null,null,null,null,null,null,"～",null,null,{"$error":"#N/A"},null,"00:00:00",null,null,null,0,{"$f":"P142/$P$145","v":0}]
[null,null,null,null,null,null,"～",null,null,{"$error":"#N/A"},null,"00:00:00",null,null,null,0,{"$f":"P143/$P$145","v":0}]
[null,null,null,null,null,null,"～",null,null,{"$error":"#N/A"},null,"00:00:00",null,null,null,0,{"$f":"P144/$P$145","v":0}]
[null,null,null,null,null,null,"～",null,null,{"$error":"#N/A"},null,"00:00:00",null,null,"合計",{"$f":"SUM(P4:P144)","v":0.125},{"$f":"SUM(Q4:Q144)","v":1}]
[null,null,null,null,null,null,"～",null,null,{"$error":"#N/A"},null,"00:00:00"]
[null,null,null,null,null,null,"～",null,null,{"$error":"#N/A"},null,"00:00:00"]
[null,null,null,null,null,null,"～",null,null,{"$error":"#N/A"},null,"00:00:00"]
[null,null,null,null,null,null,"～",null,null,{"$error":"#N/A"},null,"00:00:00"]
[null,null,null,null,null,null,"～",null,null,{"$error":"#N/A"},null,"00:00:00"]
[null,null,null,null,null,null,"～",null,null,{"$error":"#N/A"},null,"00:00:00"]
[null,null,null,null,null,null,"～",null,null,{"$error":"#N/A"},null,"00:00:00"]
[null,null,null,null,null,null,"～",null,null,{"$error":"#N/A"},null,"00:00:00"]
[null,null,null,null,null,null,"～",null,null,{"$error":"#N/A"},null,"00:00:00"]
[null,null,null,null,null,null,"～",null,null,{"$error":"#N/A"},null,"00:00:00"]
[null,null,null,null,null,null,"～",null,null,{"$error":"#N/A"},null,"00:00:00"]
[null,null,null,null,null,null,"～",null,null,{"$error":"#N/A"},null,"00:00:00"]
[null,null,null,null,null,null,"～",null,null,{"$error":"#N/A"},null,"00:00:00"]
[null,null,null,null,null,null,"～",null,null,{"$error":"#N/A"},null,"00:00:00"]
[null,null,null,null,null,null,"～",null,null,{"$error":"#N/A"},null,"00:00:00"]
[null,null,null,null,null,null,"～",null,null,{"$error":"#N/A"},null,"00:00:00"]
[null,null,null,null,null,null,"～",null,null,{"$error":"#N/A"},null,"00:00:00"]
[null,null,null,null,null,null,"～",null,null,{"$error":"#N/A"},null,"00:00:00"]
[null,null,null,null,null,null,"～",null,null,{"$error":"#N/A"},null,"00:00:00"]
[null,null,null,null,null,null,"～",null,null,{"$error":"#N/A"},null,"00:00:00"]
[null,null,null,null,null,null,"～",null,null,{"$error":"#N/A"},null,"00:00:00"]
[null,null,null,null,null,null,"～",null,null,{"$error":"#N/A"},null,"00:00:00"]
[null,null,null,null,null,null,"～",null,null,{"$error":"#N/A"},null,"00:00:00"]
[null,null,null,null,null,null,"～",null,null,{"$error":"#N/A"},null,"00:00:00"]
[null,null,null,null,null,null,"～",null,null,{"$error":"#N/A"},null,"00:00:00"]
[null,null,null,null,null,null,"～",null,null,{"$error":"#N/A"},null,"00:00:00"]
[null,null,null,null,null,null,"～",null,null,{"$error":"#N/A"},null,"00:00:00"]
[null,null,null,null,null,null,"～",null,null,{"$error":"#N/A"},null,"00:00:00"]
[null,null,null,null,null,null,"～",null,null,{"$error":"#N/A"},null,"00:00:00"]
[null,null,null,null,null,null,"～",null,null,{"$error":"#N/A"},null,"00:00:00"]
[null,null,null,null,null,null,"～",null,null,{"$error":"#N/A"},null,"00:00:00"]
[null,null,null,null,null,null,"～",null,null,{"$error":"#N/A"},null,"00:00:00"]
[null,null,null,null,null,null,"～",null,null,{"$error":"#N/A"},null,"00:00:00"]
[null,null,null,null,null,null,"～",null,null,{"$error":"#N/A"},null,"00:00:00"]
[null,null,null,null,null,null,"～",null,null,{"$error":"#N/A"},null,"00:00:00"]
[null,null,null,null,null,null,"～",null,null,{"$error":"#N/A"},null,"00:00:00"]
[null,null,null,null,null,null,"～",null,null,{"$error":"#N/A"},null,"00:00:00"]
[null,null,null,null,null,null,"～",null,null,{"$error":"#N/A"},null,"00:00:00"]
[null,null,null,null,null,null,"～",null,null,{"$error":"#N/A"},null,"00:00:00"]
[null,null,null,null,null,null,"～",null,null,{"$error":"#N/A"},null,"00:00:00"]
[null,null,null,null,null,null,"～",null,null,{"$error":"#N/A"},null,"00:00:00"]
[null,null,null,null,null,null,"～",null,null,{"$error":"#N/A"},null,"00:00:00"]
[null,null,null,null,null,null,"～",null,null,{"$error":"#N/A"},null,"00:00:00"]
[null,null,null,null,null,null,"～",null,null,{"$error":"#N/A"},null,"00:00:00"]
[null,null,null,null,null,null,"～",null,null,{"$error":"#N/A"},null,"00:00:00"]
[null,null,null,null,null,null,"～",null,null,{"$error":"#N/A"},null,"00:00:00"]
[null,null,null,null,null,null,"～",null,null,{"$error":"#N/A"},null,"00:00:00"]
[null,null,null,null,null,null,"～",null,null,{"$error":"#N/A"},null,"00:00:00"]
[null,null,null,null,null,null,"～",null,null,{"$error":"#N/A"},null,"00:00:00"]
[null,null,null,null,null,null,"～",null,null,{"$error":"#N/A"},null,"00:00:00"]
[null,null,null,null,null,null,"～",null,null,{"$f":"VLOOKUP(I196,$C:$D,2,0)","v":{"$error":"#N/A"}},null,{"$f":"H196-F196","v":"00:00:00"}]
[null,null,null,null,null,null,"～",null,null,{"$error":"#N/A"},null,"00:00:00"]
[null,null,null,null,null,null,"～",null,null,{"$error":"#N/A"},null,"00:00:00"]
[null,null,null,null,null,null,"～",null,null,{"$error":"#N/A"},null,"00:00:00"]
[null,null,null,null,null,null,"～",null,null,{"$error":"#N/A"},null,"00:00:00"]
[null,null,null,null,null,null,"～",null,null,{"$error":"#N/A"},null,"00:00:00"]
[null,null,null,null,null,null,"～",null,null,{"$error":"#N/A"},null,"00:00:00"]
[null,null,null,null,null,null,"～",null,null,{"$error":"#N/A"},null,"00:00:00"]
[null,null,null,null,null,null,"～",null,null,{"$error":"#N/A"},null,"00:00:00"]
[null,null,null,null,null,null,"～",null,null,{"$error":"#N/A"},null,"00:00:00"]
[null,null,null,null,null,null,"～",null,null,{"$error":"#N/A"},null,"00:00:00"]
[null,null,null,null,null,null,"～",null,null,{"$error":"#N/A"},null,"00:00:00"]
[null,null,null,null,null,null,"～",null,null,{"$error":"#N/A"},null,"00:00:00"]
[null,null,null,null,null,null,"～",null,null,{"$error":"#N/A"},null,"00:00:00"]
[null,null,null,null,null,null,"～",null,null,{"$error":"#N/A"},null,"00:00:00"]
[null,null,null,null,null,null,"～",null,null,{"$error":"#N/A"},null,"00:00:00"]
[null,null,null,null,null,null,"～",null,null,{"$error":"#N/A"},null,"00:00:00"]
[null,null,null,null,null,null,"～",null,null,{"$error":"#N/A"},null,"00:00:00"]
[null,null,null,null,null,null,"～",null,null,{"$error":"#N/A"},null,"00:00:00"]
[null,null,null,null,null,null,"～",null,null,{"$error":"#N/A"},null,"00:00:00"]
[null,null,null,null,null,null,"～",null,null,{"$error":"#N/A"},null,"00:00:00"]
[null,null,null,null,null,null,"～",null,null,{"$error":"#N/A"},null,"00:00:00"]
[null,null,null,null,null,null,"～",null,null,{"$error":"#N/A"},null,"00:00:00"]
[null,null,null,null,null,null,"～",null,null,{"$error":"#N/A"},null,"00:00:00"]
[null,null,null,null,null,null,"～",null,null,{"$error":"#N/A"},null,"00:00:00"]
[null,null,null,null,null,null,"～",null,null,{"$error":"#N/A"},null,"00:00:00"]
[null,null,null,null,null,null,"～",null,null,{"$error":"#N/A"},null,"00:00:00"]
[null,null,null,null,null,null,"～",null,null,{"$error":"#N/A"},null,"00:00:00"]
[null,null,null,null,null,null,"～",null,null,{"$error":"#N/A"},null,"00:00:00"]
[null,null,null,null,null,null,"～",null,null,{"$error":"#N/A"},null,"00:00:00"]
[null,null,null,null,null,null,"～",null,null,{"$error":"#N/A"},null,"00:00:00"]
[null,null,null,null,null,null,"～",null,null,{"$error":"#N/A"},null,"00:00:00"]
[null,null,null,null,null,null,"～",null,null,{"$error":"#N/A"},null,"00:00:00"]
[null,null,null,null,null,null,"～",null,null,{"$error":"#N/A"},null,"00:00:00"]
[null,null,null,null,null,null,"～",null,null,{"$error":"#N/A"},null,"00:00:00"]
[null,null,null,null,null,null,"～",null,null,{"$error":"#N/A"},null,"00:00:00"]
[null,null,null,null,null,null,"～",null,null,{"$error":"#N/A"},null,"00:00:00"]
[null,null,null,null,null,null,"～",null,null,{"$error":"#N/A"},null,"00:00:00"]
[null,null,null,null,null,null,"～",null,null,{"$error":"#N/A"},null,"00:00:00"]
[null,null,null,null,null,null,"～",null,null,{"$error":"#N/A"},null,"00:00:00"]
[null,null,null,null,null,null,"～",null,null,{"$error":"#N/A"},null,"00:00:00"]
[null,null,null,null,null,null,"～",null,null,{"$error":"#N/A"},null,"00:00:00"]
[null,null,null,null,null,null,"～",null,null,{"$error":"#N/A"},null,"00:00:00"]
[null,null,null,null,null,null,"～",null,null,{"$error":"#N/A"},null,"00:00:00"]
[null,null,null,null,null,null,"～",null,null,{"$error":"#N/A"},null,"00:00:00"]
[null,null,null,null,null,null,"～",null,null,{"$error":"#N/A"},null,"00:00:00"]
[null,null,null,null,null,null,"～",null,null,{"$error":"#N/A"},null,"00:00:00"]
[null,null,null,null,null,null,"～",null,null,{"$error":"#N/A"},null,"00:00:00"]
[null,null,null,null,null,null,"～",null,null,{"$error":"#N/A"},null,"00:00:00"]
[null,null,null,null,null,null,"～",null,null,{"$error":"#N/A"},null,"00:00:00"]
[null,null,null,null,null,null,"～",null,null,{"$error":"#N/A"},null,"00:00:00"]
[null,null,null,null,null,null,"～",null,null,{"$error":"#N/A"},null,"00:00:00"]
[null,null,null,null,null,null,"～",null,null,{"$error":"#N/A"},null,"00:00:00"]
[null,null,null,null,null,null,"～",null,null,{"$error":"#N/A"},null,"00:00:00"]
[null,null,null,null,null,null,"～",null,null,{"$error":"#N/A"},null,"00:00:00"]
[null,null,null,null,null,null,"～",null,null,{"$error":"#N/A"},null,"00:00:00"]
[null,null,null,null,null,null,"～",null,null,{"$error":"#N/A"},null,"00:00:00"]
[null,null,null,null,null,null,"～",null,null,{"$error":"#N/A"},null,"00:00:00"]
[null,null,null,null,null,null,"～",null,null,{"$error":"#N/A"},null,"00:00:00"]
[null,null,null,null,null,null,"～",null,null,{"$error":"#N/A"},null,"00:00:00"]
[null,null,null,null,null,null,"～",null,null,{"$error":"#N/A"},null,"00:00:00"]
[null,null,null,null,null,null,"～",null,null,{"$error":"#N/A"},null,"00:00:00"]
[null,null,null,null,null,null,"～",null,null,{"$error":"#N/A"},null,"00:00:00"]
[null,null,null,null,null,null,"～",null,null,{"$error":"#N/A"},null,"00:00:00"]
[null,null,null,null,null,null,"～",null,null,{"$f":"VLOOKUP(I260,$C:$D,2,0)","v":{"$error":"#N/A"}},null,{"$f":"H260-F260","v":"00:00:00"}]
[null,null,null,null,null,null,"～",null,null,{"$error":"#N/A"},null,"00:00:00"]
[null,null,null,null,null,null,"～",null,null,{"$error":"#N/A"},null,"00:00:00"]
[null,null,null,null,null,null,"～",null,null,{"$error":"#N/A"},null,"00:00:00"]
[null,null,null,null,null,null,"～",null,null,{"$error":"#N/A"},null,"00:00:00"]
[null,null,null,null,null,null,"～",null,null,{"$error":"#N/A"},null,"00:00:00"]
[null,null,null,null,null,null,"～",null,null,{"$error":"#N/A"},null,"00:00:00"]
[null,null,null,null,null,null,"～",null,null,{"$error":"#N/A"},null,"00:00:00"]
[null,null,null,null,null,null,"～",null,null,{"$error":"#N/A"},null,"00:00:00"]
[null,null,null,null,null,null,"～",null,null,{"$error":"#N/A"},null,"00:00:00"]
[null,null,null,null,null,null,"～",null,null,{"$error":"#N/A"},null,"00:00:00"]
[null,null,null,null,null,null,"～",null,null,{"$error":"#N/A"},null,"00:00:00"]
[null,null,null,null,null,null,"～",null,null,{"$error":"#N/A"},null,"00:00:00"]
[null,null,null,null,null,null,"～",null,null,{"$error":"#N/A"},null,"00:00:00"]
[null,null,null,null,null,null,"～",null,null,{"$error":"#N/A"},null,"00:00:00"]
[null,null,null,null,null,null,"～",null,null,{"$error":"#N/A"},null,"00:00:00"]
[null,null,null,null,null,null,"～",null,null,{"$error":"#N/A"},null,"00:00:00"]
[null,null,null,null,null,null,"～",null,null,{"$error":"#N/A"},null,"00:00:00"]
[null,null,null,null,null,null,"～",null,null,{"$error":"#N/A"},null,"00:00:00"]
[null,null,null,null,null,null,"～",null,null,{"$error":"#N/A"},null,"00:00:00"]
[null,null,null,null,null,null,"～",null,null,{"$error":"#N/A"},null,"00:00:00"]
[null,null,null,null,null,null,"～",null,null,{"$error":"#N/A"},null,"00:00:00"]
[null,null,null,null,null,null,"～",null,null,{"$error":"#N/A"},null,"00:00:00"]
[null,null,null,null,null,null,"～",null,null,{"$error":"#N/A"},null,"00:00:00"]
[null,null,null,null,null,null,"～",null,null,{"$error":"#N/A"},null,"00:00:00"]
[null,null,null,null,null,null,"～",null,null,{"$error":"#N/A"},null,"00:00:00"]
[null,null,null,null,null,null,"～",null,null,{"$error":"#N/A"},null,"00:00:00"]
[null,null,null,null,null,null,"～",null,null,{"$error":"#N/A"},null,"00:00:00"]
[null,null,null,null,null,null,"～",null,null,{"$error":"#N/A"},null,"00:00:00"]
[null,null,null,null,null,null,"～",null,null,{"$error":"#N/A"},null,"00:00:00"]
[null,null,null,null,null,null,"～",null,null,{"$error":"#N/A"},null,"00:00:00"]
[null,null,null,null,null,null,"～",null,null,{"$error":"#N/A"},null,"00:00:00"]
[null,null,null,null,null,null,"～",null,null,{"$error":"#N/A"},null,"00:00:00"]
[null,null,null,null,null,null,"～",null,null,{"$error":"#N/A"},null,"00:00:00"]
[null,null,null,null,null,null,"～",null,null,{"$error":"#N/A"},null,"00:00:00"]
[null,null,null,null,null,null,"～",null,null,{"$error":"#N/A"},null,"00:00:00"]
[null,null,null,null,null,null,"～",null,null,{"$error":"#N/A"},null,"00:00:00"]
[null,null,null,null,null,null,"～",null,null,{"$error":"#N/A"},null,"00:00:00"]
[null,null,null,null,null,null,"～",null,null,{"$error":"#N/A"},null,"00:00:00"]
[null,null,null,null,null,null,"～",null,null,{"$error":"#N/A"},null,"00:00:00"]
[null,null,null,null,null,null,"～",null,null,{"$error":"#N/A"},null,"00:00:00"]
[null,null,null,null,null,null,"～",null,null,{"$error":"#N/A"},null,"00:00:00"]
[null,null,null,null,null,null,"～",null,null,{"$error":"#N/A"},null,"00:00:00"]
[null,null,null,null,null,null,"～",null,null,{"$error":"#N/A"},null,"00:00:00"]
[null,null,null,null,null,null,"～",null,null,{"$error":"#N/A"},null,"00:00:00"]
[null,null,null,null,null,null,"～",null,null,{"$error":"#N/A"},null,"00:00:00"]
[null,null,null,null,null,null,"～",null,null,{"$error":"#N/A"},null,"00:00:00"]
[null,null,null,null,null,null,"～",null,null,{"$error":"#N/A"},null,"00:00:00"]
[null,null,null,null,null,null,"～",null,null,{"$error":"#N/A"},null,"00:00:00"]
[null,null,null,null,null,null,"～",null,null,{"$error":"#N/A"},null,"00:00:00"]
[null,null,null,null,null,null,"～",null,null,{"$error":"#N/A"},null,"00:00:00"]
[null,null,null,null,null,null,"～",null,null,{"$error":"#N/A"},null,"00:00:00"]
[null,null,null,null,null,null,"～",null,null,{"$error":"#N/A"},null,"00:00:00"]
[null,null,null,null,null,null,"～",null,null,{"$error":"#N/A"},null,"00:00:00"]
[null,null,null,null,null,null,"～",null,null,{"$error":"#N/A"},null,"00:00:00"]
[null,null,null,null,null,null,"～",null,null,{"$error":"#N/A"},null,"00:00:00"]
[null,null,null,null,null,null,"～",null,null,{"$error":"#N/A"},null,"00:00:00"]
[null,null,null,null,null,null,"～",null,null,{"$error":"#N/A"},null,"00:00:00"]
[null,null,null,null,null,null,"～",null,null,{"$error":"#N/A"},null,"00:00:00"]
[null,null,null,null,null,null,"～",null,null,{"$error":"#N/A"},null,"00:00:00"]
[null,null,null,null,null,null,"～",null,null,{"$error":"#N/A"},null,"00:00:00"]
[null,null,null,null,null,null,"～",null,null,{"$error":"#N/A"},null,"00:00:00"]
[null,null,null,null,null,null,"～",null,null,{"$error":"#N/A"},null,"00:00:00"]
[null,null,null,null,null,null,"～",null,null,{"$error":"#N/A"},null,"00:00:00"]
[null,null,null,null,null,null,"～",null,null,{"$f":"VLOOKUP(I324,$C:$D,2,0)","v":{"$error":"#N/A"}},null,{"$f":"H324-F324","v":"00:00:00"}]
[null,null,null,null,null,null,"～",null,null,{"$error":"#N/A"},null,"00:00:00"]
[null,null,null,null,null,null,"～",null,null,{"$error":"#N/A"},null,"00:00:00"]
[null,null,null,null,null,null,"～",null,null,{"$error":"#N/A"},null,"00:00:00"]
[null,null,null,null,null,null,"～",null,null,{"$error":"#N/A"},null,"00:00:00"]
[null,null,null,null,null,null,"～",null,null,{"$error":"#N/A"},null,"00:00:00"]
[null,null,null,null,null,null,"～",null,null,{"$error":"#N/A"},null,"00:00:00"]
[null,null,null,null,null,null,"～",null,null,{"$error":"#N/A"},null,"00:00:00"]
[null,null,null,null,null,null,"～",null,null,{"$error":"#N/A"},null,"00:00:00"]
[null,null,null,null,null,null,"～",null,null,{"$error":"#N/A"},null,"00:00:00"]
[null,null,null,null,null,null,"～",null,null,{"$error":"#N/A"},null,"00:00:00"]
[null,null,null,null,null,null,"～",null,null,{"$error":"#N/A"},null,"00:00:00"]
[null,null,null,null,null,null,"～",null,null,{"$error":"#N/A"},null,"00:00:00"]
[null,null,null,null,null,null,"～",null,null,{"$error":"#N/A"},null,"00:00:00"]
[null,null,null,null,null,null,"～",null,null,{"$error":"#N/A"},null,"00:00:00"]
[null,null,null,null,null,null,"～",null,null,{"$error":"#N/A"},null,"00:00:00"]
[null,null,null,null,null,null,"～",null,null,{"$error":"#N/A"},null,"00:00:00"]
[null,null,null,null,null,null,"～",null,null,{"$error":"#N/A"},null,"00:00:00"]
[null,null,null,null,null,null,"～",null,null,{"$error":"#N/A"},null,"00:00:00"]
[null,null,null,null,null,null,"～",null,null,{"$error":"#N/A"},null,"00:00:00"]
[null,null,null,null,null,null,"～",null,null,{"$error":"#N/A"},null,"00:00:00"]
[null,null,null,null,null,null,"～",null,null,{"$error":"#N/A"},null,"00:00:00"]
[null,null,null,null,null,null,"～",null,null,{"$error":"#N/A"},null,"00:00:00"]
[null,null,null,null,null,null,"～",null,null,{"$error":"#N/A"},null,"00:00:00"]
[null,null,null,null,null,null,"～",null,null,{"$error":"#N/A"},null,"00:00:00"]
[null,null,null,null,null,null,"～",null,null,{"$error":"#N/A"},null,"00:00:00"]
[null,null,null,null,null,null,"～",null,null,{"$error":"#N/A"},null,"00:00:00"]
[null,null,null,null,null,null,"～",null,null,{"$error":"#N/A"},null,"00:00:00"]
[null,null,null,null,null,null,"～",null,null,{"$error":"#N/A"},null,"00:00:00"]
[null,null,null,null,null,null,"～",null,null,{"$error":"#N/A"},null,"00:00:00"]
[null,null,null,null,null,null,"～",null,null,{"$error":"#N/A"},null,"00:00:00"]
[null,null,null,null,null,null,"～",null,null,{"$error":"#N/A"},null,"00:00:00"]
[null,null,null,null,null,null,"～",null,null,{"$error":"#N/A"},null,"00:00:00"]
[null,null,null,null,null,null,"～",null,null,{"$error":"#N/A"},null,"00:00:00"]
[null,null,null,null,null,null,"～",null,null,{"$error":"#N/A"},null,"00:00:00"]
[null,null,null,null,null,null,"～",null,null,{"$error":"#N/A"},null,"00:00:00"]
[null,null,null,null,null,null,"～",null,null,{"$error":"#N/A"},null,"00:00:00"]
[null,null,null,null,null,null,"～",null,null,{"$error":"#N/A"},null,"00:00:00"]
[null,null,null,null,null,null,"～",null,null,{"$error":"#N/A"},null,"00:00:00"]
[null,null,null,null,null,null,"～",null,null,{"$error":"#N/A"},null,"00:00:00"]
[null,null,null,null,null,null,"～",null,null,{"$error":"#N/A"},null,"00:00:00"]
[null,null,null,null,null,null,"～",null,null,{"$error":"#N/A"},null,"00:00:00"]
[null,null,null,null,null,null,"～",null,null,{"$error":"#N/A"},null,"00:00:00"]
[null,null,null,null,null,null,"～",null,null,{"$error":"#N/A"},null,"00:00:00"]
[null,null,null,null,null,null,"～",null,null,{"$error":"#N/A"},null,"00:00:00"]
[null,null,null,null,null,null,"～",null,null,{"$error":"#N/A"},null,"00:00:00"]
[null,null,null,null,null,null,"～",null,null,{"$error":"#N/A"},null,"00:00:00"]
[null,null,null,null,null,null,"～",null,null,{"$error":"#N/A"},null,"00:00:00"]
[null,null,null,null,null,null,"～",null,null,{"$error":"#N/A"},null,"00:00:00"]
[null,null,null,null,null,null,"～",null,null,{"$error":"#N/A"},null,"00:00:00"]
[null,null,null,null,null,null,"～",null,null,{"$error":"#N/A"},null,"00:00:00"]
[null,null,null,null,null,null,"～",null,null,{"$error":"#N/A"},null,"00:00:00"]
[null,null,null,null,null,null,"～",null,null,{"$error":"#N/A"},null,"00:00:00"]
[null,null,null,null,null,null,"～",null,null,{"$error":"#N/A"},null,"00:00:00"]
[null,null,null,null,null,null,"～",null,null,{"$error":"#N/A"},null,"00:00:00"]
[null,null,null,null,null,null,"～",null,null,{"$error":"#N/A"},null,"00:00:00"]
[null,null,null,null,null,null,"～",null,null,{"$error":"#N/A"},null,"00:00:00"]
[null,null,null,null,null,null,"～",null,null,{"$error":"#N/A"},null,"00:00:00"]
[null,null,null,null,null,null,"～",null,null,{"$error":"#N/A"},null,"00:00:00"]
[null,null,null,null,null,null,"～",null,null,{"$error":"#N/A"},null,"00:00:00"]
[null,null,null,null,null,null,"～",null,null,{"$error":"#N/A"},null,"00:00:00"]
[null,null,null,null,null,null,"～",null,null,{"$error":"#N/A"},null,"00:00:00"]
[null,null,null,null,null,null,"～",null,null,{"$error":"#N/A"},null,"00:00:00"]
[null,null,null,null,null,null,"～",null,null,{"$error":"#N/A"},null,"00:00:00"]
[null,null,null,null,null,null,"～",null,null,{"$f":"VLOOKUP(I388,$C:$D,2,0)","v":{"$error":"#N/A"}},null,{"$f":"H388-F388","v":"00:00:00"}]
[null,null,null,null,null,null,"～",null,null,{"$error":"#N/A"},null,"00:00:00"]
[null,null,null,null,null,null,"～",null,null,{"$error":"#N/A"},null,"00:00:00"]
[null,null,null,null,null,null,"～",null,null,{"$error":"#N/A"},null,"00:00:00"]
[null,null,null,null,null,null,"～",null,null,{"$error":"#N/A"},null,"00:00:00"]
[null,null,null,null,null,null,"～",null,null,{"$error":"#N/A"},null,"00:00:00"]
[null,null,null,null,null,null,"～",null,null,{"$error":"#N/A"},null,"00:00:00"]
[null,null,null,null,null,null,"～",null,null,{"$error":"#N/A"},null,"00:00:00"]
[null,null,null,null,null,null,"～",null,null,{"$error":"#N/A"},null,"00:00:00"]
[null,null,null,null,null,null,"～",null,null,{"$error":"#N/A"},null,"00:00:00"]
[null,null,null,null,null,null,"～",null,null,{"$error":"#N/A"},null,"00:00:00"]
[null,null,null,null,null,null,"～",null,null,{"$error":"#N/A"},null,"00:00:00"]
[null,null,null,null,null,null,"～",null,null,{"$error":"#N/A"},null,"00:00:00"]
[null,null,null,null,null,null,"～",null,null,{"$error":"#N/A"},null,"00:00:00"]
[null,null,null,null,null,null,"～",null,null,{"$error":"#N/A"},null,"00:00:00"]
[null,null,null,null,null,null,"～",null,null,{"$error":"#N/A"},null,"00:00:00"]
[null,null,null,null,null,null,"～",null,null,{"$error":"#N/A"},null,"00:00:00"]
[null,null,null,null,null,null,"～",null,null,{"$error":"#N/A"},null,"00:00:00"]
[null,null,null,null,null,null,"～",null,null,{"$error":"#N/A"},null,"00:00:00"]
[null,null,null,null,null,null,"～",null,null,{"$error":"#N/A"},null,"00:00:00"]
[null,null,null,null,null,null,"～",null,null,{"$error":"#N/A"},null,"00:00:00"]
[null,null,null,null,null,null,"～",null,null,{"$error":"#N/A"},null,"00:00:00"]
[null,null,null,null,null,null,"～",null,null,{"$error":"#N/A"},null,"00:00:00"]
[null,null,null,null,null,null,"～",null,null,{"$error":"#N/A"},null,"00:00:00"]
[null,null,null,null,null,null,"～",null,null,{"$error":"#N/A"},null,"00:00:00"]
[null,null,null,null,null,null,"～",null,null,{"$error":"#N/A"},null,"00:00:00"]
[null,null,null,null,null,null,"～",null,null,{"$error":"#N/A"},null,"00:00:00"]
[null,null,null,null,null,null,"～",null,null,{"$error":"#N/A"},null,"00:00:00"]
[null,null,null,null,null,null,"～",null,null,{"$error":"#N/A"},null,"00:00:00"]
[null,null,null,null,null,null,"～",null,null,{"$error":"#N/A"},null,"00:00:00"]
[null,null,null,null,null,null,"～",null,null,{"$error":"#N/A"},null,"00:00:00"]
[null,null,null,null,null,null,"～",null,null,{"$error":"#N/A"},null,"00:00:00"]
[null,null,null,null,null,null,"～",null,null,{"$error":"#N/A"},null,"00:00:00"]
[null,null,null,null,null,null,"～",null,null,{"$error":"#N/A"},null,"00:00:00"]
[null,null,null,null,null,null,"～",null,null,{"$error":"#N/A"},null,"00:00:00"]
[null,null,null,null,null,null,"～",null,null,{"$error":"#N/A"},null,"00:00:00"]
[null,null,null,null,null,null,"～",null,null,{"$error":"#N/A"},null,"00:00:00"]
[null,null,null,null,null,null,"～",null,null,{"$error":"#N/A"},null,"00:00:00"]
[null,null,null,null,null,null,"～",null,null,{"$error":"#N/A"},null,"00:00:00"]
[null,null,null,null,null,null,"～",null,null,{"$error":"#N/A"},null,"00:00:00"]
[null,null,null,null,null,null,"～",null,null,{"$error":"#N/A"},null,"00:00:00"]
[null,null,null,null,null,null,"～",null,null,{"$error":"#N/A"},null,"00:00:00"]
[null,null,null,null,null,null,"～",null,null,{"$error":"#N/A"},null,"00:00:00"]
[null,null,null,null,null,null,"～",null,null,{"$error":"#N/A"},null,"00:00:00"]
[null,null,null,null,null,null,"～",null,null,{"$error":"#N/A"},null,"00:00:00"]
[null,null,null,null,null,null,"～",null,null,{"$error":"#N/A"},null,"00:00:00"]
[null,null,null,null,null,null,"～",null,null,{"$error":"#N/A"},null,"00:00:00"]
[null,null,null,null,null,null,"～",null,null,{"$error":"#N/A"},null,"00:00:00"]
[null,null,null,null,null,null,"～",null,null,{"$error":"#N/A"},null,"00:00:00"]
[null,null,null,null,null,null,"～",null,null,{"$error":"#N/A"},null,"00:00:00"]
[null,null,null,null,null,null,"～",null,null,{"$error":"#N/A"},null,"00:00:00"]
[null,null,null,null,null,null,"～",null,null,{"$error":"#N/A"},null,"00:00:00"]
[null,null,null,null,null,null,"～",null,null,{"$error":"#N/A"},null,"00:00:00"]
[null,null,null,null,null,null,"～",null,null,{"$error":"#N/A"},null,"00:00:00"]
[null,null,null,null,null,null,"～",null,null,{"$error":"#N/A"},null,"00:00:00"]
[null,null,null,null,null,null,"～",null,null,{"$error":"#N/A"},null,"00:00:00"]
[null,null,null,null,null,null,"～",null,null,{"$error":"#N/A"},null,"00:00:00"]
[null,null,null,null,null,null,"～",null,null,{"$error":"#N/A"},null,"00:00:00"]
[null,null,null,null,null,null,"～",null,null,{"$error":"#N/A"},null,"00:00:00"]
[null,null,null,null,null,null,"～",null,null,{"$error":"#N/A"},null,"00:00:00"]
[null,null,null,null,null,null,"～",null,null,{"$error":"#N/A"},null,"00:00:00"]
[null,null,null,null,null,null,"～",null,null,{"$error":"#N/A"},null,"00:00:00"]
[null,null,null,null,null,null,"～",null,null,{"$error":"#N/A"},null,"00:00:00"]
[null,null,null,null,null,null,"～",null,null,{"$error":"#N/A"},null,"00:00:00"]
[null,null,null,null,null,null,"～",null,null,{"$f":"VLOOKUP(I452,$C:$D,2,0)","v":{"$error":"#N/A"}},null,{"$f":"H452-F452","v":"00:00:00"}]
[null,null,null,null,null,null,"～",null,null,{"$error":"#N/A"},null,"00:00:00"]
[null,null,null,null,null,null,"～",null,null,{"$error":"#N/A"},null,"00:00:00"]
[null,null,null,null,null,null,"～",null,null,{"$error":"#N/A"},null,"00:00:00"]
[null,null,null,null,null,null,"～",null,null,{"$error":"#N/A"},null,"00:00:00"]
[null,null,null,null,null,null,"～",null,null,{"$error":"#N/A"},null,"00:00:00"]
[null,null,null,null,null,null,"～",null,null,{"$error":"#N/A"},null,"00:00:00"]
[null,null,null,null,null,null,"～",null,null,{"$error":"#N/A"},null,"00:00:00"]
[null,null,null,null,null,null,"～",null,null,{"$error":"#N/A"},null,"00:00:00"]
[null,null,null,null,null,null,"～",null,null,{"$error":"#N/A"},null,"00:00:00"]
[null,null,null,null,null,null,"～",null,null,{"$error":"#N/A"},null,"00:00:00"]
[null,null,null,null,null,null,"～",null,null,{"$error":"#N/A"},null,"00:00:00"]
[null,null,null,null,null,null,"～",null,null,{"$error":"#N/A"},null,"00:00:00"]
[null,null,null,null,null,null,"～",null,null,{"$error":"#N/A"},null,"00:00:00"]
[null,null,null,null,null,null,"～",null,null,{"$error":"#N/A"},null,"00:00:00"]
[null,null,null,null,null,null,"～",null,null,{"$error":"#N/A"},null,"00:00:00"]
[null,null,null,null,null,null,"～",null,null,{"$error":"#N/A"},null,"00:00:00"]
[null,null,null,null,null,null,"～",null,null,{"$error":"#N/A"},null,"00:00:00"]
[null,null,null,null,null,null,"～",null,null,{"$error":"#N/A"},null,"00:00:00"]
[null,null,null,null,null,null,"～",null,null,{"$error":"#N/A"},null,"00:00:00"]
[null,null,null,null,null,null,"～",null,null,{"$error":"#N/A"},null,"00:00:00"]
[null,null,null,null,null,null,"～",null,null,{"$error":"#N/A"},null,"00:00:00"]
[null,null,null,null,null,null,"～",null,null,{"$error":"#N/A"},null,"00:00:00"]
[null,null,null,null,null,null,"～",null,null,{"$error":"#N/A"},null,"00:00:00"]
[null,null,null,null,null,null,"～",null,null,{"$error":"#N/A"},null,"00:00:00"]
[null,null,null,null,null,null,"～",null,null,{"$error":"#N/A"},null,"00:00:00"]
[null,null,null,null,null,null,"～",null,null,{"$error":"#N/A"},null,"00:00:00"]
[null,null,null,null,null,null,"～",null,null,{"$error":"#N/A"},null,"00:00:00"]
[null,null,null,null,null,null,"～",null,null,{"$error":"#N/A"},null,"00:00:00"]
[null,null,null,null,null,null,"～",null,null,{"$error":"#N/A"},null,"00:00:00"]
[null,null,null,null,null,null,"～",null,null,{"$error":"#N/A"},null,"00:00:00"]
[null,null,null,null,null,null,"～",null,null,{"$error":"#N/A"},null,"00:00:00"]
[null,null,null,null,null,null,"～",null,null,{"$error":"#N/A"},null,"00:00:00"]
[null,null,null,null,null,null,"～",null,null,{"$error":"#N/A"},null,"00:00:00"]
[null,null,null,null,null,null,"～",null,null,{"$error":"#N/A"},null,"00:00:00"]
[null,null,null,null,null,null,"～",null,null,{"$error":"#N/A"},null,"00:00:00"]
[null,null,null,null,null,null,"～",null,null,{"$error":"#N/A"},null,"00:00:00"]
[null,null,null,null,null,null,"～",null,null,{"$error":"#N/A"},null,"00:00:00"]
[null,null,null,null,null,null,"～",null,null,{"$error":"#N/A"},null,"00:00:00"]
[null,null,null,null,null,null,"～",null,null,{"$error":"#N/A"},null,"00:00:00"]
[null,null,null,null,null,null,"～",null,null,{"$error":"#N/A"},null,"00:00:00"]
[null,null,null,null,null,null,"～",null,null,{"$error":"#N/A"},null,"00:00:00"]
[null,null,null,null,null,null,"～",null,null,{"$error":"#N/A"},null,"00:00:00"]
[null,null,null,null,null,null,"～",null,null,{"$error":"#N/A"},null,"00:00:00"]
[null,null,null,null,null,null,"～",null,null,{"$error":"#N/A"},null,"00:00:00"]
[null,null,null,null,null,null,"～",null,null,{"$error":"#N/A"},null,"00:00:00"]
[null,null,null,null,null,null,"～",null,null,{"$error":"#N/A"},null,"00:00:00"]
[null,null,null,null,null,null,"～",null,null,{"$error":"#N/A"},null,"00:00:00"]
[null,null,null,null,null,null,"～",null,null,{"$error":"#N/A"},null,"00:00:00"]
[null,null,null,null,null,null,"～",null,null,{"$error":"#N/A"},null,"00:00:00"]
[null,null,null,null,null,null,"～",null,null,{"$error":"#N/A"},null,"00:00:00"]
[null,null,null,null,null,null,"～",null,null,{"$error":"#N/A"},null,"00:00:00"]
[null,null,null,null,null,null,"～",null,null,{"$error":"#N/A"},null,"00:00:00"]
[null,null,null,null,null,null,"～",null,null,{"$error":"#N/A"},null,"00:00:00"]
[null,null,null,null,null,null,"～",null,null,{"$error":"#N/A"},null,"00:00:00"]
[null,null,null,null,null,null,"～",null,null,{"$error":"#N/A"},null,"00:00:00"]
[null,null,null,null,null,null,"～",null,null,{"$error":"#N/A"},null,"00:00:00"]
[null,null,null,null,null,null,"～",null,null,{"$error":"#N/A"},null,"00:00:00"]
[null,null,null,null,null,null,"～",null,null,{"$error":"#N/A"},null,"00:00:00"]
[null,null,null,null,null,null,"～",null,null,{"$error":"#N/A"},null,"00:00:00"]
[null,null,null,null,null,null,"～",null,null,{"$error":"#N/A"},null,"00:00:00"]
[null,null,null,null,null,null,"～",null,null,{"$error":"#N/A"},null,"00:00:00"]
[null,null,null,null,null,null,"～",null,null,{"$error":"#N/A"},null,"00:00:00"]
[null,null,null,null,null,null,"～",null,null,{"$error":"#N/A"},null,"00:00:00"]
[null,null,null,null,null,null,"～",null,null,{"$f":"VLOOKUP(I516,$C:$D,2,0)","v":{"$error":"#N/A"}},null,{"$f":"H516-F516","v":"00:00:00"}]
[null,null,null,null,null,null,"～",null,null,{"$error":"#N/A"},null,"00:00:00"]
[null,null,null,null,null,null,"～",null,null,{"$error":"#N/A"},null,"00:00:00"]
[null,null,null,null,null,null,"～",null,null,{"$error":"#N/A"},null,"00:00:00"]
[null,null,null,null,null,null,"～",null,null,{"$error":"#N/A"},null,"00:00:00"]
[null,null,null,null,null,null,"～",null,null,{"$error":"#N/A"},null,"00:00:00"]
[null,null,null,null,null,null,"～",null,null,{"$error":"#N/A"},null,"00:00:00"]
[null,null,null,null,null,null,"～",null,null,{"$error":"#N/A"},null,"00:00:00"]
[null,null,null,null,null,null,"～",null,null,{"$error":"#N/A"},null,"00:00:00"]
[null,null,null,null,null,null,"～",null,null,{"$error":"#N/A"},null,"00:00:00"]
[null,null,null,null,null,null,"～",null,null,{"$error":"#N/A"},null,"00:00:00"]
[null,null,null,null,null,null,"～",null,null,{"$error":"#N/A"},null,"00:00:00"]
[null,null,null,null,null,null,"～",null,null,{"$error":"#N/A"},null,"00:00:00"]
[null,null,null,null,null,null,"～",null,null,{"$error":"#N/A"},null,"00:00:00"]
[null,null,null,null,null,null,"～",null,null,{"$error":"#N/A"},null,"00:00:00"]
[null,null,null,null,null,null,"～",null,null,{"$error":"#N/A"},null,"00:00:00"]
[null,null,null,null,null,null,"～",null,null,{"$error":"#N/A"},null,"00:00:00"]
[null,null,null,null,null,null,"～",null,null,{"$error":"#N/A"},null,"00:00:00"]
[null,null,null,null,null,null,"～",null,null,{"$error":"#N/A"},null,"00:00:00"]
[null,null,null,null,null,null,"～",null,null,{"$error":"#N/A"},null,"00:00:00"]
[null,null,null,null,null,null,"～",null,null,{"$error":"#N/A"},null,"00:00:00"]
[null,null,null,null,null,null,"～",null,null,{"$error":"#N/A"},null,"00:00:00"]
[null,null,null,null,null,null,"～",null,null,{"$error":"#N/A"},null,"00:00:00"]
[null,null,null,null,null,null,"～",null,null,{"$error":"#N/A"},null,"00:00:00"]
[null,null,null,null,null,null,"～",null,null,{"$error":"#N/A"},null,"00:00:00"]
[null,null,null,null,null,null,"～",null,null,{"$error":"#N/A"},null,"00:00:00"]
[null,null,null,null,null,null,"～",null,null,{"$error":"#N/A"},null,"00:00:00"]
[null,null,null,null,null,null,"～",null,null,{"$error":"#N/A"},null,"00:00:00"]
[null,null,null,null,null,null,"～",null,null,{"$error":"#N/A"},null,"00:00:00"]
[null,null,null,null,null,null,"～",null,null,{"$error":"#N/A"},null,"00:00:00"]
[null,null,null,null,null,null,"～",null,null,{"$error":"#N/A"},null,"00:00:00"]
[null,null,null,null,null,null,"～",null,null,{"$error":"#N/A"},null,"00:00:00"]
[null,null,null,null,null,null,"～",null,null,{"$error":"#N/A"},null,"00:00:00"]
[null,null,null,null,null,null,"～",null,null,{"$error":"#N/A"},null,"00:00:00"]
[null,null,null,null,null,null,"～",null,null,{"$error":"#N/A"},null,"00:00:00"]
[null,null,null,null,null,null,"～",null,null,{"$error":"#N/A"},null,"00:00:00"]
[null,null,null,null,null,null,"～",null,null,{"$error":"#N/A"},null,"00:00:00"]
[null,null,null,null,null,null,"～",null,null,{"$error":"#N/A"},null,"00:00:00"]
[null,null,null,null,null,null,"～",null,null,{"$error":"#N/A"},null,"00:00:00"]
[null,null,null,null,null,null,"～",null,null,{"$error":"#N/A"},null,"00:00:00"]
[null,null,null,null,null,null,"～",null,null,{"$error":"#N/A"},null,"00:00:00"]
[null,null,null,null,null,null,"～",null,null,{"$error":"#N/A"},null,"00:00:00"]
[null,null,null,null,null,null,"～",null,null,{"$error":"#N/A"},null,"00:00:00"]
[null,null,null,null,null,null,"～",null,null,{"$error":"#N/A"},null,"00:00:00"]
[null,null,null,null,null,null,"～",null,null,{"$error":"#N/A"},null,"00:00:00"]
[null,null,null,null,null,null,"～",null,null,{"$error":"#N/A"},null,"00:00:00"]
[null,null,null,null,null,null,"～",null,null,{"$error":"#N/A"},null,"00:00:00"]
[null,null,null,null,null,null,"～",null,null,{"$error":"#N/A"},null,"00:00:00"]
[null,null,null,null,null,null,"～",null,null,{"$error":"#N/A"},null,"00:00:00"]
[null,null,null,null,null,null,"～",null,null,{"$error":"#N/A"},null,"00:00:00"]
[null,null,null,null,null,null,"～",null,null,{"$error":"#N/A"},null,"00:00:00"]
[null,null,null,null,null,null,"～",null,null,{"$error":"#N/A"},null,"00:00:00"]
[null,null,null,null,null,null,"～",null,null,{"$error":"#N/A"},null,"00:00:00"]
[null,null,null,null,null,null,"～",null,null,{"$error":"#N/A"},null,"00:00:00"]
[null,null,null,null,null,null,"～",null,null,{"$error":"#N/A"},null,"00:00:00"]
[null,null,null,null,null,null,"～",null,null,{"$error":"#N/A"},null,"00:00:00"]
[null,null,null,null,null,null,"～",null,null,{"$error":"#N/A"},null,"00:00:00"]
[null,null,null,null,null,null,"～",null,null,{"$error":"#N/A"},null,"00:00:00"]
[null,null,null,null,null,null,"～",null,null,{"$error":"#N/A"},null,"00:00:00"]
[null,null,null,null,null,null,"～",null,null,{"$error":"#N/A"},null,"00:00:00"]
[null,null,null,null,null,null,"～",null,null,{"$error":"#N/A"},null,"00:00:00"]
[null,null,null,null,null,null,"～",null,null,{"$error":"#N/A"},null,"00:00:00"]
[null,null,null,null,null,null,"～",null,null,{"$error":"#N/A"},null,"00:00:00"]
[null,null,null,null,null,null,"～",null,null,{"$error":"#N/A"},null,"00:00:00"]
[null,null,null,null,null,null,"～",null,null,{"$f":"VLOOKUP(I580,$C:$D,2,0)","v":{"$error":"#N/A"}},null,{"$f":"H580-F580","v":"00:00:00"}]
[null,null,null,null,null,null,"～",null,null,{"$error":"#N/A"},null,"00:00:00"]
[null,null,null,null,null,null,"～",null,null,{"$error":"#N/A"},null,"00:00:00"]
[null,null,null,null,null,null,"～",null,null,{"$error":"#N/A"},null,"00:00:00"]
[null,null,null,null,null,null,"～",null,null,{"$error":"#N/A"},null,"00:00:00"]
[null,null,null,null,null,null,"～",null,null,{"$error":"#N/A"},null,"00:00:00"]
[null,null,null,null,null,null,"～",null,null,{"$error":"#N/A"},null,"00:00:00"]
[null,null,null,null,null,null,"～",null,null,{"$error":"#N/A"},null,"00:00:00"]
[null,null,null,null,null,null,"～",null,null,{"$error":"#N/A"},null,"00:00:00"]
[null,null,null,null,null,null,"～",null,null,{"$error":"#N/A"},null,"00:00:00"]
[null,null,null,null,null,null,"～",null,null,{"$error":"#N/A"},null,"00:00:00"]
[null,null,null,null,null,null,"～",null,null,{"$error":"#N/A"},null,"00:00:00"]
[null,null,null,null,null,null,"～",null,null,{"$error":"#N/A"},null,"00:00:00"]
[null,null,null,null,null,null,"～",null,null,{"$error":"#N/A"},null,"00:00:00"]
[null,null,null,null,null,null,"～",null,null,{"$error":"#N/A"},null,"00:00:00"]
[null,null,null,null,null,null,"～",null,null,{"$error":"#N/A"},null,"00:00:00"]
[null,null,null,null,null,null,"～",null,null,{"$error":"#N/A"},null,"00:00:00"]
[null,null,null,null,null,null,"～",null,null,{"$error":"#N/A"},null,"00:00:00"]
[null,null,null,null,null,null,"～",null,null,{"$error":"#N/A"},null,"00:00:00"]
[null,null,null,null,null,null,"～",null,null,{"$error":"#N/A"},null,"00:00:00"]
[null,null,null,null,null,null,"～",null,null,{"$error":"#N/A"},null,"00:00:00"]
[null,null,null,null,null,null,"～",null,null,{"$error":"#N/A"},null,"00:00:00"]
[null,null,null,null,null,null,"～",null,null,{"$error":"#N/A"},null,"00:00:00"]
[null,null,null,null,null,null,"～",null,null,{"$error":"#N/A"},null,"00:00:00"]
[null,null,null,null,null,null,"～",null,null,{"$error":"#N/A"},null,"00:00:00"]
[null,null,null,null,null,null,"～",null,null,{"$error":"#N/A"},null,"00:00:00"]
[null,null,null,null,null,null,"～",null,null,{"$error":"#N/A"},null,"00:00:00"]
[null,null,null,null,null,null,"～",null,null,{"$error":"#N/A"},null,"00:00:00"]
[null,null,null,null,null,null,"～",null,null,{"$error":"#N/A"},null,"00:00:00"]
[null,null,null,null,null,null,"～",null,null,{"$error":"#N/A"},null,"00:00:00"]
[null,null,null,null,null,null,"～",null,null,{"$error":"#N/A"},null,"00:00:00"]
[null,null,null,null,null,null,"～",null,null,{"$error":"#N/A"},null,"00:00:00"]
[null,null,null,null,null,null,"～",null,null,{"$error":"#N/A"},null,"00:00:00"]
[null,null,null,null,null,null,"～",null,null,{"$error":"#N/A"},null,"00:00:00"]
[null,null,null,null,null,null,"～",null,null,{"$error":"#N/A"},null,"00:00:00"]
[null,null,null,null,null,null,"～",null,null,{"$error":"#N/A"},null,"00:00:00"]
[null,null,null,null,null,null,"～",null,null,{"$error":"#N/A"},null,"00:00:00"]
[null,null,null,null,null,null,"～",null,null,{"$error":"#N/A"},null,"00:00:00"]
[null,null,null,null,null,null,"～",null,null,{"$error":"#N/A"},null,"00:00:00"]
[null,null,null,null,null,null,"～",null,null,{"$error":"#N/A"},null,"00:00:00"]
[null,null,null,null,null,null,"～",null,null,{"$error":"#N/A"},null,"00:00:00"]
[null,null,null,null,null,null,"～",null,null,{"$error":"#N/A"},null,"00:00:00"]
[null,null,null,null,null,null,"～",null,null,{"$error":"#N/A"},null,"00:00:00"]
[null,null,null,null,null,null,"～",null,null,{"$error":"#N/A"},null,"00:00:00"]
[null,null,null,null,null,null,"～",null,null,{"$error":"#N/A"},null,"00:00:00"]
[null,null,null,null,null,null,"～",null,null,{"$error":"#N/A"},null,"00:00:00"]
[null,null,null,null,null,null,"～",null,null,{"$error":"#N/A"},null,"00:00:00"]
[null,null,null,null,null,null,"～",null,null,{"$error":"#N/A"},null,"00:00:00"]
[null,null,null,null,null,null,"～",null,null,{"$error":"#N/A"},null,"00:00:00"]
[null,null,null,null,null,null,"～",null,null,{"$error":"#N/A"},null,"00:00:00"]
[null,null,null,null,null,null,"～",null,null,{"$error":"#N/A"},null,"00:00:00"]
[null,null,null,null,null,null,"～",null,null,{"$error":"#N/A"},null,"00:00:00"]
[null,null,null,null,null,null,"～",null,null,{"$error":"#N/A"},null,"00:00:00"]
[null,null,null,null,null,null,"～",null,null,{"$error":"#N/A"},null,"00:00:00"]
[null,null,null,null,null,null,"～",null,null,{"$error":"#N/A"},null,"00:00:00"]
[null,null,null,null,null,null,"～",null,null,{"$error":"#N/A"},null,"00:00:00"]
[null,null,null,null,null,null,"～",null,null,{"$error":"#N/A"},null,"00:00:00"]
[null,null,null,null,null,null,"～",null,null,{"$error":"#N/A"},null,"00:00:00"]
[null,null,null,null,null,null,"～",null,null,{"$error":"#N/A"},null,"00:00:00"]
[null,null,null,null,null,null,"～",null,null,{"$error":"#N/A"},null,"00:00:00"]
[null,null,null,null,null,null,"～",null,null,{"$error":"#N/A"},null,"00:00:00"]
[null,null,null,null,null,null,"～",null,null,{"$error":"#N/A"},null,"00:00:00"]
[null,null,null,null,null,null,"～",null,null,{"$error":"#N/A"},null,"00:00:00"]
[null,null,null,null,null,null,"～",null,null,{"$error":"#N/A"},null,"00:00:00"]
[null,null,null,null,null,null,"～",null,null,{"$f":"VLOOKUP(I644,$C:$D,2,0)","v":{"$error":"#N/A"}},null,{"$f":"H644-F644","v":"00:00:00"}]
[null,null,null,null,null,null,"～",null,null,{"$error":"#N/A"},null,"00:00:00"]
[null,null,null,null,null,null,"～",null,null,{"$error":"#N/A"},null,"00:00:00"]
[null,null,null,null,null,null,"～",null,null,{"$error":"#N/A"},null,"00:00:00"]
[null,null,null,null,null,null,"～",null,null,{"$error":"#N/A"},null,"00:00:00"]
[null,null,null,null,null,null,"～",null,null,{"$error":"#N/A"},null,"00:00:00"]
[null,null,null,null,null,null,"～",null,null,{"$error":"#N/A"},null,"00:00:00"]
[null,null,null,null,null,null,"～",null,null,{"$error":"#N/A"},null,"00:00:00"]
[null,null,null,null,null,null,"～",null,null,{"$error":"#N/A"},null,"00:00:00"]
[null,null,null,null,null,null,"～",null,null,{"$error":"#N/A"},null,"00:00:00"]
[null,null,null,null,null,null,"～",null,null,{"$error":"#N/A"},null,"00:00:00"]
[null,null,null,null,null,null,"～",null,null,{"$error":"#N/A"},null,"00:00:00"]
[null,null,null,null,null,null,"～",null,null,{"$error":"#N/A"},null,"00:00:00"]
[null,null,null,null,null,null,"～",null,null,{"$error":"#N/A"},null,"00:00:00"]
[null,null,null,null,null,null,"～",null,null,{"$error":"#N/A"},null,"00:00:00"]
[null,null,null,null,null,null,"～",null,null,{"$error":"#N/A"},null,"00:00:00"]
[null,null,null,null,null,null,"～",null,null,{"$error":"#N/A"},null,"00:00:00"]
[null,null,null,null,null,null,"～",null,null,{"$error":"#N/A"},null,"00:00:00"]
[null,null,null,null,null,null,"～",null,null,{"$error":"#N/A"},null,"00:00:00"]
[null,null,null,null,null,null,"～",null,null,{"$error":"#N/A"},null,"00:00:00"]
[null,null,null,null,null,null,"～",null,null,{"$error":"#N/A"},null,"00:00:00"]
[null,null,null,null,null,null,"～",null,null,{"$error":"#N/A"},null,"00:00:00"]
[null,null,null,null,null,null,"～",null,null,{"$error":"#N/A"},null,"00:00:00"]
[null,null,null,null,null,null,"～",null,null,{"$error":"#N/A"},null,"00:00:00"]
[null,null,null,null,null,null,"～",null,null,{"$error":"#N/A"},null,"00:00:00"]
[null,null,null,null,null,null,"～",null,null,{"$error":"#N/A"},null,"00:00:00"]
[null,null,null,null,null,null,"～",null,null,{"$error":"#N/A"},null,"00:00:00"]
[null,null,null,null,null,null,"～",null,null,{"$error":"#N/A"},null,"00:00:00"]
[null,null,null,null,null,null,"～",null,null,{"$error":"#N/A"},null,"00:00:00"]
[null,null,null,null,null,null,"～",null,null,{"$error":"#N/A"},null,"00:00:00"]
[null,null,null,null,null,null,"～",null,null,{"$error":"#N/A"},null,"00:00:00"]
[null,null,null,null,null,null,"～",null,null,{"$error":"#N/A"},null,"00:00:00"]
[null,null,null,null,null,null,"～",null,null,{"$error":"#N/A"},null,"00:00:00"]
[null,null,null,null,null,null,"～",null,null,{"$error":"#N/A"},null,"00:00:00"]
[null,null,null,null,null,null,"～",null,null,{"$error":"#N/A"},null,"00:00:00"]
[null,null,null,null,null,null,"～",null,null,{"$error":"#N/A"},null,"00:00:00"]
[null,null,null,null,null,null,"～",null,null,{"$error":"#N/A"},null,"00:00:00"]
[null,null,null,null,null,null,"～",null,null,{"$error":"#N/A"},null,"00:00:00"]
[null,null,null,null,null,null,"～",null,null,{"$error":"#N/A"},null,"00:00:00"]
[null,null,null,null,null,null,"～",null,null,{"$error":"#N/A"},null,"00:00:00"]
[null,null,null,null,null,null,"～",null,null,{"$error":"#N/A"},null,"00:00:00"]
[null,null,null,null,null,null,"～",null,null,{"$error":"#N/A"},null,"00:00:00"]
[null,null,null,null,null,null,"～",null,null,{"$error":"#N/A"},null,"00:00:00"]
[null,null,null,null,null,null,"～",null,null,{"$error":"#N/A"},null,"00:00:00"]
[null,null,null,null,null,null,"～",null,null,{"$error":"#N/A"},null,"00:00:00"]
[null,null,null,null,null,null,"～",null,null,{"$error":"#N/A"},null,"00:00:00"]
[null,null,null,null,null,null,"～",null,null,{"$error":"#N/A"},null,"00:00:00"]
[null,null,null,null,null,null,"～",null,null,{"$error":"#N/A"},null,"00:00:00"]
[null,null,null,null,null,null,"～",null,null,{"$error":"#N/A"},null,"00:00:00"]
[null,null,null,null,null,null,"～",null,null,{"$error":"#N/A"},null,"00:00:00"]
[null,null,null,null,null,null,"～",null,null,{"$error":"#N/A"},null,"00:00:00"]
[null,null,null,null,null,null,"～",null,null,{"$error":"#N/A"},null,"00:00:00"]
[null,null,null,null,null,null,"～",null,null,{"$error":"#N/A"},null,"00:00:00"]
[null,null,null,null,null,null,"～",null,null,{"$error":"#N/A"},null,"00:00:00"]
[null,null,null,null,null,null,"～",null,null,{"$error":"#N/A"},null,"00:00:00"]
[null,null,null,null,null,null,"～",null,null,{"$error":"#N/A"},null,"00:00:00"]
[null,null,null,null,null,null,"～",null,null,{"$error":"#N/A"},null,"00:00:00"]
[null,null,null,null,null,null,"～",null,null,{"$error":"#N/A"},null,"00:00:00"]
[null,null,null,null,null,null,"～",null,null,{"$error":"#N/A"},null,"00:00:00"]
[null,null,null,null,null,null,"～",null,null,{"$error":"#N/A"},null,"00:00:00"]
[null,null,null,null,null,null,"～",null,null,{"$error":"#N/A"},null,"00:00:00"]
[null,null,null,null,null,null,"～",null,null,{"$error":"#N/A"},null,"00:00:00"]
[null,null,null,null,null,null,"～",null,null,{"$error":"#N/A"},null,"00:00:00"]
[null,null,null,null,null,null,"～",null,null,{"$error":"#N/A"},null,"00:00:00"]
[null,null,null,null,null,null,"～",null,null,{"$f":"VLOOKUP(I708,$C:$D,2,0)","v":{"$error":"#N/A"}},null,{"$f":"H708-F708","v":"00:00:00"}]
[null,null,null,null,null,null,"～",null,null,{"$error":"#N/A"},null,"00:00:00"]
[null,null,null,null,null,null,"～",null,null,{"$error":"#N/A"},null,"00:00:00"]
[null,null,null,null,null,null,"～",null,null,{"$error":"#N/A"},null,"00:00:00"]
[null,null,null,null,null,null,"～",null,null,{"$error":"#N/A"},null,"00:00:00"]
[null,null,null,null,null,null,"～",null,null,{"$error":"#N/A"},null,"00:00:00"]
[null,null,null,null,null,null,"～",null,null,{"$error":"#N/A"},null,"00:00:00"]
[null,null,null,null,null,null,"～",null,null,{"$error":"#N/A"},null,"00:00:00"]
[null,null,null,null,null,null,"～",null,null,{"$error":"#N/A"},null,"00:00:00"]
[null,null,null,null,null,null,"～",null,null,{"$error":"#N/A"},null,"00:00:00"]
[null,null,null,null,null,null,"～",null,null,{"$error":"#N/A"},null,"00:00:00"]
[null,null,null,null,null,null,"～",null,null,{"$error":"#N/A"},null,"00:00:00"]
[null,null,null,null,null,null,"～",null,null,{"$error":"#N/A"},null,"00:00:00"]
[null,null,null,null,null,null,"～",null,null,{"$error":"#N/A"},null,"00:00:00"]
[null,null,null,null,null,null,"～",null,null,{"$error":"#N/A"},null,"00:00:00"]
[null,null,null,null,null,null,"～",null,null,{"$error":"#N/A"},null,"00:00:00"]
[null,null,null,null,null,null,"～",null,null,{"$error":"#N/A"},null,"00:00:00"]
[null,null,null,null,null,null,"～",null,null,{"$error":"#N/A"},null,"00:00:00"]
[null,null,null,null,null,null,"～",null,null,{"$error":"#N/A"},null,"00:00:00"]
[null,null,null,null,null,null,"～",null,null,{"$error":"#N/A"},null,"00:00:00"]
[null,null,null,null,null,null,"～",null,null,{"$error":"#N/A"},null,"00:00:00"]
[null,null,null,null,null,null,"～",null,null,{"$error":"#N/A"},null,"00:00:00"]
[null,null,null,null,null,null,"～",null,null,{"$error":"#N/A"},null,"00:00:00"]
[null,null,null,null,null,null,"～",null,null,{"$error":"#N/A"},null,"00:00:00"]
[null,null,null,null,null,null,"～",null,null,{"$error":"#N/A"},null,"00:00:00"]
[null,null,null,null,null,null,"～",null,null,{"$error":"#N/A"},null,"00:00:00"]
[null,null,null,null,null,null,"～",null,null,{"$error":"#N/A"},null,"00:00:00"]
[null,null,null,null,null,null,"～",null,null,{"$error":"#N/A"},null,"00:00:00"]
[null,null,null,null,null,null,"～",null,null,{"$error":"#N/A"},null,"00:00:00"]
[null,null,null,null,null,null,"～",null,null,{"$error":"#N/A"},null,"00:00:00"]
[null,null,null,null,null,null,"～",null,null,{"$error":"#N/A"},null,"00:00:00"]
[null,null,null,null,null,null,"～",null,null,{"$error":"#N/A"},null,"00:00:00"]
[null,null,null,null,null,null,"～",null,null,{"$error":"#N/A"},null,"00:00:00"]
[null,null,null,null,null,null,"～",null,null,{"$error":"#N/A"},null,"00:00:00"]
[null,null,null,null,null,null,"～",null,null,{"$error":"#N/A"},null,"00:00:00"]
[null,null,null,null,null,null,"～",null,null,{"$error":"#N/A"},null,"00:00:00"]
[null,null,null,null,null,null,"～",null,null,{"$error":"#N/A"},null,"00:00:00"]
[null,null,null,null,null,null,"～",null,null,{"$error":"#N/A"},null,"00:00:00"]
[null,null,null,null,null,null,"～",null,null,{"$error":"#N/A"},null,"00:00:00"]
[null,null,null,null,null,null,"～",null,null,{"$error":"#N/A"},null,"00:00:00"]
[null,null,null,null,null,null,"～",null,null,{"$error":"#N/A"},null,"00:00:00"]
[null,null,null,null,null,null,"～",null,null,{"$error":"#N/A"},null,"00:00:00"]
[null,null,null,null,null,null,"～",null,null,{"$error":"#N/A"},null,"00:00:00"]
[null,null,null,null,null,null,"～",null,null,{"$error":"#N/A"},null,"00:00:00"]
[null,null,null,null,null,null,"～",null,null,{"$error":"#N/A"},null,"00:00:00"]
[null,null,null,null,null,null,"～",null,null,{"$error":"#N/A"},null,"00:00:00"]
[null,null,null,null,null,null,"～",null,null,{"$error":"#N/A"},null,"00:00:00"]
[null,null,null,null,null,null,"～",null,null,{"$error":"#N/A"},null,"00:00:00"]
[null,null,null,null,null,null,"～",null,null,{"$error":"#N/A"},null,"00:00:00"]
[null,null,null,null,null,null,"～",null,null,{"$error":"#N/A"},null,"00:00:00"]
[null,null,null,null,null,null,"～",null,null,{"$error":"#N/A"},null,"00:00:00"]
[null,null,null,null,null,null,"～",null,null,{"$error":"#N/A"},null,"00:00:00"]
[null,null,null,null,null,null,"～",null,null,{"$error":"#N/A"},null,"00:00:00"]
[null,null,null,null,null,null,"～",null,null,{"$error":"#N/A"},null,"00:00:00"]
[null,null,null,null,null,null,"～",null,null,{"$error":"#N/A"},null,"00:00:00"]
[null,null,null,null,null,null,"～",null,null,{"$error":"#N/A"},null,"00:00:00"]
[null,null,null,null,null,null,"～",null,null,{"$error":"#N/A"},null,"00:00:00"]
[null,null,null,null,null,null,"～",null,null,{"$error":"#N/A"},null,"00:00:00"]
[null,null,null,null,null,null,"～",null,null,{"$error":"#N/A"},null,"00:00:00"]
[null,null,null,null,null,null,"～",null,null,{"$error":"#N/A"},null,"00:00:00"]
[null,null,null,null,null,null,"～",null,null,{"$error":"#N/A"},null,"00:00:00"]
[null,null,null,null,null,null,"～",null,null,{"$error":"#N/A"},null,"00:00:00"]
[null,null,null,null,null,null,"～",null,null,{"$error":"#N/A"},null,"00:00:00"]
[null,null,null,null,null,null,"～",null,null,{"$error":"#N/A"},null,"00:00:00"]
[null,null,null,null,null,null,"～",null,null,{"$f":"VLOOKUP(I772,$C:$D,2,0)","v":{"$error":"#N/A"}},null,{"$f":"H772-F772","v":"00:00:00"}]
[null,null,null,null,null,null,"～",null,null,{"$error":"#N/A"},null,"00:00:00"]
[null,null,null,null,null,null,"～",null,null,{"$error":"#N/A"},null,"00:00:00"]
[null,null,null,null,null,null,"～",null,null,{"$error":"#N/A"},null,"00:00:00"]
[null,null,null,null,null,null,"～",null,null,{"$error":"#N/A"},null,"00:00:00"]
[null,null,null,null,null,null,"～",null,null,{"$error":"#N/A"},null,"00:00:00"]
[null,null,null,null,null,null,"～",null,null,{"$error":"#N/A"},null,"00:00:00"]
[null,null,null,null,null,null,"～",null,null,{"$error":"#N/A"},null,"00:00:00"]
[null,null,null,null,null,null,"～",null,null,{"$error":"#N/A"},null,"00:00:00"]
[null,null,null,null,null,null,"～",null,null,{"$error":"#N/A"},null,"00:00:00"]
[null,null,null,null,null,null,"～",null,null,{"$error":"#N/A"},null,"00:00:00"]
[null,null,null,null,null,null,"～",null,null,{"$error":"#N/A"},null,"00:00:00"]
[null,null,null,null,null,null,"～",null,null,{"$error":"#N/A"},null,"00:00:00"]
[null,null,null,null,null,null,"～",null,null,{"$error":"#N/A"},null,"00:00:00"]
[null,null,null,null,null,null,"～",null,null,{"$error":"#N/A"},null,"00:00:00"]
[null,null,null,null,null,null,"～",null,null,{"$error":"#N/A"},null,"00:00:00"]
[null,null,null,null,null,null,"～",null,null,{"$error":"#N/A"},null,"00:00:00"]
[null,null,null,null,null,null,"～",null,null,{"$error":"#N/A"},null,"00:00:00"]
[null,null,null,null,null,null,"～",null,null,{"$error":"#N/A"},null,"00:00:00"]
[null,null,null,null,null,null,"～",null,null,{"$error":"#N/A"},null,"00:00:00"]
[null,null,null,null,null,null,"～",null,null,{"$error":"#N/A"},null,"00:00:00"]
[null,null,null,null,null,null,"～",null,null,{"$error":"#N/A"},null,"00:00:00"]
[null,null,null,null,null,null,"～",null,null,{"$error":"#N/A"},null,"00:00:00"]
[null,null,null,null,null,null,"～",null,null,{"$error":"#N/A"},null,"00:00:00"]
[null,null,null,null,null,null,"～",null,null,{"$error":"#N/A"},null,"00:00:00"]
[null,null,null,null,null,null,"～",null,null,{"$error":"#N/A"},null,"00:00:00"]
[null,null,null,null,null,null,"～",null,null,{"$error":"#N/A"},null,"00:00:00"]
[null,null,null,null,null,null,"～",null,null,{"$error":"#N/A"},null,"00:00:00"]
[null,null,null,null,null,null,"～",null,null,{"$error":"#N/A"},null,"00:00:00"]
[null,null,null,null,null,null,"～",null,null,{"$error":"#N/A"},null,"00:00:00"]
[null,null,null,null,null,null,"～",null,null,{"$error":"#N/A"},null,"00:00:00"]
[null,null,null,null,null,null,"～",null,null,{"$error":"#N/A"},null,"00:00:00"]
[null,null,null,null,null,null,"～",null,null,{"$error":"#N/A"},null,"00:00:00"]
[null,null,null,null,null,null,"～",null,null,{"$error":"#N/A"},null,"00:00:00"]
[null,null,null,null,null,null,"～",null,null,{"$error":"#N/A"},null,"00:00:00"]
[null,null,null,null,null,null,"～",null,null,{"$error":"#N/A"},null,"00:00:00"]
[null,null,null,null,null,null,"～",null,null,{"$error":"#N/A"},null,"00:00:00"]
[null,null,null,null,null,null,"～",null,null,{"$error":"#N/A"},null,"00:00:00"]
[null,null,null,null,null,null,"～",null,null,{"$error":"#N/A"},null,"00:00:00"]
[null,null,null,null,null,null,"～",null,null,{"$error":"#N/A"},null,"00:00:00"]
[null,null,null,null,null,null,"～",null,null,{"$error":"#N/A"},null,"00:00:00"]
[null,null,null,null,null,null,"～",null,null,{"$error":"#N/A"},null,"00:00:00"]
[null,null,null,null,null,null,"～",null,null,{"$error":"#N/A"},null,"00:00:00"]
[null,null,null,null,null,null,"～",null,null,{"$error":"#N/A"},null,"00:00:00"]
[null,null,null,null,null,null,"～",null,null,{"$error":"#N/A"},null,"00:00:00"]
[null,null,null,null,null,null,"～",null,null,{"$error":"#N/A"},null,"00:00:00"]
[null,null,null,null,null,null,"～",null,null,{"$error":"#N/A"},null,"00:00:00"]
[null,null,null,null,null,null,"～",null,null,{"$error":"#N/A"},null,"00:00:00"]
[null,null,null,null,null,null,"～",null,null,{"$error":"#N/A"},null,"00:00:00"]
[null,null,null,null,null,null,"～",null,null,{"$error":"#N/A"},null,"00:00:00"]
[null,null,null,null,null,null,"～",null,null,{"$error":"#N/A"},null,"00:00:00"]
[null,null,null,null,null,null,"～",null,null,{"$error":"#N/A"},null,"00:00:00"]
[null,null,null,null,null,null,"～",null,null,{"$error":"#N/A"},null,"00:00:00"]
[null,null,null,null,null,null,"～",null,null,{"$error":"#N/A"},null,"00:00:00"]
[null,null,null,null,null,null,"～",null,null,{"$error":"#N/A"},null,"00:00:00"]
[null,null,null,null,null,null,"～",null,null,{"$error":"#N/A"},null,"00:00:00"]
[null,null,null,null,null,null,"～",null,null,{"$error":"#N/A"},null,"00:00:00"]
[null,null,null,null,null,null,"～",null,null,{"$error":"#N/A"},null,"00:00:00"]
[null,null,null,null,null,null,"～",null,null,{"$error":"#N/A"},null,"00:00:00"]
[null,null,null,null,null,null,"～",null,null,{"$error":"#N/A"},null,"00:00:00"]
[null,null,null,null,null,null,"～",null,null,{"$error":"#N/A"},null,"00:00:00"]
[null,null,null,null,null,null,"～",null,null,{"$error":"#N/A"},null,"00:00:00"]
[null,null,null,null,null,null,"～",null,null,{"$error":"#N/A"},null,"00:00:00"]
[null,null,null,null,null,null,"～",null,null,{"$error":"#N/A"},null,"00:00:00"]
[null,null,null,null,null,null,"～",null,null,{"$f":"VLOOKUP(I836,$C:$D,2,0)","v":{"$error":"#N/A"}},null,{"$f":"H836-F836","v":"00:00:00"}]
[null,null,null,null,null,null,"～",null,null,{"$error":"#N/A"},null,"00:00:00"]
[null,null,null,null,null,null,"～",null,null,{"$error":"#N/A"},null,"00:00:00"]
[null,null,null,null,null,null,"～",null,null,{"$error":"#N/A"},null,"00:00:00"]
[null,null,null,null,null,null,"～",null,null,{"$error":"#N/A"},null,"00:00:00"]
[null,null,null,null,null,null,"～",null,null,{"$error":"#N/A"},null,"00:00:00"]
[null,null,null,null,null,null,"～",null,null,{"$error":"#N/A"},null,"00:00:00"]
[null,null,null,null,null,null,"～",null,null,{"$error":"#N/A"},null,"00:00:00"]
[null,null,null,null,null,null,"～",null,null,{"$error":"#N/A"},null,"00:00:00"]
[null,null,null,null,null,null,"～",null,null,{"$error":"#N/A"},null,"00:00:00"]
[null,null,null,null,null,null,"～",null,null,{"$error":"#N/A"},null,"00:00:00"]
[null,null,null,null,null,null,"～",null,null,{"$error":"#N/A"},null,"00:00:00"]
[null,null,null,null,null,null,"～",null,null,{"$error":"#N/A"},null,"00:00:00"]
[null,null,null,null,null,null,"～",null,null,{"$error":"#N/A"},null,"00:00:00"]
[null,null,null,null,null,null,"～",null,null,{"$error":"#N/A"},null,"00:00:00"]
[null,null,null,null,null,null,"～",null,null,{"$error":"#N/A"},null,"00:00:00"]
[null,null,null,null,null,null,"～",null,null,{"$error":"#N/A"},null,"00:00:00"]
[null,null,null,null,null,null,"～",null,null,{"$error":"#N/A"},null,"00:00:00"]
[null,null,null,null,null,null,"～",null,null,{"$error":"#N/A"},null,"00:00:00"]
[null,null,null,null,null,null,"～",null,null,{"$error":"#N/A"},null,"00:00:00"]
[null,null,null,null,null,null,"～",null,null,{"$error":"#N/A"},null,"00:00:00"]
[null,null,null,null,null,null,"～",null,null,{"$error":"#N/A"},null,"00:00:00"]
[null,null,null,null,null,null,"～",null,null,{"$error":"#N/A"},null,"00:00:00"]
[null,null,null,null,null,null,"～",null,null,{"$error":"#N/A"},null,"00:00:00"]
[null,null,null,null,null,null,"～",null,null,{"$error":"#N/A"},null,"00:00:00"]
[null,null,null,null,null,null,"～",null,null,{"$error":"#N/A"},null,"00:00:00"]
[null,null,null,null,null,null,"～",null,null,{"$error":"#N/A"},null,"00:00:00"]
[null,null,null,null,null,null,"～",null,null,{"$error":"#N/A"},null,"00:00:00"]
[null,null,null,null,null,null,"～",null,null,{"$error":"#N/A"},null,"00:00:00"]
[null,null,null,null,null,null,"～",null,null,{"$error":"#N/A"},null,"00:00:00"]
[null,null,null,null,null,null,"～",null,null,{"$error":"#N/A"},null,"00:00:00"]
[null,null,null,null,null,null,"～",null,null,{"$error":"#N/A"},null,"00:00:00"]
[null,null,null,null,null,null,"～",null,null,{"$error":"#N/A"},null,"00:00:00"]
[null,null,null,null,null,null,"～",null,null,{"$error":"#N/A"},null,"00:00:00"]
[null,null,null,null,null,null,"～",null,null,{"$error":"#N/A"},null,"00:00:00"]
[null,null,null,null,null,null,"～",null,null,{"$error":"#N/A"},null,"00:00:00"]
[null,null,null,null,null,null,"～",null,null,{"$error":"#N/A"},null,"00:00:00"]
[null,null,null,null,null,null,"～",null,null,{"$error":"#N/A"},null,"00:00:00"]
[null,null,null,null,null,null,"～",null,null,{"$error":"#N/A"},null,"00:00:00"]
[null,null,null,null,null,null,"～",null,null,{"$error":"#N/A"},null,"00:00:00"]
[null,null,null,null,null,null,"～",null,null,{"$error":"#N/A"},null,"00:00:00"]
[null,null,null,null,null,null,"～",null,null,{"$error":"#N/A"},null,"00:00:00"]
[null,null,null,null,null,null,"～",null,null,{"$error":"#N/A"},null,"00:00:00"]
[null,null,null,null,null,null,"～",null,null,{"$error":"#N/A"},null,"00:00:00"]
[null,null,null,null,null,null,"～",null,null,{"$error":"#N/A"},null,"00:00:00"]
[null,null,null,null,null,null,"～",null,null,{"$error":"#N/A"},null,"00:00:00"]
[null,null,null,null,null,null,"～",null,null,{"$error":"#N/A"},null,"00:00:00"]
[null,null,null,null,null,null,"～",null,null,{"$error":"#N/A"},null,"00:00:00"]
[null,null,null,null,null,null,"～",null,null,{"$error":"#N/A"},null,"00:00:00"]
[null,null,null,null,null,null,"～",null,null,{"$error":"#N/A"},null,"00:00:00"]
[null,null,null,null,null,null,"～",null,null,{"$error":"#N/A"},null,"00:00:00"]
[null,null,null,null,null,null,"～",null,null,{"$error":"#N/A"},null,"00:00:00"]
[null,null,null,null,null,null,"～",null,null,{"$error":"#N/A"},null,"00:00:00"]
[null,null,null,null,null,null,"～",null,null,{"$error":"#N/A"},null,"00:00:00"]
[null,null,null,null,null,null,"～",null,null,{"$error":"#N/A"},null,"00:00:00"]
[null,null,null,null,null,null,"～",null,null,{"$error":"#N/A"},null,"00:00:00"]
[null,null,null,null,null,null,"～",null,null,{"$error":"#N/A"},null,"00:00:00"]
[null,null,null,null,null,null,"～",null,null,{"$error":"#N/A"},null,"00:00:00"]
[null,null,null,null,null,null,"～",null,null,{"$error":"#N/A"},null,"00:00:00"]
[null,null,null,null,null,null,"～",null,null,{"$error":"#N/A"},null,"00:00:00"]
[null,null,null,null,null,null,"～",null,null,{"$error":"#N/A"},null,"00:00:00"]
[null,null,null,null,null,null,"～",null,null,{"$error":"#N/A"},null,"00:00:00"]
[null,null,null,null,null,null,"～",null,null,{"$error":"#N/A"},null,"00:00:00"]
[null,null,null,null,null,null,"～",null,null,{"$error":"#N/A"},null,"00:00:00"]
[null,null,null,null,null,null,"～",null,null,{"$f":"VLOOKUP(I900,$C:$D,2,0)","v":{"$error":"#N/A"}},null,{"$f":"H900-F900","v":"00:00:00"}]
[null,null,null,null,null,null,"～",null,null,{"$error":"#N/A"},null,"00:00:00"]
[null,null,null,null,null,null,"～",null,null,{"$error":"#N/A"},null,"00:00:00"]
[null,null,null,null,null,null,"～",null,null,{"$error":"#N/A"},null,"00:00:00"]
[null,null,null,null,null,null,"～",null,null,{"$error":"#N/A"},null,"00:00:00"]
[null,null,null,null,null,null,"～",null,null,{"$error":"#N/A"},null,"00:00:00"]
[null,null,null,null,null,null,"～",null,null,{"$error":"#N/A"},null,"00:00:00"]
[null,null,null,null,null,null,"～",null,null,{"$error":"#N/A"},null,"00:00:00"]
[null,null,null,null,null,null,"～",null,null,{"$error":"#N/A"},null,"00:00:00"]
[null,null,null,null,null,null,"～",null,null,{"$error":"#N/A"},null,"00:00:00"]
[null,null,null,null,null,null,"～",null,null,{"$error":"#N/A"},null,"00:00:00"]
[null,null,null,null,null,null,"～",null,null,{"$error":"#N/A"},null,"00:00:00"]
[null,null,null,null,null,null,"～",null,null,{"$error":"#N/A"},null,"00:00:00"]
[null,null,null,null,null,null,"～",null,null,{"$error":"#N/A"},null,"00:00:00"]
[null,null,null,null,null,null,"～",null,null,{"$error":"#N/A"},null,"00:00:00"]
[null,null,null,null,null,null,"～",null,null,{"$error":"#N/A"},null,"00:00:00"]
[null,null,null,null,null,null,"～",null,null,{"$error":"#N/A"},null,"00:00:00"]
[null,null,null,null,null,null,"～",null,null,{"$error":"#N/A"},null,"00:00:00"]
[null,null,null,null,null,null,"～",null,null,{"$error":"#N/A"},null,"00:00:00"]
[null,null,null,null,null,null,"～",null,null,{"$error":"#N/A"},null,"00:00:00"]
[null,null,null,null,null,null,"～",null,null,{"$error":"#N/A"},null,"00:00:00"]
[null,null,null,null,null,null,"～",null,null,{"$error":"#N/A"},null,"00:00:00"]
[null,null,null,null,null,null,"～",null,null,{"$error":"#N/A"},null,"00:00:00"]
[null,null,null,null,null,null,"～",null,null,{"$error":"#N/A"},null,"00:00:00"]
[null,null,null,null,null,null,"～",null,null,{"$error":"#N/A"},null,"00:00:00"]
[null,null,null,null,null,null,"～",null,null,{"$error":"#N/A"},null,"00:00:00"]
[null,null,null,null,null,null,"～",null,null,{"$error":"#N/A"},null,"00:00:00"]
[null,null,null,null,null,null,"～",null,null,{"$error":"#N/A"},null,"00:00:00"]
[null,null,null,null,null,null,"～",null,null,{"$error":"#N/A"},null,"00:00:00"]
[null,null,null,null,null,null,"～",null,null,{"$error":"#N/A"},null,"00:00:00"]
[null,null,null,null,null,null,"～",null,null,{"$error":"#N/A"},null,"00:00:00"]
[null,null,null,null,null,null,"～",null,null,{"$error":"#N/A"},null,"00:00:00"]
[null,null,null,null,null,null,"～",null,null,{"$error":"#N/A"},null,"00:00:00"]
[null,null,null,null,null,null,"～",null,null,{"$error":"#N/A"},null,"00:00:00"]
[null,null,null,null,null,null,"～",null,null,{"$error":"#N/A"},null,"00:00:00"]
[null,null,null,null,null,null,"～",null,null,{"$error":"#N/A"},null,"00:00:00"]
[null,null,null,null,null,null,"～",null,null,{"$error":"#N/A"},null,"00:00:00"]
[null,null,null,null,null,null,"～",null,null,{"$error":"#N/A"},null,"00:00:00"]
[null,null,null,null,null,null,"～",null,null,{"$error":"#N/A"},null,"00:00:00"]
[null,null,null,null,null,null,"～",null,null,{"$error":"#N/A"},null,"00:00:00"]
[null,null,null,null,null,null,"～",null,null,{"$error":"#N/A"},null,"00:00:00"]
[null,null,null,null,null,null,"～",null,null,{"$error":"#N/A"},null,"00:00:00"]
[null,null,null,null,null,null,"～",null,null,{"$error":"#N/A"},null,"00:00:00"]
[null,null,null,null,null,null,"～",null,null,{"$error":"#N/A"},null,"00:00:00"]
[null,null,null,null,null,null,"～",null,null,{"$error":"#N/A"},null,"00:00:00"]
[null,null,null,null,null,null,"～",null,null,{"$error":"#N/A"},null,"00:00:00"]
[null,null,null,null,null,null,"～",null,null,{"$error":"#N/A"},null,"00:00:00"]
[null,null,null,null,null,null,"～",null,null,{"$error":"#N/A"},null,"00:00:00"]
[null,null,null,null,null,null,"～",null,null,{"$error":"#N/A"},null,"00:00:00"]
[null,null,null,null,null,null,"～",null,null,{"$error":"#N/A"},null,"00:00:00"]
[null,null,null,null,null,null,"～",null,null,{"$error":"#N/A"},null,"00:00:00"]
[null,null,null,null,null,null,"～",null,null,{"$error":"#N/A"},null,"00:00:00"]
[null,null,null,null,null,null,"～",null,null,{"$error":"#N/A"},null,"00:00:00"]
[null,null,null,null,null,null,"～",null,null,{"$error":"#N/A"},null,"00:00:00"]
[null,null,null,null,null,null,"～",null,null,{"$error":"#N/A"},null,"00:00:00"]
[null,null,null,null,null,null,"～",null,null,{"$error":"#N/A"},null,"00:00:00"]
[null,null,null,null,null,null,"～",null,null,{"$error":"#N/A"},null,"00:00:00"]
[null,null,null,null,null,null,"～",null,null,{"$error":"#N/A"},null,"00:00:00"]
[null,null,null,null,null,null,"～",null,null,{"$error":"#N/A"},null,"00:00:00"]
[null,null,null,null,null,null,"～",null,null,{"$error":"#N/A"},null,"00:00:00"]
[null,null,null,null,null,null,"～",null,null,{"$error":"#N/A"},null,"00:00:00"]
[null,null,null,null,null,null,"～",null,null,{"$error":"#N/A"},null,"00:00:00"]
[null,null,null,null,null,null,"～",null,null,{"$error":"#N/A"},null,"00:00:00"]
[null,null,null,null,null,null,"～",null,null,{"$error":"#N/A"},null,"00:00:00"]
[null,null,null,null,null,null,"～",null,null,{"$f":"VLOOKUP(I964,$C:$D,2,0)","v":{"$error":"#N/A"}},null,{"$f":"H964-F964","v":"00:00:00"}]
[null,null,null,null,null,null,"～",null,null,{"$error":"#N/A"},null,"00:00:00"]
[null,null,null,null,null,null,"～",null,null,{"$error":"#N/A"},null,"00:00:00"]
[null,null,null,null,null,null,"～",null,null,{"$error":"#N/A"},null,"00:00:00"]
[null,null,null,null,null,null,"～",null,null,{"$error":"#N/A"},null,"00:00:00"]
[null,null,null,null,null,null,"～",null,null,{"$error":"#N/A"},null,"00:00:00"]
[null,null,null,null,null,null,"～",null,null,{"$error":"#N/A"},null,"00:00:00"]
[null,null,null,null,null,null,"～",null,null,{"$error":"#N/A"},null,"00:00:00"]
[null,null,null,null,null,null,"～",null,null,{"$error":"#N/A"},null,"00:00:00"]
[null,null,null,null,null,null,"～",null,null,{"$error":"#N/A"},null,"00:00:00"]
[null,null,null,null,null,null,"～",null,null,{"$error":"#N/A"},null,"00:00:00"]
[null,null,null,null,null,null,"～",null,null,{"$error":"#N/A"},null,"00:00:00"]
[null,null,null,null,null,null,"～",null,null,{"$error":"#N/A"},null,"00:00:00"]
[null,null,null,null,null,null,"～",null,null,{"$error":"#N/A"},null,"00:00:00"]
[null,null,null,null,null,null,"～",null,null,{"$error":"#N/A"},null,"00:00:00"]
[null,null,null,null,null,null,"～",null,null,{"$error":"#N/A"},null,"00:00:00"]
[null,null,null,null,null,null,"～",null,null,{"$error":"#N/A"},null,"00:00:00"]
[null,null,null,null,null,null,"～",null,null,{"$error":"#N/A"},null,"00:00:00"]
[null,null,null,null,null,null,"～",null,null,{"$error":"#N/A"},null,"00:00:00"]
[null,null,null,null,null,null,"～",null,null,{"$error":"#N/A"},null,"00:00:00"]
[null,null,null,null,null,null,"～",null,null,{"$error":"#N/A"},null,"00:00:00"]
[null,null,null,null,null,null,"～",null,null,{"$error":"#N/A"},null,"00:00:00"]
[null,null,null,null,null,null,"～",null,null,{"$error":"#N/A"},null,"00:00:00"]
[null,null,null,null,null,null,"～",null,null,{"$error":"#N/A"},null,"00:00:00"]
[null,null,null,null,null,null,"～",null,null,{"$error":"#N/A"},null,"00:00:00"]
[null,null,null,null,null,null,"～",null,null,{"$error":"#N/A"},null,"00:00:00"]
[null,null,null,null,null,null,"～",null,null,{"$error":"#N/A"},null,"00:00:00"]
[null,null,null,null,null,null,"～",null,null,{"$error":"#N/A"},null,"00:00:00"]
[null,null,null,null,null,null,"～",null,null,{"$error":"#N/A"},null,"00:00:00"]
[null,null,null,null,null,null,"～",null,null,{"$error":"#N/A"},null,"00:00:00"]
[null,null,null,null,null,null,"～",null,null,{"$error":"#N/A"},null,"00:00:00"]
[null,null,null,null,null,null,"～",null,null,{"$error":"#N/A"},null,"00:00:00"]
[null,null,null,null,null,null,"～",null,null,{"$error":"#N/A"},null,"00:00:00"]
[null,null,null,null,null,null,"～",null,null,{"$error":"#N/A"},null,"00:00:00"]
[null,null,null,null,null,null,"～",null,null,{"$error":"#N/A"},null,"00:00:00"]
[null,null,null,null,null,null,"～",null,null,{"$error":"#N/A"},null,"00:00:00"]
[null,null,null,null,null,null,"～",null,null,{"$error":"#N/A"},null,"00:00:00"]
[null,null,null,null,null,null,"～",null,null,{"$error":"#N/A"},null,"00:00:00"]
[null,null,null,null,null,null,"～",null,null,{"$error":"#N/A"},null,"00:00:00"]
[null,null,null,null,null,null,"～",null,null,{"$error":"#N/A"},null,"00:00:00"]
[null,null,null,null,null,null,"～",null,null,{"$error":"#N/A"},null,"00:00:00"]
[null,null,null,null,null,null,"～",null,null,{"$error":"#N/A"},null,"00:00:00"]
[null,null,null,null,null,null,"～",null,null,{"$error":"#N/A"},null,"00:00:00"]
[null,null,null,null,null,null,"～",null,null,{"$error":"#N/A"},null,"00:00:00"]
[null,null,null,null,null,null,"～",null,null,{"$error":"#N/A"},null,"00:00:00"]
[null,null,null,null,null,null,"～",null,null,{"$error":"#N/A"},null,"00:00:00"]
[null,null,null,null,null,null,"～",null,null,{"$error":"#N/A"},null,"00:00:00"]
[null,null,null,null,null,null,"～",null,null,{"$error":"#N/A"},null,"00:00:00"]
[null,null,null,null,null,null,"～",null,null,{"$error":"#N/A"},null,"00:00:00"]
[null,null,null,null,null,null,"～",null,null,{"$error":"#N/A"},null,"00:00:00"]
[null,null,null,null,null,null,"～",null,null,{"$error":"#N/A"},null,"00:00:00"]
[null,null,null,null,null,null,"～",null,null,{"$error":"#N/A"},null,"00:00:00"]
[null,null,null,null,null,null,"～",null,null,{"$error":"#N/A"},null,"00:00:00"]
[null,null,null,null,null,null,"～",null,null,{"$error":"#N/A"},null,"00:00:00"]
[null,null,null,null,null,null,"～",null,null,{"$error":"#N/A"},null,"00:00:00"]
[null,null,null,null,null,null,"～",null,null,{"$error":"#N/A"},null,"00:00:00"]
[null,null,null,null,null,null,"～",null,null,{"$error":"#N/A"},null,"00:00:00"]
[null,null,null,null,null,null,"～",null,null,{"$error":"#N/A"},null,"00:00:00"]
[null,null,null,null,null,null,"～",null,null,{"$error":"#N/A"},null,"00:00:00"]
[null,null,null,null,null,null,"～",null,null,{"$error":"#N/A"},null,"00:00:00"]
[null,null,null,null,null,null,"～",null,null,{"$error":"#N/A"},null,"00:00:00"]
[null,null,null,null,null,null,"～",null,null,{"$error":"#N/A"},null,"00:00:00"]
[null,null,null,null,null,null,"～",null,null,{"$error":"#N/A"},null,"00:00:00"]
[null,null,null,null,null,null,"～",null,null,{"$error":"#N/A"},null,"00:00:00"]
[null,null,null,null,null,null,"～",null,null,{"$f":"VLOOKUP(I1028,$C:$D,2,0)","v":{"$error":"#N/A"}},null,{"$f":"H1028-F1028","v":"00:00:00"}]
[null,null,null,null,null,null,"～",null,null,{"$error":"#N/A"},null,"00:00:00"]
[null,null,null,null,null,null,"～",null,null,{"$error":"#N/A"},null,"00:00:00"]
[null,null,null,null,null,null,"～",null,null,{"$error":"#N/A"},null,"00:00:00"]
[null,null,null,null,null,null,"～",null,null,{"$error":"#N/A"},null,"00:00:00"]
[null,null,null,null,null,null,"～",null,null,{"$error":"#N/A"},null,"00:00:00"]
[null,null,null,null,null,null,"～",null,null,{"$error":"#N/A"},null,"00:00:00"]
[null,null,null,null,null,null,"～",null,null,{"$error":"#N/A"},null,"00:00:00"]
[null,null,null,null,null,null,"～",null,null,{"$error":"#N/A"},null,"00:00:00"]
[null,null,null,null,null,null,"～",null,null,{"$error":"#N/A"},null,"00:00:00"]
[null,null,null,null,null,null,"～",null,null,{"$error":"#N/A"},null,"00:00:00"]
[null,null,null,null,null,null,"～",null,null,{"$error":"#N/A"},null,"00:00:00"]
[null,null,null,null,null,null,"～",null,null,{"$error":"#N/A"},null,"00:00:00"]
[null,null,null,null,null,null,"～",null,null,{"$error":"#N/A"},null,"00:00:00"]
[null,null,null,null,null,null,"～",null,null,{"$error":"#N/A"},null,"00:00:00"]
[null,null,null,null,null,null,"～",null,null,{"$error":"#N/A"},null,"00:00:00"]
[null,null,null,null,null,null,"～",null,null,{"$error":"#N/A"},null,"00:00:00"]
[null,null,null,null,null,null,"～",null,null,{"$error":"#N/A"},null,"00:00:00"]
[null,null,null,null,null,null,"～",null,null,{"$error":"#N/A"},null,"00:00:00"]
[null,null,null,null,null,null,"～",null,null,{"$error":"#N/A"},null,"00:00:00"]
[null,null,null,null,null,null,"～",null,null,{"$error":"#N/A"},null,"00:00:00"]
[null,null,null,null,null,null,"～",null,null,{"$error":"#N/A"},null,"00:00:00"]
[null,null,null,null,null,null,"～",null,null,{"$error":"#N/A"},null,"00:00:00"]
[null,null,null,null,null,null,"～",null,null,{"$error":"#N/A"},null,"00:00:00"]
[null,null,null,null,null,null,"～",null,null,{"$error":"#N/A"},null,"00:00:00"]
[null,null,null,null,null,null,"～",null,null,{"$error":"#N/A"},null,"00:00:00"]
[null,null,null,null,null,null,"～",null,null,{"$error":"#N/A"},null,"00:00:00"]
[null,null,null,null,null,null,"～",null,null,{"$error":"#N/A"},null,"00:00:00"]
[null,null,null,null,null,null,"～",null,null,{"$error":"#N/A"},null,"00:00:00"]
[null,null,null,null,null,null,"～",null,null,{"$error":"#N/A"},null,"00:00:00"]
[null,null,null,null,null,null,"～",null,null,{"$error":"#N/A"},null,"00:00:00"]
[null,null,null,null,null,null,"～",null,null,{"$error":"#N/A"},null,"00:00:00"]
[null,null,null,null,null,null,"～",null,null,{"$error":"#N/A"},null,"00:00:00"]
[null,null,null,null,null,null,"～",null,null,{"$error":"#N/A"},null,"00:00:00"]
[null,null,null,null,null,null,"～",null,null,{"$error":"#N/A"},null,"00:00:00"]
[null,null,null,null,null,null,"～",null,null,{"$error":"#N/A"},null,"00:00:00"]
[null,null,null,null,null,null,"～",null,null,{"$error":"#N/A"},null,"00:00:00"]
[null,null,null,null,null,null,"～",null,null,{"$error":"#N/A"},null,"00:00:00"]
[null,null,null,null,null,null,"～",null,null,{"$error":"#N/A"},null,"00:00:00"]
[null,null,null,null,null,null,"～",null,null,{"$error":"#N/A"},null,"00:00:00"]
[null,null,null,null,null,null,"～",null,null,{"$error":"#N/A"},null,"00:00:00"]
[null,null,null,null,null,null,"～",null,null,{"$error":"#N/A"},null,"00:00:00"]
[null,null,null,null,null,null,"～",null,null,{"$error":"#N/A"},null,"00:00:00"]
[null,null,null,null,null,null,"～",null,null,{"$error":"#N/A"},null,"00:00:00"]
[null,null,null,null,null,null,"～",null,null,{"$error":"#N/A"},null,"00:00:00"]
[null,null,null,null,null,null,"～",null,null,{"$error":"#N/A"},null,"00:00:00"]
[null,null,null,null,null,null,"～",null,null,{"$error":"#N/A"},null,"00:00:00"]
[null,null,null,null,null,null,"～",null,null,{"$error":"#N/A"},null,"00:00:00"]
[null,null,null,null,null,null,"～",null,null,{"$error":"#N/A"},null,"00:00:00"]
[null,null,null,null,null,null,"～",null,null,{"$error":"#N/A"},null,"00:00:00"]
[null,null,null,null,null,null,"～",null,null,{"$error":"#N/A"},null,"00:00:00"]
[null,null,null,null,null,null,"～",null,null,{"$error":"#N/A"},null,"00:00:00"]
[null,null,null,null,null,null,"～",null,null,{"$error":"#N/A"},null,"00:00:00"]
[null,null,null,null,null,null,"～",null,null,{"$error":"#N/A"},null,"00:00:00"]
[null,null,null,null,null,null,"～",null,null,{"$error":"#N/A"},null,"00:00:00"]
[null,null,null,null,null,null,"～",null,null,{"$error":"#N/A"},null,"00:00:00"]
[null,null,null,null,null,null,"～",null,null,{"$error":"#N/A"},null,"00:00:00"]
[null,null,null,null,null,null,"～",null,null,{"$error":"#N/A"},null,"00:00:00"]
[null,null,null,null,null,null,"～",null,null,{"$error":"#N/A"},null,"00:00:00"]
[null,null,null,null,null,null,"～",null,null,{"$error":"#N/A"},null,"00:00:00"]
[null,null,null,null,null,null,"～",null,null,{"$error":"#N/A"},null,"00:00:00"]
[null,null,null,null,null,null,"～",null,null,{"$error":"#N/A"},null,"00:00:00"]
[null,null,null,null,null,null,"～",null,null,{"$error":"#N/A"},null,"00:00:00"]
[null,null,null,null,null,null,"～",null,null,{"$error":"#N/A"},null,"00:00:00"]
[null,null,null,null,null,null,"～",null,null,{"$f":"VLOOKUP(I1092,$C:$D,2,0)","v":{"$error":"#N/A"}},null,{"$f":"H1092-F1092","v":"00:00:00"}]
[null,null,null,null,null,null,"～",null,null,{"$error":"#N/A"},null,"00:00:00"]
[null,null,null,null,null,null,"～",null,null,{"$error":"#N/A"},null,"00:00:00"]
[null,null,null,null,null,null,"～",null,null,{"$error":"#N/A"},null,"00:00:00"]
[null,null,null,null,null,null,"～",null,null,{"$error":"#N/A"},null,"00:00:00"]
[null,null,null,null,null,null,"～",null,null,{"$error":"#N/A"},null,"00:00:00"]
[null,null,null,null,null,null,"～",null,null,{"$error":"#N/A"},null,"00:00:00"]
[null,null,null,null,null,null,"～",null,null,{"$error":"#N/A"},null,"00:00:00"]
[null,null,null,null,null,null,"～",null,null,{"$error":"#N/A"},null,"00:00:00"]
[null,null,null,null,null,null,"～",null,null,{"$error":"#N/A"},null,"00:00:00"]
[null,null,null,null,null,null,"～",null,null,{"$error":"#N/A"},null,"00:00:00"]
[null,null,null,null,null,null,"～",null,null,{"$error":"#N/A"},null,"00:00:00"]
[null,null,null,null,null,null,"～",null,null,{"$error":"#N/A"},null,"00:00:00"]
[null,null,null,null,null,null,"～",null,null,{"$error":"#N/A"},null,"00:00:00"]
[null,null,null,null,null,null,"～",null,null,{"$error":"#N/A"},null,"00:00:00"]
[null,null,null,null,null,null,"～",null,null,{"$error":"#N/A"},null,"00:00:00"]
[null,null,null,null,null,null,"～",null,null,{"$error":"#N/A"},null,"00:00:00"]
[null,null,null,null,null,null,"～",null,null,{"$error":"#N/A"},null,"00:00:00"]
[null,null,null,null,null,null,"～",null,null,{"$error":"#N/A"},null,"00:00:00"]
[null,null,null,null,null,null,"～",null,null,{"$error":"#N/A"},null,"00:00:00"]
[null,null,null,null,null,null,"～",null,null,{"$error":"#N/A"},null,"00:00:00"]
[null,null,null,null,null,null,"～",null,null,{"$error":"#N/A"},null,"00:00:00"]
[null,null,null,null,null,null,"～",null,null,{"$error":"#N/A"},null,"00:00:00"]
[null,null,null,null,null,null,"～",null,null,{"$error":"#N/A"},null,"00:00:00"]
[null,null,null,null,null,null,"～",null,null,{"$error":"#N/A"},null,"00:00:00"]
[null,null,null,null,null,null,"～",null,null,{"$error":"#N/A"},null,"00:00:00"]
[null,null,null,null,null,null,"～",null,null,{"$error":"#N/A"},null,"00:00:00"]
[null,null,null,null,null,null,"～",null,null,{"$error":"#N/A"},null,"00:00:00"]
[null,null,null,null,null,null,"～",null,null,{"$error":"#N/A"},null,"00:00:00"]
[null,null,null,null,null,null,"～",null,null,{"$error":"#N/A"},null,"00:00:00"]
[null,null,null,null,null,null,"～",null,null,{"$error":"#N/A"},null,"00:00:00"]
[null,null,null,null,null,null,"～",null,null,{"$error":"#N/A"},null,"00:00:00"]
[null,null,null,null,null,null,"～",null,null,{"$error":"#N/A"},null,"00:00:00"]
[null,null,null,null,null,null,"～",null,null,{"$error":"#N/A"},null,"00:00:00"]
[null,null,null,null,null,null,"～",null,null,{"$error":"#N/A"},null,"00:00:00"]
[null,null,null,null,null,null,"～",null,null,{"$error":"#N/A"},null,"00:00:00"]
[null,null,null,null,null,null,"～",null,null,{"$error":"#N/A"},null,"00:00:00"]
[null,null,null,null,null,null,"～",null,null,{"$error":"#N/A"},null,"00:00:00"]
[null,null,null,null,null,null,"～",null,null,{"$error":"#N/A"},null,"00:00:00"]
[null,null,null,null,null,null,"～",null,null,{"$error":"#N/A"},null,"00:00:00"]
[null,null,null,null,null,null,"～",null,null,{"$error":"#N/A"},null,"00:00:00"]
[null,null,null,null,null,null,"～",null,null,{"$error":"#N/A"},null,"00:00:00"]
[null,null,null,null,null,null,"～",null,null,{"$error":"#N/A"},null,"00:00:00"]
[null,null,null,null,null,null,"～",null,null,{"$error":"#N/A"},null,"00:00:00"]
[null,null,null,null,null,null,"～",null,null,{"$error":"#N/A"},null,"00:00:00"]
[null,null,null,null,null,null,"～",null,null,{"$error":"#N/A"},null,"00:00:00"]
[null,null,null,null,null,null,"～",null,null,{"$error":"#N/A"},null,"00:00:00"]
[null,null,null,null,null,null,"～",null,null,{"$error":"#N/A"},null,"00:00:00"]
[null,null,null,null,null,null,"～",null,null,{"$error":"#N/A"},null,"00:00:00"]
[null,null,null,null,null,null,"～",null,null,{"$error":"#N/A"},null,"00:00:00"]
[null,null,null,null,null,null,"～",null,null,{"$error":"#N/A"},null,"00:00:00"]
[null,null,null,null,null,null,"～",null,null,{"$error":"#N/A"},null,"00:00:00"]
[null,null,null,null,null,null,"～",null,null,{"$error":"#N/A"},null,"00:00:00"]
[null,null,null,null,null,null,"～",null,null,{"$error":"#N/A"},null,"00:00:00"]
[null,null,null,null,null,null,"～",null,null,{"$error":"#N/A"},null,"00:00:00"]
[null,null,null,null,null,null,"～",null,null,{"$error":"#N/A"},null,"00:00:00"]
[null,null,null,null,null,null,"～",null,null,{"$error":"#N/A"},null,"00:00:00"]
[null,null,null,null,null,null,"～",null,null,{"$error":"#N/A"},null,"00:00:00"]
[null,null,null,null,null,null,"～",null,null,{"$error":"#N/A"},null,"00:00:00"]
[null,null,null,null,null,null,"～",null,null,{"$error":"#N/A"},null,"00:00:00"]
[null,null,null,null,null,null,"～",null,null,{"$error":"#N/A"},null,"00:00:00"]
[null,null,null,null,null,null,"～",null,null,{"$error":"#N/A"},null,"00:00:00"]
[null,null,null,null,null,null,"～",null,null,{"$error":"#N/A"},null,"00:00:00"]
[null,null,null,null,null,null,"～",null,null,{"$error":"#N/A"},null,"00:00:00"]
[null,null,null,null,null,null,"～",null,null,{"$f":"VLOOKUP(I1156,$C:$D,2,0)","v":{"$error":"#N/A"}},null,{"$f":"H1156-F1156","v":"00:00:00"}]
[null,null,null,null,null,null,"～",null,null,{"$error":"#N/A"},null,"00:00:00"]
[null,null,null,null,null,null,"～",null,null,{"$error":"#N/A"},null,"00:00:00"]
[null,null,null,null,null,null,"～",null,null,{"$error":"#N/A"},null,"00:00:00"]
[null,null,null,null,null,null,"～",null,null,{"$error":"#N/A"},null,"00:00:00"]
[null,null,null,null,null,null,"～",null,null,{"$error":"#N/A"},null,"00:00:00"]
[null,null,null,null,null,null,"～",null,null,{"$error":"#N/A"},null,"00:00:00"]
[null,null,null,null,null,null,"～",null,null,{"$error":"#N/A"},null,"00:00:00"]
[null,null,null,null,null,null,"～",null,null,{"$error":"#N/A"},null,"00:00:00"]
[null,null,null,null,null,null,"～",null,null,{"$error":"#N/A"},null,"00:00:00"]
[null,null,null,null,null,null,"～",null,null,{"$error":"#N/A"},null,"00:00:00"]
[null,null,null,null,null,null,"～",null,null,{"$error":"#N/A"},null,"00:00:00"]
[null,null,null,null,null,null,"～",null,null,{"$error":"#N/A"},null,"00:00:00"]
[null,null,null,null,null,null,"～",null,null,{"$error":"#N/A"},null,"00:00:00"]
[null,null,null,null,null,null,"～",null,null,{"$error":"#N/A"},null,"00:00:00"]
[null,null,null,null,null,null,"～",null,null,{"$error":"#N/A"},null,"00:00:00"]
[null,null,null,null,null,null,"～",null,null,{"$error":"#N/A"},null,"00:00:00"]
[null,null,null,null,null,null,"～",null,null,{"$error":"#N/A"},null,"00:00:00"]
[null,null,null,null,null,null,"～",null,null,{"$error":"#N/A"},null,"00:00:00"]
[null,null,null,null,null,null,"～",null,null,{"$error":"#N/A"},null,"00:00:00"]
[null,null,null,null,null,null,"～",null,null,{"$error":"#N/A"},null,"00:00:00"]
[null,null,null,null,null,null,"～",null,null,{"$error":"#N/A"},null,"00:00:00"]
[null,null,null,null,null,null,"～",null,null,{"$error":"#N/A"},null,"00:00:00"]
[null,null,null,null,null,null,"～",null,null,{"$error":"#N/A"},null,"00:00:00"]
[null,null,null,null,null,null,"～",null,null,{"$error":"#N/A"},null,"00:00:00"]
[null,null,null,null,null,null,"～",null,null,{"$error":"#N/A"},null,"00:00:00"]
[null,null,null,null,null,null,"～",null,null,{"$error":"#N/A"},null,"00:00:00"]
[null,null,null,null,null,null,"～",null,null,{"$error":"#N/A"},null,"00:00:00"]
[null,null,null,null,null,null,"～",null,null,{"$error":"#N/A"},null,"00:00:00"]
[null,null,null,null,null,null,"～",null,null,{"$error":"#N/A"},null,"00:00:00"]
[null,null,null,null,null,null,"～",null,null,{"$error":"#N/A"},null,"00:00:00"]
[null,null,null,null,null,null,"～",null,null,{"$error":"#N/A"},null,"00:00:00"]
[null,null,null,null,null,null,"～",null,null,{"$error":"#N/A"},null,"00:00:00"]
[null,null,null,null,null,null,"～",null,null,{"$error":"#N/A"},null,"00:00:00"]
[null,null,null,null,null,null,"～",null,null,{"$error":"#N/A"},null,"00:00:00"]
[null,null,null,null,null,null,"～",null,null,{"$error":"#N/A"},null,"00:00:00"]
[null,null,null,null,null,null,"～",null,null,{"$error":"#N/A"},null,"00:00:00"]
[null,null,null,null,null,null,"～",null,null,{"$error":"#N/A"},null,"00:00:00"]
[null,null,null,null,null,null,"～",null,null,{"$error":"#N/A"},null,"00:00:00"]
[null,null,null,null,null,null,"～",null,null,{"$error":"#N/A"},null,"00:00:00"]
[null,null,null,null,null,null,"～",null,null,{"$error":"#N/A"},null,"00:00:00"]
[null,null,null,null,null,null,"～",null,null,{"$error":"#N/A"},null,"00:00:00"]
[null,null,null,null,null,null,"～",null,null,{"$error":"#N/A"},null,"00:00:00"]
[null,null,null,null,null,null,"～",null,null,{"$error":"#N/A"},null,"00:00:00"]
[null,null,null,null,null,null,"～",null,null,{"$error":"#N/A"},null,"00:00:00"]
[null,null,null,null,null,null,"～",null,null,{"$error":"#N/A"},null,"00:00:00"]
[null,null,null,null,null,null,"～",null,null,{"$error":"#N/A"},null,"00:00:00"]
[null,null,null,null,null,null,"～",null,null,{"$error":"#N/A"},null,"00:00:00"]
[null,null,null,null,null,null,"～",null,null,{"$error":"#N/A"},null,"00:00:00"]
[null,null,null,null,null,null,"～",null,null,{"$error":"#N/A"},null,"00:00:00"]
[null,null,null,null,null,null,"～",null,null,{"$error":"#N/A"},null,"00:00:00"]
[null,null,null,null,null,null,"～",null,null,{"$error":"#N/A"},null,"00:00:00"]
[null,null,null,null,null,null,"～",null,null,{"$error":"#N/A"},null,"00:00:00"]
[null,null,null,null,null,null,"～",null,null,{"$error":"#N/A"},null,"00:00:00"]
[null,null,null,null,null,null,"～",null,null,{"$error":"#N/A"},null,"00:00:00"]
[null,null,null,null,null,null,"～",null,null,{"$error":"#N/A"},null,"00:00:00"]
[null,null,null,null,null,null,"～",null,null,{"$error":"#N/A"},null,"00:00:00"]
[null,null,null,null,null,null,"～",null,null,{"$error":"#N/A"},null,"00:00:00"]
[null,null,null,null,null,null,"～",null,null,{"$error":"#N/A"},null,"00:00:00"]
[null,null,null,null,null,null,"～",null,null,{"$error":"#N/A"},null,"00:00:00"]
[null,null,null,null,null,null,"～",null,null,{"$error":"#N/A"},null,"00:00:00"]
[null,null,null,null,null,null,"～",null,null,{"$error":"#N/A"},null,"00:00:00"]
[null,null,null,null,null,null,"～",null,null,{"$error":"#N/A"},null,"00:00:00"]
[null,null,null,null,null,null,"～",null,null,{"$error":"#N/A"},null,"00:00:00"]
[null,null,null,null,null,null,"～",null,null,{"$f":"VLOOKUP(I1220,$C:$D,2,0)","v":{"$error":"#N/A"}},null,{"$f":"H1220-F1220","v":"00:00:00"}]
[null,null,null,null,null,null,"～",null,null,{"$error":"#N/A"},null,"00:00:00"]
[null,null,null,null,null,null,"～",null,null,{"$error":"#N/A"},null,"00:00:00"]
[null,null,null,null,null,null,"～",null,null,{"$error":"#N/A"},null,"00:00:00"]
[null,null,null,null,null,null,"～",null,null,{"$error":"#N/A"},null,"00:00:00"]
[null,null,null,null,null,null,"～",null,null,{"$error":"#N/A"},null,"00:00:00"]
[null,null,null,null,null,null,"～",null,null,{"$error":"#N/A"},null,"00:00:00"]
[null,null,null,null,null,null,"～",null,null,{"$error":"#N/A"},null,"00:00:00"]
[null,null,null,null,null,null,"～",null,null,{"$error":"#N/A"},null,"00:00:00"]
[null,null,null,null,null,null,"～",null,null,{"$error":"#N/A"},null,"00:00:00"]
[null,null,null,null,null,null,"～",null,null,{"$error":"#N/A"},null,"00:00:00"]
[null,null,null,null,null,null,"～",null,null,{"$error":"#N/A"},null,"00:00:00"]
[null,null,null,null,null,null,"～",null,null,{"$error":"#N/A"},null,"00:00:00"]
[null,null,null,null,null,null,"～",null,null,{"$error":"#N/A"},null,"00:00:00"]
[null,null,null,null,null,null,"～",null,null,{"$error":"#N/A"},null,"00:00:00"]
[null,null,null,null,null,null,"～",null,null,{"$error":"#N/A"},null,"00:00:00"]
[null,null,null,null,null,null,"～",null,null,{"$error":"#N/A"},null,"00:00:00"]
[null,null,null,null,null,null,"～",null,null,{"$error":"#N/A"},null,"00:00:00"]
[null,null,null,null,null,null,"～",null,null,{"$error":"#N/A"},null,"00:00:00"]
[null,null,null,null,null,null,"～",null,null,{"$error":"#N/A"},null,"00:00:00"]
[null,null,null,null,null,null,"～",null,null,{"$error":"#N/A"},null,"00:00:00"]
[null,null,null,null,null,null,"～",null,null,{"$error":"#N/A"},null,"00:00:00"]
[null,null,null,null,null,null,"～",null,null,{"$error":"#N/A"},null,"00:00:00"]
[null,null,null,null,null,null,"～",null,null,{"$error":"#N/A"},null,"00:00:00"]
[null,null,null,null,null,null,"～",null,null,{"$error":"#N/A"},null,"00:00:00"]
[null,null,null,null,null,null,"～",null,null,{"$error":"#N/A"},null,"00:00:00"]
[null,null,null,null,null,null,"～",null,null,{"$error":"#N/A"},null,"00:00:00"]
[null,null,null,null,null,null,"～",null,null,{"$error":"#N/A"},null,"00:00:00"]
[null,null,null,null,null,null,"～",null,null,{"$error":"#N/A"},null,"00:00:00"]
[null,null,null,null,null,null,"～",null,null,{"$error":"#N/A"},null,"00:00:00"]
[null,null,null,null,null,null,"～",null,null,{"$error":"#N/A"},null,"00:00:00"]
[null,null,null,null,null,null,"～",null,null,{"$error":"#N/A"},null,"00:00:00"]
[null,null,null,null,null,null,"～",null,null,{"$error":"#N/A"},null,"00:00:00"]
[null,null,null,null,null,null,"～",null,null,{"$error":"#N/A"},null,"00:00:00"]
[null,null,null,null,null,null,"～",null,null,{"$error":"#N/A"},null,"00:00:00"]
[null,null,null,null,null,null,"～",null,null,{"$error":"#N/A"},null,"00:00:00"]
[null,null,null,null,null,null,"～",null,null,{"$error":"#N/A"},null,"00:00:00"]
[null,null,null,null,null,null,"～",null,null,{"$error":"#N/A"},null,"00:00:00"]
[null,null,null,null,null,null,"～",null,null,{"$error":"#N/A"},null,"00:00:00"]
[null,null,null,null,null,null,"～",null,null,{"$error":"#N/A"},null,"00:00:00"]
[null,null,null,null,null,null,"～",null,null,{"$error":"#N/A"},null,"00:00:00"]
[null,null,null,null,null,null,"～",null,null,{"$error":"#N/A"},null,"00:00:00"]
[null,null,null,null,null,null,"～",null,null,{"$error":"#N/A"},null,"00:00:00"]
[null,null,null,null,null,null,"～",null,null,{"$error":"#N/A"},null,"00:00:00"]
[null,null,null,null,null,null,"～",null,null,{"$error":"#N/A"},null,"00:00:00"]
[null,null,null,null,null,null,"～",null,null,{"$error":"#N/A"},null,"00:00:00"]
[null,null,null,null,null,null,"～",null,null,{"$error":"#N/A"},null,"00:00:00"]
[null,null,null,null,null,null,"～",null,null,{"$error":"#N/A"},null,"00:00:00"]
[null,null,null,null,null,null,"～",null,null,{"$error":"#N/A"},null,"00:00:00"]
[null,null,null,null,null,null,"～",null,null,{"$error":"#N/A"},null,"00:00:00"]
[null,null,null,null,null,null,"～",null,null,{"$error":"#N/A"},null,"00:00:00"]
[null,null,null,null,null,null,"～",null,null,{"$error":"#N/A"},null,"00:00:00"]
[null,null,null,null,null,null,"～",null,null,{"$error":"#N/A"},null,"00:00:00"]
[null,null,null,null,null,null,"～",null,null,{"$error":"#N/A"},null,"00:00:00"]
[null,null,null,null,null,null,"～",null,null,{"$error":"#N/A"},null,"00:00:00"]
[null,null,null,null,null,null,"～",null,null,{"$error":"#N/A"},null,"00:00:00"]
[null,null,null,null,null,null,"～",null,null,{"$error":"#N/A"},null,"00:00:00"]
[null,null,null,null,null,null,"～",null,null,{"$error":"#N/A"},null,"00:00:00"]
[null,null,null,null,null,null,"～",null,null,{"$error":"#N/A"},null,"00:00:00"]
[null,null,null,null,null,null,"～",null,null,{"$error":"#N/A"},null,"00:00:00"]
[null,null,null,null,null,null,"～",null,null,{"$error":"#N/A"},null,"00:00:00"]
[null,null,null,null,null,null,"～",null,null,{"$error":"#N/A"},null,"00:00:00"]
[null,null,null,null,null,null,"～",null,null,{"$error":"#N/A"},null,"00:00:00"]
[null,null,null,null,null,null,"～",null,null,{"$error":"#N/A"},null,"00:00:00"]
[null,null,null,null,null,null,"～",null,null,{"$f":"VLOOKUP(I1284,$C:$D,2,0)","v":{"$error":"#N/A"}},null,{"$f":"H1284-F1284","v":"00:00:00"}]
[null,null,null,null,null,null,"～",null,null,{"$error":"#N/A"},null,"00:00:00"]
[null,null,null,null,null,null,"～",null,null,{"$error":"#N/A"},null,"00:00:00"]
[null,null,null,null,null,null,"～",null,null,{"$error":"#N/A"},null,"00:00:00"]
[null,null,null,null,null,null,"～",null,null,{"$error":"#N/A"},null,"00:00:00"]
[null,null,null,null,null,null,"～",null,null,{"$error":"#N/A"},null,"00:00:00"]
[null,null,null,null,null,null,"～",null,null,{"$error":"#N/A"},null,"00:00:00"]
[null,null,null,null,null,null,"～",null,null,{"$error":"#N/A"},null,"00:00:00"]
[null,null,null,null,null,null,"～",null,null,{"$error":"#N/A"},null,"00:00:00"]
[null,null,null,null,null,null,"～",null,null,{"$error":"#N/A"},null,"00:00:00"]
[null,null,null,null,null,null,"～",null,null,{"$error":"#N/A"},null,"00:00:00"]
[null,null,null,null,null,null,"～",null,null,{"$error":"#N/A"},null,"00:00:00"]
[null,null,null,null,null,null,"～",null,null,{"$error":"#N/A"},null,"00:00:00"]
[null,null,null,null,null,null,"～",null,null,{"$error":"#N/A"},null,"00:00:00"]
[null,null,null,null,null,null,"～",null,null,{"$error":"#N/A"},null,"00:00:00"]
[null,null,null,null,null,null,"～",null,null,{"$error":"#N/A"},null,"00:00:00"]
[null,null,null,null,null,null,"～",null,null,{"$error":"#N/A"},null,"00:00:00"]
[null,null,null,null,null,null,"～",null,null,{"$error":"#N/A"},null,"00:00:00"]
[null,null,null,null,null,null,"～",null,null,{"$error":"#N/A"},null,"00:00:00"]
[null,null,null,null,null,null,"～",null,null,{"$error":"#N/A"},null,"00:00:00"]
[null,null,null,null,null,null,"～",null,null,{"$error":"#N/A"},null,"00:00:00"]
[null,null,null,null,null,null,"～",null,null,{"$error":"#N/A"},null,"00:00:00"]
[null,null,null,null,null,null,"～",null,null,{"$error":"#N/A"},null,"00:00:00"]
[null,null,null,null,null,null,"～",null,null,{"$error":"#N/A"},null,"00:00:00"]
[null,null,null,null,null,null,"～",null,null,{"$error":"#N/A"},null,"00:00:00"]
[null,null,null,null,null,null,"～",null,null,{"$error":"#N/A"},null,"00:00:00"]
[null,null,null,null,null,null,"～",null,null,{"$error":"#N/A"},null,"00:00:00"]
[null,null,null,null,null,null,"～",null,null,{"$error":"#N/A"},null,"00:00:00"]
[null,null,null,null,null,null,"～",null,null,{"$error":"#N/A"},null,"00:00:00"]
[null,null,null,null,null,null,"～",null,null,{"$error":"#N/A"},null,"00:00:00"]
[null,null,null,null,null,null,"～",null,null,{"$error":"#N/A"},null,"00:00:00"]
[null,null,null,null,null,null,"～",null,null,{"$error":"#N/A"},null,"00:00:00"]
[null,null,null,null,null,null,"～",null,null,{"$error":"#N/A"},null,"00:00:00"]
[null,null,null,null,null,null,"～",null,null,{"$error":"#N/A"},null,"00:00:00"]
[null,null,null,null,null,null,"～",null,null,{"$error":"#N/A"},null,"00:00:00"]
[null,null,null,null,null,null,"～",null,null,{"$error":"#N/A"},null,"00:00:00"]
[null,null,null,null,null,null,"～",null,null,{"$error":"#N/A"},null,"00:00:00"]
[null,null,null,null,null,null,"～",null,null,{"$error":"#N/A"},null,"00:00:00"]
[null,null,null,null,null,null,"～",null,null,{"$error":"#N/A"},null,"00:00:00"]
[null,null,null,null,null,null,"～",null,null,{"$error":"#N/A"},null,"00:00:00"]
[null,null,null,null,null,null,"～",null,null,{"$error":"#N/A"},null,"00:00:00"]
[null,null,null,null,null,null,"～",null,null,{"$error":"#N/A"},null,"00:00:00"]
[null,null,null,null,null,null,"～",null,null,{"$error":"#N/A"},null,"00:00:00"]
[null,null,null,null,null,null,"～",null,null,{"$error":"#N/A"},null,"00:00:00"]
[null,null,null,null,null,null,"～",null,null,{"$error":"#N/A"},null,"00:00:00"]
[null,null,null,null,null,null,"～",null,null,{"$error":"#N/A"},null,"00:00:00"]
[null,null,null,null,null,null,"～",null,null,{"$error":"#N/A"},null,"00:00:00"]
[null,null,null,null,null,null,"～",null,null,{"$error":"#N/A"},null,"00:00:00"]
[null,null,null,null,null,null,"～",null,null,{"$error":"#N/A"},null,"00:00:00"]
[null,null,null,null,null,null,"～",null,null,{"$error":"#N/A"},null,"00:00:00"]
[null,null,null,null,null,null,"～",null,null,{"$error":"#N/A"},null,"00:00:00"]
[null,null,null,null,null,null,"～",null,null,{"$error":"#N/A"},null,"00:00:00"]
[null,null,null,null,null,null,"～",null,null,{"$error":"#N/A"},null,"00:00:00"]
[null,null,null,null,null,null,"～",null,null,{"$error":"#N/A"},null,"00:00:00"]
[null,null,null,null,null,null,"～",null,null,{"$error":"#N/A"},null,"00:00:00"]
[null,null,null,null,null,null,"～",null,null,{"$error":"#N/A"},null,"00:00:00"]
[null,null,null,null,null,null,"～",null,null,{"$error":"#N/A"},null,"00:00:00"]
[null,null,null,null,null,null,"～",null,null,{"$error":"#N/A"},null,"00:00:00"]
[null,null,null,null,null,null,"～",null,null,{"$error":"#N/A"},null,"00:00:00"]
[null,null,null,null,null,null,"～",null,null,{"$error":"#N/A"},null,"00:00:00"]
[null,null,null,null,null,null,"～",null,null,{"$error":"#N/A"},null,"00:00:00"]
[null,null,null,null,null,null,"～",null,null,{"$error":"#N/A"},null,"00:00:00"]
[null,null,null,null,null,null,"～",null,null,{"$error":"#N/A"},null,"00:00:00"]
[null,null,null,null,null,null,"～",null,null,{"$error":"#N/A"},null,"00:00:00"]
[null,null,null,null,null,null,"～",null,null,{"$f":"VLOOKUP(I1348,$C:$D,2,0)","v":{"$error":"#N/A"}},null,{"$f":"H1348-F1348","v":"00:00:00"}]
[null,null,null,null,null,null,"～",null,null,{"$error":"#N/A"},null,"00:00:00"]
[null,null,null,null,null,null,"～",null,null,{"$error":"#N/A"},null,"00:00:00"]
[null,null,null,null,null,null,"～",null,null,{"$error":"#N/A"},null,"00:00:00"]
[null,null,null,null,null,null,"～",null,null,{"$error":"#N/A"},null,"00:00:00"]
[null,null,null,null,null,null,"～",null,null,{"$error":"#N/A"},null,"00:00:00"]
[null,null,null,null,null,null,"～",null,null,{"$error":"#N/A"},null,"00:00:00"]
[null,null,null,null,null,null,"～",null,null,{"$error":"#N/A"},null,"00:00:00"]
[null,null,null,null,null,null,"～",null,null,{"$error":"#N/A"},null,"00:00:00"]
[null,null,null,null,null,null,"～",null,null,{"$error":"#N/A"},null,"00:00:00"]
[null,null,null,null,null,null,"～",null,null,{"$error":"#N/A"},null,"00:00:00"]
[null,null,null,null,null,null,"～",null,null,{"$error":"#N/A"},null,"00:00:00"]
[null,null,null,null,null,null,"～",null,null,{"$error":"#N/A"},null,"00:00:00"]
[null,null,null,null,null,null,"～",null,null,{"$error":"#N/A"},null,"00:00:00"]
[null,null,null,null,null,null,"～",null,null,{"$error":"#N/A"},null,"00:00:00"]
[null,null,null,null,null,null,"～",null,null,{"$error":"#N/A"},null,"00:00:00"]
[null,null,null,null,null,null,"～",null,null,{"$error":"#N/A"},null,"00:00:00"]
[null,null,null,null,null,null,"～",null,null,{"$error":"#N/A"},null,"00:00:00"]
[null,null,null,null,null,null,"～",null,null,{"$error":"#N/A"},null,"00:00:00"]
[null,null,null,null,null,null,"～",null,null,{"$error":"#N/A"},null,"00:00:00"]
[null,null,null,null,null,null,"～",null,null,{"$error":"#N/A"},null,"00:00:00"]
[null,null,null,null,null,null,"～",null,null,{"$error":"#N/A"},null,"00:00:00"]
[null,null,null,null,null,null,"～",null,null,{"$error":"#N/A"},null,"00:00:00"]
[null,null,null,null,null,null,"～",null,null,{"$error":"#N/A"},null,"00:00:00"]
[null,null,null,null,null,null,"～",null,null,{"$error":"#N/A"},null,"00:00:00"]
[null,null,null,null,null,null,"～",null,null,{"$error":"#N/A"},null,"00:00:00"]
[null,null,null,null,null,null,"～",null,null,{"$error":"#N/A"},null,"00:00:00"]
[null,null,null,null,null,null,"～",null,null,{"$error":"#N/A"},null,"00:00:00"]
[null,null,null,null,null,null,"～",null,null,{"$error":"#N/A"},null,"00:00:00"]
[null,null,null,null,null,null,"～",null,null,{"$error":"#N/A"},null,"00:00:00"]
[null,null,null,null,null,null,"～",null,null,{"$error":"#N/A"},null,"00:00:00"]
[null,null,null,null,null,null,"～",null,null,{"$error":"#N/A"},null,"00:00:00"]
[null,null,null,null,null,null,"～",null,null,{"$error":"#N/A"},null,"00:00:00"]
[null,null,null,null,null,null,"～",null,null,{"$error":"#N/A"},null,"00:00:00"]
[null,null,null,null,null,null,"～",null,null,{"$error":"#N/A"},null,"00:00:00"]
[null,null,null,null,null,null,"～",null,null,{"$error":"#N/A"},null,"00:00:00"]
[null,null,null,null,null,null,"～",null,null,{"$error":"#N/A"},null,"00:00:00"]
[null,null,null,null,null,null,"～",null,null,{"$error":"#N/A"},null,"00:00:00"]
[null,null,null,null,null,null,"～",null,null,{"$error":"#N/A"},null,"00:00:00"]
[null,null,null,null,null,null,"～",null,null,{"$error":"#N/A"},null,"00:00:00"]
[null,null,null,null,null,null,"～",null,null,{"$error":"#N/A"},null,"00:00:00"]
[null,null,null,null,null,null,"～",null,null,{"$error":"#N/A"},null,"00:00:00"]
[null,null,null,null,null,null,"～",null,null,{"$error":"#N/A"},null,"00:00:00"]
[null,null,null,null,null,null,"～",null,null,{"$error":"#N/A"},null,"00:00:00"]
[null,null,null,null,null,null,"～",null,null,{"$error":"#N/A"},null,"00:00:00"]
[null,null,null,null,null,null,"～",null,null,{"$error":"#N/A"},null,"00:00:00"]
[null,null,null,null,null,null,"～",null,null,{"$error":"#N/A"},null,"00:00:00"]
[null,null,null,null,null,null,"～",null,null,{"$error":"#N/A"},null,"00:00:00"]
[null,null,null,null,null,null,"～",null,null,{"$error":"#N/A"},null,"00:00:00"]
[null,null,null,null,null,null,"～",null,null,{"$error":"#N/A"},null,"00:00:00"]
[null,null,null,null,null,null,"～",null,null,{"$error":"#N/A"},null,"00:00:00"]
[null,null,null,null,null,null,"～",null,null,{"$error":"#N/A"},null,"00:00:00"]
[null,null,null,null,null,null,"～",null,null,{"$error":"#N/A"},null,"00:00:00"]
[null,null,null,null,null,null,"～",null,null,{"$error":"#N/A"},null,"00:00:00"]
[null,null,null,null,null,null,"～",null,null,{"$error":"#N/A"},null,"00:00:00"]
[null,null,null,null,null,null,"～",null,null,{"$error":"#N/A"},null,"00:00:00"]
[null,null,null,null,null,null,"～",null,null,{"$error":"#N/A"},null,"00:00:00"]
[null,null,null,null,null,null,"～",null,null,{"$error":"#N/A"},null,"00:00:00"]
[null,null,null,null,null,null,"～",null,null,{"$error":"#N/A"},null,"00:00:00"]
[null,null,null,null,null,null,"～",null,null,{"$error":"#N/A"},null,"00:00:00"]
[null,null,null,null,null,null,"～",null,null,{"$error":"#N/A"},null,"00:00:00"]
[null,null,null,null,null,null,"～",null,null,{"$error":"#N/A"},null,"00:00:00"]
[null,null,null,null,null,null,"～",null,null,{"$error":"#N/A"},null,"00:00:00"]
[null,null,null,null,null,null,"～",null,null,{"$error":"#N/A"},null,"00:00:00"]
[null,null,null,null,null,null,"～",null,null,{"$f":"VLOOKUP(I1412,$C:$D,2,0)","v":{"$error":"#N/A"}},null,{"$f":"H1412-F1412","v":"00:00:00"}]
[null,null,null,null,null,null,"～",null,null,{"$error":"#N/A"},null,"00:00:00"]
[null,null,null,null,null,null,"～",null,null,{"$error":"#N/A"},null,"00:00:00"]
[null,null,null,null,null,null,"～",null,null,{"$error":"#N/A"},null,"00:00:00"]
[null,null,null,null,null,null,"～",null,null,{"$error":"#N/A"},null,"00:00:00"]
[null,null,null,null,null,null,"～",null,null,{"$error":"#N/A"},null,"00:00:00"]
[null,null,null,null,null,null,"～",null,null,{"$error":"#N/A"},null,"00:00:00"]
[null,null,null,null,null,null,"～",null,null,{"$error":"#N/A"},null,"00:00:00"]
["+",null,null,null,null,null,"～",null,null,{"$error":"#N/A"},null,"00:00:00"]
[null,null,null,null,null,null,"～",null,null,{"$error":"#N/A"},null,"00:00:00"]
[null,null,null,null,null,null,"～",null,null,{"$error":"#N/A"},null,"00:00:00"]
[null,null,null,null,null,null,"～",null,null,{"$error":"#N/A"},null,"00:00:00"]
[null,null,null,null,null,null,"～",null,null,{"$error":"#N/A"},null,"00:00:00"]
[null,null,null,null,null,null,"～",null,null,{"$error":"#N/A"},null,"00:00:00"]
[null,null,null,null,null,null,"～",null,null,{"$error":"#N/A"},null,"00:00:00"]
[null,null,null,null,null,null,"～",null,null,{"$error":"#N/A"},null,"00:00:00"]
[null,null,null,null,null,null,"～",null,null,{"$error":"#N/A"},null,"00:00:00"]
[null,null,null,null,null,null,"～",null,null,{"$error":"#N/A"},null,"00:00:00"]
[null,null,null,null,null,null,"～",null,null,{"$error":"#N/A"},null,"00:00:00"]
[null,null,null,null,null,null,"～",null,null,{"$error":"#N/A"},null,"00:00:00"]
[null,null,null,null,null,null,"～",null,null,{"$error":"#N/A"},null,"00:00:00"]
[null,null,null,null,null,null,"～",null,null,{"$error":"#N/A"},null,"00:00:00"]
[null,null,null,null,null,null,"～",null,null,{"$error":"#N/A"},null,"00:00:00"]
[null,null,null,null,null,null,"～",null,null,{"$error":"#N/A"},null,"00:00:00"]
[null,null,null,null,null,null,"～",null,null,{"$error":"#N/A"},null,"00:00:00"]
[null,null,null,null,null,null,"～",null,null,{"$error":"#N/A"},null,"00:00:00"]
[null,null,null,null,null,null,"～",null,null,{"$error":"#N/A"},null,"00:00:00"]
[null,null,null,null,null,null,"～",null,null,{"$error":"#N/A"},null,"00:00:00"]
[null,null,null,null,null,null,"～",null,null,{"$error":"#N/A"},null,"00:00:00"]
[null,null,null,null,null,null,"～",null,null,{"$error":"#N/A"},null,"00:00:00"]
[null,null,null,null,null,null,"～",null,null,{"$error":"#N/A"},null,"00:00:00"]
[null,null,null,null,null,null,"～",null,null,{"$error":"#N/A"},null,"00:00:00"]
[null,null,null,null,null,null,"～",null,null,{"$error":"#N/A"},null,"00:00:00"]
[null,null,null,null,null,null,"～",null,null,{"$error":"#N/A"},null,"00:00:00"]
[null,null,null,null,null,null,"～",null,null,{"$error":"#N/A"},null,"00:00:00"]
[null,null,null,null,null,null,"～",null,null,{"$error":"#N/A"},null,"00:00:00"]
[null,null,null,null,null,null,"～",null,null,{"$error":"#N/A"},null,"00:00:00"]
[null,null,null,null,null,null,"～",null,null,{"$error":"#N/A"},null,"00:00:00"]
[null,null,null,null,null,null,"～",null,null,{"$error":"#N/A"},null,"00:00:00"]
[null,null,null,null,null,null,"～",null,null,{"$error":"#N/A"},null,"00:00:00"]
[null,null,null,null,null,null,"～",null,null,{"$error":"#N/A"},null,"00:00:00"]
[null,null,null,null,null,null,"～",null,null,{"$error":"#N/A"},null,"00:00:00"]
[null,null,null,null,null,null,"～",null,null,{"$error":"#N/A"},null,"00:00:00"]
[null,null,null,null,null,null,"～",null,null,{"$error":"#N/A"},null,"00:00:00"]
[null,null,null,null,null,null,"～",null,null,{"$error":"#N/A"},null,"00:00:00"]
[null,null,null,null,null,null,"～",null,null,{"$error":"#N/A"},null,"00:00:00"]
[null,null,null,null,null,null,"～",null,null,{"$error":"#N/A"},null,"00:00:00"]
[null,null,null,null,null,null,"～",null,null,{"$error":"#N/A"},null,"00:00:00"]
[null,null,null,null,null,null,"～",null,null,{"$error":"#N/A"},null,"00:00:00"]
[null,null,null,null,null,null,"～",null,null,{"$error":"#N/A"},null,"00:00:00"]
[null,null,null,null,null,null,"～",null,null,{"$error":"#N/A"},null,"00:00:00"]
[null,null,null,null,null,null,"～",null,null,{"$error":"#N/A"},null,"00:00:00"]
[null,null,null,null,null,null,"～",null,null,{"$error":"#N/A"},null,"00:00:00"]
[null,null,null,null,null,null,"～",null,null,{"$error":"#N/A"},null,"00:00:00"]
[null,null,null,null,null,null,"～",null,null,{"$error":"#N/A"},null,"00:00:00"]
[null,null,null,null,null,null,"～",null,null,{"$error":"#N/A"},null,"00:00:00"]
[null,null,null,null,null,null,"～",null,null,{"$error":"#N/A"},null,"00:00:00"]
[null,null,null,null,null,null,"～",null,null,{"$error":"#N/A"},null,"00:00:00"]
[null,null,null,null,null,null,"～",null,null,{"$error":"#N/A"},null,"00:00:00"]
[null,null,null,null,null,null,"～",null,null,{"$error":"#N/A"},null,"00:00:00"]
[null,null,null,null,null,null,"～",null,null,{"$error":"#N/A"},null,"00:00:00"]
[null,null,null,null,null,null,"～",null,null,{"$error":"#N/A"},null,"00:00:00"]
[null,null,null,null,null,null,"～",null,null,{"$error":"#N/A"},null,"00:00:00"]
[null,null,null,null,null,null,"～",null,null,{"$error":"#N/A"},null,"00:00:00"]
[null,null,null,null,null,null,"～",null,null,{"$f":"VLOOKUP(I1476,$C:$D,2,0)","v":{"$error":"#N/A"}},null,{"$f":"H1476-F1476","v":"00:00:00"}]
[null,null,null,null,null,null,"～",null,null,{"$error":"#N/A"},null,"00:00:00"]
[null,null,null,null,null,null,"～",null,null,{"$error":"#N/A"},null,"00:00:00"]
[null,null,null,null,null,null,"～",null,null,{"$error":"#N/A"},null,"00:00:00"]
[null,null,null,null,null,null,"～",null,null,{"$error":"#N/A"},null,"00:00:00"]
[null,null,null,null,null,null,"～",null,null,{"$error":"#N/A"},null,"00:00:00"]
[null,null,null,null,null,null,"～",null,null,{"$error":"#N/A"},null,"00:00:00"]
[null,null,null,null,null,null,"～",null,null,{"$error":"#N/A"},null,"00:00:00"]
[null,null,null,null,null,null,"～",null,null,{"$error":"#N/A"},null,"00:00:00"]
[null,null,null,null,null,null,"～",null,null,{"$error":"#N/A"},null,"00:00:00"]
[null,null,null,null,null,null,"～",null,null,{"$error":"#N/A"},null,"00:00:00"]
[null,null,null,null,null,null,"～",null,null,{"$error":"#N/A"},null,"00:00:00"]
[null,null,null,null,null,null,"～",null,null,{"$error":"#N/A"},null,"00:00:00"]
[null,null,null,null,null,null,"～",null,null,{"$error":"#N/A"},null,"00:00:00"]
[null,null,null,null,null,null,"～",null,null,{"$error":"#N/A"},null,"00:00:00"]
[null,null,null,null,null,null,"～",null,null,{"$error":"#N/A"},null,"00:00:00"]
[null,null,null,null,null,null,"～",null,null,{"$error":"#N/A"},null,"00:00:00"]
[null,null,null,null,null,null,"～",null,null,{"$error":"#N/A"},null,"00:00:00"]
[null,null,null,null,null,null,"～",null,null,{"$error":"#N/A"},null,"00:00:00"]
[null,null,null,null,null,null,"～",null,null,{"$error":"#N/A"},null,"00:00:00"]
[null,null,null,null,null,null,"～",null,null,{"$error":"#N/A"},null,"00:00:00"]
[null,null,null,null,null,null,"～",null,null,{"$error":"#N/A"},null,"00:00:00"]
[null,null,null,null,null,null,"～",null,null,{"$error":"#N/A"},null,"00:00:00"]
[null,null,null,null,null,null,"～",null,null,{"$error":"#N/A"},null,"00:00:00"]
[null,null,null,null,null,null,"～",null,null,{"$error":"#N/A"},null,"00:00:00"]
[null,null,null,null,null,null,"～",null,null,{"$error":"#N/A"},null,"00:00:00"]
[null,null,null,null,null,null,"～",null,null,{"$error":"#N/A"},null,"00:00:00"]
[null,null,null,null,null,null,"～",null,null,{"$error":"#N/A"},null,"00:00:00"]
[null,null,null,null,null,null,"～",null,null,{"$error":"#N/A"},null,"00:00:00"]
[null,null,null,null,null,null,"～",null,null,{"$error":"#N/A"},null,"00:00:00"]
[null,null,null,null,null,null,"～",null,null,{"$error":"#N/A"},null,"00:00:00"]
[null,null,null,null,null,null,"～",null,null,{"$error":"#N/A"},null,"00:00:00"]
[null,null,null,null,null,null,"～",null,null,{"$error":"#N/A"},null,"00:00:00"]
[null,null,null,null,null,null,"～",null,null,{"$error":"#N/A"},null,"00:00:00"]
[null,null,null,null,null,null,"～",null,null,{"$error":"#N/A"},null,"00:00:00"]
[null,null,null,null,null,null,"～",null,null,{"$error":"#N/A"},null,"00:00:00"]
[null,null,null,null,null,null,"～",null,null,{"$error":"#N/A"},null,"00:00:00"]
[null,null,null,null,null,null,"～",null,null,{"$error":"#N/A"},null,"00:00:00"]
[null,null,null,null,null,null,"～",null,null,{"$error":"#N/A"},null,"00:00:00"]
[null,null,null,null,null,null,"～",null,null,{"$error":"#N/A"},null,"00:00:00"]
[null,null,null,null,null,null,"～",null,null,{"$error":"#N/A"},null,"00:00:00"]
[null,null,null,null,null,null,"～",null,null,{"$error":"#N/A"},null,"00:00:00"]
[null,null,null,null,null,null,"～",null,null,{"$error":"#N/A"},null,"00:00:00"]
[null,null,null,null,null,null,"～",null,null,{"$error":"#N/A"},null,"00:00:00"]
[null,null,null,null,null,null,"～",null,null,{"$error":"#N/A"},null,"00:00:00"]
[null,null,null,null,null,null,"～",null,null,{"$error":"#N/A"},null,"00:00:00"]
[null,null,null,null,null,null,"～",null,null,{"$error":"#N/A"},null,"00:00:00"]
[null,null,null,null,null,null,"～",null,null,{"$error":"#N/A"},null,"00:00:00"]
[null,null,null,null,null,null,"～",null,null,{"$error":"#N/A"},null,"00:00:00"]
[null,null,null,null,null,null,"～",null,null,{"$error":"#N/A"},null,"00:00:00"]
[null,null,null,null,null,null,"～",null,null,{"$error":"#N/A"},null,"00:00:00"]
[null,null,null,null,null,null,"～",null,null,{"$error":"#N/A"},null,"00:00:00"]
[null,null,null,null,null,null,"～",null,null,{"$error":"#N/A"},null,"00:00:00"]
[null,null,null,null,null,null,"～",null,null,{"$error":"#N/A"},null,"00:00:00"]
[null,null,null,null,null,null,"～",null,null,{"$error":"#N/A"},null,"00:00:00"]
[null,null,null,null,null,null,"～",null,null,{"$error":"#N/A"},null,"00:00:00"]
[null,null,null,null,null,null,"～",null,null,{"$error":"#N/A"},null,"00:00:00"]
[null,null,null,null,null,null,"～",null,null,{"$error":"#N/A"},null,"00:00:00"]
[null,null,null,null,null,null,"～",null,null,{"$error":"#N/A"},null,"00:00:00"]
[null,null,null,null,null,null,"～",null,null,{"$error":"#N/A"},null,"00:00:00"]
[null,null,"   ",null,null,null,"～",null,null,{"$error":"#N/A"},null,"00:00:00"]
[null,null,null,null,null,null,"～",null,null,{"$error":"#N/A"},null,"00:00:00"]
[null,null,null,null,null,null,"～",null,null,{"$error":"#N/A"},null,"00:00:00"]
[null,null,null,null,null,null,"～",null,null,{"$error":"#N/A"},null,"00:00:00"]
[null,null,null,null,null,null,"～",null,null,{"$f":"VLOOKUP(I1540,$C:$D,2,0)","v":{"$error":"#N/A"}},null,{"$f":"H1540-F1540","v":"00:00:00"}]
[null,null,null,null,null,null,"～",null,null,{"$error":"#N/A"},null,"00:00:00"]
[null,null,null,null,null,null,"～",null,null,{"$error":"#N/A"},null,"00:00:00"]
[null,null,null,null,null,null,"～",null,null,{"$error":"#N/A"},null,"00:00:00"]
[null,null,null,null,null,null,"～",null,null,{"$error":"#N/A"},null,"00:00:00"]
[null,null,null,null,null,null,"～",null,null,{"$error":"#N/A"},null,"00:00:00"]
[null,null,null,null,null,null,"～",null,null,{"$error":"#N/A"},null,"00:00:00"]
[null,null,null,null,null,null,"～",null,null,{"$error":"#N/A"},null,"00:00:00"]
[null,null,null,null,null,null,"～",null,null,{"$error":"#N/A"},null,"00:00:00"]
[null,null,null,null,null,null,"～",null,null,{"$error":"#N/A"},null,"00:00:00"]
[null,null,null,null,null,null,"～",null,null,{"$error":"#N/A"},null,"00:00:00"]
[null,null,null,null,null,null,"～",null,null,{"$error":"#N/A"},null,"00:00:00"]
[null,null,null,null,null,null,"～",null,null,{"$error":"#N/A"},null,"00:00:00"]
[null,null,null,null,null,null,"～",null,null,{"$error":"#N/A"},null,"00:00:00"]
[null,null,null,null,null,null,"～",null,null,{"$error":"#N/A"},null,"00:00:00"]
[null,null,null,null,null,null,"～",null,null,{"$error":"#N/A"},null,"00:00:00"]
[null,null,null,null,null,null,"～",null,null,{"$error":"#N/A"},null,"00:00:00"]
[null,null,null,null,null,null,"～",null,null,{"$error":"#N/A"},null,"00:00:00"]
[null,null,null,null,null,null,"～",null,null,{"$error":"#N/A"},null,"00:00:00"]
[null,null,null,null,null,null,"～",null,null,{"$error":"#N/A"},null,"00:00:00"]
[null,null,null,null,null,null,"～",null,null,{"$error":"#N/A"},null,"00:00:00"]
[null,null,null,null,null,null,"～",null,null,{"$error":"#N/A"},null,"00:00:00"]
[null,null,null,null,null,null,"～",null,null,{"$error":"#N/A"},null,"00:00:00"]
[null,null,null,null,null,null,"～",null,null,{"$error":"#N/A"},null,"00:00:00"]
[null,null,null,null,null,null,"～",null,null,{"$error":"#N/A"},null,"00:00:00"]
[null,null,null,null,null,null,"～",null,null,{"$error":"#N/A"},null,"00:00:00"]
[null,null,null,null,null,null,"～",null,null,{"$error":"#N/A"},null,"00:00:00"]
[null,null,null,null,null,null,"～",null,null,{"$error":"#N/A"},null,"00:00:00"]
[null,null,null,null,null,null,"～",null,null,{"$error":"#N/A"},null,"00:00:00"]
[null,null,null,null,null,null,"～",null,null,{"$error":"#N/A"},null,"00:00:00"]
[null,null,null,null,null,null,"～",null,null,{"$error":"#N/A"},null,"00:00:00"]
[null,null,null,null,null,null,"～",null,null,{"$error":"#N/A"},null,"00:00:00"]
[null,null,null,null,null,null,"～",null,null,{"$error":"#N/A"},null,"00:00:00"]
[null,null,null,null,null,null,"～",null,null,{"$error":"#N/A"},null,"00:00:00"]
[null,null,null,null,null,null,"～",null,null,{"$error":"#N/A"},null,"00:00:00"]
[null,null,null,null,null,null,"～",null,null,{"$error":"#N/A"},null,"00:00:00"]
[null,null,null,null,null,null,"～",null,null,{"$error":"#N/A"},null,"00:00:00"]
[null,null,null,null,null,null,"～",null,null,{"$error":"#N/A"},null,"00:00:00"]
[null,null,null,null,null,null,"～",null,null,{"$error":"#N/A"},null,"00:00:00"]
[null,null,null,null,null,null,"～",null,null,{"$error":"#N/A"},null,"00:00:00"]
[null,null,null,null,null,null,"～",null,null,{"$error":"#N/A"},null,"00:00:00"]
[null,null,null,null,null,null,"～",null,null,{"$error":"#N/A"},null,"00:00:00"]
[null,null,null,null,null,null,"～",null,null,{"$error":"#N/A"},null,"00:00:00"]
[null,null,null,null,null,null,"～",null,null,{"$error":"#N/A"},null,"00:00:00"]
[null,null,null,null,null,null,"～",null,null,{"$error":"#N/A"},null,"00:00:00"]
[null,null,null,null,null,null,"～",null,null,{"$error":"#N/A"},null,"00:00:00"]
[null,null,null,null,null,null,"～",null,null,{"$error":"#N/A"},null,"00:00:00"]
[null,null,null,null,null,null,"～",null,null,{"$error":"#N/A"},null,"00:00:00"]
[null,null,null,null,null,null,"～",null,null,{"$error":"#N/A"},null,"00:00:00"]
[null,null,null,null,null,null,"～",null,null,{"$error":"#N/A"},null,"00:00:00"]
[null,null,null,null,null,null,"～",null,null,{"$error":"#N/A"},null,"00:00:00"]
[null,null,null,null,null,null,"～",null,null,{"$error":"#N/A"},null,"00:00:00"]
[null,null,null,null,null,null,"～",null,null,{"$error":"#N/A"},null,"00:00:00"]
[null,null,null,null,null,null,"～",null,null,{"$error":"#N/A"},null,"00:00:00"]
[null,null,null,null,null,null,"～",null,null,{"$error":"#N/A"},null,"00:00:00"]
[null,null,null,null,null,null,"～",null,null,{"$error":"#N/A"},null,"00:00:00"]
[null,null,null,null,null,null,"～",null,null,{"$error":"#N/A"},null,"00:00:00"]
[null,null,null,null,null,null,"～",null,null,{"$error":"#N/A"},null,"00:00:00"]
[null,null,null,null,null,null,"～",null,null,{"$error":"#N/A"},null,"00:00:00"]
[null,null,null,null,null,null,"～",null,null,{"$error":"#N/A"},null,"00:00:00"]
[null,null,null,null,null,null,"～",null,null,{"$error":"#N/A"},null,"00:00:00"]
[null,null,null,null,null,null,"～",null,null,{"$error":"#N/A"},null,"00:00:00"]
[null,null,null,null,null,null,"～",null,null,{"$error":"#N/A"},null,"00:00:00"]
[null,null,null,null,null,null,"～",null,null,{"$error":"#N/A"},null,"00:00:00"]
[null,null,null,null,null,null,"～",null,null,{"$f":"VLOOKUP(I1604,$C:$D,2,0)","v":{"$error":"#N/A"}},null,{"$f":"H1604-F1604","v":"00:00:00"}]
[null,null,null,null,null,null,"～",null,null,{"$error":"#N/A"},null,"00:00:00"]
[null,null,null,null,null,null,"～",null,null,{"$error":"#N/A"},null,"00:00:00"]
[null,null,null,null,null,null,"～",null,null,{"$error":"#N/A"},null,"00:00:00"]
[null,null,null,null,null,null,"～",null,null,{"$error":"#N/A"},null,"00:00:00"]
[null,null,null,null,null,null,"～",null,null,{"$error":"#N/A"},null,"00:00:00"]
[null,null,null,null,null,null,"～",null,null,{"$error":"#N/A"},null,"00:00:00"]
[null,null,null,null,null,null,"～",null,null,{"$error":"#N/A"},null,"00:00:00"]
[null,null,null,null,null,null,"～",null,null,{"$error":"#N/A"},null,"00:00:00"]
[null,null,null,null,null,null,"～",null,null,{"$error":"#N/A"},null,"00:00:00"]
[null,null,null,null,null,null,"～",null,null,{"$error":"#N/A"},null,"00:00:00"]
[null,null,null,null,null,null,"～",null,null,{"$error":"#N/A"},null,"00:00:00"]
[null,null,null,null,null,null,"～",null,null,{"$error":"#N/A"},null,"00:00:00"]
[null,null,null,null,null,null,"～",null,null,{"$error":"#N/A"},null,"00:00:00"]
[null,null,null,null,null,null,"～",null,null,{"$error":"#N/A"},null,"00:00:00"]
[null,null,null,null,null,null,"～",null,null,{"$error":"#N/A"},null,"00:00:00"]
[null,null,null,null,null,null,"～",null,null,{"$error":"#N/A"},null,"00:00:00"]
[null,null,null,null,null,null,"～",null,null,{"$error":"#N/A"},null,"00:00:00"]
[null,null,null,null,null,null,"～",null,null,{"$error":"#N/A"},null,"00:00:00"]
[null,null,null,null,null,null,"～",null,null,{"$error":"#N/A"},null,"00:00:00"]
[null,null,null,null,null,null,"～",null,null,{"$error":"#N/A"},null,"00:00:00"]
[null,null,null,null,null,null,"～",null,null,{"$error":"#N/A"},null,"00:00:00"]
[null,null,null,null,null,null,"～",null,null,{"$error":"#N/A"},null,"00:00:00"]
[null,null,null,null,null,null,"～",null,null,{"$error":"#N/A"},null,"00:00:00"]
[null,null,null,null,null,null,"～",null,null,{"$error":"#N/A"},null,"00:00:00"]
[null,null,null,null,null,null,"～",null,null,{"$error":"#N/A"},null,"00:00:00"]
[null,null,null,null,null,null,"～",null,null,{"$error":"#N/A"},null,"00:00:00"]
[null,null,null,null,null,null,"～",null,null,{"$error":"#N/A"},null,"00:00:00"]
[null,null,null,null,null,null,"～",null,null,{"$error":"#N/A"},null,"00:00:00"]
[null,null,null,null,null,null,"～",null,null,{"$error":"#N/A"},null,"00:00:00"]
[null,null,null,null,null,null,"～",null,null,{"$error":"#N/A"},null,"00:00:00"]
[null,null,null,null,null,null,"～",null,null,{"$error":"#N/A"},null,"00:00:00"]
[null,null,null,null,null,null,"～",null,null,{"$error":"#N/A"},null,"00:00:00"]
[null,null,null,null,null,null,"～",null,null,{"$error":"#N/A"},null,"00:00:00"]
[null,null,null,null,null,null,"～",null,null,{"$error":"#N/A"},null,"00:00:00"]
[null,null,null,null,null,null,"～",null,null,{"$error":"#N/A"},null,"00:00:00"]
[null,null,null,null,null,null,"～",null,null,{"$error":"#N/A"},null,"00:00:00"]
[null,null,null,null,null,null,"～",null,null,{"$error":"#N/A"},null,"00:00:00"]
[null,null,null,null,null,null,"～",null,null,{"$error":"#N/A"},null,"00:00:00"]
[null,null,null,null,null,null,"～",null,null,{"$error":"#N/A"},null,"00:00:00"]
[null,null,null,null,null,null,"～",null,null,{"$error":"#N/A"},null,"00:00:00"]
[null,null,null,null,null,null,"～",null,null,{"$error":"#N/A"},null,"00:00:00"]
[null,null,null,null,null,null,"～",null,null,{"$error":"#N/A"},null,"00:00:00"]
[null,null,null,null,null,null,"～",null,null,{"$error":"#N/A"},null,"00:00:00"]
[null,null,null,null,null,null,"～",null,null,{"$error":"#N/A"},null,"00:00:00"]
[null,null,null,null,null,null,"～",null,null,{"$error":"#N/A"},null,"00:00:00"]
[null,null,null,null,null,null,"～",null,null,{"$error":"#N/A"},null,"00:00:00"]
[null,null,null,null,null,null,"～",null,null,{"$error":"#N/A"},null,"00:00:00"]
[null,null,null,null,null,null,"～",null,null,{"$error":"#N/A"},null,"00:00:00"]
[null,null,null,null,null,null,"～",null,null,{"$error":"#N/A"},null,"00:00:00"]
[null,null,null,null,null,null,"～",null,null,{"$error":"#N/A"},null,"00:00:00"]
[null,null,null,null,null,null,"～",null,null,{"$error":"#N/A"},null,"00:00:00"]
[null,null,null,null,null,null,"～",null,null,{"$error":"#N/A"},null,"00:00:00"]
[null,null,null,null,null,null,"～",null,null,{"$error":"#N/A"},null,"00:00:00"]
[null,null,null,null,null,null,"～",null,null,{"$error":"#N/A"},null,"00:00:00"]
[null,null,null,null,null,null,"～",null,null,{"$error":"#N/A"},null,"00:00:00"]
[null,null,null,null,null,null,"～",null,null,{"$error":"#N/A"},null,"00:00:00"]
[null,null,null,null,null,null,"～",null,null,{"$error":"#N/A"},null,"00:00:00"]
[null,null,null,null,null,null,"～",null,null,{"$error":"#N/A"},null,"00:00:00"]
[null,null,null,null,null,null,"～",null,null,{"$error":"#N/A"},null,"00:00:00"]
[null,null,null,null,null,null,"～",null,null,{"$error":"#N/A"},null,"00:00:00"]
[null,null,null,null,null,null,"～",null,null,{"$error":"#N/A"},null,"00:00:00"]
[null,null,null,null,null,null,"～",null,null,{"$error":"#N/A"},null,"00:00:00"]
[null,null,null,null,null,null,"～",null,null,{"$error":"#N/A"},null,"00:00:00"]
[null,null,null,null,null,null,"～",null,null,{"$f":"VLOOKUP(I1668,$C:$D,2,0)","v":{"$error":"#N/A"}},null,{"$f":"H1668-F1668","v":"00:00:00"}]
[null,null,null,null,null,null,"～",null,null,{"$error":"#N/A"},null,"00:00:00"]
[null,null,null,null,null,null,"～",null,null,{"$error":"#N/A"},null,"00:00:00"]
[null,null,null,null,null,null,"～",null,null,{"$error":"#N/A"},null,"00:00:00"]
[null,null,null,null,null,null,"～",null,null,{"$error":"#N/A"},null,"00:00:00"]
[null,null,null,null,null,null,"～",null,null,{"$error":"#N/A"},null,"00:00:00"]
[null,null,null,null,null,null,"～",null,null,{"$error":"#N/A"},null,"00:00:00"]
[null,null,null,null,null,null,"～",null,null,{"$error":"#N/A"},null,"00:00:00"]
[null,null,null,null,null,null,"～",null,null,{"$error":"#N/A"},null,"00:00:00"]
[null,null,null,null,null,null,"～",null,null,{"$error":"#N/A"},null,"00:00:00"]
[null,null,null,null,null,null,"～",null,null,{"$error":"#N/A"},null,"00:00:00"]
[null,null,null,null,null,null,"～",null,null,{"$error":"#N/A"},null,"00:00:00"]
[null,null,null,null,null,null,"～",null,null,{"$error":"#N/A"},null,"00:00:00"]
[null,null,null,null,null,null,"～",null,null,{"$error":"#N/A"},null,"00:00:00"]
[null,null,null,null,null,null,"～",null,null,{"$error":"#N/A"},null,"00:00:00"]
[null,null,null,null,null,null,"～",null,null,{"$error":"#N/A"},null,"00:00:00"]
[null,null,null,null,null,null,"～",null,null,{"$error":"#N/A"},null,"00:00:00"]
[null,null,null,null,null,null,"～",null,null,{"$error":"#N/A"},null,"00:00:00"]
[null,null,null,null,null,null,"～",null,null,{"$error":"#N/A"},null,"00:00:00"]
[null,null,null,null,null,null,"～",null,null,{"$error":"#N/A"},null,"00:00:00"]
[null,null,null,null,null,null,"～",null,null,{"$error":"#N/A"},null,"00:00:00"]
[null,null,null,null,null,null,"～",null,null,{"$error":"#N/A"},null,"00:00:00"]
[null,null,null,null,null,null,"～",null,null,{"$error":"#N/A"},null,"00:00:00"]
[null,null,null,null,null,null,"～",null,null,{"$error":"#N/A"},null,"00:00:00"]
[null,null,null,null,null,null,"～",null,null,{"$error":"#N/A"},null,"00:00:00"]
[null,null,null,null,null,null,"～",null,null,{"$error":"#N/A"},null,"00:00:00"]
[null,null,null,null,null,null,"～",null,null,{"$error":"#N/A"},null,"00:00:00"]
[null,null,null,null,null,null,"～",null,null,{"$error":"#N/A"},null,"00:00:00"]
[null,null,null,null,null,null,"～",null,null,{"$error":"#N/A"},null,"00:00:00"]
[null,null,null,null,null,null,"～",null,null,{"$error":"#N/A"},null,"00:00:00"]
[null,null,null,null,null,null,"～",null,null,{"$error":"#N/A"},null,"00:00:00"]
[null,null,null,null,null,null,"～",null,null,{"$error":"#N/A"},null,"00:00:00"]
[null,null,null,null,null,null,"～",null,null,{"$error":"#N/A"},null,"00:00:00"]
[null,null,null,null,null,null,"～",null,null,{"$error":"#N/A"},null,"00:00:00"]
[null,null,null,null,null,null,"～",null,null,{"$error":"#N/A"},null,"00:00:00"]
[null,null,null,null,null,null,"～",null,null,{"$error":"#N/A"},null,"00:00:00"]
[null,null,null,null,null,null,"～",null,null,{"$error":"#N/A"},null,"00:00:00"]
[null,null,null,null,null,null,"～",null,null,{"$error":"#N/A"},null,"00:00:00"]
[null,null,null,null,null,null,"～",null,null,{"$error":"#N/A"},null,"00:00:00"]
[null,null,null,null,null,null,"～",null,null,{"$error":"#N/A"},null,"00:00:00"]
[null,null,null,null,null,null,"～",null,null,{"$error":"#N/A"},null,"00:00:00"]
[null,null,null,null,null,null,"～",null,null,{"$error":"#N/A"},null,"00:00:00"]
[null,null,null,null,null,null,"～",null,null,{"$error":"#N/A"},null,"00:00:00"]
[null,null,null,null,null,null,"～",null,null,{"$error":"#N/A"},null,"00:00:00"]
[null,null,null,null,null,null,"～",null,null,{"$error":"#N/A"},null,"00:00:00"]
[null,null,null,null,null,null,"～",null,null,{"$error":"#N/A"},null,"00:00:00"]
[null,null,null,null,null,null,"～",null,null,{"$error":"#N/A"},null,"00:00:00"]
[null,null,null,null,null,null,"～",null,null,{"$error":"#N/A"},null,"00:00:00"]
[null,null,null,null,null,null,"～",null,null,{"$error":"#N/A"},null,"00:00:00"]
[null,null,null,null,null,null,"～",null,null,{"$error":"#N/A"},null,"00:00:00"]
[null,null,null,null,null,null,"～",null,null,{"$error":"#N/A"},null,"00:00:00"]
[null,null,null,null,null,null,"～",null,null,{"$error":"#N/A"},null,"00:00:00"]
[null,null,null,null,null,null,"～",null,null,{"$error":"#N/A"},null,"00:00:00"]
[null,null,null,null,null,null,"～",null,null,{"$error":"#N/A"},null,"00:00:00"]
[null,null,null,null,null,null,"～",null,null,{"$error":"#N/A"},null,"00:00:00"]
[null,null,null,null,null,null,"～",null,null,{"$error":"#N/A"},null,"00:00:00"]
[null,null,null,null,null,null,"～",null,null,{"$error":"#N/A"},null,"00:00:00"]
[null,null,null,null,null,null,"～",null,null,{"$error":"#N/A"},null,"00:00:00"]
[null,null,null,null,null,null,"～",null,null,{"$error":"#N/A"},null,"00:00:00"]
[null,null,null,null,null,null,"～",null,null,{"$error":"#N/A"},null,"00:00:00"]
[null,null,null,null,null,null,"～",null,null,{"$error":"#N/A"},null,"00:00:00"]
[null,null,null,null,null,null,"～",null,null,{"$error":"#N/A"},null,"00:00:00"]
[null,null,null,null,null,null,"～",null,null,{"$error":"#N/A"},null,"00:00:00"]
[null,null,null,null,null,null,"～",null,null,{"$error":"#N/A"},null,"00:00:00"]
[null,null,null,null,null,null,"～",null,null,{"$f":"VLOOKUP(I1732,$C:$D,2,0)","v":{"$error":"#N/A"}},null,{"$f":"H1732-F1732","v":"00:00:00"}]
[null,null,null,null,null,null,"～",null,null,{"$error":"#N/A"},null,"00:00:00"]
[null,null,null,null,null,null,"～",null,null,{"$error":"#N/A"},null,"00:00:00"]
[null,null,null,null,null,null,"～",null,null,{"$error":"#N/A"},null,"00:00:00"]
[null,null,null,null,null,null,"～",null,null,{"$error":"#N/A"},null,"00:00:00"]
[null,null,null,null,null,null,"～",null,null,{"$error":"#N/A"},null,"00:00:00"]
[null,null,null,null,null,null,"～",null,null,{"$error":"#N/A"},null,"00:00:00"]
[null,null,null,null,null,null,"～",null,null,{"$error":"#N/A"},null,"00:00:00"]
[null,null,null,null,null,null,"～",null,null,{"$error":"#N/A"},null,"00:00:00"]
[null,null,null,null,null,null,"～",null,null,{"$error":"#N/A"},null,"00:00:00"]
[null,null,null,null,null,null,"～",null,null,{"$error":"#N/A"},null,"00:00:00"]
[null,null,null,null,null,null,"～",null,null,{"$error":"#N/A"},null,"00:00:00"]
[null,null,null,null,null,null,"～",null,null,{"$error":"#N/A"},null,"00:00:00"]
[null,null,null,null,null,null,"～",null,null,{"$error":"#N/A"},null,"00:00:00"]
[null,null,null,null,null,null,"～",null,null,{"$error":"#N/A"},null,"00:00:00"]
[null,null,null,null,null,null,"～",null,null,{"$error":"#N/A"},null,"00:00:00"]
[null,null,null,null,null,null,"～",null,null,{"$error":"#N/A"},null,"00:00:00"]
[null,null,null,null,null,null,"～",null,null,{"$error":"#N/A"},null,"00:00:00"]
[null,null,null,null,null,null,"～",null,null,{"$error":"#N/A"},null,"00:00:00"]
[null,null,null,null,null,null,"～",null,null,{"$error":"#N/A"},null,"00:00:00"]
[null,null,null,null,null,null,"～",null,null,{"$error":"#N/A"},null,"00:00:00"]
[null,null,null,null,null,null,"～",null,null,{"$error":"#N/A"},null,"00:00:00"]
[null,null,null,null,null,null,"～",null,null,{"$error":"#N/A"},null,"00:00:00"]
[null,null,null,null,null,null,"～",null,null,{"$error":"#N/A"},null,"00:00:00"]
[null,null,null,null,null,null,"～",null,null,{"$error":"#N/A"},null,"00:00:00"]
[null,null,null,null,null,null,"～",null,null,{"$error":"#N/A"},null,"00:00:00"]
[null,null,null,null,null,null,"～",null,null,{"$error":"#N/A"},null,"00:00:00"]
[null,null,null,null,null,null,"～",null,null,{"$error":"#N/A"},null,"00:00:00"]
[null,null,null,null,null,null,"～",null,null,{"$error":"#N/A"},null,"00:00:00"]
[null,null,null,null,null,null,"～",null,null,{"$error":"#N/A"},null,"00:00:00"]
[null,null,null,null,null,null,"～",null,null,{"$error":"#N/A"},null,"00:00:00"]
[null,null,null,null,null,null,"～",null,null,{"$error":"#N/A"},null,"00:00:00"]
[null,null,null,null,null,null,"～",null,null,{"$error":"#N/A"},null,"00:00:00"]
[null,null,null,null,null,null,"～",null,null,{"$error":"#N/A"},null,"00:00:00"]
[null,null,null,null,null,null,"～",null,null,{"$error":"#N/A"},null,"00:00:00"]
[null,null,null,null,null,null,"～",null,null,{"$error":"#N/A"},null,"00:00:00"]
[null,null,null,null,null,null,"～",null,null,{"$error":"#N/A"},null,"00:00:00"]
[null,null,null,null,null,null,"～",null,null,{"$error":"#N/A"},null,"00:00:00"]
[null,null,null,null,null,null,"～",null,null,{"$error":"#N/A"},null,"00:00:00"]
[null,null,null,null,null,null,"～",null,null,{"$error":"#N/A"},null,"00:00:00"]
[null,null,null,null,null,null,"～",null,null,{"$error":"#N/A"},null,"00:00:00"]
[null,null,null,null,null,null,"～",null,null,{"$error":"#N/A"},null,"00:00:00"]
[null,null,null,null,null,null,"～",null,null,{"$error":"#N/A"},null,"00:00:00"]
[null,null,null,null,null,null,"～",null,null,{"$error":"#N/A"},null,"00:00:00"]
[null,null,null,null,null,null,"～",null,null,{"$error":"#N/A"},null,"00:00:00"]
[null,null,null,null,null,null,"～",null,null,{"$error":"#N/A"},null,"00:00:00"]
[null,null,null,null,null,null,"～",null,null,{"$error":"#N/A"},null,"00:00:00"]
[null,null,null,null,null,null,"～",null,null,{"$error":"#N/A"},null,"00:00:00"]
[null,null,null,null,null,null,"～",null,null,{"$error":"#N/A"},null,"00:00:00"]
[null,null,null,null,null,null,"～",null,null,{"$error":"#N/A"},null,"00:00:00"]
[null,null,null,null,null,null,"～",null,null,{"$error":"#N/A"},null,"00:00:00"]
[null,null,null,null,null,null,"～",null,null,{"$error":"#N/A"},null,"00:00:00"]
[null,null,null,null,null,null,"～",null,null,{"$error":"#N/A"},null,"00:00:00"]
[null,null,null,null,null,null,"～",null,null,{"$error":"#N/A"},null,"00:00:00"]
[null,null,null,null,null,null,"～",null,null,{"$error":"#N/A"},null,"00:00:00"]
[null,null,null,null,null,null,"～",null,null,{"$error":"#N/A"},null,"00:00:00"]
[null,null,null,null,null,null,"～",null,null,{"$error":"#N/A"},null,"00:00:00"]
[null,null,null,null,null,null,"～",null,null,{"$error":"#N/A"},null,"00:00:00"]
[null,null,null,null,null,null,"～",null,null,{"$error":"#N/A"},null,"00:00:00"]
[null,null,null,null,null,null,"～",null,null,{"$error":"#N/A"},null,"00:00:00"]
[null,null,null,null,null,null,"～",null,null,{"$error":"#N/A"},null,"00:00:00"]
[null,null,null,null,null,null,"～",null,null,{"$error":"#N/A"},null,"00:00:00"]
[null,null,null,null,null,null,"～",null,null,{"$error":"#N/A"},null,"00:00:00"]
[null,null,null,null,null,null,"～",null,null,{"$error":"#N/A"},null,"00:00:00"]
[null,null,null,null,null,null,"～",null,null,{"$f":"VLOOKUP(I1796,$C:$D,2,0)","v":{"$error":"#N/A"}},null,{"$f":"H1796-F1796","v":"00:00:00"}]
[null,null,null,null,null,null,"～",null,null,{"$error":"#N/A"},null,"00:00:00"]
[null,null,null,null,null,null,"～",null,null,{"$error":"#N/A"},null,"00:00:00"]
[null,null,null,null,null,null,"～",null,null,{"$error":"#N/A"},null,"00:00:00"]
[null,null,null,null,null,null,"～",null,null,{"$error":"#N/A"},null,"00:00:00"]
[null,null,null,null,null,null,"～",null,null,{"$error":"#N/A"},null,"00:00:00"]
[null,null,null,null,null,null,"～",null,null,{"$error":"#N/A"},null,"00:00:00"]
[null,null,null,null,null,null,"～",null,null,{"$error":"#N/A"},null,"00:00:00"]
[null,null,null,null,null,null,"～",null,null,{"$error":"#N/A"},null,"00:00:00"]
[null,null,null,null,null,null,"～",null,null,{"$error":"#N/A"},null,"00:00:00"]
[null,null,null,null,null,null,"～",null,null,{"$error":"#N/A"},null,"00:00:00"]
[null,null,null,null,null,null,"～",null,null,{"$error":"#N/A"},null,"00:00:00"]
[null,null,null,null,null,null,"～",null,null,{"$error":"#N/A"},null,"00:00:00"]
[null,null,null,null,null,null,"～",null,null,{"$error":"#N/A"},null,"00:00:00"]
[null,null,null,null,null,null,"～",null,null,{"$error":"#N/A"},null,"00:00:00"]
[null,null,null,null,null,null,"～",null,null,{"$error":"#N/A"},null,"00:00:00"]
[null,null,null,null,null,null,"～",null,null,{"$error":"#N/A"},null,"00:00:00"]
[null,null,null,null,null,null,"～",null,null,{"$error":"#N/A"},null,"00:00:00"]
[null,null,null,null,null,null,"～",null,null,{"$error":"#N/A"},null,"00:00:00"]
[null,null,null,null,null,null,"～",null,null,{"$error":"#N/A"},null,"00:00:00"]
[null,null,null,null,null,null,"～",null,null,{"$error":"#N/A"},null,"00:00:00"]
[null,null,null,null,null,null,"～",null,null,{"$error":"#N/A"},null,"00:00:00"]
[null,null,null,null,null,null,"～",null,null,{"$error":"#N/A"},null,"00:00:00"]
[null,null,null,null,null,null,"～",null,null,{"$error":"#N/A"},null,"00:00:00"]
[null,null,null,null,null,null,"～",null,null,{"$error":"#N/A"},null,"00:00:00"]
[null,null,null,null,null,null,"～",null,null,{"$error":"#N/A"},null,"00:00:00"]
[null,null,null,null,null,null,"～",null,null,{"$error":"#N/A"},null,"00:00:00"]
[null,null,null,null,null,null,"～",null,null,{"$error":"#N/A"},null,"00:00:00"]
[null,null,null,null,null,null,"～",null,null,{"$error":"#N/A"},null,"00:00:00"]
[null,null,null,null,null,null,"～",null,null,{"$error":"#N/A"},null,"00:00:00"]
[null,null,null,null,null,null,"～",null,null,{"$error":"#N/A"},null,"00:00:00"]
[null,null,null,null,null,null,"～",null,null,{"$error":"#N/A"},null,"00:00:00"]
[null,null,null,null,null,null,"～",null,null,{"$error":"#N/A"},null,"00:00:00"]
[null,null,null,null,null,null,"～",null,null,{"$error":"#N/A"},null,"00:00:00"]
[null,null,null,null,null,null,"～",null,null,{"$error":"#N/A"},null,"00:00:00"]
[null,null,null,null,null,null,"～",null,null,{"$error":"#N/A"},null,"00:00:00"]
[null,null,null,null,null,null,"～",null,null,{"$error":"#N/A"},null,"00:00:00"]
[null,null,null,null,null,null,"～",null,null,{"$error":"#N/A"},null,"00:00:00"]
[null,null,null,null,null,null,"～",null,null,{"$error":"#N/A"},null,"00:00:00"]
[null,null,null,null,null,null,"～",null,null,{"$error":"#N/A"},null,"00:00:00"]
[null,null,null,null,null,null,"～",null,null,{"$error":"#N/A"},null,"00:00:00"]
[null,null,null,null,null,null,"～",null,null,{"$error":"#N/A"},null,"00:00:00"]
[null,null,null,null,null,null,"～",null,null,{"$error":"#N/A"},null,"00:00:00"]
[null,null,null,null,null,null,"～",null,null,{"$error":"#N/A"},null,"00:00:00"]
[null,null,null,null,null,null,"～",null,null,{"$error":"#N/A"},null,"00:00:00"]
[null,null,null,null,null,null,"～",null,null,{"$error":"#N/A"},null,"00:00:00"]
[null,null,null,null,null,null,"～",null,null,{"$error":"#N/A"},null,"00:00:00"]
[null,null,null,null,null,null,"～",null,null,{"$error":"#N/A"},null,"00:00:00"]
[null,null,null,null,null,null,"～",null,null,{"$error":"#N/A"},null,"00:00:00"]
[null,null,null,null,null,null,"～",null,null,{"$error":"#N/A"},null,"00:00:00"]
[null,null,null,null,null,null,"～",null,null,{"$error":"#N/A"},null,"00:00:00"]
[null,null,null,null,null,null,"～",null,null,{"$error":"#N/A"},null,"00:00:00"]
[null,null,null,null,null,null,"～",null,null,{"$error":"#N/A"},null,"00:00:00"]
[null,null,null,null,null,null,"～",null,null,{"$error":"#N/A"},null,"00:00:00"]
[null,null,null,null,null,null,"～",null,null,{"$error":"#N/A"},null,"00:00:00"]
[null,null,null,null,null,null,"～",null,null,{"$error":"#N/A"},null,"00:00:00"]
[null,null,null,null,null,null,"～",null,null,{"$error":"#N/A"},null,"00:00:00"]
[null,null,null,null,null,null,"～",null,null,{"$error":"#N/A"},null,"00:00:00"]
[null,null,null,null,null,null,"～",null,null,{"$error":"#N/A"},null,"00:00:00"]
[null,null,null,null,null,null,"～",null,null,{"$error":"#N/A"},null,"00:00:00"]
[null,null,null,null,null,null,"～",null,null,{"$error":"#N/A"},null,"00:00:00"]
[null,null,null,null,null,null,"～",null,null,{"$error":"#N/A"},null,"00:00:00"]
[null,null,null,null,null,null,"～",null,null,{"$error":"#N/A"},null,"00:00:00"]
[null,null,null,null,null,null,"～",null,null,{"$error":"#N/A"},null,"00:00:00"]
[null,null,null,null,null,null,"～",null,null,{"$f":"VLOOKUP(I1860,$C:$D,2,0)","v":{"$error":"#N/A"}},null,{"$f":"H1860-F1860","v":"00:00:00"}]
[null,null,null,null,null,null,"～",null,null,{"$error":"#N/A"},null,"00:00:00"]
[null,null,null,null,null,null,"～",null,null,{"$error":"#N/A"},null,"00:00:00"]
[null,null,null,null,null,null,"～",null,null,{"$error":"#N/A"},null,"00:00:00"]
[null,null,null,null,null,null,"～",null,null,{"$error":"#N/A"},null,"00:00:00"]
[null,null,null,null,null,null,"～",null,null,{"$error":"#N/A"},null,"00:00:00"]
[null,null,null,null,null,null,"～",null,null,{"$error":"#N/A"},null,"00:00:00"]
[null,null,null,null,null,null,"～",null,null,{"$error":"#N/A"},null,"00:00:00"]
[null,null,null,null,null,null,"～",null,null,{"$error":"#N/A"},null,"00:00:00"]
[null,null,null,null,null,null,"～",null,null,{"$error":"#N/A"},null,"00:00:00"]
[null,null,null,null,null,null,"～",null,null,{"$error":"#N/A"},null,"00:00:00"]
[null,null,null,null,null,null,"～",null,null,{"$error":"#N/A"},null,"00:00:00"]
[null,null,null,null,null,null,"～",null,null,{"$error":"#N/A"},null,"00:00:00"]
[null,null,null,null,null,null,"～",null,null,{"$error":"#N/A"},null,"00:00:00"]
[null,null,null,null,null,null,"～",null,null,{"$error":"#N/A"},null,"00:00:00"]
[null,null,null,null,null,null,"～",null,null,{"$error":"#N/A"},null,"00:00:00"]
[null,null,null,null,null,null,"～",null,null,{"$error":"#N/A"},null,"00:00:00"]
[null,null,null,null,null,null,"～",null,null,{"$error":"#N/A"},null,"00:00:00"]
[null,null,null,null,null,null,"～",null,null,{"$error":"#N/A"},null,"00:00:00"]
[null,null,null,null,null,null,"～",null,null,{"$error":"#N/A"},null,"00:00:00"]
[null,null,null,null,null,null,"～",null,null,{"$error":"#N/A"},null,"00:00:00"]
[null,null,null,null,null,null,"～",null,null,{"$error":"#N/A"},null,"00:00:00"]
[null,null,null,null,null,null,"～",null,null,{"$error":"#N/A"},null,"00:00:00"]
[null,null,null,null,null,null,"～",null,null,{"$error":"#N/A"},null,"00:00:00"]
[null,null,null,null,null,null,"～",null,null,{"$error":"#N/A"},null,"00:00:00"]
[null,null,null,null,null,null,"～",null,null,{"$error":"#N/A"},null,"00:00:00"]
[null,null,null,null,null,null,"～",null,null,{"$error":"#N/A"},null,"00:00:00"]
[null,null,null,null,null,null,"～",null,null,{"$error":"#N/A"},null,"00:00:00"]
[null,null,null,null,null,null,"～",null,null,{"$error":"#N/A"},null,"00:00:00"]
[null,null,null,null,null,null,"～",null,null,{"$error":"#N/A"},null,"00:00:00"]
[null,null,null,null,null,null,"～",null,null,{"$error":"#N/A"},null,"00:00:00"]
[null,null,null,null,null,null,"～",null,null,{"$error":"#N/A"},null,"00:00:00"]
[null,null,null,null,null,null,"～",null,null,{"$error":"#N/A"},null,"00:00:00"]
[null,null,null,null,null,null,"～",null,null,{"$error":"#N/A"},null,"00:00:00"]
[null,null,null,null,null,null,"～",null,null,{"$error":"#N/A"},null,"00:00:00"]
[null,null,null,null,null,null,"～",null,null,{"$error":"#N/A"},null,"00:00:00"]
[null,null,null,null,null,null,"～",null,null,{"$error":"#N/A"},null,"00:00:00"]
[null,null,null,null,null,null,"～",null,null,{"$error":"#N/A"},null,"00:00:00"]
[null,null,null,null,null,null,"～",null,null,{"$error":"#N/A"},null,"00:00:00"]
[null,null,null,null,null,null,"～",null,null,{"$error":"#N/A"},null,"00:00:00"]
[null,null,null,null,null,null,"～",null,null,{"$error":"#N/A"},null,"00:00:00"]
[null,null,null,null,null,null,"～",null,null,{"$error":"#N/A"},null,"00:00:00"]
[null,null,null,null,null,null,"～",null,null,{"$error":"#N/A"},null,"00:00:00"]
[null,null,null,null,null,null,"～",null,null,{"$error":"#N/A"},null,"00:00:00"]
[null,null,null,null,null,null,"～",null,null,{"$error":"#N/A"},null,"00:00:00"]
[null,null,null,null,null,null,"～",null,null,{"$error":"#N/A"},null,"00:00:00"]
[null,null,null,null,null,null,"～",null,null,{"$error":"#N/A"},null,"00:00:00"]
[null,null,null,null,null,null,"～",null,null,{"$error":"#N/A"},null,"00:00:00"]
[null,null,null,null,null,null,"～",null,null,{"$error":"#N/A"},null,"00:00:00"]
[null,null,null,null,null,null,"～",null,null,{"$error":"#N/A"},null,"00:00:00"]
[null,null,null,null,null,null,"～",null,null,{"$error":"#N/A"},null,"00:00:00"]
[null,null,null,null,null,null,"～",null,null,{"$error":"#N/A"},null,"00:00:00"]
[null,null,null,null,null,null,"～",null,null,{"$error":"#N/A"},null,"00:00:00"]
[null,null,null,null,null,null,"～",null,null,{"$error":"#N/A"},null,"00:00:00"]
[null,null,null,null,null,null,"～",null,null,{"$error":"#N/A"},null,"00:00:00"]
[null,null,null,null,null,null,"～",null,null,{"$error":"#N/A"},null,"00:00:00"]
[null,null,null,null,null,null,"～",null,null,{"$error":"#N/A"},null,"00:00:00"]
[null,null,null,null,null,null,"～",null,null,{"$error":"#N/A"},null,"00:00:00"]
[null,null,null,null,null,null,"～",null,null,{"$error":"#N/A"},null,"00:00:00"]
[null,null,null,null,null,null,"～",null,null,{"$error":"#N/A"},null,"00:00:00"]
[null,null,null,null,null,null,"～",null,null,{"$error":"#N/A"},null,"00:00:00"]
[null,null,null,null,null,null,"～",null,null,{"$error":"#N/A"},null,"00:00:00"]
[null,null,null,null,null,null,"～",null,null,{"$error":"#N/A"},null,"00:00:00"]
[null,null,null,null,null,null,"～",null,null,{"$error":"#N/A"},null,"00:00:00"]
[null,null,null,null,null,null,"～",null,null,{"$f":"VLOOKUP(I1924,$C:$D,2,0)","v":{"$error":"#N/A"}},null,{"$f":"H1924-F1924","v":"00:00:00"}]
[null,null,null,null,null,null,"～",null,null,{"$error":"#N/A"},null,"00:00:00"]
[null,null,null,null,null,null,"～",null,null,{"$error":"#N/A"},null,"00:00:00"]
[null,null,null,null,null,null,"～",null,null,{"$error":"#N/A"},null,"00:00:00"]
[null,null,null,null,null,null,"～",null,null,{"$error":"#N/A"},null,"00:00:00"]
[null,null,null,null,null,null,"～",null,null,{"$error":"#N/A"},null,"00:00:00"]
[null,null,null,null,null,null,"～",null,null,{"$error":"#N/A"},null,"00:00:00"]
[null,null,null,null,null,null,"～",null,null,{"$error":"#N/A"},null,"00:00:00"]
[null,null,null,null,null,null,"～",null,null,{"$error":"#N/A"},null,"00:00:00"]
[null,null,null,null,null,null,"～",null,null,{"$error":"#N/A"},null,"00:00:00"]
[null,null,null,null,null,null,"～",null,null,{"$error":"#N/A"},null,"00:00:00"]
[null,null,null,null,null,null,"～",null,null,{"$error":"#N/A"},null,"00:00:00"]
[null,null,null,null,null,null,"～",null,null,{"$error":"#N/A"},null,"00:00:00"]
[null,null,null,null,null,null,"～",null,null,{"$error":"#N/A"},null,"00:00:00"]
[null,null,null,null,null,null,"～",null,null,{"$error":"#N/A"},null,"00:00:00"]
[null,null,null,null,null,null,"～",null,null,{"$error":"#N/A"},null,"00:00:00"]
[null,null,null,null,null,null,"～",null,null,{"$error":"#N/A"},null,"00:00:00"]
[null,null,null,null,null,null,"～",null,null,{"$error":"#N/A"},null,"00:00:00"]
[null,null,null,null,null,null,"～",null,null,{"$error":"#N/A"},null,"00:00:00"]
[null,null,null,null,null,null,"～",null,null,{"$error":"#N/A"},null,"00:00:00"]
[null,null,null,null,null,null,"～",null,null,{"$error":"#N/A"},null,"00:00:00"]
[null,null,null,null,null,null,"～",null,null,{"$error":"#N/A"},null,"00:00:00"]
[null,null,null,null,null,null,"～",null,null,{"$error":"#N/A"},null,"00:00:00"]
[null,null,null,null,null,null,"～",null,null,{"$error":"#N/A"},null,"00:00:00"]
[null,null,null,null,null,null,"～",null,null,{"$error":"#N/A"},null,"00:00:00"]
[null,null,null,null,null,null,"～",null,null,{"$error":"#N/A"},null,"00:00:00"]
[null,null,null,null,null,null,"～",null,null,{"$error":"#N/A"},null,"00:00:00"]
[null,null,null,null,null,null,"～",null,null,{"$error":"#N/A"},null,"00:00:00"]
[null,null,null,null,null,null,"～",null,null,{"$error":"#N/A"},null,"00:00:00"]
[null,null,null,null,null,null,"～",null,null,{"$error":"#N/A"},null,"00:00:00"]
[null,null,null,null,null,null,"～",null,null,{"$error":"#N/A"},null,"00:00:00"]
[null,null,null,null,null,null,"～",null,null,{"$error":"#N/A"},null,"00:00:00"]
[null,null,null,null,null,null,"～",null,null,{"$error":"#N/A"},null,"00:00:00"]
[null,null,null,null,null,null,"～",null,null,{"$error":"#N/A"},null,"00:00:00"]
[null,null,null,null,null,null,"～",null,null,{"$error":"#N/A"},null,"00:00:00"]
[null,null,null,null,null,null,"～",null,null,{"$error":"#N/A"},null,"00:00:00"]
[null,null,null,null,null,null,"～",null,null,{"$error":"#N/A"},null,"00:00:00"]
[null,null,null,null,null,null,"～",null,null,{"$error":"#N/A"},null,"00:00:00"]
[null,null,null,null,null,null,"～",null,null,{"$error":"#N/A"},null,"00:00:00"]
[null,null,null,null,null,null,"～",null,null,{"$error":"#N/A"},null,"00:00:00"]
[null,null,null,null,null,null,"～",null,null,{"$error":"#N/A"},null,"00:00:00"]
[null,null,null,null,null,null,"～",null,null,{"$error":"#N/A"},null,"00:00:00"]
[null,null,null,null,null,null,"～",null,null,{"$error":"#N/A"},null,"00:00:00"]
[null,null,null,null,null,null,"～",null,null,{"$error":"#N/A"},null,"00:00:00"]
[null,null,null,null,null,null,"～",null,null,{"$error":"#N/A"},null,"00:00:00"]
[null,null,null,null,null,null,"～",null,null,{"$error":"#N/A"},null,"00:00:00"]
[null,null,null,null,null,null,"～",null,null,{"$error":"#N/A"},null,"00:00:00"]
[null,null,null,null,null,null,"～",null,null,{"$error":"#N/A"},null,"00:00:00"]
[null,null,null,null,null,null,"～",null,null,{"$error":"#N/A"},null,"00:00:00"]
[null,null,null,null,null,null,"～",null,null,{"$error":"#N/A"},null,"00:00:00"]
[null,null,null,null,null,null,"～",null,null,{"$error":"#N/A"},null,"00:00:00"]
[null,null,null,null,null,null,"～",null,null,{"$error":"#N/A"},null,"00:00:00"]
[null,null,null,null,null,null,"～",null,null,{"$error":"#N/A"},null,"00:00:00"]
[null,null,null,null,null,null,"～",null,null,{"$error":"#N/A"},null,"00:00:00"]
[null,null,null,null,null,null,"～",null,null,{"$error":"#N/A"},null,"00:00:00"]
[null,null,null,null,null,null,"～",null,null,{"$error":"#N/A"},null,"00:00:00"]
[null,null,null,null,null,null,"～",null,null,{"$error":"#N/A"},null,"00:00:00"]
[null,null,null,null,null,null,"～",null,null,{"$error":"#N/A"},null,"00:00:00"]
[null,null,null,null,null,null,"～",null,null,{"$error":"#N/A"},null,"00:00:00"]
[null,null,null,null,null,null,"～",null,null,{"$error":"#N/A"},null,"00:00:00"]
[null,null,null,null,null,null,"～",null,null,{"$error":"#N/A"},null,"00:00:00"]
[null,null,null,null,null,null,"～",null,null,{"$error":"#N/A"},null,"00:00:00"]
[null,null,null,null,null,null,"～",null,null,{"$error":"#N/A"},null,"00:00:00"]
[null,null,null,null,null,null,"～",null,null,{"$error":"#N/A"},null,"00:00:00"]
[null,null,null,null,null,null,"～",null,null,{"$f":"VLOOKUP(I1988,$C:$D,2,0)","v":{"$error":"#N/A"}},null,{"$f":"H1988-F1988","v":"00:00:00"}]
[null,null,null,null,null,null,"～",null,null,{"$error":"#N/A"},null,"00:00:00"]
[null,null,null,null,null,null,"～",null,null,{"$error":"#N/A"},null,"00:00:00"]
[null,null,null,null,null,null,"～",null,null,{"$error":"#N/A"},null,"00:00:00"]
[null,null,null,null,null,null,"～",null,null,{"$error":"#N/A"},null,"00:00:00"]
[null,null,null,null,null,null,"～",null,null,{"$error":"#N/A"},null,"00:00:00"]
[null,null,null,null,null,null,"～",null,null,{"$error":"#N/A"},null,"00:00:00"]
[null,null,null,null,null,null,"～",null,null,{"$error":"#N/A"},null,"00:00:00"]
[null,null,null,null,null,null,"～",null,null,{"$error":"#N/A"},null,"00:00:00"]
[null,null,null,null,null,null,"～",null,null,{"$error":"#N/A"},null,"00:00:00"]
[null,null,null,null,null,null,"～",null,null,{"$error":"#N/A"},null,"00:00:00"]
[null,null,null,null,null,null,"～",null,null,{"$error":"#N/A"},null,"00:00:00"]
[null,null,null,null,null,null,"～",null,null,{"$error":"#N/A"},null,"00:00:00"]
[null,null,null,null,null,null,"～",null,null,{"$error":"#N/A"},null,"00:00:00"]
[null,null,null,null,null,null,"～",null,null,{"$error":"#N/A"},null,"00:00:00"]
[null,null,null,null,null,null,"～",null,null,{"$error":"#N/A"},null,"00:00:00"]
[null,null,null,null,null,null,"～",null,null,{"$error":"#N/A"},null,"00:00:00"]
[null,null,null,null,null,null,"～",null,null,{"$error":"#N/A"},null,"00:00:00"]
[null,null,null,null,null,null,"～",null,null,{"$error":"#N/A"},null,"00:00:00"]
[null,null,null,null,null,null,"～",null,null,{"$error":"#N/A"},null,"00:00:00"]
[null,null,null,null,null,null,"～",null,null,{"$f":"VLOOKUP(I2052,$C:$D,2,0)","v":{"$error":"#N/A"}},null,{"$f":"H2052-F2052","v":"00:00:00"}]
[null,null,null,null,null,null,"～",null,null,{"$error":"#N/A"},null,"00:00:00"]
[null,null,null,null,null,null,"～",null,null,{"$error":"#N/A"},null,"00:00:00"]
[null,null,null,null,null,null,"～",null,null,{"$error":"#N/A"},null,"00:00:00"]
[null,null,null,null,null,null,"～",null,null,{"$error":"#N/A"},null,"00:00:00"]
[null,null,null,null,null,null,"～",null,null,{"$error":"#N/A"},null,"00:00:00"]
[null,null,null,null,null,null,"～",null,null,{"$error":"#N/A"},null,"00:00:00"]
[null,null,null,null,null,null,"～",null,null,{"$error":"#N/A"},null,"00:00:00"]
[null,null,null,null,null,null,"～",null,null,{"$error":"#N/A"},null,"00:00:00"]
[null,null,null,null,null,null,"～",null,null,{"$error":"#N/A"},null,"00:00:00"]
[null,null,null,null,null,null,"～",null,null,{"$error":"#N/A"},null,"00:00:00"]
[null,null,null,null,null,null,"～",null,null,{"$error":"#N/A"},null,"00:00:00"]
[null,null,null,null,null,null,"～",null,null,{"$error":"#N/A"},null,"00:00:00"]
[null,null,null,null,null,null,"～",null,null,{"$error":"#N/A"},null,"00:00:00"]
[null,null,null,null,null,null,"～",null,null,{"$error":"#N/A"},null,"00:00:00"]
[null,null,null,null,null,null,"～",null,null,{"$error":"#N/A"},null,"00:00:00"]
[null,null,null,null,null,null,"～",null,null,{"$error":"#N/A"},null,"00:00:00"]
[null,null,null,null,null,null,"～",null,null,{"$error":"#N/A"},null,"00:00:00"]
[null,null,null,null,null,null,"～",null,null,{"$error":"#N/A"},null,"00:00:00"]
[null,null,null,null,null,null,"～",null,null,{"$error":"#N/A"},null,"00:00:00"]
[null,null,null,null,null,null,"～",null,null,{"$error":"#N/A"},null,"00:00:00"]
[null,null,null,null,null,null,"～",null,null,{"$error":"#N/A"},null,"00:00:00"]
[null,null,null,null,null,null,"～",null,null,{"$error":"#N/A"},null,"00:00:00"]
[null,null,null,null,null,null,"～",null,null,{"$error":"#N/A"},null,"00:00:00"]
[null,null,null,null,null,null,"～",null,null,{"$error":"#N/A"},null,"00:00:00"]
[null,null,null,null,null,null,"～",null,null,{"$error":"#N/A"},null,"00:00:00"]
[null,null,null,null,null,null,"～",null,null,{"$error":"#N/A"},null,"00:00:00"]
[null,null,null,null,null,null,"～",null,null,{"$error":"#N/A"},null,"00:00:00"]
[null,null,null,null,null,null,"～",null,null,{"$error":"#N/A"},null,"00:00:00"]
[null,null,null,null,null,null,"～",null,null,{"$error":"#N/A"},null,"00:00:00"]
[null,null,null,null,null,null,"～",null,null,{"$error":"#N/A"},null,"00:00:00"]
[null,null,null,null,null,null,"～",null,null,{"$error":"#N/A"},null,"00:00:00"]
[null,null,null,null,null,null,"～",null,null,{"$error":"#N/A"},null,"00:00:00"]
[null,null,null,null,null,null,"～",null,null,{"$error":"#N/A"},null,"00:00:00"]
[null,null,null,null,null,null,"～",null,null,{"$error":"#N/A"},null,"00:00:00"]
[null,null,null,null,null,null,"～",null,null,{"$error":"#N/A"},null,"00:00:00"]
[null,null,null,null,null,null,"～",null,null,{"$error":"#N/A"},null,"00:00:00"]
[null,null,null,null,null,null,"～",null,null,{"$error":"#N/A"},null,"00:00:00"]
[null,null,null,null,null,null,"～",null,null,{"$error":"#N/A"},null,"00:00:00"]
[null,null,null,null,null,null,"～",null,null,{"$error":"#N/A"},null,"00:00:00"]
[null,null,null,null,null,null,"～",null,null,{"$error":"#N/A"},null,"00:00:00"]
[null,null,null,null,null,null,"～",null,null,{"$error":"#N/A"},null,"00:00:00"]
[null,null,null,null,null,null,"～",null,null,{"$error":"#N/A"},null,"00:00:00"]
[null,null,null,null,null,null,"～",null,null,{"$error":"#N/A"},null,"00:00:00"]
[null,null,null,null,null,null,"～",null,null,{"$error":"#N/A"},null,"00:00:00"]
[null,null,null,null,null,null,"～",null,null,{"$error":"#N/A"},null,"00:00:00"]
[null,null,null,null,null,null,"～",null,null,{"$error":"#N/A"},null,"00:00:00"]
[null,null,null,null,null,null,"～",null,null,{"$error":"#N/A"},null,"00:00:00"]
[null,null,null,null,null,null,"～",null,null,{"$error":"#N/A"},null,"00:00:00"]
[null,null,null,null,null,null,"～",null,null,{"$error":"#N/A"},null,"00:00:00"]
[null,null,null,null,null,null,"～",null,null,{"$error":"#N/A"},null,"00:00:00"]
[null,null,null,null,null,null,"～",null,null,{"$error":"#N/A"},null,"00:00:00"]
[null,null,null,null,null,null,"～",null,null,{"$error":"#N/A"},null,"00:00:00"]
[null,null,null,null,null,null,"～",null,null,{"$error":"#N/A"},null,"00:00:00"]
[null,null,null,null,null,null,"～",null,null,{"$error":"#N/A"},null,"00:00:00"]
[null,null,null,null,null,null,"～",null,null,{"$error":"#N/A"},null,"00:00:00"]
[null,null,null,null,null,null,"～",null,null,{"$error":"#N/A"},null,"00:00:00"]
[null,null,null,null,null,null,"～",null,null,{"$error":"#N/A"},null,"00:00:00"]
[null,null,null,null,null,null,"～",null,null,{"$error":"#N/A"},null,"00:00:00"]
[null,null,null,null,null,null,"～",null,null,{"$error":"#N/A"},null,"00:00:00"]
[null,null,null,null,null,null,"～",null,null,{"$error":"#N/A"},null,"00:00:00"]
[null,null,null,null,null,null,"～",null,null,{"$error":"#N/A"},null,"00:00:00"]
[null,null,null,null,null,null,"～",null,null,{"$error":"#N/A"},null,"00:00:00"]
[null,null,null,null,null,null,"～",null,null,{"$error":"#N/A"},null,"00:00:00"]
[null,null,null,null,null,null,"～",null,null,{"$error":"#N/A"},null,"00:00:00"]
[null,null,null,null,null,null,"～",null,null,{"$error":"#N/A"},null,"00:00:00"]
[null,null,null,null,null,null,"～",null,null,{"$error":"#N/A"},null,"00:00:00"]
[null,null,null,null,null,null,"～",null,null,{"$error":"#N/A"},null,"00:00:00"]
[null,null,null,null,null,null,"～",null,null,{"$error":"#N/A"},null,"00:00:00"]
[null,null,null,null,null,null,"～",null,null,{"$error":"#N/A"},null,"00:00:00"]
[null,null,null,null,null,null,"～",null,null,{"$error":"#N/A"},null,"00:00:00"]
[null,null,null,null,null,null,"～",null,null,{"$error":"#N/A"},null,"00:00:00"]
[null,null,null,null,null,null,"～",null,null,{"$error":"#N/A"},null,"00:00:00"]
[null,null,null,null,null,null,"～",null,null,{"$error":"#N/A"},null,"00:00:00"]
[null,null,null,null,null,null,"～",null,null,{"$error":"#N/A"},null,"00:00:00"]
[null,null,null,null,null,null,"～",null,null,{"$error":"#N/A"},null,"00:00:00"]
[null,null,null,null,null,null,"～",null,null,{"$error":"#N/A"},null,"00:00:00"]
[null,null,null,null,null,null,"～",null,null,{"$f":"VLOOKUP(I2628,$C:$D,2,0)","v":{"$error":"#N/A"}},null,{"$f":"H2628-F2628","v":"00:00:00"}]
[null,null,null,null,null,null,"～",null,null,{"$error":"#N/A"},null,"00:00:00"]
[null,null,null,null,null,null,"～",null,null,{"$error":"#N/A"},null,"00:00:00"]
[null,null,null,null,null,null,"～",null,null,{"$error":"#N/A"},null,"00:00:00"]
[null,null,null,null,null,null,"～",null,null,{"$error":"#N/A"},null,"00:00:00"]
[null,null,null,null,null,null,"～",null,null,{"$error":"#N/A"},null,"00:00:00"]
[null,null,null,null,null,null,"～",null,null,{"$error":"#N/A"},null,"00:00:00"]
[null,null,null,null,null,null,"～",null,null,{"$error":"#N/A"},null,"00:00:00"]
[null,null,null,null,null,null,"～",null,null,{"$error":"#N/A"},null,"00:00:00"]
[null,null,null,null,null,null,"～",null,null,{"$error":"#N/A"},null,"00:00:00"]
[null,null,null,null,null,null,"～",null,null,{"$error":"#N/A"},null,"00:00:00"]
[null,null,null,null,null,null,"～",null,null,{"$error":"#N/A"},null,"00:00:00"]
[null,null,null,null,null,null,"～",null,null,{"$error":"#N/A"},null,"00:00:00"]
[null,null,null,null,null,null,"～",null,null,{"$error":"#N/A"},null,"00:00:00"]
[null,null,null,null,null,null,"～",null,null,{"$error":"#N/A"},null,"00:00:00"]
[null,null,null,null,null,null,"～",null,null,{"$error":"#N/A"},null,"00:00:00"]
[null,null,null,null,null,null,"～",null,null,{"$error":"#N/A"},null,"00:00:00"]
[null,null,null,null,null,null,"～",null,null,{"$error":"#N/A"},null,"00:00:00"]
[null,null,null,null,null,null,"～",null,null,{"$error":"#N/A"},null,"00:00:00"]
[null,null,null,null,null,null,"～",null,null,{"$error":"#N/A"},null,"00:00:00"]
[null,null,null,null,null,null,"～",null,null,{"$error":"#N/A"},null,"00:00:00"]
[null,null,null,null,null,null,"～",null,null,{"$error":"#N/A"},null,"00:00:00"]
[null,null,null,null,null,null,"～",null,null,{"$error":"#N/A"},null,"00:00:00"]
[null,null,null,null,null,null,"～",null,null,{"$error":"#N/A"},null,"00:00:00"]
[null,null,null,null,null,null,"～",null,null,{"$error":"#N/A"},null,"00:00:00"]
[null,null,null,null,null,null,"～",null,null,{"$error":"#N/A"},null,"00:00:00"]
[null,null,null,null,null,null,"～",null,null,{"$error":"#N/A"},null,"00:00:00"]
[null,null,null,null,null,null,"～",null,null,{"$error":"#N/A"},null,"00:00:00"]
[null,null,null,null,null,null,"～",null,null,{"$error":"#N/A"},null,"00:00:00"]
[null,null,null,null,null,null,"～",null,null,{"$error":"#N/A"},null,"00:00:00"]
[null,null,null,null,null,null,"～",null,null,{"$error":"#N/A"},null,"00:00:00"]
[null,null,null,null,null,null,"～",null,null,{"$error":"#N/A"},null,"00:00:00"]
[null,null,null,null,null,null,"～",null,null,{"$error":"#N/A"},null,"00:00:00"]
[null,null,null,null,null,null,"～",null,null,{"$error":"#N/A"},null,"00:00:00"]
[null,null,null,null,null,null,"～",null,null,{"$error":"#N/A"},null,"00:00:00"]
[null,null,null,null,null,null,"～",null,null,{"$error":"#N/A"},null,"00:00:00"]
[null,null,null,null,null,null,"～",null,null,{"$error":"#N/A"},null,"00:00:00"]
[null,null,null,null,null,null,"～",null,null,{"$error":"#N/A"},null,"00:00:00"]
[null,null,null,null,null,null,"～",null,null,{"$error":"#N/A"},null,"00:00:00"]
[null,null,null,null,null,null,"～",null,null,{"$error":"#N/A"},null,"00:00:00"]
[null,null,null,null,null,null,"～",null,null,{"$error":"#N/A"},null,"00:00:00"]
[null,null,null,null,null,null,"～",null,null,{"$error":"#N/A"},null,"00:00:00"]
[null,null,null,null,null,null,"～",null,null,{"$error":"#N/A"},null,"00:00:00"]
[null,null,null,null,null,null,"～",null,null,{"$error":"#N/A"},null,"00:00:00"]
[null,null,null,null,null,null,"～",null,null,{"$error":"#N/A"},null,"00:00:00"]
[null,null,null,null,null,null,"～",null,null,{"$error":"#N/A"},null,"00:00:00"]
[null,null,null,null,null,null,"～",null,null,{"$error":"#N/A"},null,"00:00:00"]
[null,null,null,null,null,null,"～",null,null,{"$error":"#N/A"},null,"00:00:00"]
[null,null,null,null,null,null,"～",null,null,{"$error":"#N/A"},null,"00:00:00"]
[null,null,null,null,null,null,"～",null,null,{"$error":"#N/A"},null,"00:00:00"]
[null,null,null,null,null,null,"～",null,null,{"$error":"#N/A"},null,"00:00:00"]
[null,null,null,null,null,null,"～",null,null,{"$error":"#N/A"},null,"00:00:00"]
[null,null,null,null,null,null,"～",null,null,{"$error":"#N/A"},null,"00:00:00"]
[null,null,null,null,null,null,"～",null,null,{"$error":"#N/A"},null,"00:00:00"]
[null,null,null,null,null,null,"～",null,null,{"$error":"#N/A"},null,"00:00:00"]
[null,null,null,null,null,null,"～",null,null,{"$error":"#N/A"},null,"00:00:00"]
[null,null,null,null,null,null,"～",null,null,{"$error":"#N/A"},null,"00:00:00"]
[null,null,null,null,null,null,"～",null,null,{"$error":"#N/A"},null,"00:00:00"]
[null,null,null,null,null,null,"～",null,null,{"$error":"#N/A"},null,"00:00:00"]
[null,null,null,null,null,null,"～",null,null,{"$error":"#N/A"},null,"00:00:00"]
[null,null,null,null,null,null,"～",null,null,{"$error":"#N/A"},null,"00:00:00"]
[null,null,null,null,null,null,"～",null,null,{"$error":"#N/A"},null,"00:00:00"]
[null,null,null,null,null,null,"～",null,null,{"$error":"#N/A"},null,"00:00:00"]
[null,null,null,null,null,null,"～",null,null,{"$error":"#N/A"},null,"00:00:00"]
[null,null,null,null,null,null,"～",null,null,{"$error":"#N/A"},null,"00:00:00"]
[null,null,null,null,null,null,"～",null,null,{"$error":"#N/A"},null,"00:00:00"]
[null,null,null,null,null,null,"～",null,null,{"$error":"#N/A"},null,"00:00:00"]
[null,null,null,null,null,null,"～",null,null,{"$error":"#N/A"},null,"00:00:00"]
[null,null,null,null,null,null,"～",null,null,{"$error":"#N/A"},null,"00:00:00"]
[null,null,null,null,null,null,"～",null,null,{"$error":"#N/A"},null,"00:00:00"]
[null,null,null,null,null,null,"～",null,null,{"$error":"#N/A"},null,"00:00:00"]
[null,null,null,null,null,null,"～",null,null,{"$error":"#N/A"},null,"00:00:00"]
[null,null,null,null,null,null,"～",null,null,{"$error":"#N/A"},null,"00:00:00"]
[null,null,null,null,null,null,"～",null,null,{"$error":"#N/A"},null,"00:00:00"]
[null,null,null,null,null,null,"～",null,null,{"$error":"#N/A"},null,"00:00:00"]
[null,null,null,null,null,null,"～",null,null,{"$error":"#N/A"},null,"00:00:00"]
[null,null,null,null,null,null,"～",null,null,{"$error":"#N/A"},null,"00:00:00"]
[null,null,null,null,null,null,"～",null,null,{"$error":"#N/A"},null,"00:00:00"]
[null,null,null,null,null,null,"～",null,null,{"$error":"#N/A"},null,"00:00:00"]
[null,null,null,null,null,null,"～",null,null,{"$error":"#N/A"},null,"00:00:00"]
[null,null,null,null,null,null,"～",null,null,{"$error":"#N/A"},null,"00:00:00"]
[null,null,null,null,null,null,"～",null,null,{"$error":"#N/A"},null,"00:00:00"]
[null,null,null,null,null,null,"～",null,null,{"$error":"#N/A"},null,"00:00:00"]
[null,null,null,null,null,null,"～",null,null,{"$error":"#N/A"},null,"00:00:00"]
[null,null,null,null,null,null,"～",null,null,{"$error":"#N/A"},null,"00:00:00"]
[null,null,null,null,null,null,"～",null,null,{"$error":"#N/A"},null,"00:00:00"]
[null,null,null,null,null,null,"～",null,null,{"$error":"#N/A"},null,"00:00:00"]
[null,null,null,null,null,null,"～",null,null,{"$error":"#N/A"},null,"00:00:00"]
[null,null,null,null,null,null,"～",null,null,{"$error":"#N/A"},null,"00:00:00"]
[null,null,null,null,null,null,"～",null,null,{"$error":"#N/A"},null,"00:00:00"]
[null,null,null,null,null,null,"～",null,null,{"$error":"#N/A"},null,"00:00:00"]
[null,null,null,null,null,null,"～",null,null,{"$error":"#N/A"},null,"00:00:00"]
[null,null,null,null,null,null,"～",null,null,{"$error":"#N/A"},null,"00:00:00"]
[null,null,null,null,null,null,"～",null,null,{"$error":"#N/A"},null,"00:00:00"]
[null,null,null,null,null,null,"～",null,null,{"$error":"#N/A"},null,"00:00:00"]
[null,null,null,null,null,null,"～",null,null,{"$f":"VLOOKUP(I3332,$C:$D,2,0)","v":{"$error":"#N/A"}},null,{"$f":"H3332-F3332","v":"00:00:00"}]
[null,null,null,null,null,null,"～",null,null,{"$error":"#N/A"},null,"00:00:00"]
[null,null,null,null,null,null,"～",null,null,{"$error":"#N/A"},null,"00:00:00"]
[null,null,null,null,null,null,"～",null,null,{"$error":"#N/A"},null,"00:00:00"]
[null,null,null,null,null,null,"～",null,null,{"$error":"#N/A"},null,"00:00:00"]
[null,null,null,null,null,null,"～",null,null,{"$error":"#N/A"},null,"00:00:00"]
[null,null,null,null,null,null,"～",null,null,{"$error":"#N/A"},null,"00:00:00"]
[null,null,null,null,null,null,"～",null,null,{"$error":"#N/A"},null,"00:00:00"]
[null,null,null,null,null,null,"～",null,null,{"$error":"#N/A"},null,"00:00:00"]
[null,null,null,null,null,null,"～",null,null,{"$error":"#N/A"},null,"00:00:00"]
[null,null,null,null,null,null,"～",null,null,{"$error":"#N/A"},null,"00:00:00"]
[null,null,null,null,null,null,"～",null,null,{"$error":"#N/A"},null,"00:00:00"]
[null,null,null,null,null,null,"～",null,null,{"$error":"#N/A"},null,"00:00:00"]
[null,null,null,null,null,null,"～",null,null,{"$error":"#N/A"},null,"00:00:00"]
[null,null,null,null,null,null,"～",null,null,{"$error":"#N/A"},null,"00:00:00"]
[null,null,null,null,null,null,"～",null,null,{"$error":"#N/A"},null,"00:00:00"]
[null,null,null,null,null,null,"～",null,null,{"$error":"#N/A"},null,"00:00:00"]
[null,null,null,null,null,null,"～",null,null,{"$error":"#N/A"},null,"00:00:00"]
[null,null,null,null,null,null,"～",null,null,{"$error":"#N/A"},null,"00:00:00"]
[null,null,null,null,null,null,"～",null,null,{"$error":"#N/A"},null,"00:00:00"]
[null,null,null,null,null,null,"～",null,null,{"$error":"#N/A"},null,"00:00:00"]
[null,null,null,null,null,null,"～",null,null,{"$error":"#N/A"},null,"00:00:00"]
[null,null,null,null,null,null,"～",null,null,{"$error":"#N/A"},null,"00:00:00"]
[null,null,null,null,null,null,"～",null,null,{"$error":"#N/A"},null,"00:00:00"]
[null,null,null,null,null,null,"～",null,null,{"$error":"#N/A"},null,"00:00:00"]
[null,null,null,null,null,null,"～",null,null,{"$error":"#N/A"},null,"00:00:00"]
[null,null,null,null,null,null,"～",null,null,{"$error":"#N/A"},null,"00:00:00"]
[null,null,null,null,null,null,"～",null,null,{"$error":"#N/A"},null,"00:00:00"]
[null,null,null,null,null,null,"～",null,null,{"$error":"#N/A"},null,"00:00:00"]
[null,null,null,null,null,null,"～",null,null,{"$error":"#N/A"},null,"00:00:00"]
[null,null,null,null,null,null,"～",null,null,{"$error":"#N/A"},null,"00:00:00"]
[null,null,null,null,null,null,"～",null,null,{"$error":"#N/A"},null,"00:00:00"]
[null,null,null,null,null,null,"～",null,null,{"$error":"#N/A"},null,"00:00:00"]
[null,null,null,null,null,null,"～",null,null,{"$error":"#N/A"},null,"00:00:00"]
[null,null,null,null,null,null,"～",null,null,{"$error":"#N/A"},null,"00:00:00"]
[null,null,null,null,null,null,"～",null,null,{"$error":"#N/A"},null,"00:00:00"]
[null,null,null,null,null,null,"～",null,null,{"$error":"#N/A"},null,"00:00:00"]
[null,null,null,null,null,null,"～",null,null,{"$error":"#N/A"},null,"00:00:00"]
[null,null,null,null,null,null,"～",null,null,{"$error":"#N/A"},null,"00:00:00"]
[null,null,null,null,null,null,"～",null,null,{"$error":"#N/A"},null,"00:00:00"]
[null,null,null,null,null,null,"～",null,null,{"$error":"#N/A"},null,"00:00:00"]
[null,null,null,null,null,null,"～",null,null,{"$error":"#N/A"},null,"00:00:00"]
[null,null,null,null,null,null,"～",null,null,{"$error":"#N/A"},null,"00:00:00"]
[null,null,null,null,null,null,"～",null,null,{"$error":"#N/A"},null,"00:00:00"]
[null,null,null,null,null,null,"～",null,null,{"$error":"#N/A"},null,"00:00:00"]
[null,null,null,null,null,null,"～",null,null,{"$error":"#N/A"},null,"00:00:00"]
[null,null,null,null,null,null,"～",null,null,{"$error":"#N/A"},null,"00:00:00"]
[null,null,null,null,null,null,"～",null,null,{"$error":"#N/A"},null,"00:00:00"]
[null,null,null,null,null,null,"～",null,null,{"$error":"#N/A"},null,"00:00:00"]
[null,null,null,null,null,null,"～",null,null,{"$error":"#N/A"},null,"00:00:00"]
[null,null,null,null,null,null,"～",null,null,{"$error":"#N/A"},null,"00:00:00"]
[null,null,null,null,null,null,"～",null,null,{"$error":"#N/A"},null,"00:00:00"]
[null,null,null,null,null,null,"～",null,null,{"$error":"#N/A"},null,"00:00:00"]
[null,null,null,null,null,null,"～",null,null,{"$error":"#N/A"},null,"00:00:00"]
[null,null,null,null,null,null,"～",null,null,{"$error":"#N/A"},null,"00:00:00"]
[null,null,null,null,null,null,"～",null,null,{"$error":"#N/A"},null,"00:00:00"]
[null,null,null,null,null,null,"～",null,null,{"$error":"#N/A"},null,"00:00:00"]
[null,null,null,null,null,null,"～",null,null,{"$error":"#N/A"},null,"00:00:00"]
[null,null,null,null,null,null,"～",null,null,{"$error":"#N/A"},null,"00:00:00"]
[null,null,null,null,null,null,"～",null,null,{"$error":"#N/A"},null,"00:00:00"]
[null,null,null,null,null,null,"～",null,null,{"$error":"#N/A"},null,"00:00:00"]
[null,null,null,null,null,null,"～",null,null,{"$error":"#N/A"},null,"00:00:00"]
[null,null,null,null,null,null,"～",null,null,{"$error":"#N/A"},null,"00:00:00"]
[null,null,null,null,null,null,"～",null,null,{"$error":"#N/A"},null,"00:00:00"]
[null,null,null,null,null,null,"～",null,null,{"$error":"#N/A"},null,"00:00:00"]
[null,null,null,null,null,null,"～",null,null,{"$error":"#N/A"},null,"00:00:00"]
[null,null,null,null,null,null,"～",null,null,{"$error":"#N/A"},null,"00:00:00"]
[null,null,null,null,null,null,"～",null,null,{"$error":"#N/A"},null,"00:00:00"]
[null,null,null,null,null,null,"～",null,null,{"$error":"#N/A"},null,"00:00:00"]
[null,null,null,null,null,null,"～",null,null,{"$error":"#N/A"},null,"00:00:00"]
[null,null,null,null,null,null,"～",null,null,{"$error":"#N/A"},null,"00:00:00"]
[null,null,null,null,null,null,"～",null,null,{"$error":"#N/A"},null,"00:00:00"]
[null,null,null,null,null,null,"～",null,null,{"$error":"#N/A"},null,"00:00:00"]
[null,null,null,null,null,null,"～",null,null,{"$error":"#N/A"},null,"00:00:00"]
[null,null,null,null,null,null,"～",null,null,{"$error":"#N/A"},null,"00:00:00"]
[null,null,null,null,null,null,"～",null,null,{"$error":"#N/A"},null,"00:00:00"]
[null,null,null,null,null,null,"～",null,null,{"$error":"#N/A"},null,"00:00:00"]
[null,null,null,null,null,null,"～",null,null,{"$error":"#N/A"},null,"00:00:00"]
[null,null,null,null,null,null,"～",null,null,{"$f":"VLOOKUP(I3908,$C:$D,2,0)","v":{"$error":"#N/A"}},null,{"$f":"H3908-F3908","v":"00:00:00"}]
[null,null,null,null,null,null,"～",null,null,{"$error":"#N/A"},null,"00:00:00"]
[null,null,null,null,null,null,"～",null,null,{"$error":"#N/A"},null,"00:00:00"]
[null,null,null,null,null,null,"～",null,null,{"$error":"#N/A"},null,"00:00:00"]
[null,null,null,null,null,null,"～",null,null,{"$error":"#N/A"},null,"00:00:00"]
[null,null,null,null,null,null,"～",null,null,{"$error":"#N/A"},null,"00:00:00"]
[null,null,null,null,null,null,"～",null,null,{"$error":"#N/A"},null,"00:00:00"]
[null,null,null,null,null,null,"～",null,null,{"$error":"#N/A"},null,"00:00:00"]
[null,null,null,null,null,null,"～",null,null,{"$error":"#N/A"},null,"00:00:00"]
[null,null,null,null,null,null,"～",null,null,{"$error":"#N/A"},null,"00:00:00"]
[null,null,null,null,null,null,"～",null,null,{"$error":"#N/A"},null,"00:00:00"]
[null,null,null,null,null,null,"～",null,null,{"$error":"#N/A"},null,"00:00:00"]
[null,null,null,null,null,null,"～",null,null,{"$error":"#N/A"},null,"00:00:00"]
[null,null,null,null,null,null,"～",null,null,{"$error":"#N/A"},null,"00:00:00"]
[null,null,null,null,null,null,"～",null,null,{"$error":"#N/A"},null,"00:00:00"]
[null,null,null,null,null,null,"～",null,null,{"$error":"#N/A"},null,"00:00:00"]
[null,null,null,null,null,null,"～",null,null,{"$error":"#N/A"},null,"00:00:00"]
[null,null,null,null,null,null,"～",null,null,{"$error":"#N/A"},null,"00:00:00"]
[null,null,null,null,null,null,"～",null,null,{"$error":"#N/A"},null,"00:00:00"]
[null,null,null,null,null,null,"～",null,null,{"$error":"#N/A"},null,"00:00:00"]
[null,null,null,null,null,null,"～",null,null,{"$error":"#N/A"},null,"00:00:00"]
[null,null,null,null,null,null,"～",null,null,{"$error":"#N/A"},null,"00:00:00"]
[null,null,null,null,null,null,"～",null,null,{"$error":"#N/A"},null,"00:00:00"]
[null,null,null,null,null,null,"～",null,null,{"$error":"#N/A"},null,"00:00:00"]
[null,null,null,null,null,null,"～",null,null,{"$error":"#N/A"},null,"00:00:00"]
[null,null,null,null,null,null,"～",null,null,{"$error":"#N/A"},null,"00:00:00"]
[null,null,null,null,null,null,"～",null,null,{"$error":"#N/A"},null,"00:00:00"]
[null,null,null,null,null,null,"～",null,null,{"$error":"#N/A"},null,"00:00:00"]
[null,null,null,null,null,null,"～",null,null,{"$error":"#N/A"},null,"00:00:00"]
[null,null,null,null,null,null,"～",null,null,{"$error":"#N/A"},null,"00:00:00"]
[null,null,null,null,null,null,"～",null,null,{"$error":"#N/A"},null,"00:00:00"]
[null,null,null,null,null,null,"～",null,null,{"$error":"#N/A"},null,"00:00:00"]
[null,null,null,null,null,null,"～",null,null,{"$error":"#N/A"},null,"00:00:00"]
[null,null,null,null,null,null,"～",null,null,{"$error":"#N/A"},null,"00:00:00"]
[null,null,null,null,null,null,"～",null,null,{"$error":"#N/A"},null,"00:00:00"]
[null,null,null,null,null,null,"～",null,null,{"$error":"#N/A"},null,"00:00:00"]
[null,null,null,null,null,null,"～",null,null,{"$error":"#N/A"},null,"00:00:00"]
[null,null,null,null,null,null,"～",null,null,{"$error":"#N/A"},null,"00:00:00"]
[null,null,null,null,null,null,"～",null,null,{"$error":"#N/A"},null,"00:00:00"]
[null,null,null,null,null,null,"～",null,null,{"$error":"#N/A"},null,"00:00:00"]
[null,null,null,null,null,null,"～",null,null,{"$error":"#N/A"},null,"00:00:00"]
[null,null,null,null,null,null,"～",null,null,{"$error":"#N/A"},null,"00:00:00"]
[null,null,null,null,null,null,"～",null,null,{"$error":"#N/A"},null,"00:00:00"]
[null,null,null,null,null,null,"～",null,null,{"$error":"#N/A"},null,"00:00:00"]
[null,null,null,null,null,null,"～",null,null,{"$error":"#N/A"},null,"00:00:00"]
[null,null,null,null,null,null,"～",null,null,{"$error":"#N/A"},null,"00:00:00"]
[null,null,null,null,null,null,"～",null,null,{"$error":"#N/A"},null,"00:00:00"]
[null,null,null,null,null,null,"～",null,null,{"$error":"#N/A"},null,"00:00:00"]
[null,null,null,null,null,null,"～",null,null,{"$error":"#N/A"},null,"00:00:00"]
[null,null,null,null,null,null,"～",null,null,{"$error":"#N/A"},null,"00:00:00"]
[null,null,null,null,null,null,"～",null,null,{"$error":"#N/A"},null,"00:00:00"]
[null,null,null,null,null,null,"～",null,null,{"$error":"#N/A"},null,"00:00:00"]
[null,null,null,null,null,null,"～",null,null,{"$error":"#N/A"},null,"00:00:00"]
[null,null,null,null,null,null,"～",null,null,{"$error":"#N/A"},null,"00:00:00"]
[null,null,null,null,null,null,"～",null,null,{"$error":"#N/A"},null,"00:00:00"]
[null,null,null,null,null,null,"～",null,null,{"$error":"#N/A"},null,"00:00:00"]
[null,null,null,null,null,null,"～",null,null,{"$error":"#N/A"},null,"00:00:00"]
[null,null,null,null,null,null,"～",null,null,{"$error":"#N/A"},null,"00:00:00"]
[null,null,null,null,null,null,"～",null,null,{"$error":"#N/A"},null,"00:00:00"]
[null,null,null,null,null,null,"～",null,null,{"$error":"#N/A"},null,"00:00:00"]
[null,null,null,null,null,null,"～",null,null,{"$error":"#N/A"},null,"00:00:00"]
[null,null,null,null,null,null,"～",null,null,{"$error":"#N/A"},null,"00:00:00"]
[null,null,null,null,null,null,"～",null,null,{"$error":"#N/A"},null,"00:00:00"]
[null,null,null,null,null,null,"～",null,null,{"$error":"#N/A"},null,"00:00:00"]
[null,null,null,null,null,null,"～",null,null,{"$error":"#N/A"},null,"00:00:00"]
[null,null,null,null,null,null,"～",null,null,{"$error":"#N/A"},null,"00:00:00"]
[null,null,null,null,null,null,"～",null,null,{"$error":"#N/A"},null,"00:00:00"]
[null,null,null,null,null,null,"～",null,null,{"$error":"#N/A"},null,"00:00:00"]
[null,null,null,null,null,null,"～",null,null,{"$error":"#N/A"},null,"00:00:00"]
[null,null,null,null,null,null,"～",null,null,{"$error":"#N/A"},null,"00:00:00"]
[null,null,null,null,null,null,"～",null,null,{"$error":"#N/A"},null,"00:00:00"]
[null,null,null,null,null,null,"～",null,null,{"$error":"#N/A"},null,"00:00:00"]
[null,null,null,null,null,null,"～",null,null,{"$error":"#N/A"},null,"00:00:00"]
[null,null,null,null,null,null,"～",null,null,{"$error":"#N/A"},null,"00:00:00"]
[null,null,null,null,null,null,"～",null,null,{"$error":"#N/A"},null,"00:00:00"]
[null,null,null,null,null,null,"～",null,null,{"$error":"#N/A"},null,"00:00:00"]
[null,null,null,null,null,null,"～",null,null,{"$error":"#N/A"},null,"00:00:00"]
[null,null,null,null,null,null,"～",null,null,{"$f":"VLOOKUP(I4484,$C:$D,2,0)","v":{"$error":"#N/A"}},null,{"$f":"H4484-F4484","v":"00:00:00"}]
[null,null,null,null,null,null,"～",null,null,{"$error":"#N/A"},null,"00:00:00"]
[null,null,null,null,null,null,"～",null,null,{"$error":"#N/A"},null,"00:00:00"]
[null,null,null,null,null,null,"～",null,null,{"$error":"#N/A"},null,"00:00:00"]
[null,null,null,null,null,null,"～",null,null,{"$error":"#N/A"},null,"00:00:00"]
[null,null,null,null,null,null,"～",null,null,{"$error":"#N/A"},null,"00:00:00"]
[null,null,null,null,null,null,"～",null,null,{"$error":"#N/A"},null,"00:00:00"]
[null,null,null,null,null,null,"～",null,null,{"$error":"#N/A"},null,"00:00:00"]
[null,null,null,null,null,null,"～",null,null,{"$error":"#N/A"},null,"00:00:00"]
[null,null,null,null,null,null,"～",null,null,{"$error":"#N/A"},null,"00:00:00"]
[null,null,null,null,null,null,"～",null,null,{"$error":"#N/A"},null,"00:00:00"]
[null,null,null,null,null,null,"～",null,null,{"$error":"#N/A"},null,"00:00:00"]
[null,null,null,null,null,null,"～",null,null,{"$error":"#N/A"},null,"00:00:00"]
[null,null,null,null,null,null,"～",null,null,{"$error":"#N/A"},null,"00:00:00"]
[null,null,null,null,null,null,"～",null,null,{"$error":"#N/A"},null,"00:00:00"]
[null,null,null,null,null,null,"～",null,null,{"$error":"#N/A"},null,"00:00:00"]
[null,null,null,null,null,null,"～",null,null,{"$error":"#N/A"},null,"00:00:00"]
[null,null,null,null,null,null,"～",null,null,{"$error":"#N/A"},null,"00:00:00"]
[null,null,null,null,null,null,"～",null,null,{"$error":"#N/A"},null,"00:00:00"]
[null,null,null,null,null,null,"～",null,null,{"$error":"#N/A"},null,"00:00:00"]
[null,null,null,null,null,null,"～",null,null,{"$error":"#N/A"},null,"00:00:00"]
[null,null,null,null,null,null,"～",null,null,{"$error":"#N/A"},null,"00:00:00"]
[null,null,null,null,null,null,"～",null,null,{"$error":"#N/A"},null,"00:00:00"]
[null,null,null,null,null,null,"～",null,null,{"$error":"#N/A"},null,"00:00:00"]
[null,null,null,null,null,null,"～",null,null,{"$error":"#N/A"},null,"00:00:00"]
[null,null,null,null,null,null,"～",null,null,{"$error":"#N/A"},null,"00:00:00"]
[null,null,null,null,null,null,"～",null,null,{"$f":"VLOOKUP(I4676,$C:$D,2,0)","v":{"$error":"#N/A"}},null,{"$f":"H4676-F4676","v":"00:00:00"}]
[null,null,null,null,null,null,"～",null,null,{"$error":"#N/A"},null,"00:00:00"]
[null,null,null,null,null,null,"～",null,null,{"$error":"#N/A"},null,"00:00:00"]
[null,null,null,null,null,null,"～",null,null,{"$error":"#N/A"},null,"00:00:00"]
[null,null,null,null,null,null,"～",null,null,{"$error":"#N/A"},null,"00:00:00"]
[null,null,null,null,null,null,"～",null,null,{"$error":"#N/A"},null,"00:00:00"]
[null,null,null,null,null,null,"～",null,null,{"$error":"#N/A"},null,"00:00:00"]
[null,null,null,null,null,null,"～",null,null,{"$error":"#N/A"},null,"00:00:00"]
[null,null,null,null,null,null,"～",null,null,{"$error":"#N/A"},null,"00:00:00"]
[null,null,null,null,null,null,"～",null,null,{"$error":"#N/A"},null,"00:00:00"]
[null,null,null,null,null,null,"～",null,null,{"$error":"#N/A"},null,"00:00:00"]
[null,null,null,null,null,null,"～",null,null,{"$error":"#N/A"},null,"00:00:00"]
[null,null,null,null,null,null,"～",null,null,{"$error":"#N/A"},null,"00:00:00"]
[null,null,null,null,null,null,"～",null,null,{"$error":"#N/A"},null,"00:00:00"]
[null,null,null,null,null,null,"～",null,null,{"$error":"#N/A"},null,"00:00:00"]
[null,null,null,null,null,null,"～",null,null,{"$error":"#N/A"},null,"00:00:00"]
[null,null,null,null,null,null,"～",null,null,{"$error":"#N/A"},null,"00:00:00"]
[null,null,null,null,null,null,"～",null,null,{"$error":"#N/A"},null,"00:00:00"]
[null,null,null,null,null,null,"～",null,null,{"$error":"#N/A"},null,"00:00:00"]
[null,null,null,null,null,null,"～",null,null,{"$error":"#N/A"},null,"00:00:00"]
[null,null,null,null,null,null,"～",null,null,{"$error":"#N/A"},null,"00:00:00"]
[null,null,null,null,null,null,"～",null,null,{"$error":"#N/A"},null,"00:00:00"]
[null,null,null,null,null,null,"～",null,null,{"$error":"#N/A"},null,"00:00:00"]
[null,null,null,null,null,null,"～",null,null,{"$error":"#N/A"},null,"00:00:00"]
[null,null,null,null,null,null,"～",null,null,{"$error":"#N/A"},null,"00:00:00"]
[null,null,null,null,null,null,"～",null,null,{"$error":"#N/A"},null,"00:00:00"]
[null,null,null,null,null,null,"～",null,null,{"$error":"#N/A"},null,"00:00:00"]
[null,null,null,null,null,null,"～",null,null,{"$error":"#N/A"},null,"00:00:00"]
[null,null,null,null,null,null,"～",null,null,{"$error":"#N/A"},null,"00:00:00"]
[null,null,null,null,null,null,"～",null,null,{"$error":"#N/A"},null,"00:00:00"]
[null,null,null,null,null,null,"～",null,null,{"$error":"#N/A"},null,"00:00:00"]
[null,null,null,null,null,null,"～",null,null,{"$error":"#N/A"},null,"00:00:00"]
[null,null,null,null,null,null,"～",null,null,{"$error":"#N/A"},null,"00:00:00"]
[null,null,null,null,null,null,"～",null,null,{"$error":"#N/A"},null,"00:00:00"]
[null,null,null,null,null,null,"～",null,null,{"$error":"#N/A"},null,"00:00:00"]
[null,null,null,null,null,null,"～",null,null,{"$error":"#N/A"},null,"00:00:00"]
[null,null,null,null,null,null,"～",null,null,{"$error":"#N/A"},null,"00:00:00"]
[null,null,null,null,null,null,"～",null,null,{"$error":"#N/A"},null,"00:00:00"]
[null,null,null,null,null,null,"～",null,null,{"$error":"#N/A"},null,"00:00:00"]
[null,null,null,null,null,null,"～",null,null,{"$error":"#N/A"},null,"00:00:00"]
[null,null,null,null,null,null,"～",null,null,{"$error":"#N/A"},null,"00:00:00"]
[null,null,null,null,null,null,"～",null,null,{"$error":"#N/A"},null,"00:00:00"]
[null,null,null,null,null,null,"～",null,null,{"$error":"#N/A"},null,"00:00:00"]
[null,null,null,null,null,null,"～",null,null,{"$error":"#N/A"},null,"00:00:00"]
[null,null,null,null,null,null,"～",null,null,{"$error":"#N/A"},null,"00:00:00"]
[null,null,null,null,null,null,"～",null,null,{"$error":"#N/A"},null,"00:00:00"]
[null,null,null,null,null,null,"～",null,null,{"$error":"#N/A"},null,"00:00:00"]
[null,null,null,null,null,null,"～",null,null,{"$error":"#N/A"},null,"00:00:00"]
[null,null,null,null,null,null,"～",null,null,{"$error":"#N/A"},null,"00:00:00"]
[null,null,null,null,null,null,"～",null,null,{"$error":"#N/A"},null,"00:00:00"]
[null,null,null,null,null,null,"～",null,null,{"$error":"#N/A"},null,"00:00:00"]
[null,null,null,null,null,null,"～",null,null,{"$error":"#N/A"},null,"00:00:00"]
[null,null,null,null,null,null,"～",null,null,{"$f":"VLOOKUP(I5060,$C:$D,2,0)","v":{"$error":"#N/A"}},null,{"$f":"H5060-F5060","v":"00:00:00"}]
[null,null,null,null,null,null,"～",null,null,{"$error":"#N/A"},null,"00:00:00"]
[null,null,null,null,null,null,"～",null,null,{"$error":"#N/A"},null,"00:00:00"]
[null,null,null,null,null,null,"～",null,null,{"$error":"#N/A"},null,"00:00:00"]
[null,null,null,null,null,null,"～",null,null,{"$error":"#N/A"},null,"00:00:00"]
[null,null,null,null,null,null,"～",null,null,{"$error":"#N/A"},null,"00:00:00"]
[null,null,null,null,null,null,"～",null,null,{"$error":"#N/A"},null,"00:00:00"]
[null,null,null,null,null,null,"～",null,null,{"$error":"#N/A"},null,"00:00:00"]
[null,null,null,null,null,null,"～",null,null,{"$error":"#N/A"},null,"00:00:00"]
[null,null,null,null,null,null,"～",null,null,{"$error":"#N/A"},null,"00:00:00"]
[null,null,null,null,null,null,"～",null,null,{"$error":"#N/A"},null,"00:00:00"]
[null,null,null,null,null,null,"～",null,null,{"$error":"#N/A"},null,"00:00:00"]
[null,null,null,null,null,null,"～",null,null,{"$error":"#N/A"},null,"00:00:00"]
[null,null,null,null,null,null,"～",null,null,{"$error":"#N/A"},null,"00:00:00"]
[null,null,null,null,null,null,"～",null,null,{"$error":"#N/A"},null,"00:00:00"]
[null,null,null,null,null,null,"～",null,null,{"$error":"#N/A"},null,"00:00:00"]
[null,null,null,null,null,null,"～",null,null,{"$error":"#N/A"},null,"00:00:00"]
[null,null,null,null,null,null,"～",null,null,{"$error":"#N/A"},null,"00:00:00"]
[null,null,null,null,null,null,"～",null,null,{"$error":"#N/A"},null,"00:00:00"]
[null,null,null,null,null,null,"～",null,null,{"$error":"#N/A"},null,"00:00:00"]
[null,null,null,null,null,null,"～",null,null,{"$error":"#N/A"},null,"00:00:00"]
[null,null,null,null,null,null,"～",null,null,{"$error":"#N/A"},null,"00:00:00"]
[null,null,null,null,null,null,"～",null,null,{"$error":"#N/A"},null,"00:00:00"]
[null,null,null,null,null,null,"～",null,null,{"$error":"#N/A"},null,"00:00:00"]
[null,null,null,null,null,null,"～",null,null,{"$error":"#N/A"},null,"00:00:00"]
[null,null,null,null,null,null,"～",null,null,{"$error":"#N/A"},null,"00:00:00"]
[null,null,null,null,null,null,"～",null,null,{"$error":"#N/A"},null,"00:00:00"]
[null,null,null,null,null,null,"～",null,null,{"$error":"#N/A"},null,"00:00:00"]
[null,null,null,null,null,null,"～",null,null,{"$error":"#N/A"},null,"00:00:00"]
[null,null,null,null,null,null,"～",null,null,{"$error":"#N/A"},null,"00:00:00"]
[null,null,null,null,null,null,"～",null,null,{"$error":"#N/A"},null,"00:00:00"]
[null,null,null,null,null,null,"～",null,null,{"$error":"#N/A"},null,"00:00:00"]
[null,null,null,null,null,null,"～",null,null,{"$error":"#N/A"},null,"00:00:00"]
[null,null,null,null,null,null,"～",null,null,{"$error":"#N/A"},null,"00:00:00"]
[null,null,null,null,null,null,"～",null,null,{"$error":"#N/A"},null,"00:00:00"]
[null,null,null,null,null,null,"～",null,null,{"$f":"VLOOKUP(I5316,$C:$D,2,0)","v":{"$error":"#N/A"}},null,{"$f":"H5316-F5316","v":"00:00:00"}]
[null,null,null,null,null,null,"～",null,null,{"$error":"#N/A"},null,"00:00:00"]
[null,null,null,null,null,null,"～",null,null,{"$error":"#N/A"},null,"00:00:00"]
[null,null,null,null,null,null,"～",null,null,{"$error":"#N/A"},null,"00:00:00"]
[null,null,null,null,null,null,"～",null,null,{"$error":"#N/A"},null,"00:00:00"]
[null,null,null,null,null,null,"～",null,null,{"$error":"#N/A"},null,"00:00:00"]
[null,null,null,null,null,null,"～",null,null,{"$error":"#N/A"},null,"00:00:00"]
[null,null,null,null,null,null,"～",null,null,{"$error":"#N/A"},null,"00:00:00"]
[null,null,null,null,null,null,"～",null,null,{"$error":"#N/A"},null,"00:00:00"]
[null,null,null,null,null,null,"～",null,null,{"$error":"#N/A"},null,"00:00:00"]
[null,null,null,null,null,null,"～",null,null,{"$error":"#N/A"},null,"00:00:00"]
[null,null,null,null,null,null,"～",null,null,{"$error":"#N/A"},null,"00:00:00"]
[null,null,null,null,null,null,"～",null,null,{"$error":"#N/A"},null,"00:00:00"]
[null,null,null,null,null,null,"～",null,null,{"$error":"#N/A"},null,"00:00:00"]
[null,null,null,null,null,null,"～",null,null,{"$error":"#N/A"},null,"00:00:00"]
[null,null,null,null,null,null,"～",null,null,{"$error":"#N/A"},null,"00:00:00"]
[null,null,null,null,null,null,"～",null,null,{"$error":"#N/A"},null,"00:00:00"]
[null,null,null,null,null,null,"～",null,null,{"$error":"#N/A"},null,"00:00:00"]
[null,null,null,null,null,null,"～",null,null,{"$error":"#N/A"},null,"00:00:00"]
[null,null,null,null,null,null,"～",null,null,{"$error":"#N/A"},null,"00:00:00"]
[null,null,null,null,null,null,"～",null,null,{"$error":"#N/A"},null,"00:00:00"]
[null,null,null,null,null,null,"～",null,null,{"$error":"#N/A"},null,"00:00:00"]
[null,null,null,null,null,null,"～",null,null,{"$error":"#N/A"},null,"00:00:00"]
[null,null,null,null,null,null,"～",null,null,{"$error":"#N/A"},null,"00:00:00"]
[null,null,null,null,null,null,"～",null,null,{"$error":"#N/A"},null,"00:00:00"]
[null,null,null,null,null,null,"～",null,null,{"$error":"#N/A"},null,"00:00:00"]
[null,null,null,null,null,null,"～",null,null,{"$error":"#N/A"},null,"00:00:00"]
[null,null,null,null,null,null,"～",null,null,{"$error":"#N/A"},null,"00:00:00"]
[null,null,null,null,null,null,"～",null,null,{"$error":"#N/A"},null,"00:00:00"]
[null,null,null,null,null,null,"～",null,null,{"$error":"#N/A"},null,"00:00:00"]
[null,null,null,null,null,null,"～",null,null,{"$error":"#N/A"},null,"00:00:00"]
[null,null,null,null,null,null,"～",null,null,{"$error":"#N/A"},null,"00:00:00"]
[null,null,null,null,null,null,"～",null,null,{"$error":"#N/A"},null,"00:00:00"]
[null,null,null,null,null,null,"～",null,null,{"$error":"#N/A"},null,"00:00:00"]
[null,null,null,null,null,null,"～",null,null,{"$error":"#N/A"},null,"00:00:00"]
[null,null,null,null,null,null,"～",null,null,{"$error":"#N/A"},null,"00:00:00"]
[null,null,null,null,null,null,"～",null,null,{"$error":"#N/A"},null,"00:00:00"]
[null,null,null,null,null,null,"～",null,null,{"$error":"#N/A"},null,"00:00:00"]
[null,null,null,null,null,null,"～",null,null,{"$error":"#N/A"},null,"00:00:00"]
[null,null,null,null,null,null,"～",null,null,{"$error":"#N/A"},null,"00:00:00"]
[null,null,null,null,null,null,"～",null,null,{"$error":"#N/A"},null,"00:00:00"]
[null,null,null,null,null,null,"～",null,null,{"$error":"#N/A"},null,"00:00:00"]
[null,null,null,null,null,null,"～",null,null,{"$error":"#N/A"},null,"00:00:00"]
[null,null,null,null,null,null,"～",null,null,{"$error":"#N/A"},null,"00:00:00"]
[null,null,null,null,null,null,"～",null,null,{"$error":"#N/A"},null,"00:00:00"]
[null,null,null,null,null,null,"～",null,null,{"$error":"#N/A"},null,"00:00:00"]
[null,null,null,null,null,null,"～",null,null,{"$error":"#N/A"},null,"00:00:00"]
[null,null,null,null,null,null,"～",null,null,{"$error":"#N/A"},null,"00:00:00"]
[null,null,null,null,null,null,"～",null,null,{"$error":"#N/A"},null,"00:00:00"]
[null,null,null,null,null,null,"～",null,null,{"$error":"#N/A"},null,"00:00:00"]
[null,null,null,null,null,null,"～",null,null,{"$error":"#N/A"},null,"00:00:00"]
[null,null,null,null,null,null,"～",null,null,{"$error":"#N/A"},null,"00:00:00"]
[null,null,null,null,null,null,"～",null,null,{"$error":"#N/A"},null,"00:00:00"]
[null,null,null,null,null,null,"～",null,null,{"$error":"#N/A"},null,"00:00:00"]
[null,null,null,null,null,null,"～",null,null,{"$error":"#N/A"},null,"00:00:00"]
[null,null,null,null,null,null,"～",null,null,{"$error":"#N/A"},null,"00:00:00"]
[null,null,null,null,null,null,"～",null,null,{"$error":"#N/A"},null,"00:00:00"]
[null,null,null,null,null,null,"～",null,null,{"$error":"#N/A"},null,"00:00:00"]
[null,null,null,null,null,null,"～",null,null,{"$error":"#N/A"},null,"00:00:00"]
[null,null,null,null,null,null,"～",null,null,{"$error":"#N/A"},null,"00:00:00"]
[null,null,null,null,null,null,"～",null,null,{"$error":"#N/A"},null,"00:00:00"]
[null,null,null,null,null,null,"～",null,null,{"$error":"#N/A"},null,"00:00:00"]
[null,null,null,null,null,null,"～",null,null,{"$error":"#N/A"},null,"00:00:00"]
[null,null,null,null,null,null,"～",null,null,{"$error":"#N/A"},null,"00:00:00"]
[null,null,null,null,null,null,"～",null,null,{"$error":"#N/A"},null,"00:00:00"]
[null,null,null,null,null,null,"～",null,null,{"$error":"#N/A"},null,"00:00:00"]
[null,null,null,null,null,null,"～",null,null,{"$error":"#N/A"},null,"00:00:00"]
[null,null,null,null,null,null,"～",null,null,{"$error":"#N/A"},null,"00:00:00"]
[null,null,null,null,null,null,"～",null,null,{"$error":"#N/A"},null,"00:00:00"]
[null,null,null,null,null,null,"～",null,null,{"$error":"#N/A"},null,"00:00:00"]
[null,null,null,null,null,null,"～",null,null,{"$error":"#N/A"},null,"00:00:00"]
[null,null,null,null,null,null,"～",null,null,{"$error":"#N/A"},null,"00:00:00"]
[null,null,null,null,null,null,"～",null,null,{"$error":"#N/A"},null,"00:00:00"]
[null,null,null,null,null,null,"～",null,null,{"$error":"#N/A"},null,"00:00:00"]
[null,null,null,null,null,null,"～",null,null,{"$error":"#N/A"},null,"00:00:00"]
[null,null,null,null,null,null,"～",null,null,{"$error":"#N/A"},null,"00:00:00"]
[null,null,null,null,null,null,"～",null,null,{"$error":"#N/A"},null,"00:00:00"]
[null,null,null,null,null,null,"～",null,null,{"$error":"#N/A"},null,"00:00:00"]
[null,null,null,null,null,null,"～",null,null,{"$error":"#N/A"},null,"00:00:00"]
[null,null,null,null,null,null,"～",null,null,{"$error":"#N/A"},null,"00:00:00"]
[null,null,null,null,null,null,"～",null,null,{"$error":"#N/A"},null,"00:00:00"]
[null,null,null,null,null,null,"～",null,null,{"$error":"#N/A"},null,"00:00:00"]
[null,null,null,null,null,null,"～",null,null,{"$error":"#N/A"},null,"00:00:00"]
[null,null,null,null,null,null,"～",null,null,{"$error":"#N/A"},null,"00:00:00"]
[null,null,null,null,null,null,"～",null,null,{"$error":"#N/A"},null,"00:00:00"]
[null,null,null,null,null,null,"～",null,null,{"$error":"#N/A"},null,"00:00:00"]
[null,null,null,null,null,null,"～",null,null,{"$error":"#N/A"},null,"00:00:00"]
[null,null,null,null,null,null,"～",null,null,{"$error":"#N/A"},null,"00:00:00"]
[null,null,null,null,null,null,"～",null,null,{"$error":"#N/A"},null,"00:00:00"]
[null,null,null,null,null,null,"～",null,null,{"$error":"#N/A"},null,"00:00:00"]
[null,null,null,null,null,null,"～",null,null,{"$error":"#N/A"},null,"00:00:00"]
[null,null,null,null,null,null,"～",null,null,{"$error":"#N/A"},null,"00:00:00"]
[null,null,null,null,null,null,"～",null,null,{"$error":"#N/A"},null,"00:00:00"]
[null,null,null,null,null,null,"～",null,null,{"$error":"#N/A"},null,"00:00:00"]
[null,null,null,null,null,null,"～",null,null,{"$error":"#N/A"},null,"00:00:00"]
[null,null,null,null,null,null,"～",null,null,{"$error":"#N/A"},null,"00:00:00"]
[null,null,null,null,null,null,"～",null,null,{"$error":"#N/A"},null,"00:00:00"]
[null,null,null,null,null,null,"～",null,null,{"$error":"#N/A"},null,"00:00:00"]
[null,null,null,null,null,null,"～",null,null,{"$error":"#N/A"},null,"00:00:00"]
[null,null,null,null,null,null,"～",null,null,{"$error":"#N/A"},null,"00:00:00"]
[null,null,null,null,null,null,"～",null,null,{"$error":"#N/A"},null,"00:00:00"]
[null,null,null,null,null,null,"～",null,null,{"$error":"#N/A"},null,"00:00:00"]
[null,null,null,null,null,null,"～",null,null,{"$error":"#N/A"},null,"00:00:00"]
[null,null,null,null,null,null,"～",null,null,{"$f":"VLOOKUP(I6084,$C:$D,2,0)","v":{"$error":"#N/A"}},null,{"$f":"H6084-F6084","v":"00:00:00"}]
[null,null,null,null,null,null,"～",null,null,{"$error":"#N/A"},null,"00:00:00"]
[null,null,null,null,null,null,"～",null,null,{"$error":"#N/A"},null,"00:00:00"]
[null,null,null,null,null,null,"～",null,null,{"$error":"#N/A"},null,"00:00:00"]
[null,null,null,null,null,null,"～",null,null,{"$error":"#N/A"},null,"00:00:00"]
[null,null,null,null,null,null,"～",null,null,{"$error":"#N/A"},null,"00:00:00"]
[null,null,null,null,null,null,"～",null,null,{"$error":"#N/A"},null,"00:00:00"]
[null,null,null,null,null,null,"～",null,null,{"$error":"#N/A"},null,"00:00:00"]
[null,null,null,null,null,null,"～",null,null,{"$error":"#N/A"},null,"00:00:00"]
[null,null,null,null,null,null,"～",null,null,{"$error":"#N/A"},null,"00:00:00"]
[null,null,null,null,null,null,"～",null,null,{"$error":"#N/A"},null,"00:00:00"]
[null,null,null,null,null,null,"～",null,null,{"$error":"#N/A"},null,"00:00:00"]
[null,null,null,null,null,null,null,null,null,{"$error":"#N/A"},null,"00:00:00"]
[null,null,null,null,null,null,"～",null,null,{"$error":"#N/A"},null,"00:00:00"]
[null,null,null,null,null,null,"～",null,null,{"$error":"#N/A"},null,"00:00:00"]
[null,null,null,null,null,null,"～",null,null,{"$error":"#N/A"},null,"00:00:00"]
[null,null,null,null,null,null,"～",null,null,{"$error":"#N/A"},null,"00:00:00"]
[null,null,null,null,null,null,"～",null,null,{"$error":"#N/A"},null,"00:00:00"]
[null,null,null,null,null,null,"～",null,null,{"$error":"#N/A"},null,"00:00:00"]
[null,null,null,null,null,null,"～",null,null,{"$error":"#N/A"},null,"00:00:00"]
[null,null,null,null,null,null,"～",null,null,{"$error":"#N/A"},null,"00:00:00"]
[null,null,null,null,null,null,"～",null,null,{"$error":"#N/A"},null,"00:00:00"]
[null,null,null,null,null,null,"～",null,null,{"$error":"#N/A"},null,"00:00:00"]
[null,null,null,null,null,null,"～",null,null,{"$error":"#N/A"},null,"00:00:00"]
[null,null,null,null,null,null,"～",null,null,{"$error":"#N/A"},null,"00:00:00"]
[null,null,null,null,null,null,"～",null,null,{"$error":"#N/A"},null,"00:00:00"]
[null,null,null,null,null,null,"～",null,null,{"$error":"#N/A"},null,"00:00:00"]
[null,null,null,null,null,null,"～",null,null,{"$error":"#N/A"},null,"00:00:00"]
[null,null,null,null,null,null,"～",null,null,{"$error":"#N/A"},null,"00:00:00"]
[null,null,null,null,null,null,"～",null,null,{"$error":"#N/A"},null,"00:00:00"]
[null,null,null,null,null,null,"～",null,null,{"$error":"#N/A"},null,"00:00:00"]
[null,null,null,null,null,null,"～",null,null,{"$error":"#N/A"},null,"00:00:00"]
[null,null,null,null,null,null,"～",null,null,{"$error":"#N/A"},null,"00:00:00"]
[null,null,null,null,null,null,"～",null,null,{"$error":"#N/A"},null,"00:00:00"]
[null,null,null,null,null,null,"～",null,null,{"$error":"#N/A"},null,"00:00:00"]
[null,null,null,null,null,null,"～",null,null,{"$f":"VLOOKUP(I6340,$C:$D,2,0)","v":{"$error":"#N/A"}},null,{"$f":"H6340-F6340","v":"00:00:00"}]
[null,null,null,null,null,null,"～",null,null,{"$error":"#N/A"},null,"00:00:00"]
[null,null,null,null,null,null,"～",null,null,{"$error":"#N/A"},null,"00:00:00"]
[null,null,null,null,null,null,"～",null,null,{"$error":"#N/A"},null,"00:00:00"]
[null,null,null,null,null,null,"～",null,null,{"$error":"#N/A"},null,"00:00:00"]
[null,null,null,null,null,null,"～",null,null,{"$error":"#N/A"},null,"00:00:00"]
[null,null,null,null,null,null,"～",null,null,{"$error":"#N/A"},null,"00:00:00"]
[null,null,null,null,null,null,"～",null,null,{"$error":"#N/A"},null,"00:00:00"]
[null,null,null,null,null,null,"～",null,null,{"$error":"#N/A"},null,"00:00:00"]
[null,null,null,null,null,null,"～",null,null,{"$error":"#N/A"},null,"00:00:00"]
[null,null,null,null,null,null,"～",null,null,{"$error":"#N/A"},null,"00:00:00"]
[null,null,null,null,null,null,"～",null,null,{"$error":"#N/A"},null,"00:00:00"]
[null,null,null,null,null,null,"～",null,null,{"$error":"#N/A"},null,"00:00:00"]
[null,null,null,null,null,null,"～",null,null,{"$error":"#N/A"},null,"00:00:00"]
[null,null,null,null,null,null,"～",null,null,{"$error":"#N/A"},null,"00:00:00"]
[null,null,null,null,null,null,"～",null,null,{"$error":"#N/A"},null,"00:00:00"]
[null,null,null,null,null,null,"～",null,null,{"$error":"#N/A"},null,"00:00:00"]
[null,null,null,null,null,null,"～",null,null,{"$error":"#N/A"},null,"00:00:00"]
[null,null,null,null,null,null,"～",null,null,{"$error":"#N/A"},null,"00:00:00"]
[null,null,null,null,null,null,"～",null,null,{"$error":"#N/A"},null,"00:00:00"]
[null,null,null,null,null,null,"～",null,null,{"$error":"#N/A"},null,"00:00:00"]
[null,null,null,null,null,null,"～",null,null,{"$error":"#N/A"},null,"00:00:00"]
[null,null,null,null,null,null,"～",null,null,{"$error":"#N/A"},null,"00:00:00"]
[null,null,null,null,null,null,"～",null,null,{"$error":"#N/A"},null,"00:00:00"]
[null,null,null,null,null,null,"～",null,null,{"$error":"#N/A"},null,"00:00:00"]
[null,null,null,null,null,null,"～",null,null,{"$error":"#N/A"},null,"00:00:00"]
[null,null,null,null,null,null,"～",null,null,{"$error":"#N/A"},null,"00:00:00"]
[null,null,null,null,null,null,"～",null,null,{"$error":"#N/A"},null,"00:00:00"]
[null,null,null,null,null,null,"～",null,null,{"$error":"#N/A"},null,"00:00:00"]
[null,null,null,null,null,null,"～",null,null,{"$error":"#N/A"},null,"00:00:00"]
[null,null,null,null,null,null,"～",null,null,{"$error":"#N/A"},null,"00:00:00"]
[null,null,null,null,null,null,"～",null,null,{"$error":"#N/A"},null,"00:00:00"]
[null,null,null,null,null,null,"～",null,null,{"$error":"#N/A"},null,"00:00:00"]
[null,null,null,null,null,null,"～",null,null,{"$error":"#N/A"},null,"00:00:00"]
[null,null,null,null,null,null,"～",null,null,{"$error":"#N/A"},null,"00:00:00"]
[null,null,null,null,null,null,"～",null,null,{"$error":"#N/A"},null,"00:00:00"]
[null,null,null,null,null,null,"～",null,null,{"$error":"#N/A"},null,"00:00:00"]
[null,null,null,null,null,null,"～",null,null,{"$error":"#N/A"},null,"00:00:00"]
[null,null,null,null,null,null,"～",null,null,{"$error":"#N/A"},null,"00:00:00"]
[null,null,null,null,null,null,"～",null,null,{"$error":"#N/A"},null,"00:00:00"]
[null,null,null,null,null,null,"～",null,null,{"$error":"#N/A"},null,"00:00:00"]
[null,null,null,null,null,null,"～",null,null,{"$error":"#N/A"},null,"00:00:00"]
[null,null,null,null,null,null,"～",null,null,{"$error":"#N/A"},null,"00:00:00"]
[null,null,null,null,null,null,"～",null,null,{"$error":"#N/A"},null,"00:00:00"]
[null,null,null,null,null,null,"～",null,null,{"$error":"#N/A"},null,"00:00:00"]
[null,null,null,null,null,null,"～",null,null,{"$error":"#N/A"},null,"00:00:00"]
[null,null,null,null,null,null,"～",null,null,{"$error":"#N/A"},null,"00:00:00"]
[null,null,null,null,null,null,"～",null,null,{"$error":"#N/A"},null,"00:00:00"]
[null,null,null,null,null,null,"～",null,null,{"$error":"#N/A"},null,"00:00:00"]
[null,null,null,null,null,null,"～",null,null,{"$error":"#N/A"},null,"00:00:00"]
[null,null,null,null,null,null,"～",null,null,{"$error":"#N/A"},null,"00:00:00"]
[null,null,null,null,null,null,"～",null,null,{"$error":"#N/A"},null,"00:00:00"]
[null,null,null,null,null,null,"～",null,null,{"$f":"VLOOKUP(I6724,$C:$D,2,0)","v":{"$error":"#N/A"}},null,{"$f":"H6724-F6724","v":"00:00:00"}]
[null,null,null,null,null,null,"～",null,null,{"$error":"#N/A"},null,"00:00:00"]
[null,null,null,null,null,null,"～",null,null,{"$error":"#N/A"},null,"00:00:00"]
[null,null,null,null,null,null,"～",null,null,{"$error":"#N/A"},null,"00:00:00"]
[null,null,null,null,null,null,"～",null,null,{"$error":"#N/A"},null,"00:00:00"]
[null,null,null,null,null,null,"～",null,null,{"$error":"#N/A"},null,"00:00:00"]
[null,null,null,null,null,null,"～",null,null,{"$error":"#N/A"},null,"00:00:00"]
[null,null,null,null,null,null,"～",null,null,{"$error":"#N/A"},null,"00:00:00"]
[null,null,null,null,null,null,"～",null,null,{"$error":"#N/A"},null,"00:00:00"]
[null,null,null,null,null,null,"～",null,null,{"$error":"#N/A"},null,"00:00:00"]
[null,null,null,null,null,null,"～",null,null,{"$error":"#N/A"},null,"00:00:00"]
[null,null,null,null,null,null,"～",null,null,{"$error":"#N/A"},null,"00:00:00"]
[null,null,null,null,null,null,"～",null,null,{"$error":"#N/A"},null,"00:00:00"]
[null,null,null,null,null,null,"～",null,null,{"$error":"#N/A"},null,"00:00:00"]
[null,null,null,null,null,null,"～",null,null,{"$error":"#N/A"},null,"00:00:00"]
[null,null,null,null,null,null,"～",null,null,{"$error":"#N/A"},null,"00:00:00"]
[null,null,null,null,null,null,"～",null,null,{"$error":"#N/A"},null,"00:00:00"]
[null,null,null,null,null,null,"～",null,null,{"$error":"#N/A"},null,"00:00:00"]
[null,null,null,null,null,null,"～",null,null,{"$error":"#N/A"},null,"00:00:00"]
[null,null,null,null,null,null,"～",null,null,{"$error":"#N/A"},null,"00:00:00"]
[null,null,null,null,null,null,"～",null,null,{"$error":"#N/A"},null,"00:00:00"]
[null,null,null,null,null,null,"～",null,null,{"$error":"#N/A"},null,"00:00:00"]
[null,null,null,null,null,null,"～",null,null,{"$error":"#N/A"},null,"00:00:00"]
[null,null,null,null,null,null,"～",null,null,{"$error":"#N/A"},null,"00:00:00"]
[null,null,null,null,null,null,"～",null,null,{"$error":"#N/A"},null,"00:00:00"]
[null,null,null,null,null,null,"～",null,null,{"$f":"VLOOKUP(I6916,$C:$D,2,0)","v":{"$error":"#N/A"}},null,{"$f":"H6916-F6916","v":"00:00:00"}]
[null,null,null,null,null,null,"～",null,null,{"$error":"#N/A"},null,"00:00:00"]
[null,null,null,null,null,null,"～",null,null,{"$error":"#N/A"},null,"00:00:00"]
[null,null,null,null,null,null,"～",null,null,{"$error":"#N/A"},null,"00:00:00"]
[null,null,null,null,null,null,"～",null,null,{"$error":"#N/A"},null,"00:00:00"]
[null,null,null,null,null,null,"～",null,null,{"$error":"#N/A"},null,"00:00:00"]
[null,null,null,null,null,null,"～",null,null,{"$error":"#N/A"},null,"00:00:00"]
[null,null,null,null,null,null,"～",null,null,{"$error":"#N/A"},null,"00:00:00"]
[null,null,null,null,null,null,"～",null,null,{"$error":"#N/A"},null,"00:00:00"]
[null,null,null,null,null,null,"～",null,null,{"$error":"#N/A"},null,"00:00:00"]
[null,null,null,null,null,null,"～",null,null,{"$error":"#N/A"},null,"00:00:00"]
[null,null,null,null,null,null,"～",null,null,{"$error":"#N/A"},null,"00:00:00"]
[null,null,null,null,null,null,"～",null,null,{"$error":"#N/A"},null,"00:00:00"]
[null,null,null,null,null,null,"～",null,null,{"$error":"#N/A"},null,"00:00:00"]
[null,null,null,null,null,null,"～",null,null,{"$error":"#N/A"},null,"00:00:00"]
[null,null,null,null,null,null,"～",null,null,{"$error":"#N/A"},null,"00:00:00"]
[null,null,null,null,null,null,"～",null,null,{"$error":"#N/A"},null,"00:00:00"]
[null,null,null,null,null,null,"～",null,null,{"$error":"#N/A"},null,"00:00:00"]
[null,null,null,null,null,null,"～",null,null,{"$error":"#N/A"},null,"00:00:00"]
[null,null,null,null,null,null,"～",null,null,{"$error":"#N/A"},null,"00:00:00"]
[null,null,null,null,null,null,"～",null,null,{"$error":"#N/A"},null,"00:00:00"]
[null,null,null,null,null,null,"～",null,null,{"$error":"#N/A"},null,"00:00:00"]
[null,null,null,null,null,null,"～",null,null,{"$error":"#N/A"},null,"00:00:00"]
[null,null,null,null,null,null,"～",null,null,{"$error":"#N/A"},null,"00:00:00"]
[null,null,null,null,null,null,"～",null,null,{"$error":"#N/A"},null,"00:00:00"]
[null,null,null,null,null,null,"～",null,null,{"$error":"#N/A"},null,"00:00:00"]
[null,null,null,null,null,null,"～",null,null,{"$error":"#N/A"},null,"00:00:00"]
[null,null,null,null,null,null,"～",null,null,{"$error":"#N/A"},null,"00:00:00"]
[null,null,null,null,null,null,"～",null,null,{"$error":"#N/A"},null,"00:00:00"]
[null,null,null,null,null,null,"～",null,null,{"$error":"#N/A"},null,"00:00:00"]
[null,null,null,null,null,null,"～",null,null,{"$error":"#N/A"},null,"00:00:00"]
[null,null,null,null,null,null,"～",null,null,{"$error":"#N/A"},null,"00:00:00"]
[null,null,null,null,null,null,"～",null,null,{"$error":"#N/A"},null,"00:00:00"]
[null,null,null,null,null,null,"～",null,null,{"$error":"#N/A"},null,"00:00:00"]
[null,null,null,null,null,null,"～",null,null,{"$error":"#N/A"},null,"00:00:00"]
[null,null,null,null,null,null,"～",null,null,{"$error":"#N/A"},null,"00:00:00"]
[null,null,null,null,null,null,"～",null,null,{"$error":"#N/A"},null,"00:00:00"]
[null,null,null,null,null,null,"～",null,null,{"$error":"#N/A"},null,"00:00:00"]
[null,null,null,null,null,null,"～",null,null,{"$error":"#N/A"},null,"00:00:00"]
[null,null,null,null,null,null,"～",null,null,{"$error":"#N/A"},null,"00:00:00"]
[null,null,null,null,null,null,"～",null,null,{"$error":"#N/A"},null,"00:00:00"]
[null,null,null,null,null,null,"～",null,null,{"$error":"#N/A"},null,"00:00:00"]
[null,null,null,null,null,null,"～",null,null,{"$error":"#N/A"},null,"00:00:00"]
[null,null,null,null,null,null,"～",null,null,{"$error":"#N/A"},null,"00:00:00"]
[null,null,null,null,null,null,"～",null,null,{"$error":"#N/A"},null,"00:00:00"]
[null,null,null,null,null,null,"～",null,null,{"$error":"#N/A"},null,"00:00:00"]
[null,null,null,null,null,null,"～",null,null,{"$error":"#N/A"},null,"00:00:00"]
[null,null,null,null,null,null,"～",null,null,{"$error":"#N/A"},null,"00:00:00"]
[null,null,null,null,null,null,"～",null,null,{"$error":"#N/A"},null,"00:00:00"]
[null,null,null,null,null,null,"～",null,null,{"$error":"#N/A"},null,"00:00:00"]
[null,null,null,null,null,null,"～",null,null,{"$error":"#N/A"},null,"00:00:00"]
[null,null,null,null,null,null,"～",null,null,{"$error":"#N/A"},null,"00:00:00"]
[null,null,null,null,null,null,"～",null,null,{"$error":"#N/A"},null,"00:00:00"]
[null,null,null,null,null,null,"～",null,null,{"$error":"#N/A"},null,"00:00:00"]
[null,null,null,null,null,null,"～",null,null,{"$error":"#N/A"},null,"00:00:00"]
[null,null,null,null,null,null,"～",null,null,{"$error":"#N/A"},null,"00:00:00"]
[null,null,null,null,null,null,"～",null,null,{"$error":"#N/A"},null,"00:00:00"]
[null,null,null,null,null,null,"～",null,null,{"$error":"#N/A"},null,"00:00:00"]
[null,null,null,null,null,null,"～",null,null,{"$error":"#N/A"},null,"00:00:00"]
[null,null,null,null,null,null,"～",null,null,{"$error":"#N/A"},null,"00:00:00"]
[null,null,null,null,null,null,"～",null,null,{"$error":"#N/A"},null,"00:00:00"]
[null,null,null,null,null,null,"～",null,null,{"$error":"#N/A"},null,"00:00:00"]
[null,null,null,null,null,null,"～",null,null,{"$error":"#N/A"},null,"00:00:00"]
[null,null,null,null,null,null,"～",null,null,{"$error":"#N/A"},null,"00:00:00"]
[null,null,null,null,null,null,"～",null,null,{"$error":"#N/A"},null,"00:00:00"]
[null,null,null,null,null,null,"～",null,null,{"$error":"#N/A"},null,"00:00:00"]
[null,null,null,null,null,null,"～",null,null,{"$error":"#N/A"},null,"00:00:00"]
[null,null,null,null,null,null,"～",null,null,{"$error":"#N/A"},null,"00:00:00"]
[null,null,null,null,null,null,"～",null,null,{"$error":"#N/A"},null,"00:00:00"]
[null,null,null,null,null,null,"～",null,null,{"$error":"#N/A"},null,"00:00:00"]
[null,null,null,null,null,null,"～",null,null,{"$error":"#N/A"},null,"00:00:00"]
[null,null,null,null,null,null,"～",null,null,{"$error":"#N/A"},null,"00:00:00"]
[null,null,null,null,null,null,"～",null,null,{"$error":"#N/A"},null,"00:00:00"]
[null,null,null,null,null,null,"～",null,null,{"$error":"#N/A"},null,"00:00:00"]
[null,null,null,null,null,null,"～",null,null,{"$error":"#N/A"},null,"00:00:00"]
[null,null,null,null,null,null,"～",null,null,{"$error":"#N/A"},null,"00:00:00"]
[null,null,null,null,null,null,"～",null,null,{"$error":"#N/A"},null,"00:00:00"]
[null,null,null,null,null,null,"～",null,null,{"$error":"#N/A"},null,"00:00:00"]
[null,null,null,null,null,null,"～",null,null,{"$error":"#N/A"},null,"00:00:00"]
[null,null,null,null,null,null,"～",null,null,{"$error":"#N/A"},null,"00:00:00"]
[null,null,null,null,null,null,"～",null,null,{"$error":"#N/A"},null,"00:00:00"]
[null,null,null,null,null,null,"～",null,null,{"$error":"#N/A"},null,"00:00:00"]
[null,null,null,null,null,null,"～",null,null,{"$error":"#N/A"},null,"00:00:00"]
[null,null,null,null,null,null,"～",null,null,{"$error":"#N/A"},null,"00:00:00"]
[null,null,null,null,null,null,"～",null,null,{"$error":"#N/A"},null,"00:00:00"]
[null,null,null,null,null,null,"～",null,null,{"$error":"#N/A"},null,"00:00:00"]
[null,null,null,null,null,null,"～",null,null,{"$error":"#N/A"},null,"00:00:00"]
[null,null,null,null,null,null,"～",null,null,{"$error":"#N/A"},null,"00:00:00"]
[null,null,null,null,null,null,"～",null,null,{"$error":"#N/A"},null,"00:00:00"]
[null,null,null,null,null,null,"～",null,null,{"$error":"#N/A"},null,"00:00:00"]
[null,null,null,null,null,null,"～",null,null,{"$error":"#N/A"},null,"00:00:00"]
[null,null,null,null,null,null,"～",null,null,{"$error":"#N/A"},null,"00:00:00"]
[null,null,null,null,null,null,"～",null,null,{"$error":"#N/A"},null,"00:00:00"]
[null,null,null,null,null,null,"～",null,null,{"$error":"#N/A"},null,"00:00:00"]
[null,null,null,null,null,null,"～",null,null,{"$error":"#N/A"},null,"00:00:00"]
[null,null,null,null,null,null,"～",null,null,{"$error":"#N/A"},null,"00:00:00"]
[null,null,null,null,null,null,"～",null,null,{"$error":"#N/A"},null,"00:00:00"]
[null,null,null,null,null,null,"～",null,null,{"$error":"#N/A"},null,"00:00:00"]
[null,null,null,null,null,null,"～",null,null,{"$error":"#N/A"},null,"00:00:00"]
[null,null,null,null,null,null,"～",null,null,{"$error":"#N/A"},null,"00:00:00"]
[null,null,null,null,null,null,"～",null,null,{"$error":"#N/A"},null,"00:00:00"]
[null,null,null,null,null,null,"～",null,null,{"$error":"#N/A"},null,"00:00:00"]
[null,null,null,null,null,null,"～",null,null,{"$error":"#N/A"},null,"00:00:00"]
[null,null,null,null,null,null,"～",null,null,{"$error":"#N/A"},null,"00:00:00"]
[null,null,null,null,null,null,"～",null,null,{"$error":"#N/A"},null,"00:00:00"]
[null,null,null,null,null,null,"～",null,null,{"$error":"#N/A"},null,"00:00:00"]
[null,null,null,null,null,null,"～",null,null,{"$error":"#N/A"},null,"00:00:00"]
[null,null,null,null,null,null,"～",null,null,{"$error":"#N/A"},null,"00:00:00"]
[null,null,null,null,null,null,"～",null,null,{"$error":"#N/A"},null,"00:00:00"]
[null,null,null,null,null,null,"～",null,null,{"$error":"#N/A"},null,"00:00:00"]
[null,null,null,null,null,null,"～",null,null,{"$error":"#N/A"},null,"00:00:00"]
[null,null,null,null,null,null,"～",null,null,{"$error":"#N/A"},null,"00:00:00"]
[null,null,null,null,null,null,"～",null,null,{"$error":"#N/A"},null,"00:00:00"]
[null,null,null,null,null,null,"～",null,null,{"$error":"#N/A"},null,"00:00:00"]
[null,null,null,null,null,null,"～",null,null,{"$error":"#N/A"},null,"00:00:00"]
[null,null,null,null,null,null,"～",null,null,{"$error":"#N/A"},null,"00:00:00"]
[null,null,null,null,null,null,"～",null,null,{"$error":"#N/A"},null,"00:00:00"]
[null,null,null,null,null,null,"～",null,null,{"$error":"#N/A"},null,"00:00:00"]
[null,null,null,null,null,null,"～",null,null,{"$error":"#N/A"},null,"00:00:00"]
[null,null,null,null,null,null,"～",null,null,{"$error":"#N/A"},null,"00:00:00"]
[null,null,null,null,null,null,"～",null,null,{"$error":"#N/A"},null,"00:00:00"]
[null,null,null,null,null,null,"～",null,null,{"$error":"#N/A"},null,"00:00:00"]
[null,null,null,null,null,null,"～",null,null,{"$error":"#N/A"},null,"00:00:00"]
[null,null,null,null,null,null,"～",null,null,{"$error":"#N/A"},null,"00:00:00"]
[null,null,null,null,null,null,"～",null,null,{"$error":"#N/A"},null,"00:00:00"]
[null,null,null,null,null,null,"～",null,null,{"$error":"#N/A"},null,"00:00:00"]
[null,null,null,null,null,null,"～",null,null,{"$error":"#N/A"},null,"00:00:00"]
[null,null,null,null,null,null,"～",null,null,{"$error":"#N/A"},null,"00:00:00"]
[null,null,null,null,null,null,"～",null,null,{"$error":"#N/A"},null,"00:00:00"]
[null,null,null,null,null,null,"～",null,null,{"$error":"#N/A"},null,"00:00:00"]
[null,null,null,null,null,null,"～",null,null,{"$error":"#N/A"},null,"00:00:00"]
[null,null,null,null,null,null,"～",null,null,{"$error":"#N/A"},null,"00:00:00"]
[null,null,null,null,null,null,"～",null,null,{"$error":"#N/A"},null,"00:00:00"]
[null,null,null,null,null,null,"～",null,null,{"$error":"#N/A"},null,"00:00:00"]
[null,null,null,null,null,null,"～",null,null,{"$error":"#N/A"},null,"00:00:00"]
[null,null,null,null,null,null,"～",null,null,{"$error":"#N/A"},null,"00:00:00"]
[null,null,null,null,null,null,"～",null,null,{"$error":"#N/A"},null,"00:00:00"]
[null,null,null,null,null,null,"～",null,null,{"$error":"#N/A"},null,"00:00:00"]
[null,null,null,null,null,null,"～",null,null,{"$error":"#N/A"},null,"00:00:00"]
[null,null,null,null,null,null,"～",null,null,{"$error":"#N/A"},null,"00:00:00"]
[null,null,null,null,null,null,"～",null,null,{"$error":"#N/A"},null,"00:00:00"]
[null,null,null,null,null,null,"～",null,null,{"$error":"#N/A"},null,"00:00:00"]
[null,null,null,null,null,null,"～",null,null,{"$error":"#N/A"},null,"00:00:00"]
[null,null,null,null,null,null,"～",null,null,{"$error":"#N/A"},null,"00:00:00"]
[null,null,null,null,null,null,"～",null,null,{"$error":"#N/A"},null,"00:00:00"]
[null,null,null,null,null,null,"～",null,null,{"$error":"#N/A"},null,"00:00:00"]
[null,null,null,null,null,null,"～",null,null,{"$error":"#N/A"},null,"00:00:00"]
[null,null,null,null,null,null,"～",null,null,{"$error":"#N/A"},null,"00:00:00"]
[null,null,null,null,null,null,"～",null,null,{"$error":"#N/A"},null,"00:00:00"]
[null,null,null,null,null,null,"～",null,null,{"$error":"#N/A"},null,"00:00:00"]
[null,null,null,null,null,null,"～",null,null,{"$error":"#N/A"},null,"00:00:00"]
[null,null,null,null,null,null,"～",null,null,{"$error":"#N/A"},null,"00:00:00"]
[null,null,null,null,null,null,"～",null,null,{"$error":"#N/A"},null,"00:00:00"]
[null,null,null,null,null,null,"～",null,null,{"$error":"#N/A"},null,"00:00:00"]
[null,null,null,null,null,null,"～",null,null,{"$error":"#N/A"},null,"00:00:00"]
[null,null,null,null,null,null,"～",null,null,{"$error":"#N/A"},null,"00:00:00"]
[null,null,null,null,null,null,"～",null,null,{"$f":"VLOOKUP(I8068,$C:$D,2,0)","v":{"$error":"#N/A"}},null,{"$f":"H8068-F8068","v":"00:00:00"}]
[null,null,null,null,null,null,"～",null,null,{"$error":"#N/A"},null,"00:00:00"]
[null,null,null,null,null,null,"～",null,null,{"$error":"#N/A"},null,"00:00:00"]
[null,null,null,null,null,null,"～",null,null,{"$error":"#N/A"},null,"00:00:00"]
[null,null,null,null,null,null,"～",null,null,{"$error":"#N/A"},null,"00:00:00"]
[null,null,null,null,null,null,"～",null,null,{"$error":"#N/A"},null,"00:00:00"]
[null,null,null,null,null,null,"～",null,null,{"$error":"#N/A"},null,"00:00:00"]
[null,null,null,null,null,null,"～",null,null,{"$error":"#N/A"},null,"00:00:00"]
[null,null,null,null,null,null,"～",null,null,{"$error":"#N/A"},null,"00:00:00"]
[null,null,null,null,null,null,"～",null,null,{"$error":"#N/A"},null,"00:00:00"]
[null,null,null,null,null,null,"～",null,null,{"$error":"#N/A"},null,"00:00:00"]
[null,null,null,null,null,null,"～",null,null,{"$error":"#N/A"},null,"00:00:00"]
[null,null,null,null,null,null,"～",null,null,{"$error":"#N/A"},null,"00:00:00"]
[null,null,null,null,null,null,"～",null,null,{"$error":"#N/A"},null,"00:00:00"]
[null,null,null,null,null,null,"～",null,null,{"$error":"#N/A"},null,"00:00:00"]
[null,null,null,null,null,null,"～",null,null,{"$error":"#N/A"},null,"00:00:00"]
[null,null,null,null,null,null,"～",null,null,{"$error":"#N/A"},null,"00:00:00"]
[null,null,null,null,null,null,"～",null,null,{"$error":"#N/A"},null,"00:00:00"]
[null,null,null,null,null,null,"～",null,null,{"$error":"#N/A"},null,"00:00:00"]
[null,null,null,null,null,null,"～",null,null,{"$error":"#N/A"},null,"00:00:00"]
[null,null,null,null,null,null,"～",null,null,{"$error":"#N/A"},null,"00:00:00"]
[null,null,null,null,null,null,"～",null,null,{"$error":"#N/A"},null,"00:00:00"]
[null,null,null,null,null,null,"～",null,null,{"$error":"#N/A"},null,"00:00:00"]
[null,null,null,null,null,null,"～",null,null,{"$error":"#N/A"},null,"00:00:00"]
[null,null,null,null,null,null,"～",null,null,{"$error":"#N/A"},null,"00:00:00"]
[null,null,null,null,null,null,"～",null,null,{"$error":"#N/A"},null,"00:00:00"]
[null,null,null,null,null,null,"～",null,null,{"$error":"#N/A"},null,"00:00:00"]
[null,null,null,null,null,null,"～",null,null,{"$error":"#N/A"},null,"00:00:00"]
[null,null,null,null,null,null,"～",null,null,{"$error":"#N/A"},null,"00:00:00"]
[null,null,null,null,null,null,"～",null,null,{"$error":"#N/A"},null,"00:00:00"]
[null,null,null,null,null,null,"～",null,null,{"$error":"#N/A"},null,"00:00:00"]
[null,null,null,null,null,null,"～",null,null,{"$error":"#N/A"},null,"00:00:00"]
[null,null,null,null,null,null,"～",null,null,{"$error":"#N/A"},null,"00:00:00"]
[null,null,null,null,null,null,"～",null,null,{"$error":"#N/A"},null,"00:00:00"]
[null,null,null,null,null,null,"～",null,null,{"$error":"#N/A"},null,"00:00:00"]
[null,null,null,null,null,null,"～",null,null,{"$error":"#N/A"},null,"00:00:00"]
[null,null,null,null,null,null,"～",null,null,{"$error":"#N/A"},null,"00:00:00"]
[null,null,null,null,null,null,"～",null,null,{"$error":"#N/A"},null,"00:00:00"]
[null,null,null,null,null,null,"～",null,null,{"$error":"#N/A"},null,"00:00:00"]
[null,null,null,null,null,null,"～",null,null,{"$error":"#N/A"},null,"00:00:00"]
[null,null,null,null,null,null,"～",null,null,{"$error":"#N/A"},null,"00:00:00"]
[null,null,null,null,null,null,"～",null,null,{"$error":"#N/A"},null,"00:00:00"]
[null,null,null,null,null,null,"～",null,null,{"$error":"#N/A"},null,"00:00:00"]
[null,null,null,null,null,null,"～",null,null,{"$error":"#N/A"},null,"00:00:00"]
[null,null,null,null,null,null,"～",null,null,{"$error":"#N/A"},null,"00:00:00"]
[null,null,null,null,null,null,"～",null,null,{"$error":"#N/A"},null,"00:00:00"]
[null,null,null,null,null,null,"～",null,null,{"$error":"#N/A"},null,"00:00:00"]
[null,null,null,null,null,null,"～",null,null,{"$error":"#N/A"},null,"00:00:00"]
[null,null,null,null,null,null,"～",null,null,{"$error":"#N/A"},null,"00:00:00"]
[null,null,null,null,null,null,"～",null,null,{"$error":"#N/A"},null,"00:00:00"]
[null,null,null,null,null,null,"～",null,null,{"$error":"#N/A"},null,"00:00:00"]
[null,null,null,null,null,null,"～",null,null,{"$error":"#N/A"},null,"00:00:00"]
[null,null,null,null,null,null,"～",null,null,{"$error":"#N/A"},null,"00:00:00"]
[null,null,null,null,null,null,"～",null,null,{"$error":"#N/A"},null,"00:00:00"]
[null,null,null,null,null,null,"～",null,null,{"$error":"#N/A"},null,"00:00:00"]
[null,null,null,null,null,null,"～",null,null,{"$error":"#N/A"},null,"00:00:00"]
[null,null,null,null,null,null,"～",null,null,{"$error":"#N/A"},null,"00:00:00"]
[null,null,null,null,null,null,"～",null,null,{"$error":"#N/A"},null,"00:00:00"]
[null,null,null,null,null,null,"～",null,null,{"$error":"#N/A"},null,"00:00:00"]
[null,null,null,null,null,null,"～",null,null,{"$error":"#N/A"},null,"00:00:00"]
[null,null,null,null,null,null,"～",null,null,{"$error":"#N/A"},null,"00:00:00"]
[null,null,null,null,null,null,"～",null,null,{"$error":"#N/A"},null,"00:00:00"]
[null,null,null,null,null,null,"～",null,null,{"$error":"#N/A"},null,"00:00:00"]
[null,null,null,null,null,null,"～",null,null,{"$error":"#N/A"},null,"00:00:00"]
[null,null,null,null,null,null,"～",null,null,{"$error":"#N/A"},null,"00:00:00"]
[null,null,null,null,null,null,"～",null,null,{"$error":"#N/A"},null,"00:00:00"]
[null,null,null,null,null,null,"～",null,null,{"$error":"#N/A"},null,"00:00:00"]
[null,null,null,null,null,null,"～",null,null,{"$error":"#N/A"},null,"00:00:00"]
[null,null,null,null,null,null,"～",null,null,{"$error":"#N/A"},null,"00:00:00"]
[null,null,null,null,null,null,"～",null,null,{"$error":"#N/A"},null,"00:00:00"]
[null,null,null,null,null,null,"～",null,null,{"$error":"#N/A"},null,"00:00:00"]
[null,null,null,null,null,null,"～",null,null,{"$error":"#N/A"},null,"00:00:00"]
[null,null,null,null,null,null,"～",null,null,{"$error":"#N/A"},null,"00:00:00"]
[null,null,null,null,null,null,"～",null,null,{"$error":"#N/A"},null,"00:00:00"]
[null,null,null,null,null,null,"～",null,null,{"$error":"#N/A"},null,"00:00:00"]
[null,null,null,null,null,null,"～",null,null,{"$error":"#N/A"},null,"00:00:00"]
[null,null,null,null,null,null,"～",null,null,{"$error":"#N/A"},null,"00:00:00"]
[null,null,null,null,null,null,"～",null,null,{"$error":"#N/A"},null,"00:00:00"]
[null,null,null,null,null,null,"～",null,null,{"$error":"#N/A"},null,"00:00:00"]
[null,null,null,null,null,null,"～",null,null,{"$error":"#N/A"},null,"00:00:00"]
[null,null,null,null,null,null,"～",null,null,{"$error":"#N/A"},null,"00:00:00"]
[null,null,null,null,null,null,"～",null,null,{"$error":"#N/A"},null,"00:00:00"]
[null,null,null,null,null,null,"～",null,null,{"$error":"#N/A"},null,"00:00:00"]
[null,null,null,null,null,null,"～",null,null,{"$error":"#N/A"},null,"00:00:00"]
[null,null,null,null,null,null,"～",null,null,{"$error":"#N/A"},null,"00:00:00"]
[null,null,null,null,null,null,"～",null,null,{"$error":"#N/A"},null,"00:00:00"]
[null,null,null,null,null,null,"～",null,null,{"$error":"#N/A"},null,"00:00:00"]
[null,null,null,null,null,null,"～",null,null,{"$error":"#N/A"},null,"00:00:00"]
[null,null,null,null,null,null,"～",null,null,{"$error":"#N/A"},null,"00:00:00"]
[null,null,null,null,null,null,"～",null,null,{"$error":"#N/A"},null,"00:00:00"]
[null,null,null,null,null,null,"～",null,null,{"$error":"#N/A"},null,"00:00:00"]
[null,null,null,null,null,null,"～",null,null,{"$error":"#N/A"},null,"00:00:00"]
[null,null,null,null,null,null,"～",null,null,{"$error":"#N/A"},null,"00:00:00"]
[null,null,null,null,null,null,"～",null,null,{"$error":"#N/A"},null,"00:00:00"]
[null,null,null,null,null,null,"～",null,null,{"$error":"#N/A"},null,"00:00:00"]
[null,null,null,null,null,null,"～",null,null,{"$f":"VLOOKUP(I8772,$C:$D,2,0)","v":{"$error":"#N/A"}},null,{"$f":"H8772-F8772","v":"00:00:00"}]
[null,null,null,null,null,null,"～",null,null,{"$error":"#N/A"},null,"00:00:00"]
[null,null,null,null,null,null,"～",null,null,{"$error":"#N/A"},null,"00:00:00"]
[null,null,null,null,null,null,"～",null,null,{"$error":"#N/A"},null,"00:00:00"]
[null,null,null,null,null,null,"～",null,null,{"$error":"#N/A"},null,"00:00:00"]
[null,null,null,null,null,null,"～",null,null,{"$error":"#N/A"},null,"00:00:00"]
[null,null,null,null,null,null,"～",null,null,{"$error":"#N/A"},null,"00:00:00"]
[null,null,null,null,null,null,"～",null,null,{"$error":"#N/A"},null,"00:00:00"]
[null,null,null,null,null,null,"～",null,null,{"$error":"#N/A"},null,"00:00:00"]
[null,null,null,null,null,null,"～",null,null,{"$error":"#N/A"},null,"00:00:00"]
[null,null,null,null,null,null,"～",null,null,{"$error":"#N/A"},null,"00:00:00"]
[null,null,null,null,null,null,"～",null,null,{"$error":"#N/A"},null,"00:00:00"]
[null,null,null,null,null,null,"～",null,null,{"$error":"#N/A"},null,"00:00:00"]
[null,null,null,null,null,null,"～",null,null,{"$error":"#N/A"},null,"00:00:00"]
[null,null,null,null,null,null,"～",null,null,{"$error":"#N/A"},null,"00:00:00"]
[null,null,null,null,null,null,"～",null,null,{"$error":"#N/A"},null,"00:00:00"]
[null,null,null,null,null,null,"～",null,null,{"$error":"#N/A"},null,"00:00:00"]
[null,null,null,null,null,null,"～",null,null,{"$error":"#N/A"},null,"00:00:00"]
[null,null,null,null,null,null,"～",null,null,{"$error":"#N/A"},null,"00:00:00"]
[null,null,null,null,null,null,"～",null,null,{"$error":"#N/A"},null,"00:00:00"]
[null,null,null,null,null,null,"～",null,null,{"$error":"#N/A"},null,"00:00:00"]
[null,null,null,null,null,null,"～",null,null,{"$error":"#N/A"},null,"00:00:00"]
[null,null,null,null,null,null,"～",null,null,{"$error":"#N/A"},null,"00:00:00"]
[null,null,null,null,null,null,"～",null,null,{"$error":"#N/A"},null,"00:00:00"]
[null,null,null,null,null,null,"～",null,null,{"$error":"#N/A"},null,"00:00:00"]
[null,null,null,null,null,null,"～",null,null,{"$error":"#N/A"},null,"00:00:00"]
[null,null,null,null,null,null,"～",null,null,{"$error":"#N/A"},null,"00:00:00"]
[null,null,null,null,null,null,"～",null,null,{"$error":"#N/A"},null,"00:00:00"]
[null,null,null,null,null,null,"～",null,null,{"$error":"#N/A"},null,"00:00:00"]
[null,null,null,null,null,null,"～",null,null,{"$error":"#N/A"},null,"00:00:00"]
[null,null,null,null,null,null,"～",null,null,{"$error":"#N/A"},null,"00:00:00"]
[null,null,null,null,null,null,"～",null,null,{"$error":"#N/A"},null,"00:00:00"]
[null,null,null,null,null,null,"～",null,null,{"$error":"#N/A"},null,"00:00:00"]
[null,null,null,null,null,null,"～",null,null,{"$error":"#N/A"},null,"00:00:00"]
[null,null,null,null,null,null,"～",null,null,{"$f":"VLOOKUP(I9028,$C:$D,2,0)","v":{"$error":"#N/A"}},null,{"$f":"H9028-F9028","v":"00:00:00"}]
[null,null,null,null,null,null,"～",null,null,{"$error":"#N/A"},null,"00:00:00"]
[null,null,null,null,null,null,"～",null,null,{"$error":"#N/A"},null,"00:00:00"]
[null,null,null,null,null,null,"～",null,null,{"$error":"#N/A"},null,"00:00:00"]
[null,null,null,null,null,null,"～",null,null,{"$error":"#N/A"},null,"00:00:00"]
[null,null,null,null,null,null,"～",null,null,{"$error":"#N/A"},null,"00:00:00"]
[null,null,null,null,null,null,"～",null,null,{"$error":"#N/A"},null,"00:00:00"]
[null,null,null,null,null,null,"～",null,null,{"$error":"#N/A"},null,"00:00:00"]
[null,null,null,null,null,null,"～",null,null,{"$error":"#N/A"},null,"00:00:00"]
[null,null,null,null,null,null,"～",null,null,{"$error":"#N/A"},null,"00:00:00"]
[null,null,null,null,null,null,"～",null,null,{"$error":"#N/A"},null,"00:00:00"]
[null,null,null,null,null,null,"～",null,null,{"$error":"#N/A"},null,"00:00:00"]
[null,null,null,null,null,null,"～",null,null,{"$error":"#N/A"},null,"00:00:00"]
[null,null,null,null,null,null,"～",null,null,{"$error":"#N/A"},null,"00:00:00"]
[null,null,null,null,null,null,"～",null,null,{"$error":"#N/A"},null,"00:00:00"]
[null,null,null,null,null,null,"～",null,null,{"$error":"#N/A"},null,"00:00:00"]
[null,null,null,null,null,null,"～",null,null,{"$error":"#N/A"},null,"00:00:00"]
[null,null,null,null,null,null,"～",null,null,{"$error":"#N/A"},null,"00:00:00"]
[null,null,null,null,null,null,"～",null,null,{"$error":"#N/A"},null,"00:00:00"]
[null,null,null,null,null,null,"～",null,null,{"$error":"#N/A"},null,"00:00:00"]
[null,null,null,null,null,null,"～",null,null,{"$error":"#N/A"},null,"00:00:00"]
[null,null,null,null,null,null,"～",null,null,{"$error":"#N/A"},null,"00:00:00"]
[null,null,null,null,null,null,"～",null,null,{"$error":"#N/A"},null,"00:00:00"]
[null,null,null,null,null,null,"～",null,null,{"$error":"#N/A"},null,"00:00:00"]
[null,null,null,null,null,null,"～",null,null,{"$error":"#N/A"},null,"00:00:00"]
[null,null,null,null,null,null,"～",null,null,{"$error":"#N/A"},null,"00:00:00"]
[null,null,null,null,null,null,"～",null,null,{"$error":"#N/A"},null,"00:00:00"]
[null,null,null,null,null,null,"～",null,null,{"$error":"#N/A"},null,"00:00:00"]
[null,null,null,null,null,null,"～",null,null,{"$error":"#N/A"},null,"00:00:00"]
[null,null,null,null,null,null,"～",null,null,{"$error":"#N/A"},null,"00:00:00"]
[null,null,null,null,null,null,"～",null,null,{"$error":"#N/A"},null,"00:00:00"]
[null,null,null,null,null,null,"～",null,null,{"$error":"#N/A"},null,"00:00:00"]
[null,null,null,null,null,null,"～",null,null,{"$error":"#N/A"},null,"00:00:00"]
[null,null,null,null,null,null,"～",null,null,{"$error":"#N/A"},null,"00:00:00"]
[null,null,null,null,null,null,"～",null,null,{"$error":"#N/A"},null,"00:00:00"]
[null,null,null,null,null,null,"～",null,null,{"$error":"#N/A"},null,"00:00:00"]
[null,null,null,null,null,null,"～",null,null,{"$error":"#N/A"},null,"00:00:00"]
[null,null,null,null,null,null,"～",null,null,{"$error":"#N/A"},null,"00:00:00"]
[null,null,null,null,null,null,"～",null,null,{"$error":"#N/A"},null,"00:00:00"]
[null,null,null,null,null,null,"～",null,null,{"$error":"#N/A"},null,"00:00:00"]
[null,null,null,null,null,null,"～",null,null,{"$error":"#N/A"},null,"00:00:00"]
[null,null,null,null,null,null,"～",null,null,{"$error":"#N/A"},null,"00:00:00"]
[null,null,null,null,null,null,"～",null,null,{"$error":"#N/A"},null,"00:00:00"]
[null,null,null,null,null,null,"～",null,null,{"$f":"VLOOKUP(I9348,$C:$D,2,0)","v":{"$error":"#N/A"}},null,{"$f":"H9348-F9348","v":"00:00:00"}]
[null,null,null,null,null,null,"～",null,null,{"$error":"#N/A"},null,"00:00:00"]
[null,null,null,null,null,null,"～",null,null,{"$error":"#N/A"},null,"00:00:00"]
[null,null,null,null,null,null,"～",null,null,{"$error":"#N/A"},null,"00:00:00"]
[null,null,null,null,null,null,"～",null,null,{"$error":"#N/A"},null,"00:00:00"]
[null,null,null,null,null,null,"～",null,null,{"$error":"#N/A"},null,"00:00:00"]
[null,null,null,null,null,null,"～",null,null,{"$error":"#N/A"},null,"00:00:00"]
[null,null,null,null,null,null,"～",null,null,{"$error":"#N/A"},null,"00:00:00"]
[null,null,null,null,null,null,"～",null,null,{"$error":"#N/A"},null,"00:00:00"]
[null,null,null,null,null,null,"～",null,null,{"$error":"#N/A"},null,"00:00:00"]
[null,null,null,null,null,null,"～",null,null,{"$error":"#N/A"},null,"00:00:00"]
[null,null,null,null,null,null,"～",null,null,{"$error":"#N/A"},null,"00:00:00"]
[null,null,null,null,null,null,"～",null,null,{"$error":"#N/A"},null,"00:00:00"]
[null,null,null,null,null,null,"～",null,null,{"$error":"#N/A"},null,"00:00:00"]
[null,null,null,null,null,null,"～",null,null,{"$error":"#N/A"},null,"00:00:00"]
[null,null,null,null,null,null,"～",null,null,{"$error":"#N/A"},null,"00:00:00"]
[null,null,null,null,null,null,"～",null,null,{"$error":"#N/A"},null,"00:00:00"]
[null,null,null,null,null,null,"～",null,null,{"$error":"#N/A"},null,"00:00:00"]
[null,null,null,null,null,null,"～",null,null,{"$f":"VLOOKUP(I9476,$C:$D,2,0)","v":{"$error":"#N/A"}},null,{"$f":"H9476-F9476","v":"00:00:00"}]
[null,null,null,null,null,null,"～",null,null,{"$error":"#N/A"},null,"00:00:00"]
[null,null,null,null,null,null,"～",null,null,{"$error":"#N/A"},null,"00:00:00"]
[null,null,null,null,null,null,"～",null,null,{"$error":"#N/A"},null,"00:00:00"]
[null,null,null,null,null,null,"～",null,null,{"$error":"#N/A"},null,"00:00:00"]
[null,null,null,null,null,null,"～",null,null,{"$error":"#N/A"},null,"00:00:00"]
[null,null,null,null,null,null,"～",null,null,{"$error":"#N/A"},null,"00:00:00"]
[null,null,null,null,null,null,"～",null,null,{"$error":"#N/A"},null,"00:00:00"]
[null,null,null,null,null,null,"～",null,null,{"$error":"#N/A"},null,"00:00:00"]
[null,null,null,null,null,null,"～",null,null,{"$error":"#N/A"},null,"00:00:00"]
[null,null,null,null,null,null,"～",null,null,{"$error":"#N/A"},null,"00:00:00"]
[null,null,null,null,null,null,"～",null,null,{"$error":"#N/A"},null,"00:00:00"]
[null,null,null,null,null,null,"～",null,null,{"$error":"#N/A"},null,"00:00:00"]
[null,null,null,null,null,null,"～",null,null,{"$error":"#N/A"},null,"00:00:00"]
[null,null,null,null,null,null,"～",null,null,{"$error":"#N/A"},null,"00:00:00"]
[null,null,null,null,null,null,"～",null,null,{"$error":"#N/A"},null,"00:00:00"]
[null,null,null,null,null,null,"～",null,null,{"$error":"#N/A"},null,"00:00:00"]
[null,null,null,null,null,null,"～",null,null,{"$error":"#N/A"},null,"00:00:00"]
[null,null,null,null,null,null,"～",null,null,{"$error":"#N/A"},null,"00:00:00"]
[null,null,null,null,null,null,"～",null,null,{"$error":"#N/A"},null,"00:00:00"]
[null,null,null,null,null,null,"～",null,null,{"$error":"#N/A"},null,"00:00:00"]
[null,null,null,null,null,null,"～",null,null,{"$error":"#N/A"},null,"00:00:00"]
[null,null,null,null,null,null,"～",null,null,{"$error":"#N/A"},null,"00:00:00"]
[null,null,null,null,null,null,"～",null,null,{"$error":"#N/A"},null,"00:00:00"]
[null,null,null,null,null,null,"～",null,null,{"$error":"#N/A"},null,"00:00:00"]
[null,null,null,null,null,null,"～",null,null,{"$error":"#N/A"},null,"00:00:00"]
[null,null,null,null,null,null,"～",null,null,{"$f":"VLOOKUP(I9668,$C:$D,2,0)","v":{"$error":"#N/A"}},null,{"$f":"H9668-F9668","v":"00:00:00"}]
[null,null,null,null,null,null,"～",null,null,{"$error":"#N/A"},null,"00:00:00"]
[null,null,null,null,null,null,"～",null,null,{"$error":"#N/A"},null,"00:00:00"]
[null,null,null,null,null,null,"～",null,null,{"$error":"#N/A"},null,"00:00:00"]
[null,null,null,null,null,null,"～",null,null,{"$error":"#N/A"},null,"00:00:00"]
[null,null,null,null,null,null,"～",null,null,{"$error":"#N/A"},null,"00:00:00"]
[null,null,null,null,null,null,"～",null,null,{"$error":"#N/A"},null,"00:00:00"]
[null,null,null,null,null,null,"～",null,null,{"$error":"#N/A"},null,"00:00:00"]
[null,null,null,null,null,null,"～",null,null,{"$error":"#N/A"},null,"00:00:00"]
[null,null,null,null,null,null,"～",null,null,{"$error":"#N/A"},null,"00:00:00"]
[null,null,null,null,null,null,"～",null,null,{"$error":"#N/A"},null,"00:00:00"]
[null,null,null,null,null,null,"～",null,null,{"$error":"#N/A"},null,"00:00:00"]
[null,null,null,null,null,null,"～",null,null,{"$error":"#N/A"},null,"00:00:00"]
[null,null,null,null,null,null,"～",null,null,{"$error":"#N/A"},null,"00:00:00"]
[null,null,null,null,null,null,"～",null,null,{"$error":"#N/A"},null,"00:00:00"]
[null,null,null,null,null,null,"～",null,null,{"$error":"#N/A"},null,"00:00:00"]
[null,null,null,null,null,null,"～",null,null,{"$error":"#N/A"},null,"00:00:00"]
[null,null,null,null,null,null,"～",null,null,{"$error":"#N/A"},null,"00:00:00"]
[null,null,null,null,null,null,"～",null,null,{"$error":"#N/A"},null,"00:00:00"]
[null,null,null,null,null,null,"～",null,null,{"$error":"#N/A"},null,"00:00:00"]
[null,null,null,null,null,null,"～",null,null,{"$error":"#N/A"},null,"00:00:00"]
[null,null,null,null,null,null,"～",null,null,{"$error":"#N/A"},null,"00:00:00"]
[null,null,null,null,null,null,"～",null,null,{"$error":"#N/A"},null,"00:00:00"]
[null,null,null,null,null,null,"～",null,null,{"$error":"#N/A"},null,"00:00:00"]
[null,null,null,null,null,null,"～",null,null,{"$error":"#N/A"},null,"00:00:00"]
[null,null,null,null,null,null,"～",null,null,{"$error":"#N/A"},null,"00:00:00"]
[null,null,null,null,null,null,"～",null,null,{"$error":"#N/A"},null,"00:00:00"]
[null,null,null,null,null,null,"～",null,null,{"$error":"#N/A"},null,"00:00:00"]
[null,null,null,null,null,null,"～",null,null,{"$error":"#N/A"},null,"00:00:00"]
[null,null,null,null,null,null,"～",null,null,{"$error":"#N/A"},null,"00:00:00"]
[null,null,null,null,null,null,"～",null,null,{"$error":"#N/A"},null,"00:00:00"]
[null,null,null,null,null,null,"～",null,null,{"$error":"#N/A"},null,"00:00:00"]
[null,null,null,null,null,null,"～",null,null,{"$error":"#N/A"},null,"00:00:00"]
[null,null,null,null,null,null,"～",null,null,{"$error":"#N/A"},null,"00:00:00"]
[null,null,null,null,null,null,"～",null,null,{"$error":"#N/A"},null,"00:00:00"]
[null,null,null,null,null,null,"～",null,null,{"$error":"#N/A"},null,"00:00:00"]
[null,null,null,null,null,null,"～",null,null,{"$error":"#N/A"},null,"00:00:00"]
[null,null,null,null,null,null,"～",null,null,{"$error":"#N/A"},null,"00:00:00"]
[null,null,null,null,null,null,"～",null,null,{"$error":"#N/A"},null,"00:00:00"]
[null,null,null,null,null,null,"～",null,null,{"$error":"#N/A"},null,"00:00:00"]
[null,null,null,null,null,null,"～",null,null,{"$error":"#N/A"},null,"00:00:00"]
[null,null,null,null,null,null,"～",null,null,{"$error":"#N/A"},null,"00:00:00"]
[null,null,null,null,null,null,"～",null,null,{"$error":"#N/A"},null,"00:00:00"]
[null,null,null,null,null,null,"～",null,null,{"$error":"#N/A"},null,"00:00:00"]
[null,null,null,null,null,null,"～",null,null,{"$error":"#N/A"},null,"00:00:00"]
[null,null,null,null,null,null,"～",null,null,{"$error":"#N/A"},null,"00:00:00"]
[null,null,null,null,null,null,"～",null,null,{"$error":"#N/A"},null,"00:00:00"]
[null,null,null,null,null,null,"～",null,null,{"$error":"#N/A"},null,"00:00:00"]
[null,null,null,null,null,null,"～",null,null,{"$error":"#N/A"},null,"00:00:00"]
[null,null,null,null,null,null,"～",null,null,{"$error":"#N/A"},null,"00:00:00"]
[null,null,null,null,null,null,"～",null,null,{"$error":"#N/A"},null,"00:00:00"]
[null,null,null,null,null,null,"～",null,null,{"$error":"#N/A"},null,"00:00:00"]
[null,null,null,null,null,null,"～",null,null,{"$error":"#N/A"},null,"00:00:00"]
[null,null,null,null,null,null,"～",null,null,{"$error":"#N/A"},null,"00:00:00"]
[null,null,null,null,null,null,"～",null,null,{"$error":"#N/A"},null,"00:00:00"]
[null,null,null,null,null,null,"～",null,null,{"$error":"#N/A"},null,"00:00:00"]
[null,null,null,null,null,null,"～",null,null,{"$error":"#N/A"},null,"00:00:00"]
[null,null,null,null,null,null,"～",null,null,{"$error":"#N/A"},null,"00:00:00"]
[null,null,null,null,null,null,"～",null,null,{"$error":"#N/A"},null,"00:00:00"]
[null,null,null,null,null,null,"～",null,null,{"$error":"#N/A"},null,"00:00:00"]
[null,null,null,null,null,null,"～",null,null,{"$error":"#N/A"},null,"00:00:00"]
[null,null,null,null,null,null,"～",null,null,{"$error":"#N/A"},null,"00:00:00"]
[null,null,null,null,null,null,"～",null,null,{"$error":"#N/A"},null,"00:00:00"]
[null,null,null,null,null,null,"～",null,null,{"$error":"#N/A"},null,"00:00:00"]
[null,null,null,null,null,null,"～",null,null,{"$error":"#N/A"},null,"00:00:00"]
[null,null,null,null,null,null,"～",null,null,{"$error":"#N/A"},null,"00:00:00"]
[null,null,null,null,null,null,"～",null,null,{"$error":"#N/A"},null,"00:00:00"]
[null,null,null,null,null,null,"～",null,null,{"$error":"#N/A"},null,"00:00:00"]
[null,null,null,null,null,null,"～",null,null,{"$error":"#N/A"},null,"00:00:00"]
[null,null,null,null,null,null,"～",null,null,{"$error":"#N/A"},null,"00:00:00"]
[null,null,null,null,null,null,"～",null,null,{"$error":"#N/A"},null,"00:00:00"]
[null,null,null,null,null,null,"～",null,null,{"$error":"#N/A"},null,"00:00:00"]
[null,null,null,null,null,null,"～",null,null,{"$error":"#N/A"},null,"00:00:00"]
[null,null,null,null,null,null,"～",null,null,{"$error":"#N/A"},null,"00:00:00"]
[null,null,null,null,null,null,"～",null,null,{"$error":"#N/A"},null,"00:00:00"]
[null,null,null,null,null,null,"～",null,null,{"$error":"#N/A"},null,"00:00:00"]
[null,null,null,null,null,null,"～",null,null,{"$error":"#N/A"},null,"00:00:00"]
[null,null,null,null,null,null,"～",null,null,{"$error":"#N/A"},null,"00:00:00"]
[null,null,null,null,null,null,"～",null,null,{"$error":"#N/A"},null,"00:00:00"]
[null,null,null,null,null,null,"～",null,null,{"$error":"#N/A"},null,"00:00:00"]
[null,null,null,null,null,null,"～",null,null,{"$error":"#N/A"},null,"00:00:00"]
[null,null,null,null,null,null,"～",null,null,{"$error":"#N/A"},null,"00:00:00"]
[null,null,null,null,null,null,"～",null,null,{"$error":"#N/A"},null,"00:00:00"]
[null,null,null,null,null,null,"～",null,null,{"$error":"#N/A"},null,"00:00:00"]
[null,null,null,null,null,null,"～",null,null,{"$error":"#N/A"},null,"00:00:00"]
[null,null,null,null,null,null,"～",null,null,{"$error":"#N/A"},null,"00:00:00"]
[null,null,null,null,null,null,"～",null,null,{"$error":"#N/A"},null,"00:00:00"]
[null,null,null,null,null,null,"～",null,null,{"$error":"#N/A"},null,"00:00:00"]
[null,null,null,null,null,null,"～",null,null,{"$error":"#N/A"},null,"00:00:00"]
[null,null,null,null,null,null,"～",null,null,{"$error":"#N/A"},null,"00:00:00"]
[null,null,null,null,null,null,"～",null,null,{"$error":"#N/A"},null,"00:00:00"]
[null,null,null,null,null,null,"～",null,null,{"$error":"#N/A"},null,"00:00:00"]
[null,null,null,null,null,null,"～",null,null,{"$error":"#N/A"},null,"00:00:00"]
[null,null,null,null,null,null,"～",null,null,{"$error":"#N/A"},null,"00:00:00"]
[null,null,null,null,null,null,"～",null,null,{"$error":"#N/A"},null,"00:00:00"]
[null,null,null,null,null,null,"～",null,null,{"$error":"#N/A"},null,"00:00:00"]
[null,null,null,null,null,null,"～",null,null,{"$error":"#N/A"},null,"00:00:00"]
[null,null,null,null,null,null,"～",null,null,{"$error":"#N/A"},null,"00:00:00"]
[null,null,null,null,null,null,"～",null,null,{"$error":"#N/A"},null,"00:00:00"]
[null,null,null,null,null,null,"～",null,null,{"$error":"#N/A"},null,"00:00:00"]
[null,null,null,null,null,null,"～",null,null,{"$error":"#N/A"},null,"00:00:00"]
[null,null,null,null,null,null,"～",null,null,{"$error":"#N/A"},null,"00:00:00"]
[null,null,null,null,null,null,"～",null,null,{"$error":"#N/A"},null,"00:00:00"]
[null,null,null,null,null,null,"～",null,null,{"$error":"#N/A"},null,"00:00:00"]
[null,null,null,null,null,null,"～",null,null,{"$error":"#N/A"},null,"00:00:00"]
[null,null,null,null,null,null,"～",null,null,{"$error":"#N/A"},null,"00:00:00"]
[null,null,null,null,null,null,"～",null,null,{"$error":"#N/A"},null,"00:00:00"]
[null,null,null,null,null,null,"～",null,null,{"$error":"#N/A"},null,"00:00:00"]
[null,null,null,null,null,null,"～",null,null,{"$error":"#N/A"},null,"00:00:00"]
[null,null,null,null,null,null,"～",null,null,{"$error":"#N/A"},null,"00:00:00"]
[null,null,null,null,null,null,"～",null,null,{"$error":"#N/A"},null,"00:00:00"]
[null,null,null,null,null,null,"～",null,null,{"$error":"#N/A"},null,"00:00:00"]
[null,null,null,null,null,null,"～",null,null,{"$error":"#N/A"},null,"00:00:00"]
[null,null,null,null,null,null,"～",null,null,{"$error":"#N/A"},null,"00:00:00"]
[null,null,null,null,null,null,"～",null,null,{"$error":"#N/A"},null,"00:00:00"]
[null,null,null,null,null,null,"～",null,null,{"$error":"#N/A"},null,"00:00:00"]
[null,null,null,null,null,null,"～",null,null,{"$error":"#N/A"},null,"00:00:00"]
[null,null,null,null,null,null,"～",null,null,{"$error":"#N/A"},null,"00:00:00"]
[null,null,null,null,null,null,"～",null,null,{"$error":"#N/A"},null,"00:00:00"]
[null,null,null,null,null,null,"～",null,null,{"$error":"#N/A"},null,"00:00:00"]
[null,null,null,null,null,null,"～",null,null,{"$error":"#N/A"},null,"00:00:00"]
[null,null,null,null,null,null,"～",null,null,{"$error":"#N/A"},null,"00:00:00"]
[null,null,null,null,null,null,"～",null,null,{"$error":"#N/A"},null,"00:00:00"]
[null,null,null,null,null,null,"～",null,null,{"$error":"#N/A"},null,"00:00:00"]
[null,null,null,null,null,null,"～",null,null,{"$error":"#N/A"},null,"00:00:00"]
[null,null,null,null,null,null,"～",null,null,{"$error":"#N/A"},null,"00:00:00"]
[null,null,null,null,null,null,"～",null,null,{"$error":"#N/A"},null,"00:00:00"]
[null,null,null,null,null,null,"～",null,null,{"$error":"#N/A"},null,"00:00:00"]
[null,null,null,null,null,null,"～",null,null,{"$error":"#N/A"},null,"00:00:00"]
[null,null,null,null,null,null,"～",null,null,{"$error":"#N/A"},null,{"$f":"H10628-F10628","v":"00:00:00"}]
[null,null,null,null,null,null,"～",null,null,{"$error":"#N/A"},null,"00:00:00"]
[null,null,null,null,null,null,"～",null,null,{"$error":"#N/A"},null,"00:00:00"]
[null,null,null,null,null,null,"～",null,null,{"$error":"#N/A"},null,"00:00:00"]
[null,null,null,null,null,null,"～",null,null,{"$error":"#N/A"},null,"00:00:00"]
[null,null,null,null,null,null,"～",null,null,{"$error":"#N/A"},null,"00:00:00"]
[null,null,null,null,null,null,"～",null,null,{"$error":"#N/A"},null,"00:00:00"]
[null,null,null,null,null,null,"～",null,null,{"$error":"#N/A"},null,"00:00:00"]
[null,null,null,null,null,null,"～",null,null,{"$error":"#N/A"},null,"00:00:00"]
[null,null,null,null,null,null,"～",null,null,{"$error":"#N/A"},null,"00:00:00"]
[null,null,null,null,null,null,"～",null,null,{"$error":"#N/A"},null,"00:00:00"]
[null,null,null,null,null,null,"～",null,null,{"$error":"#N/A"},null,"00:00:00"]
[null,null,null,null,null,null,"～",null,null,{"$error":"#N/A"},null,"00:00:00"]
[null,null,null,null,null,null,"～",null,null,{"$error":"#N/A"},null,"00:00:00"]
[null,null,null,null,null,null,"～",null,null,{"$error":"#N/A"},null,"00:00:00"]
[null,null,null,null,null,null,"～",null,null,{"$error":"#N/A"},null,"00:00:00"]
[null,null,null,null,null,null,"～",null,null,{"$error":"#N/A"},null,"00:00:00"]
[null,null,null,null,null,null,"～",null,null,{"$error":"#N/A"},null,"00:00:00"]
[null,null,null,null,null,null,"～",null,null,{"$error":"#N/A"},null,"00:00:00"]
[null,null,null,null,null,null,"～",null,null,{"$error":"#N/A"},null,"00:00:00"]
[null,null,null,null,null,null,"～",null,null,{"$error":"#N/A"},null,"00:00:00"]
[null,null,null,null,null,null,"～",null,null,{"$error":"#N/A"},null,"00:00:00"]
[null,null,null,null,null,null,"～",null,null,{"$error":"#N/A"},null,"00:00:00"]
[null,null,null,null,null,null,"～",null,null,{"$error":"#N/A"},null,"00:00:00"]
[null,null,null,null,null,null,"～",null,null,{"$error":"#N/A"},null,"00:00:00"]
[null,null,null,null,null,null,"～",null,null,{"$error":"#N/A"},null,"00:00:00"]
[null,null,null,null,null,null,"～",null,null,{"$error":"#N/A"},null,{"$f":"H10820-F10820","v":"00:00:00"}]
[null,null,null,null,null,null,"～",null,null,{"$error":"#N/A"},null,"00:00:00"]
[null,null,null,null,null,null,"～",null,null,{"$error":"#N/A"},null,"00:00:00"]
[null,null,null,null,null,null,"～",null,null,{"$error":"#N/A"},null,"00:00:00"]
[null,null,null,null,null,null,"～",null,null,{"$error":"#N/A"},null,"00:00:00"]
[null,null,null,null,null,null,"～",null,null,{"$error":"#N/A"},null,"00:00:00"]
[null,null,null,null,null,null,"～",null,null,{"$error":"#N/A"},null,"00:00:00"]
[null,null,null,null,null,null,"～",null,null,{"$error":"#N/A"},null,"00:00:00"]
[null,null,null,null,null,null,"～",null,null,{"$error":"#N/A"},null,"00:00:00"]
[null,null,null,null,null,null,"～",null,null,{"$f":"VLOOKUP(I10887,$C:$D,2,0)","v":{"$error":"#N/A"}},null,"00:00:00"]
[null,null,null,null,null,null,"～",null,null,{"$error":"#N/A"},null,"00:00:00"]
[null,null,null,null,null,null,"～",null,null,{"$error":"#N/A"},null,"00:00:00"]
[null,null,null,null,null,null,"～",null,null,{"$error":"#N/A"},null,"00:00:00"]
[null,null,null,null,null,null,"～",null,null,{"$error":"#N/A"},null,"00:00:00"]
[null,null,null,null,null,null,"～",null,null,{"$error":"#N/A"},null,"00:00:00"]
[null,null,null,null,null,null,"～",null,null,{"$error":"#N/A"},null,"00:00:00"]
[null,null,null,null,null,null,"～",null,null,{"$error":"#N/A"},null,"00:00:00"]
[null,null,null,null,null,null,"～",null,null,{"$error":"#N/A"},null,"00:00:00"]
[null,null,null,null,null,null,"～",null,null,{"$error":"#N/A"},null,"00:00:00"]
[null,null,null,null,null,null,"～",null,null,{"$error":"#N/A"},null,"00:00:00"]
[null,null,null,null,null,null,"～",null,null,{"$error":"#N/A"},null,"00:00:00"]
[null,null,null,null,null,null,"～",null,null,{"$error":"#N/A"},null,"00:00:00"]
[null,null,null,null,null,null,"～",null,null,{"$error":"#N/A"},null,"00:00:00"]
[null,null,null,null,null,null,"～",null,null,{"$error":"#N/A"},null,"00:00:00"]
[null,null,null,null,null,null,"～",null,null,{"$error":"#N/A"},null,"00:00:00"]
[null,null,null,null,null,null,"～",null,null,{"$error":"#N/A"},null,"00:00:00"]
[null,null,null,null,null,null,"～",null,null,{"$error":"#N/A"},null,"00:00:00"]
[null,null,null,null,null,null,"～",null,null,{"$error":"#N/A"},null,"00:00:00"]
[null,null,null,null,null,null,"～",null,null,{"$error":"#N/A"},null,"00:00:00"]
[null,null,null,null,null,null,"～",null,null,{"$error":"#N/A"},null,"00:00:00"]
[null,null,null,null,null,null,"～",null,null,{"$error":"#N/A"},null,"00:00:00"]
[null,null,null,null,null,null,"～",null,null,{"$error":"#N/A"},null,"00:00:00"]
[null,null,null,null,null,null,"～",null,null,{"$error":"#N/A"},null,"00:00:00"]
[null,null,null,null,null,null,"～",null,null,{"$error":"#N/A"},null,"00:00:00"]
[null,null,null,null,null,null,"～",null,null,{"$error":"#N/A"},null,"00:00:00"]
[null,null,null,null,null,null,"～",null,null,{"$error":"#N/A"},null,"00:00:00"]
[null,null,null,null,null,null,"～",null,null,{"$error":"#N/A"},null,"00:00:00"]
[null,null,null,null,null,null,"～",null,null,{"$error":"#N/A"},null,"00:00:00"]
[null,null,null,null,null,null,"～",null,null,{"$error":"#N/A"},null,"00:00:00"]
[null,null,null,null,null,null,"～",null,null,{"$error":"#N/A"},null,"00:00:00"]
[null,null,null,null,null,null,"～",null,null,{"$error":"#N/A"},null,"00:00:00"]
[null,null,null,null,null,null,"～",null,null,{"$error":"#N/A"},null,"00:00:00"]
[null,null,null,null,null,null,"～",null,null,{"$error":"#N/A"},null,"00:00:00"]
[null,null,null,null,null,null,"～",null,null,{"$error":"#N/A"},null,"00:00:00"]
[null,null,null,null,null,null,"～",null,null,{"$error":"#N/A"},null,"00:00:00"]
[null,null,null,null,null,null,"～",null,null,{"$error":"#N/A"},null,"00:00:00"]
[null,null,null,null,null,null,"～",null,null,{"$error":"#N/A"},null,"00:00:00"]
[null,null,null,null,null,null,"～",null,null,{"$error":"#N/A"},null,"00:00:00"]
[null,null,null,null,null,null,"～",null,null,{"$error":"#N/A"},null,"00:00:00"]
[null,null,null,null,null,null,"～",null,null,{"$error":"#N/A"},null,"00:00:00"]
[null,null,null,null,null,null,"～",null,null,{"$error":"#N/A"},null,"00:00:00"]
[null,null,null,null,null,null,"～",null,null,{"$error":"#N/A"},null,"00:00:00"]
[null,null,null,null,null,null,"～",null,null,{"$error":"#N/A"},null,"00:00:00"]
[null,null,null,null,null,null,"～",null,null,{"$error":"#N/A"},null,"00:00:00"]
[null,null,null,null,null,null,"～",null,null,{"$error":"#N/A"},null,"00:00:00"]
[null,null,null,null,null,null,"～",null,null,{"$error":"#N/A"},null,"00:00:00"]
[null,null,null,null,null,null,"～",null,null,{"$error":"#N/A"},null,"00:00:00"]
[null,null,null,null,null,null,"～",null,null,{"$error":"#N/A"},null,"00:00:00"]
[null,null,null,null,null,null,"～",null,null,{"$error":"#N/A"},null,"00:00:00"]
[null,null,null,null,null,null,"～",null,null,{"$error":"#N/A"},null,"00:00:00"]
[null,null,null,null,null,null,"～",null,null,{"$error":"#N/A"},null,"00:00:00"]
[null,null,null,null,null,null,"～",null,null,{"$error":"#N/A"},null,"00:00:00"]
[null,null,null,null,null,null,"～",null,null,{"$error":"#N/A"},null,"00:00:00"]
[null,null,null,null,null,null,"～",null,null,{"$error":"#N/A"},null,"00:00:00"]
[null,null,null,null,null,null,"～",null,null,{"$error":"#N/A"},null,"00:00:00"]
[null,null,null,null,null,null,"～",null,null,{"$error":"#N/A"},null,"00:00:00"]
[null,null,null,null,null,null,"～",null,null,{"$error":"#N/A"},null,"00:00:00"]
[null,null,null,null,null,null,"～",null,null,{"$error":"#N/A"},null,"00:00:00"]
[null,null,null,null,null,null,"～",null,null,{"$error":"#N/A"},null,"00:00:00"]
[null,null,null,null,null,null,"～",null,null,{"$error":"#N/A"},null,"00:00:00"]
[null,null,null,null,null,null,"～",null,null,{"$error":"#N/A"},null,"00:00:00"]
[null,null,null,null,null,null,"～",null,null,{"$error":"#N/A"},null,"00:00:00"]
[null,null,null,null,null,null,"～",null,null,{"$error":"#N/A"},null,"00:00:00"]
[null,null,null,null,null,null,"～",null,null,{"$error":"#N/A"},null,"00:00:00"]
[null,null,null,null,null,null,"～",null,null,{"$error":"#N/A"},null,"00:00:00"]
[null,null,null,null,null,null,"～",null,null,{"$error":"#N/A"},null,"00:00:00"]
[null,null,null,null,null,null,"～",null,null,{"$error":"#N/A"},null,"00:00:00"]
[null,null,null,null,null,null,"～",null,null,{"$error":"#N/A"},null,"00:00:00"]
[null,null,null,null,null,null,"～",null,null,{"$f":"VLOOKUP(I11399,$C:$D,2,0)","v":{"$error":"#N/A"}},null,"00:00:00"]
[null,null,null,null,null,null,"～",null,null,{"$error":"#N/A"},null,"00:00:00"]
[null,null,null,null,null,null,"～",null,null,{"$error":"#N/A"},null,"00:00:00"]
[null,null,null,null,null,null,"～",null,null,{"$error":"#N/A"},null,"00:00:00"]
[null,null,null,null,null,null,"～",null,null,{"$error":"#N/A"},null,"00:00:00"]
[null,null,null,null,null,null,"～",null,null,{"$error":"#N/A"},null,"00:00:00"]
[null,null,null,null,null,null,"～",null,null,{"$error":"#N/A"},null,"00:00:00"]
[null,null,null,null,null,null,"～",null,null,{"$error":"#N/A"},null,"00:00:00"]
[null,null,null,null,null,null,"～",null,null,{"$error":"#N/A"},null,"00:00:00"]
[null,null,null,null,null,null,"～",null,null,{"$error":"#N/A"},null,"00:00:00"]
[null,null,null,null,null,null,"～",null,null,{"$error":"#N/A"},null,"00:00:00"]
[null,null,null,null,null,null,"～",null,null,{"$error":"#N/A"},null,"00:00:00"]
[null,null,null,null,null,null,"～",null,null,{"$error":"#N/A"},null,"00:00:00"]
[null,null,null,null,null,null,"～",null,null,{"$error":"#N/A"},null,"00:00:00"]
[null,null,null,null,null,null,"～",null,null,{"$error":"#N/A"},null,"00:00:00"]
[null,null,null,null,null,null,"～",null,null,{"$error":"#N/A"},null,"00:00:00"]
[null,null,null,null,null,null,"～",null,null,{"$error":"#N/A"},null,"00:00:00"]
[null,null,null,null,null,null,"～",null,null,{"$error":"#N/A"},null,"00:00:00"]
[null,null,null,null,null,null,"～",null,null,{"$error":"#N/A"},null,"00:00:00"]
[null,null,null,null,null,null,"～",null,null,{"$error":"#N/A"},null,"00:00:00"]
[null,null,null,null,null,null,"～",null,null,{"$error":"#N/A"},null,"00:00:00"]
[null,null,null,null,null,null,"～",null,null,{"$error":"#N/A"},null,"00:00:00"]
[null,null,null,null,null,null,"～",null,null,{"$error":"#N/A"},null,"00:00:00"]
[null,null,null,null,null,null,"～",null,null,{"$error":"#N/A"},null,"00:00:00"]
[null,null,null,null,null,null,"～",null,null,{"$error":"#N/A"},null,"00:00:00"]
[null,null,null,null,null,null,"～",null,null,{"$error":"#N/A"},null,"00:00:00"]
[null,null,null,null,null,null,"～",null,null,{"$error":"#N/A"},null,"00:00:00"]
[null,null,null,null,null,null,"～",null,null,{"$error":"#N/A"},null,"00:00:00"]
[null,null,null,null,null,null,"～",null,null,{"$error":"#N/A"},null,"00:00:00"]
[null,null,null,null,null,null,"～",null,null,{"$error":"#N/A"},null,"00:00:00"]
[null,null,null,null,null,null,"～",null,null,{"$error":"#N/A"},null,"00:00:00"]
[null,null,null,null,null,null,"～",null,null,{"$error":"#N/A"},null,"00:00:00"]
[null,null,null,null,null,null,"～",null,null,{"$error":"#N/A"},null,"00:00:00"]
[null,null,null,null,null,null,"～",null,null,{"$error":"#N/A"},null,"00:00:00"]
[null,null,null,null,null,null,"～",null,null,{"$error":"#N/A"},null,"00:00:00"]
[null,null,null,null,null,null,"～",null,null,{"$error":"#N/A"},null,"00:00:00"]
[null,null,null,null,null,null,"～",null,null,{"$error":"#N/A"},null,"00:00:00"]
[null,null,null,null,null,null,"～",null,null,{"$error":"#N/A"},null,"00:00:00"]
[null,null,null,null,null,null,"～",null,null,{"$error":"#N/A"},null,"00:00:00"]
[null,null,null,null,null,null,"～",null,null,{"$error":"#N/A"},null,"00:00:00"]
[null,null,null,null,null,null,"～",null,null,{"$error":"#N/A"},null,"00:00:00"]
[null,null,null,null,null,null,"～",null,null,{"$error":"#N/A"},null,"00:00:00"]
[null,null,null,null,null,null,"～",null,null,{"$error":"#N/A"},null,"00:00:00"]
[null,null,null,null,null,null,"～",null,null,{"$error":"#N/A"},null,"00:00:00"]
[null,null,null,null,null,null,"～",null,null,{"$error":"#N/A"},null,"00:00:00"]
[null,null,null,null,null,null,"～",null,null,{"$error":"#N/A"},null,"00:00:00"]
[null,null,null,null,null,null,"～",null,null,{"$error":"#N/A"},null,"00:00:00"]
[null,null,null,null,null,null,"～",null,null,{"$error":"#N/A"},null,"00:00:00"]
[null,null,null,null,null,null,"～",null,null,{"$error":"#N/A"},null,"00:00:00"]
[null,null,null,null,null,null,"～",null,null,{"$error":"#N/A"},null,"00:00:00"]
[null,null,null,null,null,null,"～",null,null,{"$error":"#N/A"},null,"00:00:00"]
[null,null,null,null,null,null,"～",null,null,{"$error":"#N/A"},null,{"$f":"H11780-F11780","v":"00:00:00"}]
[null,null,null,null,null,null,"～",null,null,{"$error":"#N/A"},null,"00:00:00"]
[null,null,null,null,null,null,"～",null,null,{"$error":"#N/A"},null,"00:00:00"]
[null,null,null,null,null,null,"～",null,null,{"$error":"#N/A"},null,"00:00:00"]
[null,null,null,null,null,null,"～",null,null,{"$error":"#N/A"},null,"00:00:00"]
[null,null,null,null,null,null,"～",null,null,{"$error":"#N/A"},null,"00:00:00"]
[null,null,null,null,null,null,"～",null,null,{"$error":"#N/A"},null,"00:00:00"]
[null,null,null,null,null,null,"～",null,null,{"$error":"#N/A"},null,"00:00:00"]
[null,null,null,null,null,null,"～",null,null,{"$error":"#N/A"},null,"00:00:00"]
[null,null,null,null,null,null,"～",null,null,{"$error":"#N/A"},null,"00:00:00"]
[null,null,null,null,null,null,"～",null,null,{"$error":"#N/A"},null,"00:00:00"]
[null,null,null,null,null,null,"～",null,null,{"$error":"#N/A"},null,"00:00:00"]
[null,null,null,null,null,null,"～",null,null,{"$error":"#N/A"},null,"00:00:00"]
[null,null,null,null,null,null,"～",null,null,{"$error":"#N/A"},null,"00:00:00"]
[null,null,null,null,null,null,"～",null,null,{"$error":"#N/A"},null,"00:00:00"]
[null,null,null,null,null,null,"～",null,null,{"$error":"#N/A"},null,"00:00:00"]
[null,null,null,null,null,null,"～",null,null,{"$error":"#N/A"},null,"00:00:00"]
[null,null,null,null,null,null,"～",null,null,{"$error":"#N/A"},null,"00:00:00"]
[null,null,null,null,null,null,"～",null,null,{"$error":"#N/A"},null,"00:00:00"]
[null,null,null,null,null,null,"～",null,null,{"$error":"#N/A"},null,"00:00:00"]
[null,null,null,null,null,null,"～",null,null,{"$error":"#N/A"},null,"00:00:00"]
[null,null,null,null,null,null,"～",null,null,{"$error":"#N/A"},null,"00:00:00"]
[null,null,null,null,null,null,"～",null,null,{"$error":"#N/A"},null,"00:00:00"]
[null,null,null,null,null,null,"～",null,null,{"$error":"#N/A"},null,"00:00:00"]
[null,null,null,null,null,null,"～",null,null,{"$error":"#N/A"},null,"00:00:00"]
[null,null,null,null,null,null,"～",null,null,{"$error":"#N/A"},null,"00:00:00"]
[null,null,null,null,null,null,"～",null,null,{"$error":"#N/A"},null,"00:00:00"]
[null,null,null,null,null,null,"～",null,null,{"$error":"#N/A"},null,"00:00:00"]
[null,null,null,null,null,null,"～",null,null,{"$error":"#N/A"},null,"00:00:00"]
[null,null,null,null,null,null,"～",null,null,{"$error":"#N/A"},null,"00:00:00"]
[null,null,null,null,null,null,"～",null,null,{"$error":"#N/A"},null,"00:00:00"]
[null,null,null,null,null,null,"～",null,null,{"$error":"#N/A"},null,"00:00:00"]
[null,null,null,null,null,null,"～",null,null,{"$error":"#N/A"},null,"00:00:00"]
[null,null,null,null,null,null,"～",null,null,{"$error":"#N/A"},null,"00:00:00"]
[null,null,null,null,null,null,"～",null,null,{"$error":"#N/A"},null,"00:00:00"]
[null,null,null,null,null,null,"～",null,null,{"$error":"#N/A"},null,"00:00:00"]
[null,null,null,null,null,null,"～",null,null,{"$error":"#N/A"},null,"00:00:00"]
[null,null,null,null,null,null,"～",null,null,{"$error":"#N/A"},null,"00:00:00"]
[null,null,null,null,null,null,"～",null,null,{"$error":"#N/A"},null,"00:00:00"]
[null,null,null,null,null,null,"～",null,null,{"$error":"#N/A"},null,"00:00:00"]
[null,null,null,null,null,null,"～",null,null,{"$error":"#N/A"},null,"00:00:00"]
[null,null,null,null,null,null,"～",null,null,{"$error":"#N/A"},null,"00:00:00"]
[null,null,null,null,null,null,"～",null,null,{"$error":"#N/A"},null,"00:00:00"]
[null,null,null,null,null,null,"～",null,null,{"$error":"#N/A"},null,"00:00:00"]
[null,null,null,null,null,null,"～",null,null,{"$error":"#N/A"},null,"00:00:00"]
[null,null,null,null,null,null,"～",null,null,{"$error":"#N/A"},null,"00:00:00"]
[null,null,null,null,null,null,"～",null,null,{"$error":"#N/A"},null,"00:00:00"]
[null,null,null,null,null,null,"～",null,null,{"$error":"#N/A"},null,"00:00:00"]
[null,null,null,null,null,null,"～",null,null,{"$error":"#N/A"},null,"00:00:00"]
[null,null,null,null,null,null,"～",null,null,{"$error":"#N/A"},null,"00:00:00"]
[null,null,null,null,null,null,"～",null,null,{"$error":"#N/A"},null,"00:00:00"]
[null,null,null,null,null,null,"～",null,null,{"$error":"#N/A"},null,"00:00:00"]
[null,null,null,null,null,null,"～",null,null,{"$error":"#N/A"},null,{"$f":"H12164-F12164","v":"00:00:00"}]
[null,null,null,null,null,null,"～",null,null,{"$error":"#N/A"},null,"00:00:00"]
[null,null,null,null,null,null,"～",null,null,{"$error":"#N/A"},null,"00:00:00"]
[null,null,null,null,null,null,"～",null,null,{"$error":"#N/A"},null,"00:00:00"]
[null,null,null,null,null,null,"～",null,null,{"$error":"#N/A"},null,"00:00:00"]
[null,null,null,null,null,null,"～",null,null,{"$error":"#N/A"},null,"00:00:00"]
[null,null,null,null,null,null,"～",null,null,{"$error":"#N/A"},null,"00:00:00"]
[null,null,null,null,null,null,"～",null,null,{"$error":"#N/A"},null,"00:00:00"]
[null,null,null,null,null,null,"～",null,null,{"$error":"#N/A"},null,"00:00:00"]
[null,null,null,null,null,null,"～",null,null,{"$f":"VLOOKUP(I12231,$C:$D,2,0)","v":{"$error":"#N/A"}},null,"00:00:00"]
[null,null,null,null,null,null,"～",null,null,{"$error":"#N/A"},null,"00:00:00"]
[null,null,null,null,null,null,"～",null,null,{"$error":"#N/A"},null,"00:00:00"]
[null,null,null,null,null,null,"～",null,null,{"$error":"#N/A"},null,"00:00:00"]
[null,null,null,null,null,null,"～",null,null,{"$error":"#N/A"},null,"00:00:00"]
[null,null,null,null,null,null,"～",null,null,{"$error":"#N/A"},null,"00:00:00"]
[null,null,null,null,null,null,"～",null,null,{"$error":"#N/A"},null,"00:00:00"]
[null,null,null,null,null,null,"～",null,null,{"$error":"#N/A"},null,"00:00:00"]
[null,null,null,null,null,null,"～",null,null,{"$error":"#N/A"},null,"00:00:00"]
[null,null,null,null,null,null,"～",null,null,{"$f":"VLOOKUP(I12295,$C:$D,2,0)","v":{"$error":"#N/A"}},null,"00:00:00"]
[null,null,null,null,null,null,"～",null,null,{"$error":"#N/A"},null,"00:00:00"]
[null,null,null,null,null,null,"～",null,null,{"$error":"#N/A"},null,"00:00:00"]
[null,null,null,null,null,null,"～",null,null,{"$error":"#N/A"},null,"00:00:00"]
[null,null,null,null,null,null,"～",null,null,{"$error":"#N/A"},null,"00:00:00"]
[null,null,null,null,null,null,"～",null,null,{"$error":"#N/A"},null,"00:00:00"]
[null,null,null,null,null,null,"～",null,null,{"$error":"#N/A"},null,"00:00:00"]
[null,null,null,null,null,null,"～",null,null,{"$error":"#N/A"},null,"00:00:00"]
[null,null,null,null,null,null,"～",null,null,{"$error":"#N/A"},null,"00:00:00"]
[null,null,null,null,null,null,"～",null,null,{"$error":"#N/A"},null,"00:00:00"]
[null,null,null,null,null,null,"～",null,null,{"$error":"#N/A"},null,"00:00:00"]
[null,null,null,null,null,null,"～",null,null,{"$error":"#N/A"},null,"00:00:00"]
[null,null,null,null,null,null,"～",null,null,{"$error":"#N/A"},null,"00:00:00"]
[null,null,null,null,null,null,"～",null,null,{"$error":"#N/A"},null,"00:00:00"]
[null,null,null,null,null,null,"～",null,null,{"$error":"#N/A"},null,"00:00:00"]
[null,null,null,null,null,null,"～",null,null,{"$error":"#N/A"},null,"00:00:00"]
[null,null,null,null,null,null,"～",null,null,{"$error":"#N/A"},null,"00:00:00"]
[null,null,null,null,null,null,"～",null,null,{"$error":"#N/A"},null,{"$f":"H12420-F12420","v":"00:00:00"}]
[null,null,null,null,null,null,"～",null,null,{"$error":"#N/A"},null,"00:00:00"]
[null,null,null,null,null,null,"～",null,null,{"$error":"#N/A"},null,"00:00:00"]
[null,null,null,null,null,null,"～",null,null,{"$error":"#N/A"},null,"00:00:00"]
[null,null,null,null,null,null,"～",null,null,{"$error":"#N/A"},null,"00:00:00"]
[null,null,null,null,null,null,"～",null,null,{"$error":"#N/A"},null,"00:00:00"]
[null,null,null,null,null,null,"～",null,null,{"$error":"#N/A"},null,"00:00:00"]
[null,null,null,null,null,null,"～",null,null,{"$error":"#N/A"},null,"00:00:00"]
[null,null,null,null,null,null,"～",null,null,{"$error":"#N/A"},null,"00:00:00"]
[null,null,null,null,null,null,"～",null,null,{"$error":"#N/A"},null,"00:00:00"]
[null,null,null,null,null,null,"～",null,null,{"$error":"#N/A"},null,"00:00:00"]
[null,null,null,null,null,null,"～",null,null,{"$error":"#N/A"},null,"00:00:00"]
[null,null,null,null,null,null,"～",null,null,{"$error":"#N/A"},null,"00:00:00"]
[null,null,null,null,null,null,"～",null,null,{"$error":"#N/A"},null,"00:00:00"]
[null,null,null,null,null,null,"～",null,null,{"$error":"#N/A"},null,"00:00:00"]
[null,null,null,null,null,null,"～",null,null,{"$error":"#N/A"},null,"00:00:00"]
[null,null,null,null,null,null,"～",null,null,{"$error":"#N/A"},null,"00:00:00"]
[null,null,null,null,null,null,"～",null,null,{"$error":"#N/A"},null,"00:00:00"]
[null,null,null,null,null,null,"～",null,null,{"$error":"#N/A"},null,"00:00:00"]
[null,null,null,null,null,null,"～",null,null,{"$error":"#N/A"},null,"00:00:00"]
[null,null,null,null,null,null,"～",null,null,{"$error":"#N/A"},null,"00:00:00"]
[null,null,null,null,null,null,"～",null,null,{"$error":"#N/A"},null,"00:00:00"]
[null,null,null,null,null,null,"～",null,null,{"$error":"#N/A"},null,"00:00:00"]
[null,null,null,null,null,null,"～",null,null,{"$error":"#N/A"},null,"00:00:00"]
[null,null,null,null,null,null,"～",null,null,{"$error":"#N/A"},null,"00:00:00"]
[null,null,null,null,null,null,"～",null,null,{"$error":"#N/A"},null,"00:00:00"]
[null,null,null,null,null,null,"～",null,null,{"$error":"#N/A"},null,"00:00:00"]
[null,null,null,null,null,null,"～",null,null,{"$error":"#N/A"},null,"00:00:00"]
[null,null,null,null,null,null,"～",null,null,{"$error":"#N/A"},null,"00:00:00"]
[null,null,null,null,null,null,"～",null,null,{"$error":"#N/A"},null,"00:00:00"]
[null,null,null,null,null,null,"～",null,null,{"$error":"#N/A"},null,"00:00:00"]
[null,null,null,null,null,null,"～",null,null,{"$error":"#N/A"},null,"00:00:00"]
[null,null,null,null,null,null,"～",null,null,{"$error":"#N/A"},null,"00:00:00"]
[null,null,null,null,null,null,"～",null,null,{"$error":"#N/A"},null,"00:00:00"]
[null,null,null,null,null,null,"～",null,null,{"$error":"#N/A"},null,"00:00:00"]
[null,null,null,null,null,null,"～",null,null,{"$f":"VLOOKUP(I12679,$C:$D,2,0)","v":{"$error":"#N/A"}},null,"00:00:00"]
[null,null,null,null,null,null,"～",null,null,{"$error":"#N/A"},null,"00:00:00"]
[null,null,null,null,null,null,"～",null,null,{"$error":"#N/A"},null,"00:00:00"]
[null,null,null,null,null,null,"～",null,null,{"$error":"#N/A"},null,"00:00:00"]
[null,null,null,null,null,null,"～",null,null,{"$error":"#N/A"},null,"00:00:00"]
[null,null,null,null,null,null,"～",null,null,{"$error":"#N/A"},null,"00:00:00"]
[null,null,null,null,null,null,"～",null,null,{"$error":"#N/A"},null,"00:00:00"]
[null,null,null,null,null,null,"～",null,null,{"$error":"#N/A"},null,"00:00:00"]
[null,null,null,null,null,null,"～",null,null,{"$error":"#N/A"},null,"00:00:00"]
[null,null,null,null,null,null,"～",null,null,{"$error":"#N/A"},null,"00:00:00"]
[null,null,null,null,null,null,"～",null,null,{"$error":"#N/A"},null,"00:00:00"]
[null,null,null,null,null,null,"～",null,null,{"$error":"#N/A"},null,"00:00:00"]
[null,null,null,null,null,null,"～",null,null,{"$error":"#N/A"},null,"00:00:00"]
[null,null,null,null,null,null,"～",null,null,{"$error":"#N/A"},null,"00:00:00"]
[null,null,null,null,null,null,"～",null,null,{"$error":"#N/A"},null,"00:00:00"]
[null,null,null,null,null,null,"～",null,null,{"$error":"#N/A"},null,"00:00:00"]
[null,null,null,null,null,null,"～",null,null,{"$error":"#N/A"},null,"00:00:00"]
[null,null,null,null,null,null,"～",null,null,{"$error":"#N/A"},null,"00:00:00"]
[null,null,null,null,null,null,"～",null,null,{"$error":"#N/A"},null,"00:00:00"]
[null,null,null,null,null,null,"～",null,null,{"$error":"#N/A"},null,"00:00:00"]
[null,null,null,null,null,null,"～",null,null,{"$error":"#N/A"},null,"00:00:00"]
[null,null,null,null,null,null,"～",null,null,{"$error":"#N/A"},null,"00:00:00"]
[null,null,null,null,null,null,"～",null,null,{"$error":"#N/A"},null,"00:00:00"]
[null,null,null,null,null,null,"～",null,null,{"$error":"#N/A"},null,"00:00:00"]
[null,null,null,null,null,null,"～",null,null,{"$error":"#N/A"},null,"00:00:00"]
[null,null,null,null,null,null,"～",null,null,{"$error":"#N/A"},null,"00:00:00"]
[null,null,null,null,null,null,"～",null,null,{"$f":"VLOOKUP(I12871,$C:$D,2,0)","v":{"$error":"#N/A"}},null,"00:00:00"]
[null,null,null,null,null,null,"～",null,null,{"$error":"#N/A"},null,"00:00:00"]
[null,null,null,null,null,null,"～",null,null,{"$error":"#N/A"},null,"00:00:00"]
[null,null,null,null,null,null,"～",null,null,{"$error":"#N/A"},null,"00:00:00"]
[null,null,null,null,null,null,"～",null,null,{"$error":"#N/A"},null,"00:00:00"]
[null,null,null,null,null,null,"～",null,null,{"$error":"#N/A"},null,"00:00:00"]
[null,null,null,null,null,null,"～",null,null,{"$error":"#N/A"},null,"00:00:00"]
[null,null,null,null,null,null,"～",null,null,{"$error":"#N/A"},null,"00:00:00"]
[null,null,null,null,null,null,"～",null,null,{"$error":"#N/A"},null,"00:00:00"]
[null,null,null,null,null,null,"～",null,null,{"$error":"#N/A"},null,"00:00:00"]
[null,null,null,null,null,null,"～",null,null,{"$error":"#N/A"},null,"00:00:00"]
[null,null,null,null,null,null,"～",null,null,{"$error":"#N/A"},null,"00:00:00"]
[null,null,null,null,null,null,"～",null,null,{"$error":"#N/A"},null,"00:00:00"]
[null,null,null,null,null,null,"～",null,null,{"$error":"#N/A"},null,"00:00:00"]
[null,null,null,null,null,null,"～",null,null,{"$error":"#N/A"},null,"00:00:00"]
[null,null,null,null,null,null,"～",null,null,{"$error":"#N/A"},null,"00:00:00"]
[null,null,null,null,null,null,"～",null,null,{"$error":"#N/A"},null,"00:00:00"]
[null,null,null,null,null,null,"～",null,null,{"$error":"#N/A"},null,"00:00:00"]
[null,null,null,null,null,null,"～",null,null,{"$error":"#N/A"},null,"00:00:00"]
[null,null,null,null,null,null,"～",null,null,{"$error":"#N/A"},null,"00:00:00"]
[null,null,null,null,null,null,"～",null,null,{"$error":"#N/A"},null,"00:00:00"]
[null,null,null,null,null,null,"～",null,null,{"$error":"#N/A"},null,"00:00:00"]
[null,null,null,null,null,null,"～",null,null,{"$error":"#N/A"},null,"00:00:00"]
[null,null,null,null,null,null,"～",null,null,{"$error":"#N/A"},null,"00:00:00"]
[null,null,null,null,null,null,"～",null,null,{"$error":"#N/A"},null,"00:00:00"]
[null,null,null,null,null,null,"～",null,null,{"$error":"#N/A"},null,{"$f":"H13060-F13060","v":"00:00:00"}]
[null,null,null,null,null,null,"～",null,null,{"$error":"#N/A"},null,"00:00:00"]
[null,null,null,null,null,null,"～",null,null,{"$error":"#N/A"},null,"00:00:00"]
[null,null,null,null,null,null,"～",null,null,{"$error":"#N/A"},null,"00:00:00"]
[null,null,null,null,null,null,"～",null,null,{"$error":"#N/A"},null,"00:00:00"]
[null,null,null,null,null,null,"～",null,null,{"$error":"#N/A"},null,"00:00:00"]
[null,null,null,null,null,null,"～",null,null,{"$error":"#N/A"},null,"00:00:00"]
[null,null,null,null,null,null,"～",null,null,{"$error":"#N/A"},null,"00:00:00"]
[null,null,null,null,null,null,"～",null,null,{"$error":"#N/A"},null,"00:00:00"]
[null,null,null,null,null,null,"～",null,null,{"$error":"#N/A"},null,"00:00:00"]
[null,null,null,null,null,null,"～",null,null,{"$error":"#N/A"},null,"00:00:00"]
[null,null,null,null,null,null,"～",null,null,{"$error":"#N/A"},null,"00:00:00"]
[null,null,null,null,null,null,"～",null,null,{"$error":"#N/A"},null,"00:00:00"]
[null,null,null,null,null,null,"～",null,null,{"$error":"#N/A"},null,"00:00:00"]
[null,null,null,null,null,null,"～",null,null,{"$error":"#N/A"},null,"00:00:00"]
[null,null,null,null,null,null,"～",null,null,{"$error":"#N/A"},null,"00:00:00"]
[null,null,null,null,null,null,"～",null,null,{"$error":"#N/A"},null,"00:00:00"]
[null,null,null,null,null,null,"～",null,null,{"$error":"#N/A"},null,"00:00:00"]
[null,null,null,null,null,null,"～",null,null,{"$error":"#N/A"},null,"00:00:00"]
[null,null,null,null,null,null,"～",null,null,{"$error":"#N/A"},null,"00:00:00"]
[null,null,null,null,null,null,"～",null,null,{"$error":"#N/A"},null,"00:00:00"]
[null,null,null,null,null,null,"～",null,null,{"$error":"#N/A"},null,"00:00:00"]
[null,null,null,null,null,null,"～",null,null,{"$error":"#N/A"},null,"00:00:00"]
[null,null,null,null,null,null,"～",null,null,{"$error":"#N/A"},null,"00:00:00"]
[null,null,null,null,null,null,"～",null,null,{"$error":"#N/A"},null,"00:00:00"]
[null,null,null,null,null,null,"～",null,null,{"$error":"#N/A"},null,"00:00:00"]
[null,null,null,null,null,null,"～",null,null,{"$error":"#N/A"},null,"00:00:00"]
[null,null,null,null,null,null,"～",null,null,{"$error":"#N/A"},null,"00:00:00"]
[null,null,null,null,null,null,"～",null,null,{"$error":"#N/A"},null,"00:00:00"]
[null,null,null,null,null,null,"～",null,null,{"$error":"#N/A"},null,"00:00:00"]
[null,null,null,null,null,null,"～",null,null,{"$error":"#N/A"},null,"00:00:00"]
[null,null,null,null,null,null,"～",null,null,{"$error":"#N/A"},null,"00:00:00"]
[null,null,null,null,null,null,"～",null,null,{"$error":"#N/A"},null,"00:00:00"]
[null,null,null,null,null,null,"～",null,null,{"$error":"#N/A"},null,"00:00:00"]
[null,null,null,null,null,null,"～",null,null,{"$error":"#N/A"},null,"00:00:00"]
[null,null,null,null,null,null,"～",null,null,{"$error":"#N/A"},null,"00:00:00"]
[null,null,null,null,null,null,"～",null,null,{"$error":"#N/A"},null,"00:00:00"]
[null,null,null,null,null,null,"～",null,null,{"$error":"#N/A"},null,"00:00:00"]
[null,null,null,null,null,null,"～",null,null,{"$error":"#N/A"},null,"00:00:00"]
[null,null,null,null,null,null,"～",null,null,{"$error":"#N/A"},null,"00:00:00"]
[null,null,null,null,null,null,"～",null,null,{"$error":"#N/A"},null,"00:00:00"]
[null,null,null,null,null,null,"～",null,null,{"$error":"#N/A"},null,"00:00:00"]
[null,null,null,null,null,null,"～",null,null,{"$error":"#N/A"},null,"00:00:00"]
[null,null,null,null,null,null,"～",null,null,{"$error":"#N/A"},null,"00:00:00"]
[null,null,null,null,null,null,"～",null,null,{"$error":"#N/A"},null,"00:00:00"]
[null,null,null,null,null,null,"～",null,null,{"$error":"#N/A"},null,"00:00:00"]
[null,null,null,null,null,null,"～",null,null,{"$error":"#N/A"},null,"00:00:00"]
[null,null,null,null,null,null,"～",null,null,{"$error":"#N/A"},null,"00:00:00"]
[null,null,null,null,null,null,"～",null,null,{"$error":"#N/A"},null,"00:00:00"]
[null,null,null,null,null,null,"～",null,null,{"$error":"#N/A"},null,"00:00:00"]
[null,null,null,null,null,null,"～",null,null,{"$error":"#N/A"},null,"00:00:00"]
[null,null,null,null,null,null,"～",null,null,{"$error":"#N/A"},null,"00:00:00"]
[null,null,null,null,null,null,"～",null,null,{"$error":"#N/A"},null,"00:00:00"]
[null,null,null,null,null,null,"～",null,null,{"$error":"#N/A"},null,"00:00:00"]
[null,null,null,null,null,null,"～",null,null,{"$error":"#N/A"},null,"00:00:00"]
[null,null,null,null,null,null,"～",null,null,{"$error":"#N/A"},null,"00:00:00"]
[null,null,null,null,null,null,"～",null,null,{"$error":"#N/A"},null,"00:00:00"]
[null,null,null,null,null,null,"～",null,null,{"$error":"#N/A"},null,"00:00:00"]
[null,null,null,null,null,null,"～",null,null,{"$error":"#N/A"},null,"00:00:00"]
[null,null,null,null,null,null,"～",null,null,{"$error":"#N/A"},null,"00:00:00"]
[null,null,null,null,null,null,"～",null,null,{"$error":"#N/A"},null,"00:00:00"]
[null,null,null,null,null,null,"～",null,null,{"$error":"#N/A"},null,"00:00:00"]
[null,null,null,null,null,null,"～",null,null,{"$error":"#N/A"},null,"00:00:00"]
[null,null,null,null,null,null,"～",null,null,{"$error":"#N/A"},null,"00:00:00"]
[null,null,null,null,null,null,"～",null,null,{"$error":"#N/A"},null,"00:00:00"]
[null,null,null,null,null,null,"～",null,null,{"$error":"#N/A"},null,"00:00:00"]
[null,null,null,null,null,null,"～",null,null,{"$error":"#N/A"},null,"00:00:00"]
[null,null,null,null,null,null,"～",null,null,{"$error":"#N/A"},null,"00:00:00"]
[null,null,null,null,null,null,"～",null,null,{"$error":"#N/A"},null,"00:00:00"]
[null,null,null,null,null,null,"～",null,null,{"$error":"#N/A"},null,"00:00:00"]
[null,null,null,null,null,null,"～",null,null,{"$error":"#N/A"},null,"00:00:00"]
[null,null,null,null,null,null,"～",null,null,{"$error":"#N/A"},null,"00:00:00"]
[null,null,null,null,null,null,"～",null,null,{"$error":"#N/A"},null,"00:00:00"]
[null,null,null,null,null,null,"～",null,null,{"$error":"#N/A"},null,"00:00:00"]
[null,null,null,null,null,null,"～",null,null,{"$error":"#N/A"},null,"00:00:00"]
[null,null,null,null,null,null,"～",null,null,{"$error":"#N/A"},null,"00:00:00"]
[null,null,null,null,null,null,"～",null,null,{"$error":"#N/A"},null,"00:00:00"]
[null,null,null,null,null,null,"～",null,null,{"$error":"#N/A"},null,"00:00:00"]
[null,null,null,null,null,null,"～",null,null,{"$f":"VLOOKUP(I13639,$C:$D,2,0)","v":{"$error":"#N/A"}},null,"00:00:00"]
[null,null,null,null,null,null,"～",null,null,{"$error":"#N/A"},null,"00:00:00"]
[null,null,null,null,null,null,"～",null,null,{"$error":"#N/A"},null,"00:00:00"]
[null,null,null,null,null,null,"～",null,null,{"$error":"#N/A"},null,"00:00:00"]
[null,null,null,null,null,null,"～",null,null,{"$error":"#N/A"},null,"00:00:00"]
[null,null,null,null,null,null,"～",null,null,{"$error":"#N/A"},null,"00:00:00"]
[null,null,null,null,null,null,"～",null,null,{"$error":"#N/A"},null,"00:00:00"]
[null,null,null,null,null,null,"～",null,null,{"$error":"#N/A"},null,"00:00:00"]
[null,null,null,null,null,null,"～",null,null,{"$error":"#N/A"},null,"00:00:00"]
[null,null,null,null,null,null,"～",null,null,{"$error":"#N/A"},null,"00:00:00"]
[null,null,null,null,null,null,"～",null,null,{"$error":"#N/A"},null,"00:00:00"]
[null,null,null,null,null,null,"～",null,null,{"$error":"#N/A"},null,"00:00:00"]
[null,null,null,null,null,null,"～",null,null,{"$error":"#N/A"},null,"00:00:00"]
[null,null,null,null,null,null,"～",null,null,{"$error":"#N/A"},null,"00:00:00"]
[null,null,null,null,null,null,"～",null,null,{"$error":"#N/A"},null,"00:00:00"]
[null,null,null,null,null,null,"～",null,null,{"$error":"#N/A"},null,"00:00:00"]
[null,null,null,null,null,null,"～",null,null,{"$error":"#N/A"},null,"00:00:00"]
[null,null,null,null,null,null,"～",null,null,{"$error":"#N/A"},null,{"$f":"H13764-F13764","v":"00:00:00"}]
[null,null,null,null,null,null,"～",null,null,{"$error":"#N/A"},null,"00:00:00"]
[null,null,null,null,null,null,"～",null,null,{"$error":"#N/A"},null,"00:00:00"]
[null,null,null,null,null,null,"～",null,null,{"$error":"#N/A"},null,"00:00:00"]
[null,null,null,null,null,null,"～",null,null,{"$error":"#N/A"},null,"00:00:00"]
[null,null,null,null,null,null,"～",null,null,{"$error":"#N/A"},null,"00:00:00"]
[null,null,null,null,null,null,"～",null,null,{"$error":"#N/A"},null,"00:00:00"]
[null,null,null,null,null,null,"～",null,null,{"$error":"#N/A"},null,"00:00:00"]
[null,null,null,null,null,null,"～",null,null,{"$error":"#N/A"},null,"00:00:00"]
[null,null,null,null,null,null,"～",null,null,{"$f":"VLOOKUP(I13831,$C:$D,2,0)","v":{"$error":"#N/A"}},null,"00:00:00"]
[null,null,null,null,null,null,"～",null,null,{"$error":"#N/A"},null,"00:00:00"]
[null,null,null,null,null,null,"～",null,null,{"$error":"#N/A"},null,"00:00:00"]
[null,null,null,null,null,null,"～",null,null,{"$error":"#N/A"},null,"00:00:00"]
[null,null,null,null,null,null,"～",null,null,{"$error":"#N/A"},null,"00:00:00"]
[null,null,null,null,null,null,"～",null,null,{"$error":"#N/A"},null,"00:00:00"]
[null,null,null,null,null,null,"～",null,null,{"$error":"#N/A"},null,"00:00:00"]
[null,null,null,null,null,null,"～",null,null,{"$error":"#N/A"},null,"00:00:00"]
[null,null,null,null,null,null,"～",null,null,{"$error":"#N/A"},null,"00:00:00"]
[null,null,null,null,null,null,"～",null,null,{"$error":"#N/A"},null,"00:00:00"]
[null,null,null,null,null,null,"～",null,null,{"$error":"#N/A"},null,"00:00:00"]
[null,null,null,null,null,null,"～",null,null,{"$error":"#N/A"},null,"00:00:00"]
[null,null,null,null,null,null,"～",null,null,{"$error":"#N/A"},null,"00:00:00"]
[null,null,null,null,null,null,"～",null,null,{"$error":"#N/A"},null,"00:00:00"]
[null,null,null,null,null,null,"～",null,null,{"$error":"#N/A"},null,"00:00:00"]
[null,null,null,null,null,null,"～",null,null,{"$error":"#N/A"},null,"00:00:00"]
[null,null,null,null,null,null,"～",null,null,{"$error":"#N/A"},null,"00:00:00"]
[null,null,null,null,null,null,"～",null,null,{"$error":"#N/A"},null,"00:00:00"]
[null,null,null,null,null,null,"～",null,null,{"$error":"#N/A"},null,"00:00:00"]
[null,null,null,null,null,null,"～",null,null,{"$error":"#N/A"},null,"00:00:00"]
[null,null,null,null,null,null,"～",null,null,{"$error":"#N/A"},null,"00:00:00"]
[null,null,null,null,null,null,"～",null,null,{"$error":"#N/A"},null,"00:00:00"]
[null,null,null,null,null,null,"～",null,null,{"$error":"#N/A"},null,"00:00:00"]
[null,null,null,null,null,null,"～",null,null,{"$error":"#N/A"},null,"00:00:00"]
[null,null,null,null,null,null,"～",null,null,{"$error":"#N/A"},null,"00:00:00"]
[null,null,null,null,null,null,"～",null,null,{"$error":"#N/A"},null,"00:00:00"]
[null,null,null,null,null,null,"～",null,null,{"$error":"#N/A"},null,"00:00:00"]
[null,null,null,null,null,null,"～",null,null,{"$error":"#N/A"},null,"00:00:00"]
[null,null,null,null,null,null,"～",null,null,{"$error":"#N/A"},null,"00:00:00"]
[null,null,null,null,null,null,"～",null,null,{"$error":"#N/A"},null,"00:00:00"]
[null,null,null,null,null,null,"～",null,null,{"$error":"#N/A"},null,"00:00:00"]
[null,null,null,null,null,null,"～",null,null,{"$error":"#N/A"},null,"00:00:00"]
[null,null,null,null,null,null,"～",null,null,{"$error":"#N/A"},null,"00:00:00"]
[null,null,null,null,null,null,"～",null,null,{"$error":"#N/A"},null,"00:00:00"]
[null,null,null,null,null,null,"～",null,null,{"$error":"#N/A"},null,"00:00:00"]
[null,null,null,null,null,null,"～",null,null,{"$error":"#N/A"},null,"00:00:00"]
[null,null,null,null,null,null,"～",null,null,{"$error":"#N/A"},null,"00:00:00"]
[null,null,null,null,null,null,"～",null,null,{"$error":"#N/A"},null,"00:00:00"]
[null,null,null,null,null,null,"～",null,null,{"$error":"#N/A"},null,"00:00:00"]
[null,null,null,null,null,null,"～",null,null,{"$error":"#N/A"},null,"00:00:00"]
[null,null,null,null,null,null,"～",null,null,{"$error":"#N/A"},null,"00:00:00"]
[null,null,null,null,null,null,"～",null,null,{"$error":"#N/A"},null,"00:00:00"]
[null,null,null,null,null,null,"～",null,null,{"$error":"#N/A"},null,"00:00:00"]
[null,null,null,null,null,null,"～",null,null,{"$error":"#N/A"},null,"00:00:00"]
[null,null,null,null,null,null,"～",null,null,{"$error":"#N/A"},null,"00:00:00"]
[null,null,null,null,null,null,"～",null,null,{"$error":"#N/A"},null,"00:00:00"]
[null,null,null,null,null,null,"～",null,null,{"$error":"#N/A"},null,"00:00:00"]
[null,null,null,null,null,null,"～",null,null,{"$error":"#N/A"},null,"00:00:00"]
[null,null,null,null,null,null,"～",null,null,{"$error":"#N/A"},null,"00:00:00"]
[null,null,null,null,null,null,"～",null,null,{"$error":"#N/A"},null,"00:00:00"]
[null,null,null,null,null,null,"～",null,null,{"$error":"#N/A"},null,"00:00:00"]
[null,null,null,null,null,null,"～",null,null,{"$error":"#N/A"},null,"00:00:00"]
[null,null,null,null,null,null,"～",null,null,{"$error":"#N/A"},null,"00:00:00"]
[null,null,null,null,null,null,"～",null,null,{"$error":"#N/A"},null,"00:00:00"]
[null,null,null,null,null,null,"～",null,null,{"$error":"#N/A"},null,"00:00:00"]
[null,null,null,null,null,null,"～",null,null,{"$error":"#N/A"},null,"00:00:00"]
[null,null,null,null,null,null,"～",null,null,{"$error":"#N/A"},null,"00:00:00"]
[null,null,null,null,null,null,"～",null,null,{"$error":"#N/A"},null,"00:00:00"]
[null,null,null,null,null,null,"～",null,null,{"$error":"#N/A"},null,"00:00:00"]
[null,null,null,null,null,null,"～",null,null,{"$error":"#N/A"},null,"00:00:00"]
[null,null,null,null,null,null,"～",null,null,{"$error":"#N/A"},null,"00:00:00"]
[null,null,null,null,null,null,"～",null,null,{"$error":"#N/A"},null,"00:00:00"]
[null,null,null,null,null,null,"～",null,null,{"$error":"#N/A"},null,"00:00:00"]
[null,null,null,null,null,null,"～",null,null,{"$error":"#N/A"},null,"00:00:00"]
[null,null,null,null,null,null,"～",null,null,{"$error":"#N/A"},null,"00:00:00"]
[null,null,null,null,null,null,"～",null,null,{"$error":"#N/A"},null,"00:00:00"]
[null,null,null,null,null,null,"～",null,null,{"$error":"#N/A"},null,"00:00:00"]
[null,null,null,null,null,null,"～",null,null,{"$error":"#N/A"},null,"00:00:00"]
[null,null,null,null,null,null,"～",null,null,{"$error":"#N/A"},null,"00:00:00"]
[null,null,null,null,null,null,"～",null,null,{"$error":"#N/A"},null,"00:00:00"]
[null,null,null,null,null,null,"～",null,null,{"$error":"#N/A"},null,"00:00:00"]
[null,null,null,null,null,null,"～",null,null,{"$error":"#N/A"},null,"00:00:00"]
[null,null,null,null,null,null,"～",null,null,{"$error":"#N/A"},null,"00:00:00"]
[null,null,null,null,null,null,"～",null,null,{"$error":"#N/A"},null,"00:00:00"]
[null,null,null,null,null,null,"～",null,null,{"$error":"#N/A"},null,"00:00:00"]
[null,null,null,null,null,null,"～",null,null,{"$error":"#N/A"},null,"00:00:00"]
[null,null,null,null,null,null,"～",null,null,{"$error":"#N/A"},null,"00:00:00"]
[null,null,null,null,null,null,"～",null,null,{"$error":"#N/A"},null,"00:00:00"]
[null,null,null,null,null,null,"～",null,null,{"$error":"#N/A"},null,"00:00:00"]
[null,null,null,null,null,null,"～",null,null,{"$error":"#N/A"},null,"00:00:00"]
[null,null,null,null,null,null,"～",null,null,{"$error":"#N/A"},null,"00:00:00"]
[null,null,null,null,null,null,"～",null,null,{"$error":"#N/A"},null,"00:00:00"]
[null,null,null,null,null,null,"～",null,null,{"$error":"#N/A"},null,"00:00:00"]
[null,null,null,null,null,null,"～",null,null,{"$error":"#N/A"},null,"00:00:00"]
[null,null,null,null,null,null,"～",null,null,{"$error":"#N/A"},null,"00:00:00"]
[null,null,null,null,null,null,"～",null,null,{"$error":"#N/A"},null,"00:00:00"]
[null,null,null,null,null,null,"～",null,null,{"$error":"#N/A"},null,"00:00:00"]
[null,null,null,null,null,null,"～",null,null,{"$error":"#N/A"},null,"00:00:00"]
[null,null,null,null,null,null,"～",null,null,{"$error":"#N/A"},null,"00:00:00"]
[null,null,null,null,null,null,"～",null,null,{"$error":"#N/A"},null,"00:00:00"]
[null,null,null,null,null,null,"～",null,null,{"$error":"#N/A"},null,"00:00:00"]
[null,null,null,null,null,null,"～",null,null,{"$error":"#N/A"},null,"00:00:00"]
[null,null,null,null,null,null,"～",null,null,{"$error":"#N/A"},null,"00:00:00"]
[null,null,null,null,null,null,"～",null,null,{"$error":"#N/A"},null,"00:00:00"]
[null,null,null,null,null,null,"～",null,null,{"$error":"#N/A"},null,"00:00:00"]
[null,null,null,null,null,null,"～",null,null,{"$error":"#N/A"},null,"00:00:00"]
[null,null,null,null,null,null,"～",null,null,{"$error":"#N/A"},null,"00:00:00"]
[null,null,null,null,null,null,"～",null,null,{"$error":"#N/A"},null,"00:00:00"]
[null,null,null,null,null,null,"～",null,null,{"$error":"#N/A"},null,"00:00:00"]
[null,null,null,null,null,null,"～",null,null,{"$error":"#N/A"},null,"00:00:00"]
[null,null,null,null,null,null,"～",null,null,{"$error":"#N/A"},null,"00:00:00"]
[null,null,null,null,null,null,"～",null,null,{"$error":"#N/A"},null,"00:00:00"]
[null,null,null,null,null,null,"～",null,null,{"$error":"#N/A"},null,"00:00:00"]
[null,null,null,null,null,null,"～",null,null,{"$error":"#N/A"},null,"00:00:00"]
[null,null,null,null,null,null,"～",null,null,{"$error":"#N/A"},null,"00:00:00"]
[null,null,null,null,null,null,"～",null,null,{"$error":"#N/A"},null,"00:00:00"]
[null,null,null,null,null,null,"～",null,null,{"$error":"#N/A"},null,"00:00:00"]
[null,null,null,null,null,null,"～",null,null,{"$error":"#N/A"},null,"00:00:00"]
[null,null,null,null,null,null,"～",null,null,{"$error":"#N/A"},null,"00:00:00"]
[null,null,null,null,null,null,"～",null,null,{"$error":"#N/A"},null,"00:00:00"]
[null,null,null,null,null,null,"～",null,null,{"$error":"#N/A"},null,"00:00:00"]
[null,null,null,null,null,null,"～",null,null,{"$error":"#N/A"},null,"00:00:00"]
[null,null,null,null,null,null,"～",null,null,{"$error":"#N/A"},null,"00:00:00"]
[null,null,null,null,null,null,"～",null,null,{"$error":"#N/A"},null,"00:00:00"]
[null,null,null,null,null,null,"～",null,null,{"$error":"#N/A"},null,"00:00:00"]
[null,null,null,null,null,null,"～",null,null,{"$error":"#N/A"},null,"00:00:00"]
[null,null,null,null,null,null,"～",null,null,{"$error":"#N/A"},null,"00:00:00"]
[null,null,null,null,null,null,"～",null,null,{"$error":"#N/A"},null,"00:00:00"]
[null,null,null,null,null,null,"～",null,null,{"$error":"#N/A"},null,"00:00:00"]
[null,null,null,null,null,null,"～",null,null,{"$error":"#N/A"},null,"00:00:00"]
[null,null,null,null,null,null,"～",null,null,{"$error":"#N/A"},null,"00:00:00"]
[null,null,null,null,null,null,"～",null,null,{"$error":"#N/A"},null,"00:00:00"]
[null,null,null,null,null,null,"～",null,null,{"$error":"#N/A"},null,"00:00:00"]
[null,null,null,null,null,null,"～",null,null,{"$error":"#N/A"},null,"00:00:00"]
[null,null,null,null,null,null,"～",null,null,{"$error":"#N/A"},null,"00:00:00"]
[null,null,null,null,null,null,"～",null,null,{"$error":"#N/A"},null,"00:00:00"]
[null,null,null,null,null,null,"～",null,null,{"$error":"#N/A"},null,"00:00:00"]
[null,null,null,null,null,null,"～",null,null,{"$error":"#N/A"},null,"00:00:00"]
[null,null,null,null,null,null,"～",null,null,{"$error":"#N/A"},null,"00:00:00"]
[null,null,null,null,null,null,"～",null,null,{"$error":"#N/A"},null,"00:00:00"]
[null,null,null,null,null,null,"～",null,null,{"$error":"#N/A"},null,"00:00:00"]
[null,null,null,null,null,null,"～",null,null,{"$error":"#N/A"},null,"00:00:00"]
[null,null,null,null,null,null,"～",null,null,{"$error":"#N/A"},null,"00:00:00"]
[null,null,null,null,null,null,"～",null,null,{"$error":"#N/A"},null,"00:00:00"]
[null,null,null,null,null,null,"～",null,null,{"$error":"#N/A"},null,"00:00:00"]
[null,null,null,null,null,null,"～",null,null,{"$error":"#N/A"},null,"00:00:00"]
[null,null,null,null,null,null,"～",null,null,{"$error":"#N/A"},null,"00:00:00"]
[null,null,null,null,null,null,"～",null,null,{"$error":"#N/A"},null,"00:00:00"]
[null,null,null,null,null,null,"～",null,null,{"$error":"#N/A"},null,"00:00:00"]
[null,null,null,null,null,null,"～",null,null,{"$error":"#N/A"},null,"00:00:00"]
[null,null,null,null,null,null,"～",null,null,{"$error":"#N/A"},null,"00:00:00"]
[null,null,null,null,null,null,"～",null,null,{"$error":"#N/A"},null,"00:00:00"]
[null,null,null,null,null,null,"～",null,null,{"$error":"#N/A"},null,"00:00:00"]
[null,null,null,null,null,null,"～",null,null,{"$error":"#N/A"},null,"00:00:00"]
[null,null,null,null,null,null,"～",null,null,{"$error":"#N/A"},null,"00:00:00"]
[null,null,null,null,null,null,"～",null,null,{"$error":"#N/A"},null,"00:00:00"]
[null,null,null,null,null,null,"～",null,null,{"$error":"#N/A"},null,{"$f":"H14916-F14916","v":"00:00:00"}]
[null,null,null,null,null,null,"～",null,null,{"$error":"#N/A"},null,"00:00:00"]
[null,null,null,null,null,null,"～",null,null,{"$error":"#N/A"},null,"00:00:00"]
[null,null,null,null,null,null,"～",null,null,{"$error":"#N/A"},null,"00:00:00"]
[null,null,null,null,null,null,"～",null,null,{"$error":"#N/A"},null,"00:00:00"]
[null,null,null,null,null,null,"～",null,null,{"$error":"#N/A"},null,"00:00:00"]
[null,null,null,null,null,null,"～",null,null,{"$error":"#N/A"},null,"00:00:00"]
[null,null,null,null,null,null,"～",null,null,{"$error":"#N/A"},null,"00:00:00"]
[null,null,null,null,null,null,"～",null,null,{"$error":"#N/A"},null,"00:00:00"]
[null,null,null,null,null,null,"～",null,null,{"$f":"VLOOKUP(I14983,$C:$D,2,0)","v":{"$error":"#N/A"}},null,"00:00:00"]
[null,null,null,null,null,null,"～",null,null,{"$error":"#N/A"},null,"00:00:00"]
[null,null,null,null,null,null,"～",null,null,{"$error":"#N/A"},null,"00:00:00"]
[null,null,null,null,null,null,"～",null,null,{"$error":"#N/A"},null,"00:00:00"]
[null,null,null,null,null,null,"～",null,null,{"$error":"#N/A"},null,"00:00:00"]
[null,null,null,null,null,null,"～",null,null,{"$error":"#N/A"},null,"00:00:00"]
[null,null,null,null,null,null,"～",null,null,{"$error":"#N/A"},null,"00:00:00"]
[null,null,null,null,null,null,"～",null,null,{"$error":"#N/A"},null,"00:00:00"]
[null,null,null,null,null,null,"～",null,null,{"$error":"#N/A"},null,"00:00:00"]
[null,null,null,null,null,null,"～",null,null,{"$error":"#N/A"},null,"00:00:00"]
[null,null,null,null,null,null,"～",null,null,{"$error":"#N/A"},null,"00:00:00"]
[null,null,null,null,null,null,"～",null,null,{"$error":"#N/A"},null,"00:00:00"]
[null,null,null,null,null,null,"～",null,null,{"$error":"#N/A"},null,"00:00:00"]
[null,null,null,null,null,null,"～",null,null,{"$error":"#N/A"},null,"00:00:00"]
[null,null,null,null,null,null,"～",null,null,{"$error":"#N/A"},null,"00:00:00"]
[null,null,null,null,null,null,"～",null,null,{"$error":"#N/A"},null,"00:00:00"]
[null,null,null,null,null,null,"～",null,null,{"$error":"#N/A"},null,"00:00:00"]
[null,null,null,null,null,null,"～",null,null,{"$error":"#N/A"},null,{"$f":"H15108-F15108","v":"00:00:00"}]
[null,null,null,null,null,null,"～",null,null,{"$f":"VLOOKUP(I15111,$C:$D,2,0)","v":{"$error":"#N/A"}},null,"00:00:00"]
[null,null,null,null,null,null,"～",null,null,{"$error":"#N/A"},null,"00:00:00"]
[null,null,null,null,null,null,"～",null,null,{"$error":"#N/A"},null,"00:00:00"]
[null,null,null,null,null,null,"～",null,null,{"$error":"#N/A"},null,"00:00:00"]
[null,null,null,null,null,null,"～",null,null,{"$error":"#N/A"},null,"00:00:00"]
[null,null,null,null,null,null,"～",null,null,{"$error":"#N/A"},null,"00:00:00"]
[null,null,null,null,null,null,"～",null,null,{"$error":"#N/A"},null,"00:00:00"]
[null,null,null,null,null,null,"～",null,null,{"$error":"#N/A"},null,"00:00:00"]
[null,null,null,null,null,null,"～",null,null,{"$error":"#N/A"},null,{"$f":"H15172-F15172","v":"00:00:00"}]
[null,null,null,null,null,null,"～",null,null,{"$error":"#N/A"},null,"00:00:00"]
[null,null,null,null,null,null,"～",null,null,{"$error":"#N/A"},null,"00:00:00"]
[null,null,null,null,null,null,"～",null,null,{"$error":"#N/A"},null,"00:00:00"]
[null,null,null,null,null,null,"～",null,null,{"$error":"#N/A"},null,"00:00:00"]
[null,null,null,null,null,null,"～",null,null,{"$error":"#N/A"},null,"00:00:00"]
[null,null,null,null,null,null,"～",null,null,{"$error":"#N/A"},null,"00:00:00"]
[null,null,null,null,null,null,"～",null,null,{"$error":"#N/A"},null,"00:00:00"]
[null,null,null,null,null,null,"～",null,null,{"$error":"#N/A"},null,"00:00:00"]
[null,null,null,null,null,null,"～",null,null,{"$error":"#N/A"},null,"00:00:00"]
[null,null,null,null,null,null,"～",null,null,{"$error":"#N/A"},null,"00:00:00"]
[null,null,null,null,null,null,"～",null,null,{"$error":"#N/A"},null,"00:00:00"]
[null,null,null,null,null,null,"～",null,null,{"$error":"#N/A"},null,"00:00:00"]
[null,null,null,null,null,null,"～",null,null,{"$error":"#N/A"},null,"00:00:00"]
[null,null,null,null,null,null,"～",null,null,{"$error":"#N/A"},null,"00:00:00"]
[null,null,null,null,null,null,"～",null,null,{"$error":"#N/A"},null,"00:00:00"]
[null,null,null,null,null,null,"～",null,null,{"$error":"#N/A"},null,"00:00:00"]
[null,null,null,null,null,null,"～",null,null,{"$error":"#N/A"},null,"00:00:00"]
[null,null,null,null,null,null,"～",null,null,{"$error":"#N/A"},null,"00:00:00"]
[null,null,null,null,null,null,"～",null,null,{"$error":"#N/A"},null,"00:00:00"]
[null,null,null,null,null,null,"～",null,null,{"$error":"#N/A"},null,"00:00:00"]
[null,null,null,null,null,null,"～",null,null,{"$error":"#N/A"},null,"00:00:00"]
[null,null,null,null,null,null,"～",null,null,{"$error":"#N/A"},null,"00:00:00"]
[null,null,null,null,null,null,"～",null,null,{"$error":"#N/A"},null,"00:00:00"]
[null,null,null,null,null,null,"～",null,null,{"$error":"#N/A"},null,"00:00:00"]
[null,null,null,null,null,null,"～",null,null,{"$error":"#N/A"},null,"00:00:00"]
[null,null,null,null,null,null,"～",null,null,{"$error":"#N/A"},null,"00:00:00"]
[null,null,null,null,null,null,"～",null,null,{"$error":"#N/A"},null,"00:00:00"]
[null,null,null,null,null,null,"～",null,null,{"$error":"#N/A"},null,"00:00:00"]
[null,null,null,null,null,null,"～",null,null,{"$error":"#N/A"},null,"00:00:00"]
[null,null,null,null,null,null,"～",null,null,{"$error":"#N/A"},null,"00:00:00"]
[null,null,null,null,null,null,"～",null,null,{"$error":"#N/A"},null,"00:00:00"]
[null,null,null,null,null,null,"～",null,null,{"$error":"#N/A"},null,"00:00:00"]
[null,null,null,null,null,null,"～",null,null,{"$error":"#N/A"},null,"00:00:00"]
[null,null,null,null,null,null,"～",null,null,{"$error":"#N/A"},null,"00:00:00"]
[null,null,null,null,null,null,"～",null,null,{"$error":"#N/A"},null,"00:00:00"]
[null,null,null,null,null,null,"～",null,null,{"$error":"#N/A"},null,"00:00:00"]
[null,null,null,null,null,null,"～",null,null,{"$error":"#N/A"},null,"00:00:00"]
[null,null,null,null,null,null,"～",null,null,{"$error":"#N/A"},null,"00:00:00"]
[null,null,null,null,null,null,"～",null,null,{"$error":"#N/A"},null,"00:00:00"]
[null,null,null,null,null,null,"～",null,null,{"$error":"#N/A"},null,"00:00:00"]
[null,null,null,null,null,null,"～",null,null,{"$error":"#N/A"},null,"00:00:00"]
[null,null,null,null,null,null,"～",null,null,{"$error":"#N/A"},null,"00:00:00"]
[null,null,null,null,null,null,"～",null,null,{"$error":"#N/A"},null,{"$f":"H15492-F15492","v":"00:00:00"}]
[null,null,null,null,null,null,"～",null,null,{"$error":"#N/A"},null,"00:00:00"]
[null,null,null,null,null,null,"～",null,null,{"$error":"#N/A"},null,"00:00:00"]
[null,null,null,null,null,null,"～",null,null,{"$error":"#N/A"},null,"00:00:00"]
[null,null,null,null,null,null,"～",null,null,{"$error":"#N/A"},null,"00:00:00"]
[null,null,null,null,null,null,"～",null,null,{"$error":"#N/A"},null,"00:00:00"]
[null,null,null,null,null,null,"～",null,null,{"$error":"#N/A"},null,"00:00:00"]
[null,null,null,null,null,null,"～",null,null,{"$error":"#N/A"},null,"00:00:00"]
[null,null,null,null,null,null,"～",null,null,{"$error":"#N/A"},null,"00:00:00"]
[null,null,null,null,null,null,"～",null,null,{"$error":"#N/A"},null,"00:00:00"]
[null,null,null,null,null,null,"～",null,null,{"$error":"#N/A"},null,"00:00:00"]
[null,null,null,null,null,null,"～",null,null,{"$error":"#N/A"},null,"00:00:00"]
[null,null,null,null,null,null,"～",null,null,{"$error":"#N/A"},null,"00:00:00"]
[null,null,null,null,null,null,"～",null,null,{"$error":"#N/A"},null,"00:00:00"]
[null,null,null,null,null,null,"～",null,null,{"$error":"#N/A"},null,"00:00:00"]
[null,null,null,null,null,null,"～",null,null,{"$error":"#N/A"},null,"00:00:00"]
[null,null,null,null,null,null,"～",null,null,{"$error":"#N/A"},null,"00:00:00"]
[null,null,null,null,null,null,"～",null,null,{"$error":"#N/A"},null,"00:00:00"]
[null,null,null,null,null,null,"～",null,null,{"$f":"VLOOKUP(I15623,$C:$D,2,0)","v":{"$error":"#N/A"}},null,"00:00:00"]
[null,null,null,null,null,null,"～",null,null,{"$error":"#N/A"},null,"00:00:00"]
[null,null,null,null,null,null,"～",null,null,{"$error":"#N/A"},null,"00:00:00"]
[null,null,null,null,null,null,"～",null,null,{"$error":"#N/A"},null,"00:00:00"]
[null,null,null,null,null,null,"～",null,null,{"$error":"#N/A"},null,"00:00:00"]
[null,null,null,null,null,null,"～",null,null,{"$error":"#N/A"},null,"00:00:00"]
[null,null,null,null,null,null,"～",null,null,{"$error":"#N/A"},null,"00:00:00"]
[null,null,null,null,null,null,"～",null,null,{"$error":"#N/A"},null,"00:00:00"]
[null,null,null,null,null,null,"～",null,null,{"$f":"VLOOKUP(I15687,$C:$D,2,0)","v":{"$error":"#N/A"}},null,"00:00:00"]
[null,null,null,null,null,null,"～",null,null,{"$error":"#N/A"},null,"00:00:00"]
[null,null,null,null,null,null,"～",null,null,{"$error":"#N/A"},null,"00:00:00"]
[null,null,null,null,null,null,"～",null,null,{"$error":"#N/A"},null,"00:00:00"]
[null,null,null,null,null,null,"～",null,null,{"$error":"#N/A"},null,"00:00:00"]
[null,null,null,null,null,null,"～",null,null,{"$error":"#N/A"},null,"00:00:00"]
[null,null,null,null,null,null,"～",null,null,{"$error":"#N/A"},null,"00:00:00"]
[null,null,null,null,null,null,"～",null,null,{"$error":"#N/A"},null,"00:00:00"]
[null,null,null,null,null,null,"～",null,null,{"$error":"#N/A"},null,"00:00:00"]
[null,null,null,null,null,null,"～",null,null,{"$error":"#N/A"},null,"00:00:00"]
[null,null,null,null,null,null,"～",null,null,{"$error":"#N/A"},null,"00:00:00"]
[null,null,null,null,null,null,"～",null,null,{"$error":"#N/A"},null,"00:00:00"]
[null,null,null,null,null,null,"～",null,null,{"$error":"#N/A"},null,"00:00:00"]
[null,null,null,null,null,null,"～",null,null,{"$error":"#N/A"},null,"00:00:00"]
[null,null,null,null,null,null,"～",null,null,{"$error":"#N/A"},null,"00:00:00"]
[null,null,null,null,null,null,"～",null,null,{"$error":"#N/A"},null,"00:00:00"]
[null,null,null,null,null,null,"～",null,null,{"$error":"#N/A"},null,"00:00:00"]
[null,null,null,null,null,null,"～",null,null,{"$error":"#N/A"},null,"00:00:00"]
[null,null,null,null,null,null,"～",null,null,{"$error":"#N/A"},null,"00:00:00"]
[null,null,null,null,null,null,"～",null,null,{"$error":"#N/A"},null,"00:00:00"]
[null,null,null,null,null,null,"～",null,null,{"$error":"#N/A"},null,"00:00:00"]
[null,null,null,null,null,null,"～",null,null,{"$error":"#N/A"},null,"00:00:00"]
[null,null,null,null,null,null,"～",null,null,{"$error":"#N/A"},null,"00:00:00"]
[null,null,null,null,null,null,"～",null,null,{"$error":"#N/A"},null,"00:00:00"]
[null,null,null,null,null,null,"～",null,null,{"$error":"#N/A"},null,"00:00:00"]
[null,null,null,null,null,null,"～",null,null,{"$error":"#N/A"},null,"00:00:00"]
[null,null,null,null,null,null,"～",null,null,{"$error":"#N/A"},null,"00:00:00"]
[null,null,null,null,null,null,"～",null,null,{"$error":"#N/A"},null,"00:00:00"]
[null,null,null,null,null,null,"～",null,null,{"$error":"#N/A"},null,"00:00:00"]
[null,null,null,null,null,null,"～",null,null,{"$error":"#N/A"},null,"00:00:00"]
[null,null,null,null,null,null,"～",null,null,{"$error":"#N/A"},null,"00:00:00"]
[null,null,null,null,null,null,"～",null,null,{"$error":"#N/A"},null,"00:00:00"]
[null,null,null,null,null,null,"～",null,null,{"$error":"#N/A"},null,"00:00:00"]
[null,null,null,null,null,null,"～",null,null,{"$error":"#N/A"},null,"00:00:00"]
[null,null,null,null,null,null,"～",null,null,{"$error":"#N/A"},null,"00:00:00"]
[null,null,null,null,null,null,"～",null,null,{"$error":"#N/A"},null,"00:00:00"]
[null,null,null,null,null,null,"～",null,null,{"$error":"#N/A"},null,"00:00:00"]
[null,null,null,null,null,null,"～",null,null,{"$error":"#N/A"},null,"00:00:00"]
[null,null,null,null,null,null,"～",null,null,{"$error":"#N/A"},null,"00:00:00"]
[null,null,null,null,null,null,"～",null,null,{"$error":"#N/A"},null,"00:00:00"]
[null,null,null,null,null,null,"～",null,null,{"$error":"#N/A"},null,"00:00:00"]
[null,null,null,null,null,null,"～",null,null,{"$error":"#N/A"},null,"00:00:00"]
[null,null,null,null,null,null,"～",null,null,{"$error":"#N/A"},null,"00:00:00"]
[null,null,null,null,null,null,"～",null,null,{"$error":"#N/A"},null,"00:00:00"]
[null,null,null,null,null,null,"～",null,null,{"$error":"#N/A"},null,"00:00:00"]
[null,null,null,null,null,null,"～",null,null,{"$error":"#N/A"},null,"00:00:00"]
[null,null,null,null,null,null,"～",null,null,{"$error":"#N/A"},null,"00:00:00"]
[null,null,null,null,null,null,"～",null,null,{"$error":"#N/A"},null,"00:00:00"]
[null,null,null,null,null,null,"～",null,null,{"$error":"#N/A"},null,"00:00:00"]
[null,null,null,null,null,null,"～",null,null,{"$error":"#N/A"},null,"00:00:00"]
[null,null,null,null,null,null,"～",null,null,{"$error":"#N/A"},null,"00:00:00"]
[null,null,null,null,null,null,"～",null,null,{"$error":"#N/A"},null,"00:00:00"]
[null,null,null,null,null,null,"～",null,null,{"$error":"#N/A"},null,"00:00:00"]
[null,null,null,null,null,null,"～",null,null,{"$error":"#N/A"},null,"00:00:00"]
[null,null,null,null,null,null,"～",null,null,{"$error":"#N/A"},null,"00:00:00"]
[null,null,null,null,null,null,"～",null,null,{"$error":"#N/A"},null,"00:00:00"]
[null,null,null,null,null,null,"～",null,null,{"$error":"#N/A"},null,"00:00:00"]
[null,null,null,null,null,null,"～",null,null,{"$error":"#N/A"},null,"00:00:00"]
[null,null,null,null,null,null,"～",null,null,{"$error":"#N/A"},null,"00:00:00"]
[null,null,null,null,null,null,"～",null,null,{"$error":"#N/A"},null,"00:00:00"]
[null,null,null,null,null,null,"～",null,null,{"$error":"#N/A"},null,"00:00:00"]
[null,null,null,null,null,null,"～",null,null,{"$error":"#N/A"},null,"00:00:00"]
[null,null,null,null,null,null,"～",null,null,{"$error":"#N/A"},null,"00:00:00"]
[null,null,null,null,null,null,"～",null,null,{"$error":"#N/A"},null,"00:00:00"]
[null,null,null,null,null,null,"～",null,null,{"$error":"#N/A"},null,"00:00:00"]
[null,null,null,null,null,null,"～",null,null,{"$error":"#N/A"},null,"00:00:00"]
[null,null,null,null,null,null,"～",null,null,{"$error":"#N/A"},null,"00:00:00"]
[null,null,null,null,null,null,"～",null,null,{"$error":"#N/A"},null,"00:00:00"]
[null,null,null,null,null,null,"～",null,null,{"$error":"#N/A"},null,"00:00:00"]
[null,null,null,null,null,null,"～",null,null,{"$error":"#N/A"},null,"00:00:00"]
[null,null,null,null,null,null,"～",null,null,{"$error":"#N/A"},null,"00:00:00"]
[null,null,null,null,null,null,"～",null,null,{"$error":"#N/A"},null,"00:00:00"]
[null,null,null,null,null,null,"～",null,null,{"$error":"#N/A"},null,"00:00:00"]
[null,null,null,null,null,null,"～",null,null,{"$error":"#N/A"},null,"00:00:00"]
[null,null,null,null,null,null,"～",null,null,{"$error":"#N/A"},null,"00:00:00"]
[null,null,null,null,null,null,"～",null,null,{"$error":"#N/A"},null,"00:00:00"]
[null,null,null,null,null,null,"～",null,null,{"$error":"#N/A"},null,"00:00:00"]
[null,null,null,null,null,null,"～",null,null,{"$error":"#N/A"},null,"00:00:00"]
[null,null,null,null,null,null,"～",null,null,{"$error":"#N/A"},null,"00:00:00"]
[null,null,null,null,null,null,"～",null,null,{"$error":"#N/A"},null,"00:00:00"]
[null,null,null,null,null,null,"～",null,null,{"$error":"#N/A"},null,"00:00:00"]
[null,null,null,null,null,null,"～",null,null,{"$error":"#N/A"},null,"00:00:00"]
[null,null,null,null,null,null,"～",null,null,{"$error":"#N/A"},null,"00:00:00"]
[null,null,null,null,null,null,"～",null,null,{"$error":"#N/A"},null,"00:00:00"]
[null,null,null,null,null,null,"～",null,null,{"$error":"#N/A"},null,"00:00:00"]
[null,null,null,null,null,null,"～",null,null,{"$error":"#N/A"},null,"00:00:00"]
[null,null,null,null,null,null,"～",null,null,{"$error":"#N/A"},null,"00:00:00"]
[null,null,null,null,null,null,"～",null,null,{"$error":"#N/A"},null,"00:00:00"]
[null,null,null,null,null,null,"～",null,null,{"$error":"#N/A"},null,"00:00:00"]
[null,null,null,null,null,null,"～",null,null,{"$error":"#N/A"},null,"00:00:00"]
[null,null,null,null,null,null,"～",null,null,{"$error":"#N/A"},null,"00:00:00"]
[null,null,null,null,null,null,"～",null,null,{"$error":"#N/A"},null,"00:00:00"]
[null,null,null,null,null,null,"～",null,null,{"$error":"#N/A"},null,"00:00:00"]
[null,null,null,null,null,null,"～",null,null,{"$error":"#N/A"},null,"00:00:00"]
[null,null,null,null,null,null,"～",null,null,{"$error":"#N/A"},null,"00:00:00"]
[null,null,null,null,null,null,"～",null,null,{"$f":"VLOOKUP(I16391,$C:$D,2,0)","v":{"$error":"#N/A"}},null,"00:00:00"]
[null,null,null,null,null,null,"～",null,null,{"$error":"#N/A"},null,"00:00:00"]
[null,null,null,null,null,null,"～",null,null,{"$error":"#N/A"},null,"00:00:00"]
[null,null,null,null,null,null,"～",null,null,{"$error":"#N/A"},null,"00:00:00"]
[null,null,null,null,null,null,"～",null,null,{"$error":"#N/A"},null,"00:00:00"]
[null,null,null,null,null,null,"～",null,null,{"$error":"#N/A"},null,"00:00:00"]
[null,null,null,null,null,null,"～",null,null,{"$error":"#N/A"},null,"00:00:00"]
[null,null,null,null,null,null,"～",null,null,{"$error":"#N/A"},null,"00:00:00"]
[null,null,null,null,null,null,"～",null,null,{"$error":"#N/A"},null,"00:00:00"]
[null,null,null,null,null,null,"～",null,null,{"$error":"#N/A"},null,"00:00:00"]
[null,null,null,null,null,null,"～",null,null,{"$error":"#N/A"},null,"00:00:00"]
[null,null,null,null,null,null,"～",null,null,{"$error":"#N/A"},null,"00:00:00"]
[null,null,null,null,null,null,"～",null,null,{"$error":"#N/A"},null,"00:00:00"]
[null,null,null,null,null,null,"～",null,null,{"$error":"#N/A"},null,"00:00:00"]
[null,null,null,null,null,null,"～",null,null,{"$error":"#N/A"},null,"00:00:00"]
[null,null,null,null,null,null,"～",null,null,{"$error":"#N/A"},null,"00:00:00"]
[null,null,null,null,null,null,"～",null,null,{"$error":"#N/A"},null,"00:00:00"]
[null,null,null,null,null,null,"～",null,null,{"$error":"#N/A"},null,{"$f":"H16516-F16516","v":"00:00:00"}]
[null,null,null,null,null,null,"～",null,null,{"$error":"#N/A"},null,"00:00:00"]
[null,null,null,null,null,null,"～",null,null,{"$error":"#N/A"},null,"00:00:00"]
[null,null,null,null,null,null,"～",null,null,{"$error":"#N/A"},null,"00:00:00"]
[null,null,null,null,null,null,"～",null,null,{"$error":"#N/A"},null,"00:00:00"]
[null,null,null,null,null,null,"～",null,null,{"$error":"#N/A"},null,"00:00:00"]
[null,null,null,null,null,null,"～",null,null,{"$error":"#N/A"},null,"00:00:00"]
[null,null,null,null,null,null,"～",null,null,{"$error":"#N/A"},null,"00:00:00"]
[null,null,null,null,null,null,"～",null,null,{"$error":"#N/A"},null,"00:00:00"]
[null,null,null,null,null,null,"～",null,null,{"$error":"#N/A"},null,"00:00:00"]
[null,null,null,null,null,null,"～",null,null,{"$error":"#N/A"},null,"00:00:00"]
[null,null,null,null,null,null,"～",null,null,{"$error":"#N/A"},null,"00:00:00"]
[null,null,null,null,null,null,"～",null,null,{"$error":"#N/A"},null,"00:00:00"]
[null,null,null,null,null,null,"～",null,null,{"$error":"#N/A"},null,"00:00:00"]
[null,null,null,null,null,null,"～",null,null,{"$error":"#N/A"},null,"00:00:00"]
[null,null,null,null,null,null,"～",null,null,{"$error":"#N/A"},null,"00:00:00"]
[null,null,null,null,null,null,"～",null,null,{"$error":"#N/A"},null,"00:00:00"]
[null,null,null,null,null,null,"～",null,null,{"$error":"#N/A"},null,"00:00:00"]
[null,null,null,null,null,null,"～",null,null,{"$error":"#N/A"},null,"00:00:00"]
[null,null,null,null,null,null,"～",null,null,{"$error":"#N/A"},null,"00:00:00"]
[null,null,null,null,null,null,"～",null,null,{"$error":"#N/A"},null,"00:00:00"]
[null,null,null,null,null,null,"～",null,null,{"$error":"#N/A"},null,"00:00:00"]
[null,null,null,null,null,null,"～",null,null,{"$error":"#N/A"},null,"00:00:00"]
[null,null,null,null,null,null,"～",null,null,{"$error":"#N/A"},null,"00:00:00"]
[null,null,null,null,null,null,"～",null,null,{"$error":"#N/A"},null,"00:00:00"]
[null,null,null,null,null,null,"～",null,null,{"$error":"#N/A"},null,"00:00:00"]
[null,null,null,null,null,null,"～",null,null,{"$error":"#N/A"},null,"00:00:00"]
[null,null,null,null,null,null,"～",null,null,{"$error":"#N/A"},null,"00:00:00"]
[null,null,null,null,null,null,"～",null,null,{"$error":"#N/A"},null,"00:00:00"]
[null,null,null,null,null,null,"～",null,null,{"$error":"#N/A"},null,"00:00:00"]
[null,null,null,null,null,null,"～",null,null,{"$error":"#N/A"},null,"00:00:00"]
[null,null,null,null,null,null,"～",null,null,{"$error":"#N/A"},null,"00:00:00"]
[null,null,null,null,null,null,"～",null,null,{"$error":"#N/A"},null,"00:00:00"]
[null,null,null,null,null,null,"～",null,null,{"$error":"#N/A"},null,"00:00:00"]
[null,null,null,null,null,null,"～",null,null,{"$error":"#N/A"},null,"00:00:00"]
[null,null,null,null,null,null,"～",null,null,{"$error":"#N/A"},null,{"$f":"H16772-F16772","v":"00:00:00"}]
[null,null,null,null,null,null,"～",null,null,{"$error":"#N/A"},null,"00:00:00"]
[null,null,null,null,null,null,"～",null,null,{"$error":"#N/A"},null,"00:00:00"]
[null,null,null,null,null,null,"～",null,null,{"$error":"#N/A"},null,"00:00:00"]
[null,null,null,null,null,null,"～",null,null,{"$error":"#N/A"},null,"00:00:00"]
[null,null,null,null,null,null,"～",null,null,{"$error":"#N/A"},null,"00:00:00"]
[null,null,null,null,null,null,"～",null,null,{"$error":"#N/A"},null,"00:00:00"]
[null,null,null,null,null,null,"～",null,null,{"$error":"#N/A"},null,"00:00:00"]
[null,null,null,null,null,null,"～",null,null,{"$error":"#N/A"},null,"00:00:00"]
[null,null,null,null,null,null,"～",null,null,{"$error":"#N/A"},null,"00:00:00"]
[null,null,null,null,null,null,"～",null,null,{"$error":"#N/A"},null,"00:00:00"]
[null,null,null,null,null,null,"～",null,null,{"$error":"#N/A"},null,"00:00:00"]
[null,null,null,null,null,null,"～",null,null,{"$error":"#N/A"},null,"00:00:00"]
[null,null,null,null,null,null,"～",null,null,{"$error":"#N/A"},null,{"$f":"H16836-F16836","v":"00:00:00"}]
[null,null,null,null,null,null,"～",null,null,{"$error":"#N/A"},null,"00:00:00"]
[null,null,null,null,null,null,"～",null,null,{"$error":"#N/A"},null,"00:00:00"]
[null,null,null,null,null,null,"～",null,null,{"$f":"VLOOKUP(I16839,$C:$D,2,0)","v":{"$error":"#N/A"}},null,"00:00:00"]
[null,null,null,null,null,null,"～",null,null,{"$error":"#N/A"},null,"00:00:00"]
[null,null,null,null,null,null,"～",null,null,{"$error":"#N/A"},null,"00:00:00"]
[null,null,null,null,null,null,"～",null,null,{"$error":"#N/A"},null,"00:00:00"]
[null,null,null,null,null,null,"～",null,null,{"$error":"#N/A"},null,"00:00:00"]
[null,null,null,null,null,null,"～",null,null,{"$error":"#N/A"},null,"00:00:00"]
[null,null,null,null,null,null,"～",null,null,{"$error":"#N/A"},null,"00:00:00"]
[null,null,null,null,null,null,"～",null,null,{"$error":"#N/A"},null,"00:00:00"]
[null,null,null,null,null,null,"～",null,null,{"$error":"#N/A"},null,"00:00:00"]
[null,null,null,null,null,null,"～",null,null,{"$error":"#N/A"},null,"00:00:00"]
[null,null,null,null,null,null,"～",null,null,{"$error":"#N/A"},null,"00:00:00"]
[null,null,null,null,null,null,"～",null,null,{"$error":"#N/A"},null,"00:00:00"]
[null,null,null,null,null,null,"～",null,null,{"$error":"#N/A"},null,"00:00:00"]
[null,null,null,null,null,null,"～",null,null,{"$error":"#N/A"},null,"00:00:00"]
[null,null,null,null,null,null,"～",null,null,{"$error":"#N/A"},null,"00:00:00"]
[null,null,null,null,null,null,"～",null,null,{"$error":"#N/A"},null,"00:00:00"]
[null,null,null,null,null,null,"～",null,null,{"$error":"#N/A"},null,"00:00:00"]
[null,null,null,null,null,null,"～",null,null,{"$error":"#N/A"},null,"00:00:00"]
[null,null,null,null,null,null,"～",null,null,{"$error":"#N/A"},null,"00:00:00"]
[null,null,null,null,null,null,"～",null,null,{"$error":"#N/A"},null,"00:00:00"]
[null,null,null,null,null,null,"～",null,null,{"$error":"#N/A"},null,"00:00:00"]
[null,null,null,null,null,null,"～",null,null,{"$error":"#N/A"},null,"00:00:00"]
[null,null,null,null,null,null,"～",null,null,{"$error":"#N/A"},null,"00:00:00"]
[null,null,null,null,null,null,"～",null,null,{"$error":"#N/A"},null,"00:00:00"]
[null,null,null,null,null,null,"～",null,null,{"$error":"#N/A"},null,"00:00:00"]
[null,null,null,null,null,null,"～",null,null,{"$error":"#N/A"},null,"00:00:00"]
[null,null,null,null,null,null,"～",null,null,{"$error":"#N/A"},null,"00:00:00"]
[null,null,null,null,null,null,"～",null,null,{"$error":"#N/A"},null,"00:00:00"]
[null,null,null,null,null,null,"～",null,null,{"$error":"#N/A"},null,"00:00:00"]
[null,null,null,null,null,null,"～",null,null,{"$error":"#N/A"},null,"00:00:00"]
[null,null,null,null,null,null,"～",null,null,{"$error":"#N/A"},null,"00:00:00"]
[null,null,null,null,null,null,"～",null,null,{"$error":"#N/A"},null,"00:00:00"]
[null,null,null,null,null,null,"～",null,null,{"$error":"#N/A"},null,"00:00:00"]
[null,null,null,null,null,null,"～",null,null,{"$error":"#N/A"},null,"00:00:00"]
[null,null,null,null,null,null,"～",null,null,{"$error":"#N/A"},null,"00:00:00"]
[null,null,null,null,null,null,"～",null,null,{"$error":"#N/A"},null,"00:00:00"]
[null,null,null,null,null,null,"～",null,null,{"$error":"#N/A"},null,"00:00:00"]
[null,null,null,null,null,null,"～",null,null,{"$error":"#N/A"},null,"00:00:00"]
[null,null,null,null,null,null,"～",null,null,{"$error":"#N/A"},null,"00:00:00"]
[null,null,null,null,null,null,"～",null,null,{"$error":"#N/A"},null,"00:00:00"]
[null,null,null,null,null,null,"～",null,null,{"$error":"#N/A"},null,"00:00:00"]
[null,null,null,null,null,null,"～",null,null,{"$error":"#N/A"},null,"00:00:00"]
[null,null,null,null,null,null,"～",null,null,{"$error":"#N/A"},null,"00:00:00"]
[null,null,null,null,null,null,"～",null,null,{"$error":"#N/A"},null,"00:00:00"]
[null,null,null,null,null,null,"～",null,null,{"$error":"#N/A"},null,"00:00:00"]
[null,null,null,null,null,null,"～",null,null,{"$error":"#N/A"},null,"00:00:00"]
[null,null,null,null,null,null,"～",null,null,{"$error":"#N/A"},null,"00:00:00"]
[null,null,null,null,null,null,"～",null,null,{"$error":"#N/A"},null,"00:00:00"]
[null,null,null,null,null,null,"～",null,null,{"$error":"#N/A"},null,"00:00:00"]
[null,null,null,null,null,null,"～",null,null,{"$error":"#N/A"},null,"00:00:00"]
[null,null,null,null,null,null,"～",null,null,{"$error":"#N/A"},null,"00:00:00"]
[null,null,null,null,null,null,"～",null,null,{"$error":"#N/A"},null,"00:00:00"]
[null,null,null,null,null,null,"～",null,null,{"$error":"#N/A"},null,"00:00:00"]
[null,null,null,null,null,null,"～",null,null,{"$error":"#N/A"},null,"00:00:00"]
[null,null,null,null,null,null,"～",null,null,{"$error":"#N/A"},null,"00:00:00"]
[null,null,null,null,null,null,"～",null,null,{"$error":"#N/A"},null,"00:00:00"]
[null,null,null,null,null,null,"～",null,null,{"$error":"#N/A"},null,"00:00:00"]
[null,null,null,null,null,null,"～",null,null,{"$error":"#N/A"},null,"00:00:00"]
[null,null,null,null,null,null,"～",null,null,{"$error":"#N/A"},null,"00:00:00"]
[null,null,null,null,null,null,"～",null,null,{"$error":"#N/A"},null,"00:00:00"]
[null,null,null,null,null,null,"～",null,null,{"$error":"#N/A"},null,"00:00:00"]
[null,null,null,null,null,null,"～",null,null,{"$error":"#N/A"},null,{"$f":"H16900-F16900","v":"00:00:00"}]
[null,null,null,null,null,null,"～",null,null,{"$error":"#N/A"},null,"00:00:00"]
[null,null,null,null,null,null,"～",null,null,{"$error":"#N/A"},null,"00:00:00"]
[null,null,null,null,null,null,"～",null,null,{"$f":"VLOOKUP(I16903,$C:$D,2,0)","v":{"$error":"#N/A"}},null,"00:00:00"]
[null,null,null,null,null,null,"～",null,null,{"$error":"#N/A"},null,"00:00:00"]
[null,null,null,null,null,null,"～",null,null,{"$error":"#N/A"},null,"00:00:00"]
[null,null,null,null,null,null,"～",null,null,{"$error":"#N/A"},null,"00:00:00"]
[null,null,null,null,null,null,"～",null,null,{"$error":"#N/A"},null,"00:00:00"]
[null,null,null,null,null,null,"～",null,null,{"$error":"#N/A"},null,"00:00:00"]
[null,null,null,null,null,null,"～",null,null,{"$error":"#N/A"},null,"00:00:00"]
[null,null,null,null,null,null,"～",null,null,{"$error":"#N/A"},null,"00:00:00"]
[null,null,null,null,null,null,"～",null,null,{"$error":"#N/A"},null,"00:00:00"]
[null,null,null,null,null,null,"～",null,null,{"$error":"#N/A"},null,"00:00:00"]
[null,null,null,null,null,null,"～",null,null,{"$error":"#N/A"},null,"00:00:00"]
[null,null,null,null,null,null,"～",null,null,{"$error":"#N/A"},null,"00:00:00"]
[null,null,null,null,null,null,"～",null,null,{"$error":"#N/A"},null,"00:00:00"]
[null,null,null,null,null,null,"～",null,null,{"$error":"#N/A"},null,"00:00:00"]
[null,null,null,null,null,null,"～",null,null,{"$error":"#N/A"},null,"00:00:00"]
[null,null,null,null,null,null,"～",null,null,{"$error":"#N/A"},null,"00:00:00"]
[null,null,null,null,null,null,"～",null,null,{"$error":"#N/A"},null,"00:00:00"]
[null,null,null,null,null,null,"～",null,null,{"$error":"#N/A"},null,"00:00:00"]
[null,null,null,null,null,null,"～",null,null,{"$error":"#N/A"},null,"00:00:00"]
[null,null,null,null,null,null,"～",null,null,{"$error":"#N/A"},null,"00:00:00"]
[null,null,null,null,null,null,"～",null,null,{"$error":"#N/A"},null,"00:00:00"]
[null,null,null,null,null,null,"～",null,null,{"$error":"#N/A"},null,"00:00:00"]
[null,null,null,null,null,null,"～",null,null,{"$error":"#N/A"},null,"00:00:00"]
[null,null,null,null,null,null,"～",null,null,{"$error":"#N/A"},null,"00:00:00"]
[null,null,null,null,null,null,"～",null,null,{"$error":"#N/A"},null,"00:00:00"]
[null,null,null,null,null,null,"～",null,null,{"$error":"#N/A"},null,"00:00:00"]
[null,null,null,null,null,null,"～",null,null,{"$error":"#N/A"},null,"00:00:00"]
[null,null,null,null,null,null,"～",null,null,{"$error":"#N/A"},null,"00:00:00"]
[null,null,null,null,null,null,"～",null,null,{"$error":"#N/A"},null,"00:00:00"]
[null,null,null,null,null,null,"～",null,null,{"$error":"#N/A"},null,"00:00:00"]
[null,null,null,null,null,null,"～",null,null,{"$error":"#N/A"},null,"00:00:00"]
[null,null,null,null,null,null,"～",null,null,{"$error":"#N/A"},null,"00:00:00"]
[null,null,null,null,null,null,"～",null,null,{"$error":"#N/A"},null,"00:00:00"]
[null,null,null,null,null,null,"～",null,null,{"$error":"#N/A"},null,"00:00:00"]
[null,null,null,null,null,null,"～",null,null,{"$error":"#N/A"},null,"00:00:00"]
[null,null,null,null,null,null,"～",null,null,{"$error":"#N/A"},null,"00:00:00"]
[null,null,null,null,null,null,"～",null,null,{"$error":"#N/A"},null,"00:00:00"]
[null,null,null,null,null,null,"～",null,null,{"$error":"#N/A"},null,"00:00:00"]
[null,null,null,null,null,null,"～",null,null,{"$error":"#N/A"},null,"00:00:00"]
[null,null,null,null,null,null,"～",null,null,{"$error":"#N/A"},null,"00:00:00"]
[null,null,null,null,null,null,"～",null,null,{"$error":"#N/A"},null,"00:00:00"]
[null,null,null,null,null,null,"～",null,null,{"$error":"#N/A"},null,"00:00:00"]
[null,null,null,null,null,null,"～",null,null,{"$error":"#N/A"},null,"00:00:00"]
[null,null,null,null,null,null,"～",null,null,{"$error":"#N/A"},null,"00:00:00"]
[null,null,null,null,null,null,"～",null,null,{"$error":"#N/A"},null,"00:00:00"]
[null,null,null,null,null,null,"～",null,null,{"$error":"#N/A"},null,"00:00:00"]
[null,null,null,null,null,null,"～",null,null,{"$error":"#N/A"},null,"00:00:00"]
[null,null,null,null,null,null,"～",null,null,{"$error":"#N/A"},null,"00:00:00"]
[null,null,null,null,null,null,"～",null,null,{"$error":"#N/A"},null,"00:00:00"]
[null,null,null,null,null,null,"～",null,null,{"$error":"#N/A"},null,"00:00:00"]
[null,null,null,null,null,null,"～",null,null,{"$error":"#N/A"},null,"00:00:00"]
[null,null,null,null,null,null,"～",null,null,{"$error":"#N/A"},null,"00:00:00"]
[null,null,null,null,null,null,"～",null,null,{"$error":"#N/A"},null,"00:00:00"]
[null,null,null,null,null,null,"～",null,null,{"$error":"#N/A"},null,"00:00:00"]
[null,null,null,null,null,null,"～",null,null,{"$error":"#N/A"},null,"00:00:00"]
[null,null,null,null,null,null,"～",null,null,{"$error":"#N/A"},null,"00:00:00"]
[null,null,null,null,null,null,"～",null,null,{"$error":"#N/A"},null,"00:00:00"]
[null,null,null,null,null,null,"～",null,null,{"$error":"#N/A"},null,"00:00:00"]
[null,null,null,null,null,null,"～",null,null,{"$error":"#N/A"},null,"00:00:00"]
[null,null,null,null,null,null,"～",null,null,{"$error":"#N/A"},null,"00:00:00"]
[null,null,null,null,null,null,"～",null,null,{"$error":"#N/A"},null,"00:00:00"]
[null,null,null,null,null,null,"～",null,null,{"$error":"#N/A"},null,{"$f":"H16964-F16964","v":"00:00:00"}]
[null,null,null,null,null,null,"～",null,null,{"$error":"#N/A"},null,"00:00:00"]
[null,null,null,null,null,null,"～",null,null,{"$error":"#N/A"},null,"00:00:00"]
[null,null,null,null,null,null,"～",null,null,{"$f":"VLOOKUP(I16967,$C:$D,2,0)","v":{"$error":"#N/A"}},null,"00:00:00"]
[null,null,null,null,null,null,"～",null,null,{"$error":"#N/A"},null,"00:00:00"]
[null,null,null,null,null,null,"～",null,null,{"$error":"#N/A"},null,"00:00:00"]
[null,null,null,null,null,null,"～",null,null,{"$error":"#N/A"},null,"00:00:00"]
[null,null,null,null,null,null,"～",null,null,{"$error":"#N/A"},null,"00:00:00"]
[null,null,null,null,null,null,"～",null,null,{"$error":"#N/A"},null,"00:00:00"]
[null,null,null,null,null,null,"～",null,null,{"$error":"#N/A"},null,"00:00:00"]
[null,null,null,null,null,null,"～",null,null,{"$error":"#N/A"},null,"00:00:00"]
[null,null,null,null,null,null,"～",null,null,{"$error":"#N/A"},null,"00:00:00"]
[null,null,null,null,null,null,"～",null,null,{"$error":"#N/A"},null,"00:00:00"]
[null,null,null,null,null,null,"～",null,null,{"$error":"#N/A"},null,"00:00:00"]
[null,null,null,null,null,null,"～",null,null,{"$error":"#N/A"},null,"00:00:00"]
[null,null,null,null,null,null,"～",null,null,{"$error":"#N/A"},null,"00:00:00"]
[null,null,null,null,null,null,"～",null,null,{"$error":"#N/A"},null,"00:00:00"]
[null,null,null,null,null,null,"～",null,null,{"$error":"#N/A"},null,"00:00:00"]
[null,null,null,null,null,null,"～",null,null,{"$error":"#N/A"},null,"00:00:00"]
[null,null,null,null,null,null,"～",null,null,{"$error":"#N/A"},null,"00:00:00"]
[null,null,null,null,null,null,"～",null,null,{"$error":"#N/A"},null,"00:00:00"]
[null,null,null,null,null,null,"～",null,null,{"$error":"#N/A"},null,"00:00:00"]
[null,null,null,null,null,null,"～",null,null,{"$error":"#N/A"},null,"00:00:00"]
[null,null,null,null,null,null,"～",null,null,{"$error":"#N/A"},null,"00:00:00"]
[null,null,null,null,null,null,"～",null,null,{"$error":"#N/A"},null,"00:00:00"]
[null,null,null,null,null,null,"～",null,null,{"$error":"#N/A"},null,"00:00:00"]
[null,null,null,null,null,null,"～",null,null,{"$error":"#N/A"},null,"00:00:00"]
[null,null,null,null,null,null,"～",null,null,{"$error":"#N/A"},null,"00:00:00"]
[null,null,null,null,null,null,"～",null,null,{"$error":"#N/A"},null,"00:00:00"]
[null,null,null,null,null,null,"～",null,null,{"$error":"#N/A"},null,"00:00:00"]
[null,null,null,null,null,null,"～",null,null,{"$error":"#N/A"},null,"00:00:00"]
[null,null,null,null,null,null,"～",null,null,{"$error":"#N/A"},null,"00:00:00"]
[null,null,null,null,null,null,"～",null,null,{"$error":"#N/A"},null,"00:00:00"]
[null,null,null,null,null,null,"～",null,null,{"$error":"#N/A"},null,"00:00:00"]
[null,null,null,null,null,null,"～",null,null,{"$error":"#N/A"},null,"00:00:00"]
[null,null,null,null,null,null,"～",null,null,{"$error":"#N/A"},null,"00:00:00"]
[null,null,null,null,null,null,"～",null,null,{"$error":"#N/A"},null,"00:00:00"]
[null,null,null,null,null,null,"～",null,null,{"$error":"#N/A"},null,"00:00:00"]
[null,null,null,null,null,null,"～",null,null,{"$error":"#N/A"},null,"00:00:00"]
[null,null,null,null,null,null,"～",null,null,{"$error":"#N/A"},null,"00:00:00"]
[null,null,null,null,null,null,"～",null,null,{"$error":"#N/A"},null,"00:00:00"]
[null,null,null,null,null,null,"～",null,null,{"$error":"#N/A"},null,"00:00:00"]
[null,null,null,null,null,null,"～",null,null,{"$error":"#N/A"},null,"00:00:00"]
[null,null,null,null,null,null,"～",null,null,{"$error":"#N/A"},null,"00:00:00"]
[null,null,null,null,null,null,"～",null,null,{"$error":"#N/A"},null,"00:00:00"]
[null,null,null,null,null,null,"～",null,null,{"$error":"#N/A"},null,"00:00:00"]
[null,null,null,null,null,null,"～",null,null,{"$error":"#N/A"},null,"00:00:00"]
[null,null,null,null,null,null,"～",null,null,{"$error":"#N/A"},null,"00:00:00"]
[null,null,null,null,null,null,"～",null,null,{"$error":"#N/A"},null,"00:00:00"]
[null,null,null,null,null,null,"～",null,null,{"$error":"#N/A"},null,"00:00:00"]
[null,null,null,null,null,null,"～",null,null,{"$error":"#N/A"},null,"00:00:00"]
[null,null,null,null,null,null,"～",null,null,{"$error":"#N/A"},null,"00:00:00"]
[null,null,null,null,null,null,"～",null,null,{"$error":"#N/A"},null,"00:00:00"]
[null,null,null,null,null,null,"～",null,null,{"$error":"#N/A"},null,"00:00:00"]
[null,null,null,null,null,null,"～",null,null,{"$error":"#N/A"},null,"00:00:00"]
[null,null,null,null,null,null,"～",null,null,{"$error":"#N/A"},null,"00:00:00"]
[null,null,null,null,null,null,"～",null,null,{"$error":"#N/A"},null,"00:00:00"]
[null,null,null,null,null,null,"～",null,null,{"$error":"#N/A"},null,"00:00:00"]
[null,null,null,null,null,null,"～",null,null,{"$error":"#N/A"},null,"00:00:00"]
[null,null,null,null,null,null,"～",null,null,{"$error":"#N/A"},null,"00:00:00"]
[null,null,null,null,null,null,"～",null,null,{"$error":"#N/A"},null,"00:00:00"]
[null,null,null,null,null,null,"～",null,null,{"$error":"#N/A"},null,"00:00:00"]
[null,null,null,null,null,null,"～",null,null,{"$error":"#N/A"},null,"00:00:00"]
[null,null,null,null,null,null,"～",null,null,{"$error":"#N/A"},null,"00:00:00"]
[null,null,null,null,null,null,"～",null,null,{"$error":"#N/A"},null,{"$f":"H17028-F17028","v":"00:00:00"}]
[null,null,null,null,null,null,"～",null,null,{"$error":"#N/A"},null,"00:00:00"]
[null,null,null,null,null,null,"～",null,null,{"$error":"#N/A"},null,"00:00:00"]
[null,null,null,null,null,null,"～",null,null,{"$f":"VLOOKUP(I17031,$C:$D,2,0)","v":{"$error":"#N/A"}},null,"00:00:00"]
[null,null,null,null,null,null,"～",null,null,{"$error":"#N/A"},null,"00:00:00"]
[null,null,null,null,null,null,"～",null,null,{"$error":"#N/A"},null,"00:00:00"]
[null,null,null,null,null,null,"～",null,null,{"$error":"#N/A"},null,"00:00:00"]
[null,null,null,null,null,null,"～",null,null,{"$error":"#N/A"},null,"00:00:00"]
[null,null,null,null,null,null,"～",null,null,{"$error":"#N/A"},null,"00:00:00"]
[null,null,null,null,null,null,"～",null,null,{"$error":"#N/A"},null,"00:00:00"]
[null,null,null,null,null,null,"～",null,null,{"$error":"#N/A"},null,"00:00:00"]
[null,null,null,null,null,null,"～",null,null,{"$error":"#N/A"},null,"00:00:00"]
[null,null,null,null,null,null,"～",null,null,{"$error":"#N/A"},null,"00:00:00"]
[null,null,null,null,null,null,"～",null,null,{"$error":"#N/A"},null,"00:00:00"]
[null,null,null,null,null,null,"～",null,null,{"$error":"#N/A"},null,"00:00:00"]
[null,null,null,null,null,null,"～",null,null,{"$error":"#N/A"},null,"00:00:00"]
[null,null,null,null,null,null,"～",null,null,{"$error":"#N/A"},null,"00:00:00"]
[null,null,null,null,null,null,"～",null,null,{"$error":"#N/A"},null,"00:00:00"]
[null,null,null,null,null,null,"～",null,null,{"$error":"#N/A"},null,"00:00:00"]
[null,null,null,null,null,null,"～",null,null,{"$error":"#N/A"},null,"00:00:00"]
[null,null,null,null,null,null,"～",null,null,{"$error":"#N/A"},null,"00:00:00"]
[null,null,null,null,null,null,"～",null,null,{"$error":"#N/A"},null,"00:00:00"]
[null,null,null,null,null,null,"～",null,null,{"$error":"#N/A"},null,"00:00:00"]
[null,null,null,null,null,null,"～",null,null,{"$error":"#N/A"},null,"00:00:00"]
[null,null,null,null,null,null,"～",null,null,{"$error":"#N/A"},null,"00:00:00"]
[null,null,null,null,null,null,"～",null,null,{"$error":"#N/A"},null,"00:00:00"]
[null,null,null,null,null,null,"～",null,null,{"$error":"#N/A"},null,"00:00:00"]
[null,null,null,null,null,null,"～",null,null,{"$error":"#N/A"},null,"00:00:00"]
[null,null,null,null,null,null,"～",null,null,{"$error":"#N/A"},null,"00:00:00"]
[null,null,null,null,null,null,"～",null,null,{"$error":"#N/A"},null,"00:00:00"]
[null,null,null,null,null,null,"～",null,null,{"$error":"#N/A"},null,"00:00:00"]
[null,null,null,null,null,null,"～",null,null,{"$error":"#N/A"},null,"00:00:00"]
[null,null,null,null,null,null,"～",null,null,{"$error":"#N/A"},null,"00:00:00"]
[null,null,null,null,null,null,"～",null,null,{"$error":"#N/A"},null,"00:00:00"]
[null,null,null,null,null,null,"～",null,null,{"$error":"#N/A"},null,"00:00:00"]
[null,null,null,null,null,null,"～",null,null,{"$error":"#N/A"},null,"00:00:00"]
[null,null,null,null,null,null,"～",null,null,{"$error":"#N/A"},null,"00:00:00"]
[null,null,null,null,null,null,"～",null,null,{"$error":"#N/A"},null,"00:00:00"]
[null,null,null,null,null,null,"～",null,null,{"$error":"#N/A"},null,"00:00:00"]
[null,null,null,null,null,null,"～",null,null,{"$error":"#N/A"},null,"00:00:00"]
[null,null,null,null,null,null,"～",null,null,{"$error":"#N/A"},null,"00:00:00"]
[null,null,null,null,null,null,"～",null,null,{"$error":"#N/A"},null,"00:00:00"]
[null,null,null,null,null,null,"～",null,null,{"$error":"#N/A"},null,"00:00:00"]
[null,null,null,null,null,null,"～",null,null,{"$error":"#N/A"},null,"00:00:00"]
[null,null,null,null,null,null,"～",null,null,{"$error":"#N/A"},null,"00:00:00"]
[null,null,null,null,null,null,"～",null,null,{"$error":"#N/A"},null,"00:00:00"]
[null,null,null,null,null,null,"～",null,null,{"$error":"#N/A"},null,"00:00:00"]
[null,null,null,null,null,null,"～",null,null,{"$error":"#N/A"},null,"00:00:00"]
[null,null,null,null,null,null,"～",null,null,{"$error":"#N/A"},null,"00:00:00"]
[null,null,null,null,null,null,"～",null,null,{"$error":"#N/A"},null,"00:00:00"]
[null,null,null,null,null,null,"～",null,null,{"$error":"#N/A"},null,"00:00:00"]
[null,null,null,null,null,null,"～",null,null,{"$error":"#N/A"},null,"00:00:00"]
[null,null,null,null,null,null,"～",null,null,{"$error":"#N/A"},null,"00:00:00"]
[null,null,null,null,null,null,"～",null,null,{"$error":"#N/A"},null,"00:00:00"]
[null,null,null,null,null,null,"～",null,null,{"$error":"#N/A"},null,"00:00:00"]
[null,null,null,null,null,null,"～",null,null,{"$error":"#N/A"},null,"00:00:00"]
[null,null,null,null,null,null,"～",null,null,{"$error":"#N/A"},null,"00:00:00"]
[null,null,null,null,null,null,"～",null,null,{"$error":"#N/A"},null,"00:00:00"]
[null,null,null,null,null,null,"～",null,null,{"$error":"#N/A"},null,"00:00:00"]
[null,null,null,null,null,null,"～",null,null,{"$error":"#N/A"},null,"00:00:00"]
[null,null,null,null,null,null,"～",null,null,{"$error":"#N/A"},null,"00:00:00"]
[null,null,null,null,null,null,"～",null,null,{"$error":"#N/A"},null,"00:00:00"]
[null,null,null,null,null,null,"～",null,null,{"$error":"#N/A"},null,"00:00:00"]
[null,null,null,null,null,null,"～",null,null,{"$error":"#N/A"},null,"00:00:00"]
[null,null,null,null,null,null,"～",null,null,{"$error":"#N/A"},null,{"$f":"H17092-F17092","v":"00:00:00"}]
[null,null,null,null,null,null,"～",null,null,{"$error":"#N/A"},null,"00:00:00"]
[null,null,null,null,null,null,"～",null,null,{"$error":"#N/A"},null,"00:00:00"]
[null,null,null,null,null,null,"～",null,null,{"$f":"VLOOKUP(I17095,$C:$D,2,0)","v":{"$error":"#N/A"}},null,"00:00:00"]
[null,null,null,null,null,null,"～",null,null,{"$error":"#N/A"},null,"00:00:00"]
[null,null,null,null,null,null,"～",null,null,{"$error":"#N/A"},null,"00:00:00"]
[null,null,null,null,null,null,"～",null,null,{"$error":"#N/A"},null,"00:00:00"]
[null,null,null,null,null,null,"～",null,null,{"$error":"#N/A"},null,"00:00:00"]
[null,null,null,null,null,null,"～",null,null,{"$error":"#N/A"},null,"00:00:00"]
[null,null,null,null,null,null,"～",null,null,{"$error":"#N/A"},null,"00:00:00"]
[null,null,null,null,null,null,"～",null,null,{"$error":"#N/A"},null,"00:00:00"]
[null,null,null,null,null,null,"～",null,null,{"$error":"#N/A"},null,"00:00:00"]
[null,null,null,null,null,null,"～",null,null,{"$error":"#N/A"},null,"00:00:00"]
[null,null,null,null,null,null,"～",null,null,{"$error":"#N/A"},null,"00:00:00"]
[null,null,null,null,null,null,"～",null,null,{"$error":"#N/A"},null,"00:00:00"]
[null,null,null,null,null,null,"～",null,null,{"$error":"#N/A"},null,"00:00:00"]
[null,null,null,null,null,null,"～",null,null,{"$error":"#N/A"},null,"00:00:00"]
[null,null,null,null,null,null,"～",null,null,{"$error":"#N/A"},null,"00:00:00"]
[null,null,null,null,null,null,"～",null,null,{"$error":"#N/A"},null,"00:00:00"]
[null,null,null,null,null,null,"～",null,null,{"$error":"#N/A"},null,"00:00:00"]
[null,null,null,null,null,null,"～",null,null,{"$error":"#N/A"},null,"00:00:00"]
[null,null,null,null,null,null,"～",null,null,{"$error":"#N/A"},null,"00:00:00"]
[null,null,null,null,null,null,"～",null,null,{"$error":"#N/A"},null,"00:00:00"]
[null,null,null,null,null,null,"～",null,null,{"$error":"#N/A"},null,"00:00:00"]
[null,null,null,null,null,null,"～",null,null,{"$error":"#N/A"},null,"00:00:00"]
[null,null,null,null,null,null,"～",null,null,{"$error":"#N/A"},null,"00:00:00"]
[null,null,null,null,null,null,"～",null,null,{"$error":"#N/A"},null,"00:00:00"]
[null,null,null,null,null,null,"～",null,null,{"$error":"#N/A"},null,"00:00:00"]
[null,null,null,null,null,null,"～",null,null,{"$error":"#N/A"},null,"00:00:00"]
[null,null,null,null,null,null,"～",null,null,{"$error":"#N/A"},null,"00:00:00"]
[null,null,null,null,null,null,"～",null,null,{"$error":"#N/A"},null,"00:00:00"]
[null,null,null,null,null,null,"～",null,null,{"$error":"#N/A"},null,"00:00:00"]
[null,null,null,null,null,null,"～",null,null,{"$error":"#N/A"},null,"00:00:00"]
[null,null,null,null,null,null,"～",null,null,{"$error":"#N/A"},null,"00:00:00"]
[null,null,null,null,null,null,"～",null,null,{"$error":"#N/A"},null,"00:00:00"]
[null,null,null,null,null,null,"～",null,null,{"$error":"#N/A"},null,"00:00:00"]
[null,null,null,null,null,null,"～",null,null,{"$error":"#N/A"},null,"00:00:00"]
[null,null,null,null,null,null,"～",null,null,{"$error":"#N/A"},null,"00:00:00"]
[null,null,null,null,null,null,"～",null,null,{"$error":"#N/A"},null,"00:00:00"]
[null,null,null,null,null,null,"～",null,null,{"$error":"#N/A"},null,"00:00:00"]
[null,null,null,null,null,null,"～",null,null,{"$error":"#N/A"},null,"00:00:00"]
[null,null,null,null,null,null,"～",null,null,{"$error":"#N/A"},null,"00:00:00"]
[null,null,null,null,null,null,"～",null,null,{"$error":"#N/A"},null,"00:00:00"]
[null,null,null,null,null,null,"～",null,null,{"$error":"#N/A"},null,"00:00:00"]
[null,null,null,null,null,null,"～",null,null,{"$error":"#N/A"},null,"00:00:00"]
[null,null,null,null,null,null,"～",null,null,{"$error":"#N/A"},null,"00:00:00"]
[null,null,null,null,null,null,"～",null,null,{"$error":"#N/A"},null,"00:00:00"]
[null,null,null,null,null,null,"～",null,null,{"$error":"#N/A"},null,"00:00:00"]
[null,null,null,null,null,null,"～",null,null,{"$error":"#N/A"},null,"00:00:00"]
[null,null,null,null,null,null,"～",null,null,{"$error":"#N/A"},null,"00:00:00"]
[null,null,null,null,null,null,"～",null,null,{"$error":"#N/A"},null,"00:00:00"]
[null,null,null,null,null,null,"～",null,null,{"$error":"#N/A"},null,"00:00:00"]
[null,null,null,null,null,null,"～",null,null,{"$error":"#N/A"},null,"00:00:00"]
[null,null,null,null,null,null,"～",null,null,{"$error":"#N/A"},null,"00:00:00"]
[null,null,null,null,null,null,"～",null,null,{"$error":"#N/A"},null,"00:00:00"]
[null,null,null,null,null,null,"～",null,null,{"$error":"#N/A"},null,"00:00:00"]
[null,null,null,null,null,null,"～",null,null,{"$error":"#N/A"},null,"00:00:00"]
[null,null,null,null,null,null,"～",null,null,{"$error":"#N/A"},null,"00:00:00"]
[null,null,null,null,null,null,"～",null,null,{"$error":"#N/A"},null,"00:00:00"]
[null,null,null,null,null,null,"～",null,null,{"$error":"#N/A"},null,"00:00:00"]
[null,null,null,null,null,null,"～",null,null,{"$error":"#N/A"},null,"00:00:00"]
[null,null,null,null,null,null,"～",null,null,{"$error":"#N/A"},null,"00:00:00"]
[null,null,null,null,null,null,"～",null,null,{"$error":"#N/A"},null,"00:00:00"]
[null,null,null,null,null,null,"～",null,null,{"$error":"#N/A"},null,"00:00:00"]
[null,null,null,null,null,null,"～",null,null,{"$error":"#N/A"},null,{"$f":"H17156-F17156","v":"00:00:00"}]
[null,null,null,null,null,null,"～",null,null,{"$error":"#N/A"},null,"00:00:00"]
[null,null,null,null,null,null,"～",null,null,{"$error":"#N/A"},null,"00:00:00"]
[null,null,null,null,null,null,"～",null,null,{"$f":"VLOOKUP(I17159,$C:$D,2,0)","v":{"$error":"#N/A"}},null,"00:00:00"]
[null,null,null,null,null,null,"～",null,null,{"$error":"#N/A"},null,"00:00:00"]
[null,null,null,null,null,null,"～",null,null,{"$error":"#N/A"},null,"00:00:00"]
[null,null,null,null,null,null,"～",null,null,{"$error":"#N/A"},null,"00:00:00"]
[null,null,null,null,null,null,"～",null,null,{"$error":"#N/A"},null,"00:00:00"]
[null,null,null,null,null,null,"～",null,null,{"$error":"#N/A"},null,"00:00:00"]
[null,null,null,null,null,null,"～",null,null,{"$error":"#N/A"},null,"00:00:00"]
[null,null,null,null,null,null,"～",null,null,{"$error":"#N/A"},null,"00:00:00"]
[null,null,null,null,null,null,"～",null,null,{"$error":"#N/A"},null,"00:00:00"]
[null,null,null,null,null,null,"～",null,null,{"$error":"#N/A"},null,"00:00:00"]
[null,null,null,null,null,null,"～",null,null,{"$error":"#N/A"},null,"00:00:00"]
[null,null,null,null,null,null,"～",null,null,{"$error":"#N/A"},null,"00:00:00"]
[null,null,null,null,null,null,"～",null,null,{"$error":"#N/A"},null,"00:00:00"]
[null,null,null,null,null,null,"～",null,null,{"$error":"#N/A"},null,"00:00:00"]
[null,null,null,null,null,null,"～",null,null,{"$error":"#N/A"},null,"00:00:00"]
[null,null,null,null,null,null,"～",null,null,{"$error":"#N/A"},null,"00:00:00"]
[null,null,null,null,null,null,"～",null,null,{"$error":"#N/A"},null,"00:00:00"]
[null,null,null,null,null,null,"～",null,null,{"$error":"#N/A"},null,"00:00:00"]
[null,null,null,null,null,null,"～",null,null,{"$error":"#N/A"},null,"00:00:00"]
[null,null,null,null,null,null,"～",null,null,{"$error":"#N/A"},null,"00:00:00"]
[null,null,null,null,null,null,"～",null,null,{"$error":"#N/A"},null,"00:00:00"]
[null,null,null,null,null,null,"～",null,null,{"$error":"#N/A"},null,"00:00:00"]
[null,null,null,null,null,null,"～",null,null,{"$error":"#N/A"},null,"00:00:00"]
[null,null,null,null,null,null,"～",null,null,{"$error":"#N/A"},null,"00:00:00"]
[null,null,null,null,null,null,"～",null,null,{"$error":"#N/A"},null,"00:00:00"]
[null,null,null,null,null,null,"～",null,null,{"$error":"#N/A"},null,"00:00:00"]
[null,null,null,null,null,null,"～",null,null,{"$error":"#N/A"},null,"00:00:00"]
[null,null,null,null,null,null,"～",null,null,{"$error":"#N/A"},null,"00:00:00"]
[null,null,null,null,null,null,"～",null,null,{"$error":"#N/A"},null,"00:00:00"]
[null,null,null,null,null,null,"～",null,null,{"$error":"#N/A"},null,"00:00:00"]
[null,null,null,null,null,null,"～",null,null,{"$error":"#N/A"},null,"00:00:00"]
[null,null,null,null,null,null,"～",null,null,{"$error":"#N/A"},null,"00:00:00"]
[null,null,null,null,null,null,"～",null,null,{"$error":"#N/A"},null,"00:00:00"]
[null,null,null,null,null,null,"～",null,null,{"$error":"#N/A"},null,"00:00:00"]
[null,null,null,null,null,null,"～",null,null,{"$error":"#N/A"},null,"00:00:00"]
[null,null,null,null,null,null,"～",null,null,{"$error":"#N/A"},null,"00:00:00"]
[null,null,null,null,null,null,"～",null,null,{"$error":"#N/A"},null,"00:00:00"]
[null,null,null,null,null,null,"～",null,null,{"$error":"#N/A"},null,"00:00:00"]
[null,null,null,null,null,null,"～",null,null,{"$error":"#N/A"},null,"00:00:00"]
[null,null,null,null,null,null,"～",null,null,{"$error":"#N/A"},null,"00:00:00"]
[null,null,null,null,null,null,"～",null,null,{"$error":"#N/A"},null,"00:00:00"]
[null,null,null,null,null,null,"～",null,null,{"$error":"#N/A"},null,"00:00:00"]
[null,null,null,null,null,null,"～",null,null,{"$error":"#N/A"},null,"00:00:00"]
[null,null,null,null,null,null,"～",null,null,{"$error":"#N/A"},null,"00:00:00"]
[null,null,null,null,null,null,"～",null,null,{"$error":"#N/A"},null,"00:00:00"]
[null,null,null,null,null,null,"～",null,null,{"$error":"#N/A"},null,"00:00:00"]
[null,null,null,null,null,null,"～",null,null,{"$error":"#N/A"},null,"00:00:00"]
[null,null,null,null,null,null,"～",null,null,{"$error":"#N/A"},null,"00:00:00"]
[null,null,null,null,null,null,"～",null,null,{"$error":"#N/A"},null,"00:00:00"]
[null,null,null,null,null,null,"～",null,null,{"$error":"#N/A"},null,"00:00:00"]
[null,null,null,null,null,null,"～",null,null,{"$error":"#N/A"},null,"00:00:00"]
[null,null,null,null,null,null,"～",null,null,{"$error":"#N/A"},null,"00:00:00"]
[null,null,null,null,null,null,"～",null,null,{"$error":"#N/A"},null,"00:00:00"]
[null,null,null,null,null,null,"～",null,null,{"$error":"#N/A"},null,"00:00:00"]
[null,null,null,null,null,null,"～",null,null,{"$error":"#N/A"},null,"00:00:00"]
[null,null,null,null,null,null,"～",null,null,{"$error":"#N/A"},null,"00:00:00"]
[null,null,null,null,null,null,"～",null,null,{"$error":"#N/A"},null,"00:00:00"]
[null,null,null,null,null,null,"～",null,null,{"$error":"#N/A"},null,"00:00:00"]
[null,null,null,null,null,null,"～",null,null,{"$error":"#N/A"},null,"00:00:00"]
[null,null,null,null,null,null,"～",null,null,{"$error":"#N/A"},null,"00:00:00"]
[null,null,null,null,null,null,"～",null,null,{"$error":"#N/A"},null,"00:00:00"]
[null,null,null,null,null,null,"～",null,null,{"$error":"#N/A"},null,{"$f":"H17220-F17220","v":"00:00:00"}]
[null,null,null,null,null,null,"～",null,null,{"$error":"#N/A"},null,"00:00:00"]
[null,null,null,null,null,null,"～",null,null,{"$error":"#N/A"},null,"00:00:00"]
[null,null,null,null,null,null,"～",null,null,{"$f":"VLOOKUP(I17223,$C:$D,2,0)","v":{"$error":"#N/A"}},null,"00:00:00"]
[null,null,null,null,null,null,"～",null,null,{"$error":"#N/A"},null,"00:00:00"]
[null,null,null,null,null,null,"～",null,null,{"$error":"#N/A"},null,"00:00:00"]
[null,null,null,null,null,null,"～",null,null,{"$error":"#N/A"},null,"00:00:00"]
[null,null,null,null,null,null,"～",null,null,{"$error":"#N/A"},null,"00:00:00"]
[null,null,null,null,null,null,"～",null,null,{"$error":"#N/A"},null,"00:00:00"]
[null,null,null,null,null,null,"～",null,null,{"$error":"#N/A"},null,"00:00:00"]
[null,null,null,null,null,null,"～",null,null,{"$error":"#N/A"},null,"00:00:00"]
[null,null,null,null,null,null,"～",null,null,{"$error":"#N/A"},null,"00:00:00"]
[null,null,null,null,null,null,"～",null,null,{"$error":"#N/A"},null,"00:00:00"]
[null,null,null,null,null,null,"～",null,null,{"$error":"#N/A"},null,"00:00:00"]
[null,null,null,null,null,null,"～",null,null,{"$error":"#N/A"},null,"00:00:00"]
[null,null,null,null,null,null,"～",null,null,{"$error":"#N/A"},null,"00:00:00"]
[null,null,null,null,null,null,"～",null,null,{"$error":"#N/A"},null,"00:00:00"]
[null,null,null,null,null,null,"～",null,null,{"$error":"#N/A"},null,"00:00:00"]
[null,null,null,null,null,null,"～",null,null,{"$error":"#N/A"},null,"00:00:00"]
[null,null,null,null,null,null,"～",null,null,{"$error":"#N/A"},null,"00:00:00"]
[null,null,null,null,null,null,"～",null,null,{"$error":"#N/A"},null,"00:00:00"]
[null,null,null,null,null,null,"～",null,null,{"$error":"#N/A"},null,"00:00:00"]
[null,null,null,null,null,null,"～",null,null,{"$error":"#N/A"},null,"00:00:00"]
[null,null,null,null,null,null,"～",null,null,{"$error":"#N/A"},null,"00:00:00"]
[null,null,null,null,null,null,"～",null,null,{"$error":"#N/A"},null,"00:00:00"]
[null,null,null,null,null,null,"～",null,null,{"$error":"#N/A"},null,"00:00:00"]
[null,null,null,null,null,null,"～",null,null,{"$error":"#N/A"},null,"00:00:00"]
[null,null,null,null,null,null,"～",null,null,{"$error":"#N/A"},null,"00:00:00"]
[null,null,null,null,null,null,"～",null,null,{"$error":"#N/A"},null,"00:00:00"]
[null,null,null,null,null,null,"～",null,null,{"$error":"#N/A"},null,"00:00:00"]
[null,null,null,null,null,null,"～",null,null,{"$error":"#N/A"},null,"00:00:00"]
[null,null,null,null,null,null,"～",null,null,{"$error":"#N/A"},null,"00:00:00"]
[null,null,null,null,null,null,"～",null,null,{"$error":"#N/A"},null,"00:00:00"]
[null,null,null,null,null,null,"～",null,null,{"$error":"#N/A"},null,"00:00:00"]
[null,null,null,null,null,null,"～",null,null,{"$error":"#N/A"},null,"00:00:00"]
[null,null,null,null,null,null,"～",null,null,{"$error":"#N/A"},null,"00:00:00"]
[null,null,null,null,null,null,"～",null,null,{"$error":"#N/A"},null,"00:00:00"]
[null,null,null,null,null,null,"～",null,null,{"$error":"#N/A"},null,"00:00:00"]
[null,null,null,null,null,null,"～",null,null,{"$error":"#N/A"},null,"00:00:00"]
[null,null,null,null,null,null,"～",null,null,{"$error":"#N/A"},null,"00:00:00"]
[null,null,null,null,null,null,"～",null,null,{"$error":"#N/A"},null,"00:00:00"]
[null,null,null,null,null,null,"～",null,null,{"$error":"#N/A"},null,"00:00:00"]
[null,null,null,null,null,null,"～",null,null,{"$error":"#N/A"},null,"00:00:00"]
[null,null,null,null,null,null,"～",null,null,{"$error":"#N/A"},null,"00:00:00"]
[null,null,null,null,null,null,"～",null,null,{"$error":"#N/A"},null,"00:00:00"]
[null,null,null,null,null,null,"～",null,null,{"$error":"#N/A"},null,"00:00:00"]
[null,null,null,null,null,null,"～",null,null,{"$error":"#N/A"},null,"00:00:00"]
[null,null,null,null,null,null,"～",null,null,{"$error":"#N/A"},null,"00:00:00"]
[null,null,null,null,null,null,"～",null,null,{"$error":"#N/A"},null,"00:00:00"]
[null,null,null,null,null,null,"～",null,null,{"$error":"#N/A"},null,"00:00:00"]
[null,null,null,null,null,null,"～",null,null,{"$error":"#N/A"},null,"00:00:00"]
[null,null,null,null,null,null,"～",null,null,{"$error":"#N/A"},null,"00:00:00"]
[null,null,null,null,null,null,"～",null,null,{"$error":"#N/A"},null,"00:00:00"]
[null,null,null,null,null,null,"～",null,null,{"$error":"#N/A"},null,"00:00:00"]
[null,null,null,null,null,null,"～",null,null,{"$error":"#N/A"},null,"00:00:00"]
[null,null,null,null,null,null,"～",null,null,{"$error":"#N/A"},null,"00:00:00"]
[null,null,null,null,null,null,"～",null,null,{"$error":"#N/A"},null,"00:00:00"]
[null,null,null,null,null,null,"～",null,null,{"$error":"#N/A"},null,"00:00:00"]
[null,null,null,null,null,null,"～",null,null,{"$error":"#N/A"},null,"00:00:00"]
[null,null,null,null,null,null,"～",null,null,{"$error":"#N/A"},null,"00:00:00"]
[null,null,null,null,null,null,"～",null,null,{"$error":"#N/A"},null,"00:00:00"]
[null,null,null,null,null,null,"～",null,null,{"$error":"#N/A"},null,"00:00:00"]
[null,null,null,null,null,null,"～",null,null,{"$error":"#N/A"},null,"00:00:00"]
[null,null,null,null,null,null,"～",null,null,{"$error":"#N/A"},null,"00:00:00"]
[null,null,null,null,null,null,"～",null,null,{"$error":"#N/A"},null,{"$f":"H17284-F17284","v":"00:00:00"}]
[null,null,null,null,null,null,"～",null,null,{"$error":"#N/A"},null,"00:00:00"]
[null,null,null,null,null,null,"～",null,null,{"$error":"#N/A"},null,"00:00:00"]
[null,null,null,null,null,null,"～",null,null,{"$f":"VLOOKUP(I17287,$C:$D,2,0)","v":{"$error":"#N/A"}},null,"00:00:00"]
[null,null,null,null,null,null,"～",null,null,{"$error":"#N/A"},null,"00:00:00"]
[null,null,null,null,null,null,"～",null,null,{"$error":"#N/A"},null,"00:00:00"]
[null,null,null,null,null,null,"～",null,null,{"$error":"#N/A"},null,"00:00:00"]
[null,null,null,null,null,null,"～",null,null,{"$error":"#N/A"},null,"00:00:00"]
[null,null,null,null,null,null,"～",null,null,{"$error":"#N/A"},null,"00:00:00"]
[null,null,null,null,null,null,"～",null,null,{"$error":"#N/A"},null,"00:00:00"]
[null,null,null,null,null,null,"～",null,null,{"$error":"#N/A"},null,"00:00:00"]
[null,null,null,null,null,null,"～",null,null,{"$error":"#N/A"},null,"00:00:00"]
[null,null,null,null,null,null,"～",null,null,{"$error":"#N/A"},null,"00:00:00"]
[null,null,null,null,null,null,"～",null,null,{"$error":"#N/A"},null,"00:00:00"]
[null,null,null,null,null,null,"～",null,null,{"$error":"#N/A"},null,"00:00:00"]
[null,null,null,null,null,null,"～",null,null,{"$error":"#N/A"},null,"00:00:00"]
[null,null,null,null,null,null,"～",null,null,{"$error":"#N/A"},null,"00:00:00"]
[null,null,null,null,null,null,"～",null,null,{"$error":"#N/A"},null,"00:00:00"]
[null,null,null,null,null,null,"～",null,null,{"$error":"#N/A"},null,"00:00:00"]
[null,null,null,null,null,null,"～",null,null,{"$error":"#N/A"},null,"00:00:00"]
[null,null,null,null,null,null,"～",null,null,{"$error":"#N/A"},null,"00:00:00"]
[null,null,null,null,null,null,"～",null,null,{"$error":"#N/A"},null,"00:00:00"]
[null,null,null,null,null,null,"～",null,null,{"$error":"#N/A"},null,"00:00:00"]
[null,null,null,null,null,null,"～",null,null,{"$error":"#N/A"},null,"00:00:00"]
[null,null,null,null,null,null,"～",null,null,{"$error":"#N/A"},null,"00:00:00"]
[null,null,null,null,null,null,"～",null,null,{"$error":"#N/A"},null,"00:00:00"]
[null,null,null,null,null,null,"～",null,null,{"$error":"#N/A"},null,"00:00:00"]
[null,null,null,null,null,null,"～",null,null,{"$error":"#N/A"},null,"00:00:00"]
[null,null,null,null,null,null,"～",null,null,{"$error":"#N/A"},null,"00:00:00"]
[null,null,null,null,null,null,"～",null,null,{"$error":"#N/A"},null,"00:00:00"]
[null,null,null,null,null,null,"～",null,null,{"$error":"#N/A"},null,"00:00:00"]
[null,null,null,null,null,null,"～",null,null,{"$error":"#N/A"},null,"00:00:00"]
[null,null,null,null,null,null,"～",null,null,{"$error":"#N/A"},null,"00:00:00"]
[null,null,null,null,null,null,"～",null,null,{"$error":"#N/A"},null,"00:00:00"]
[null,null,null,null,null,null,"～",null,null,{"$error":"#N/A"},null,"00:00:00"]
[null,null,null,null,null,null,"～",null,null,{"$error":"#N/A"},null,"00:00:00"]
[null,null,null,null,null,null,"～",null,null,{"$error":"#N/A"},null,"00:00:00"]
[null,null,null,null,null,null,"～",null,null,{"$error":"#N/A"},null,"00:00:00"]
[null,null,null,null,null,null,"～",null,null,{"$error":"#N/A"},null,"00:00:00"]
[null,null,null,null,null,null,"～",null,null,{"$error":"#N/A"},null,"00:00:00"]
[null,null,null,null,null,null,"～",null,null,{"$error":"#N/A"},null,"00:00:00"]
[null,null,null,null,null,null,"～",null,null,{"$error":"#N/A"},null,"00:00:00"]
[null,null,null,null,null,null,"～",null,null,{"$error":"#N/A"},null,"00:00:00"]
[null,null,null,null,null,null,"～",null,null,{"$error":"#N/A"},null,"00:00:00"]
[null,null,null,null,null,null,"～",null,null,{"$error":"#N/A"},null,"00:00:00"]
[null,null,null,null,null,null,"～",null,null,{"$error":"#N/A"},null,{"$f":"H17329-F17329","v":"00:00:00"}]
[null,null,null,null,null,null,null,null,null,null,null,{"$f":"SUM(L4:L17329)","v":0.125}]

{"sheet":"月次時間比較表フィルター","index":1,"n_rows":145,"n_cols":6,"rows_kept":145,"cut":false,"hidden":false,"merged":[]}
[]
["2023/8","作業にかかった時間",null,"2023/8","作業にかかった時間"]
["作業№","①作業分類","⑦時間内訳","作業№","①作業分類","⑦時間内訳"]
[1,"現金処理",6.9444444444449749E-4,1,"現金処理",6.9444444444449749E-4]
[2,"電話",2.0138888888888817E-2,2,"電話",2.0138888888888817E-2]
[3,"メール",1.0416666666666685E-2,3,"メール",1.0416666666666685E-2]
[4,"記帳作業",3.125E-2,4,"記帳作業",3.125E-2]
[5,"分析",4.1666666666666741E-2,5,"分析",4.1666666666666741E-2]
[6,"SNS連絡",2.0833333333333259E-2,6,"SNS連絡",2.0833333333333259E-2]
[7,null,0,7,null,0]
[8,null,0,8,null,0]
[9,null,0,9,null,0]
[10,null,0,10,null,0]
[11,null,0,11,null,0]
[12,null,0,12,null,0]
[13,null,0,13,null,0]
[14,null,0,14,null,0]
[15,null,0,15,null,0]
[16,null,0,16,null,0]
[17,null,0,17,null,0]
[18,null,0,18,null,0]
[19,null,0,19,null,0]
[20,null,0,20,null,0]
[null,null,0,null,null,0]
[null,null,0,null,null,0]
[null,null,0,null,null,0]
[null,null,0,null,null,0]
[null,null,0,null,null,0]
[null,null,0,null,null,0]
[null,null,0,null,null,0]
[null,null,0,null,null,0]
[null,null,0,null,null,0]
[null,null,0,null,null,0]
[null,null,0,null,null,0]
[null,null,0,null,null,0]
[null,null,0,null,null,0]
[null,null,0,null,null,0]
[null,null,0,null,null,0]
[null,null,0,null,null,0]
[null,null,0,null,null,0]
[null,null,0,null,null,0]
[null,null,0,null,null,0]
[null,null,0,null,null,0]
[null,null,0,null,null,0]
[null,null,0,null,null,0]
[null,null,0,null,null,0]
[null,null,0,null,null,0]
[null,null,0,null,null,0]
[null,null,0,null,null,0]
[null,null,0,null,null,0]
[null,null,0,null,null,0]
[null,null,0,null,null,0]
[null,null,0,null,null,0]
[null,null,0,null,null,0]
[null,null,0,null,null,0]
[null,null,0,null,null,0]
[null,null,0,null,null,0]
[null,null,0,null,null,0]
[null,null,0,null,null,0]
[null,null,0,null,null,0]
[null,null,0,null,null,0]
[null,null,0,null,null,0]
[null,null,0,null,null,0]
[null,null,0,null,null,0]
[null,null,0,null,null,0]
[null,null,0,null,null,0]
[null,null,0,null,null,0]
[null,null,0,null,null,0]
[null,null,0,null,null,0]
[null,null,0,null,null,0]
[null,null,0,null,null,0]
[null,null,0,null,null,0]
[null,null,0,null,null,0]
[null,null,0,null,null,0]
[null,null,0,null,null,0]
[null,null,0,null,null,0]
[null,null,0,null,null,0]
[null,null,0,null,null,0]
[null,null,0,null,null,0]
[null,null,0,null,null,0]
[null,null,0,null,null,0]
[null,null,0,null,null,0]
[null,null,0,null,null,0]
[null,null,0,null,null,0]
[null,null,0,null,null,0]
[null,null,0,null,null,0]
[null,null,0,null,null,0]
[null,null,0,null,null,0]
[null,null,0,null,null,0]
[null,null,0,null,null,0]
[null,null,0,null,null,0]
[null,null,0,null,null,0]
[null,null,0,null,null,0]
[null,null,0,null,null,0]
[null,null,0,null,null,0]
[null,null,0,null,null,0]
[null,null,0,null,null,0]
[null,null,0,null,null,0]
[null,null,0,null,null,0]
[null,null,0,null,null,0]
[null,null,0,null,null,0]
[null,null,0,null,null,0]
[null,null,0,null,null,0]
[null,null,0,null,null,0]
[null,null,0,null,null,0]
[null,null,0,null,null,0]
[null,null,0,null,null,0]
[null,null,0,null,null,0]
[null,null,0,null,null,0]
[null,null,0,null,null,0]
[null,null,0,null,null,0]
[null,null,0,null,null,0]
[null,null,0,null,null,0]
[null,null,0,null,null,0]
[null,null,0,null,null,0]
[null,null,0,null,null,0]
[null,null,0,null,null,0]
[null,null,0,null,null,0]
[null,null,0,null,null,0]
[null,null,0,null,null,0]
[null,null,0,null,null,0]
[null,null,0,null,null,0]
[null,null,0,null,null,0]
[null,null,0,null,null,0]
[null,null,0,null,null,0]
[null,null,0,null,null,0]
[null,null,0,null,null,0]
[null,null,0,null,null,0]
[null,null,0,null,null,0]
[null,null,0,null,null,0]
[null,null,0,null,null,0]
[null,null,0,null,null,0]
[null,null,0,null,null,0]
[null,null,0,null,null,0]
[null,null,0,null,null,0]
[null,null,0,null,null,0]
[null,null,0,null,null,0]
[null,null,0,null,null,0]
[null,null,0,null,null,0]
[null,null,0,null,null,0]
[null,null,0,null,null,0]
[null,null,0,null,null,0]
[null,null,0,null,null,0]
[null,null,0,null,null,0]
[null,"合計",{"$f":"SUM(C4:C144)","v":0.125},null,"合計",{"$f":"SUM(F4:F144)","v":0.125}]

{"sheet":"作業時間比較表(全体)貼付け用","index":2,"n_rows":123,"n_cols":45,"rows_kept":123,"cut":false,"hidden":false,"merged":[]}
[1]
[null,"作業№","作業分類","2021-06-01","2021-07-01","2021-08-01","2021-09-01","2021-10-01","2021-11-01","2021-12-01","2022-01-01","2022-02-01","2022-03-01","2022-04-01","2022-05-01","2022-06-01","2022-07-01","2022-08-01","2022-09-01","2022-10-01","2022-11-01","2022-12-01","2023-01-01","2023-02-01","2023-03-01","2023-04-01","2023-05-01","2023-06-01","2023-07-01","2023-08-01","2023-09-01","2023-10-01","2023-11-01","2023-12-01","2024-01-01","2024-02-01","2024-03-01","2024-04-01","2024-05-01","2024-06-01","標準作業時間",null,"楽観ケース","普通ケース","悲観ケース"]
[null,1,"現金処理",null,null,null,null,null,null,null,null,null,null,null,null,null,null,null,null,null,null,null,null,null,null,null,null,null,null,{"$f":"VLOOKUP(B3,月次時間比較表フィルター!A:C,3,0)","v":6.9444444444449749E-4},null,null,null,null,null,null,null,null,null,null,{"$f":"AVERAGE(D3:AN3)","v":6.9444444444449749E-4},null,null,null,10]
[null,2,"電話",null,null,null,null,null,null,null,null,null,null,null,null,null,null,null,null,null,null,null,null,null,null,null,null,null,null,{"$f":"VLOOKUP(B4,月次時間比較表フィルター!A:C,3,0)","v":2.0138888888888817E-2},null,null,null,null,null,null,null,null,null,null,{"$f":"AVERAGE(D4:AN4)","v":2.0138888888888817E-2}]
[null,3,"メール",null,null,null,null,null,null,null,null,null,null,null,null,null,null,null,null,null,null,null,null,null,null,null,null,null,null,{"$f":"VLOOKUP(B5,月次時間比較表フィルター!A:C,3,0)","v":1.0416666666666685E-2},null,null,null,null,null,null,null,null,null,null,1.0416666666666685E-2,null,8,10,10]
[null,4,"記帳作業",null,null,null,null,null,null,null,null,null,null,null,null,null,null,null,null,null,null,null,null,null,null,null,null,null,null,{"$f":"VLOOKUP(B6,月次時間比較表フィルター!A:C,3,0)","v":3.125E-2},null,null,null,null,null,null,null,null,null,null,3.125E-2,null,1,1,1]
[null,5,"分析",null,null,null,null,null,null,null,null,null,null,null,null,null,null,null,null,null,null,null,null,null,null,null,null,null,null,{"$f":"VLOOKUP(B7,月次時間比較表フィルター!A:C,3,0)","v":4.1666666666666741E-2},null,null,null,null,null,null,null,null,null,null,4.1666666666666741E-2,null,1,2,2]
[null,6,"SNS連絡",null,null,null,null,null,null,null,null,null,null,null,null,null,null,null,null,null,null,null,null,null,null,null,null,null,null,{"$f":"VLOOKUP(B8,月次時間比較表フィルター!A:C,3,0)","v":2.0833333333333259E-2},null,null,null,null,null,null,null,null,null,null,2.0833333333333259E-2,null,2,3,3]
[null,7,null,null,null,null,null,null,null,null,null,null,null,null,null,null,null,null,null,null,null,null,null,null,null,null,null,null,null,{"$f":"VLOOKUP(B9,月次時間比較表フィルター!A:C,3,0)","v":0},null,null,null,null,null,null,null,null,null,null,0]
[null,8,null,null,null,null,null,null,null,null,null,null,null,null,null,null,null,null,null,null,null,null,null,null,null,null,null,null,null,null,null,null,null,null,null,null,null,null,null,null,{"$error":"#DIV/0!"},null,2.5,5,5]
[null,9,null,null,null,null,null,null,null,null,null,null,null,null,null,null,null,null,null,null,null,null,null,null,null,null,null,null,null,null,null,null,null,null,null,null,null,null,null,null,{"$error":"#DIV/0!"},null,0.5,1,1]
[null,10,null,null,null,null,null,null,null,null,null,null,null,null,null,null,null,null,null,null,null,null,null,null,null,null,null,null,null,null,null,null,null,null,null,null,null,null,null,null,{"$error":"#DIV/0!"},null,0.5,1,1]
[null,11,null,null,null,null,null,null,null,null,null,null,null,null,null,null,null,null,null,null,null,null,null,null,null,null,null,null,null,null,null,null,null,null,"ｘ",null,null,null,null,null,{"$error":"#DIV/0!"},null,7.5,15,15]
[null,12,null,null,null,null,null,null,null,null,null,null,null,null,null,null,null,null,null,null,null,null,null,null,null,null,null,null,null,null,null,null,null,null,null,null,null,null,null,null,{"$error":"#DIV/0!"},null,0.5,0.5,0.5]
[null,13,null,null,null,null,null,null,null,null,null,null,null,null,null,null,null,null,null,null,null,null,null,null,null,null,null,null,null,null,null,null,null,null,null,null,null,null,null,null,{"$error":"#DIV/0!"},null,0.5,0.5,0.5]
[null,14,null,null,null,null,null,null,null,null,null,null,null,null,null,null,null,null,null,null,null,null,null,null,null,null,null,null,null,null,null,null,null,null,null,null,null,null,null,null,{"$error":"#DIV/0!"},null,1,1,1]
[null,15,null,null,null,null,null,null,null,null,null,null,null,null,null,null,null,null,null,null,null,null,null,null,null,null,null,null,null,null,null,null,null,null,null,null,null,null,null,null,{"$error":"#DIV/0!"}]
[null,16,null,null,null,null,null,null,null,null,null,null,null,null,null,null,null,null,null,null,null,null,null,null,null,null,null,null,null,null,null,null,null,null,null,null,null,null,null,null,{"$error":"#DIV/0!"},null,0.5,0.5,0.5]
[null,17,null,null,null,null,null,null,null,null,null,null,null,null,null,null,null,null,null,null,null,null,null,null,null,null,null,null,null,null,null,null,null,null,null,null,null,null,null,null,{"$error":"#DIV/0!"},null,0.5,1,1]
[null,18,null,null,null,null,null,null,null,null,null,null,null,null,null,null,null,null,null,null,null,null,null,null,null,null,null,null,null,null,null,null,null,null,null,null,null,null,null,null,{"$error":"#DIV/0!"}]
[null,19,null,null,null,null,null,null,null,null,null,null,null,null,null,null,null,null,null,null,null,null,null,null,null,null,null,null,null,null,null,null,null,null,null,null,null,null,null,null,{"$error":"#DIV/0!"}]
[null,20,null,null,null,null,null,null,null,null,null,null,null,null,null,null,null,null,null,null,null,null,null,null,null,null,null,null,null,null,null,null,null,null,null,null,null,null,null,null,{"$error":"#DIV/0!"}]
[null,21,null,null,null,null,null,null,null,null,null,null,null,null,null,null,null,null,null,null,null,null,null,null,null,null,null,null,null,null,null,null,null,null,null,null,null,null,null,null,{"$error":"#DIV/0!"}]
[null,22,null,null,null,null,null,null,null,null,null,null,null,null,null,null,null,null,null,null,null,null,null,null,null,null,null,null,null,null,null,null,null,null,null,null,null,null,null,null,{"$error":"#DIV/0!"}]
[null,23,null,null,null,null,null,null,null,null,null,null,null,null,null,null,null,null,null,null,null,null,null,null,null,null,null,null,null,null,null,null,null,null,null,null,null,null,null,null,{"$error":"#DIV/0!"}]
[null,24,null,null,null,null,null,null,null,null,null,null,null,null,null,null,null,null,null,null,null,null,null,null,null,null,null,null,null,null,null,null,null,null,null,null,null,null,null,null,{"$error":"#DIV/0!"},null,1.5,3,3]
[null,25,null,null,null,null,null,null,null,null,null,null,null,null,null,null,null,null,null,null,null,null,null,null,null,null,null,null,null,null,null,null,null,null,null,null,null,null,null,null,{"$error":"#DIV/0!"},null,3,3.5,3.5]
[null,26,null,null,null,null,null,null,null,null,null,null,null,null,null,null,null,null,null,null,null,null,null,null,null,null,null,null,null,null,null,null,null,null,null,null,null,null,null,null,{"$error":"#DIV/0!"},null,0.5,0.5,0.5]
[null,27,null,null,null,null,null,null,null,null,null,null,null,null,null,null,null,null,null,null,null,null,null,null,null,null,null,null,null,null,null,null,null,null,null,null,null,null,null,null,{"$error":"#DIV/0!"},null,0,0,0]
[null,28,null,null,null,null,null,null,null,null,null,null,null,null,null,null,null,null,null,null,null,null,null,null,null,null,null,null,null,null,null,null,null,null,null,null,null,null,null,null,{"$error":"#DIV/0!"},null,0,0,0]
[null,29,null,null,null,null,null,null,null,null,null,null,null,null,null,null,null,null,null,null,null,null,null,null,null,null,null,null,null,null,null,null,null,null,null,null,null,null,null,null,{"$error":"#DIV/0!"},null,3,5,5]
[null,30,null,null,null,null,null,null,null,null,null,null,null,null,null,null,null,null,null,null,null,null,null,null,null,null,null,null,null,null,null,null,null,null,null,null,null,null,null,null,{"$error":"#DIV/0!"},null,1,1,1]
[null,31,null,null,null,null,null,null,null,null,null,null,null,null,null,null,null,null,null,null,null,null,null,null,null,null,null,null,null,null,null,null,null,null,null,null,null,null,null,null,{"$error":"#DIV/0!"},null,0.25,0.5,0.5]
[null,32,null,null,null,null,null,null,null,null,null,null,null,null,null,null,null,null,null,null,null,null,null,null,null,null,null,null,null,null,null,null,null,null,null,null,null,null,null,null,{"$error":"#DIV/0!"},null,0.25,0.25,0.25]
[null,33,null,null,null,null,null,null,null,null,null,null,null,null,null,null,null,null,null,null,null,null,null,null,null,null,null,null,null,null,null,null,null,null,null,null,null,null,null,null,{"$error":"#DIV/0!"},null,0.5,0.5,0.5]
[null,34,null,null,null,null,null,null,null,null,null,null,null,null,null,null,null,null,null,null,null,null,null,null,null,null,null,null,null,null,null,null,null,null,null,null,null,null,null,null,{"$error":"#DIV/0!"},null,1,1.5,1.5]
[null,35,null,null,null,null,null,null,null,null,null,null,null,null,null,null,null,null,null,null,null,null,null,null,null,null,null,null,null,null,null,null,null,null,null,null,null,null,null,null,{"$error":"#DIV/0!"},null,0.25,0.5,0.5]
[null,36,null,null,null,null,null,null,null,null,null,null,null,null,null,null,null,null,null,null,null,null,null,null,null,null,null,null,null,null,null,null,null,null,null,null,null,null,null,null,{"$error":"#DIV/0!"}]
[null,37,null,null,null,null,null,null,null,null,null,null,null,null,null,null,null,null,null,null,null,null,null,null,null,null,null,null,null,null,null,null,null,null,null,null,null,null,null,null,{"$error":"#DIV/0!"}]
[null,38,null,null,null,null,null,null,null,null,null,null,null,null,null,null,null,null,null,null,null,null,null,null,null,null,null,null,null,null,null,null,null,null,null,null,null,null,null,null,{"$error":"#DIV/0!"},null,1,1.5,1.5]
[null,39,null,null,null,null,null,null,null,null,null,null,null,null,null,null,null,null,null,null,null,null,null,null,null,null,null,null,null,null,null,null,null,null,null,null,null,null,null,null,{"$error":"#DIV/0!"}]
[null,40,null,null,null,null,null,null,null,null,null,null,null,null,null,null,null,null,null,null,null,null,null,null,null,null,null,null,null,null,null,null,null,null,null,null,null,null,null,null,{"$error":"#DIV/0!"}]
[null,41,null,null,null,null,null,null,null,null,null,null,null,null,null,null,null,null,null,null,null,null,null,null,null,null,null,null,null,null,null,null,null,null,null,null,null,null,null,null,{"$error":"#DIV/0!"},null,5,6,6]
[null,42,null,null,null,null,null,null,null,null,null,null,null,null,null,null,null,null,null,null,null,null,null,null,null,null,null,null,null,null,null,null,null,null,null,null,null,null,null,null,{"$error":"#DIV/0!"}]
[null,43,null,null,null,null,null,null,null,null,null,null,null,null,null,null,null,null,null,null,null,null,null,null,null,null,null,null,null,null,null,null,null,null,null,null,null,null,null,null,{"$error":"#DIV/0!"},null,0.5,0.5,0.5]
[null,44,null,null,null,null,null,null,null,null,null,null,null,null,null,null,null,null,null,null,null,null,null,null,null,null,null,null,null,null,null,null,null,null,null,null,null,null,null,null,{"$error":"#DIV/0!"},null,0.5,1,1]
[null,45,null,null,null,null,null,null,null,null,null,null,null,null,null,null,null,null,null,null,null,null,null,null,null,null,null,null,null,null,null,null,null,null,null,null,null,null,null,null,{"$error":"#DIV/0!"},null,1,2,2]
[null,46,null,null,null,null,null,null,null,null,null,null,null,null,null,null,null,null,null,null,null,null,null,null,null,null,null,null,null,null,null,null,null,null,null,null,null,null,null,null,{"$error":"#DIV/0!"},null,2,3,3]
[null,47,null,null,null,null,null,null,null,null,null,null,null,null,null,null,null,null,null,null,null,null,null,null,null,null,null,null,null,null,null,null,null,null,null,null,null,null,null,null,{"$error":"#DIV/0!"},null,1.25,1.5,1.5]
[null,48,null,null,null,null,null,null,null,null,null,null,null,null,null,null,null,null,null,null,null,null,null,null,null,null,null,null,null,null,null,null,null,null,null,null,null,null,null,null,{"$error":"#DIV/0!"}]
[null,49,null,null,null,null,null,null,null,null,null,null,null,null,null,null,null,null,null,null,null,null,null,null,null,null,null,null,null,null,null,null,null,null,null,null,null,null,null,null,{"$error":"#DIV/0!"},null,15,17,17]
[null,50,null,null,null,null,null,null,null,null,null,null,null,null,null,null,null,null,null,null,null,null,null,null,null,null,null,null,null,null,null,null,null,null,null,null,null,null,null,null,{"$error":"#DIV/0!"},null,2,2,2]
[null,51,null,null,null,null,null,null,null,null,null,null,null,null,null,null,null,null,null,null,null,null,null,null,null,null,null,null,null,null,null,null,null,null,null,null,null,null,null,null,{"$error":"#DIV/0!"},null,4,5,5]
[null,52,null,null,null,null,null,null,null,null,null,null,null,null,null,null,null,null,null,null,null,null,null,null,null,null,null,null,null,null,null,null,null,null,null,null,null,null,null,null,{"$error":"#DIV/0!"}]
[null,53,null,null,null,null,null,null,null,null,null,null,null,null,null,null,null,null,null,null,null,null,null,null,null,null,null,null,null,null,null,null,null,null,null,null,null,null,null,null,{"$error":"#DIV/0!"}]
[null,54,null,null,null,null,null,null,null,null,null,null,null,null,null,null,null,null,null,null,null,null,null,null,null,null,null,null,null,null,null,null,null,null,null,null,null,null,null,null,{"$error":"#DIV/0!"}]
[null,55,null,null,null,null,null,null,null,null,null,null,null,null,null,null,null,null,null,null,null,null,null,null,null,null,null,null,null,null,null,null,null,null,null,null,null,null,null,null,{"$error":"#DIV/0!"},null,1.5,2,2]
[null,56,null,null,null,null,null,null,null,null,null,null,null,null,null,null,null,null,null,null,null,null,null,null,null,null,null,null,null,null,null,null,null,null,null,null,null,null,null,null,{"$error":"#DIV/0!"}]
[null,57,null,null,null,null,null,null,null,null,null,null,null,null,null,null,null,null,null,null,null,null,null,null,null,null,null,null,null,null,null,null,null,null,null,null,null,null,null,null,{"$error":"#DIV/0!"}]
[null,58,null,null,null,null,null,null,null,null,null,null,null,null,null,null,null,null,null,null,null,null,null,null,null,null,null,null,null,null,null,null,null,null,null,null,null,null,null,null,{"$error":"#DIV/0!"}]
[null,59,null,null,null,null,null,null,null,null,null,null,null,null,null,null,null,null,null,null,null,null,null,null,null,null,null,null,null,null,null,null,null,null,null,null,null,null,null,null,{"$error":"#DIV/0!"}]
[null,60,null,null,null,null,null,null,null,null,null,null,null,null,null,null,null,null,null,null,null,null,null,null,null,null,null,null,null,null,null,null,null,null,null,null,null,null,null,null,{"$error":"#DIV/0!"}]
[null,61,null,null,null,null,null,null,null,null,null,null,null,null,null,null,null,null,null,null,null,null,null,null,null,null,null,null,null,null,null,null,null,null,null,null,null,null,null,null,{"$error":"#DIV/0!"}]
[null,62,null,null,null,null,null,null,null,null,null,null,null,null,null,null,null,null,null,null,null,null,null,null,null,null,null,null,null,null,null,null,null,null,null,null,null,null,null,null,{"$error":"#DIV/0!"}]
[null,63,null,null,null,null,null,null,null,null,null,null,null,null,null,null,null,null,null,null,null,null,null,null,null,null,null,null,null,null,null,null,null,null,null,null,null,null,null,null,{"$error":"#DIV/0!"}]
[null,64,null,null,null,null,null,null,null,null,null,null,null,null,null,null,null,null,null,null,null,null,null,null,null,null,null,null,null,null,null,null,null,null,null,null,null,null,null,null,{"$error":"#DIV/0!"}]
[null,65,null,null,null,null,null,null,null,null,null,null,null,null,null,null,null,null,null,null,null,null,null,null,null,null,null,null,null,null,null,null,null,null,null,null,null,null,null,null,{"$f":"AVERAGE(D67:AN67)","v":{"$error":"#DIV/0!"}}]
[null,66,null,null,null,null,null,null,null,null,null,null,null,null,null,null,null,null,null,null,null,null,null,null,null,null,null,null,null,null,null,null,null,null,null,null,null,null,null,null,{"$error":"#DIV/0!"}]
[null,67,null,null,null,null,null,null,null,null,null,null,null,null,null,null,null,null,null,null,null,null,null,null,null,null,null,null,null,null,null,null,null,null,null,null,null,null,null,null,{"$error":"#DIV/0!"}]
[null,68,null,null,null,null,null,null,null,null,null,null,null,null,null,null,null,null,null,null,null,null,null,null,null,null,null,null,null,null,null,null,null,null,null,null,null,null,null,null,{"$error":"#DIV/0!"}]
[null,69,null,null,null,null,null,null,null,null,null,null,null,null,null,null,null,null,null,null,null,null,null,null,null,null,null,null,null,null,null,null,null,null,null,null,null,null,null,null,{"$error":"#DIV/0!"}]
[null,70,null,null,null,null,null,null,null,null,null,null,null,null,null,null,null,null,null,null,null,null,null,null,null,null,null,null,null,null,null,null,null,null,null,null,null,null,null,null,{"$error":"#DIV/0!"}]
[null,71,null,null,null,null,null,null,null,null,null,null,null,null,null,null,null,null,null,null,null,null,null,null,null,null,null,null,null,null,null,null,null,null,null,null,null,null,null,null,{"$error":"#DIV/0!"}]
[null,72,null,null,null,null,null,null,null,null,null,null,null,null,null,null,null,null,null,null,null,null,null,null,null,null,null,null,null,null,null,null,null,null,null,null,null,null,null,null,{"$error":"#DIV/0!"}]
[null,73,null,null,null,null,null,null,null,null,null,null,null,null,null,null,null,null,null,null,null,null,null,null,null,null,null,null,null,null,null,null,null,null,null,null,null,null,null,null,{"$error":"#DIV/0!"}]
[null,74,null,null,null,null,null,null,null,null,null,null,null,null,null,null,null,null,null,null,null,null,null,null,null,null,null,null,null,null,null,null,null,null,null,null,null,null,null,null,{"$error":"#DIV/0!"}]
[null,75,null,null,null,null,null,null,null,null,null,null,null,null,null,null,null,null,null,null,null,null,null,null,null,null,null,null,null,null,null,null,null,null,null,null,null,null,null,null,{"$error":"#DIV/0!"}]
[null,76,null,null,null,null,null,null,null,null,null,null,null,null,null,null,null,null,null,null,null,null,null,null,null,null,null,null,null,null,null,null,null,null,null,null,null,null,null,null,{"$error":"#DIV/0!"}]
[null,77,null,null,null,null,null,null,null,null,null,null,null,null,null,null,null,null,null,null,null,null,null,null,null,null,null,null,null,null,null,null,null,null,null,null,null,null,null,null,{"$error":"#DIV/0!"}]
[null,78,null,null,null,null,null,null,null,null,null,null,null,null,null,null,null,null,null,null,null,null,null,null,null,null,null,null,null,null,null,null,null,null,null,null,null,null,null,null,{"$error":"#DIV/0!"}]
[null,79,null,null,null,null,null,null,null,null,null,null,null,null,null,null,null,null,null,null,null,null,null,null,null,null,null,null,null,null,null,null,null,null,null,null,null,null,null,null,{"$error":"#DIV/0!"}]
[null,80,null,null,null,null,null,null,null,null,null,null,null,null,null,null,null,null,null,null,null,null,null,null,null,null,null,null,null,null,null,null,null,null,null,null,null,null,null,null,{"$error":"#DIV/0!"}]
[null,81,null,null,null,null,null,null,null,null,null,null,null,null,null,null,null,null,null,null,null,null,null,null,null,null,null,null,null,null,null,null,null,null,null,null,null,null,null,null,{"$error":"#DIV/0!"}]
[null,82,null,null,null,null,null,null,null,null,null,null,null,null,null,null,null,null,null,null,null,null,null,null,null,null,null,null,null,null,null,null,null,null,null,null,null,null,null,null,{"$error":"#DIV/0!"}]
[null,83,null,null,null,null,null,null,null,null,null,null,null,null,null,null,null,null,null,null,null,null,null,null,null,null,null,null,null,null,null,null,null,null,null,null,null,null,null,null,{"$error":"#DIV/0!"}]
[null,84,null,null,null,null,null,null,null,null,null,null,null,null,null,null,null,null,null,null,null,null,null,null,null,null,null,null,null,null,null,null,null,null,null,null,null,null,null,null,{"$error":"#DIV/0!"}]
[null,85,null,null,null,null,null,null,null,null,null,null,null,null,null,null,null,null,null,null,null,null,null,null,null,null,null,null,null,null,null,null,null,null,null,null,null,null,null,null,{"$error":"#DIV/0!"}]
[null,86,null,null,null,null,null,null,null,null,null,null,null,null,null,null,null,null,null,null,null,null,null,null,null,null,null,null,null,null,null,null,null,null,null,null,null,null,null,null,{"$error":"#DIV/0!"}]
[null,87,null,null,null,null,null,null,null,null,null,null,null,null,null,null,null,null,null,null,null,null,null,null,null,null,null,null,null,null,null,null,null,null,null,null,null,null,null,null,{"$error":"#DIV/0!"}]
[null,88,null,null,null,null,null,null,null,null,null,null,null,null,null,null,null,null,null,null,null,null,null,null,null,null,null,null,null,null,null,null,null,null,null,null,null,null,null,null,{"$error":"#DIV/0!"}]
[null,89,null,null,null,null,null,null,null,null,null,null,null,null,null,null,null,null,null,null,null,null,null,null,null,null,null,null,null,null,null,null,null,null,null,null,null,null,null,null,{"$error":"#DIV/0!"}]
[null,90,null,null,null,null,null,null,null,null,null,null,null,null,null,null,null,null,null,null,null,null,null,null,null,null,null,null,null,null,null,null,null,null,null,null,null,null,null,null,{"$error":"#DIV/0!"}]
[null,91,null,null,null,null,null,null,null,null,null,null,null,null,null,null,null,null,null,null,null,null,null,null,null,null,null,null,null,null,null,null,null,null,null,null,null,null,null,null,{"$error":"#DIV/0!"}]
[null,92,null,null,null,null,null,null,null,null,null,null,null,null,null,null,null,null,null,null,null,null,null,null,null,null,null,null,null,null,null,null,null,null,null,null,null,null,null,null,{"$error":"#DIV/0!"}]
[null,93,null,null,null,null,null,null,null,null,null,null,null,null,null,null,null,null,null,null,null,null,null,null,null,null,null,null,null,null,null,null,null,null,null,null,null,null,null,null,{"$error":"#DIV/0!"}]
[null,94,null,null,null,null,null,null,null,null,null,null,null,null,null,null,null,null,null,null,null,null,null,null,null,null,null,null,null,null,null,null,null,null,null,null,null,null,null,null,{"$error":"#DIV/0!"}]
[null,95,null,null,null,null,null,null,null,null,null,null,null,null,null,null,null,null,null,null,null,null,null,null,null,null,null,null,null,null,null,null,null,null,null,null,null,null,null,null,{"$error":"#DIV/0!"}]
[null,96,null,null,null,null,null,null,null,null,null,null,null,null,null,null,null,null,null,null,null,null,null,null,null,null,null,null,null,null,null,null,null,null,null,null,null,null,null,null,{"$error":"#DIV/0!"}]
[null,97,null,null,null,null,null,null,null,null,null,null,null,null,null,null,null,null,null,null,null,null,null,null,null,null,null,null,null,null,null,null,null,null,null,null,null,null,null,null,{"$error":"#DIV/0!"}]
[null,98,null,null,null,null,null,null,null,null,null,null,null,null,null,null,null,null,null,null,null,null,null,null,null,null,null,null,null,null,null,null,null,null,null,null,null,null,null,null,{"$error":"#DIV/0!"}]
[null,99,null,null,null,null,null,null,null,null,null,null,null,null,null,null,null,null,null,null,null,null,null,null,null,null,null,null,null,null,null,null,null,null,null,null,null,null,null,null,{"$error":"#DIV/0!"}]
[null,100,null,null,null,null,null,null,null,null,null,null,null,null,null,null,null,null,null,null,null,null,null,null,null,null,null,null,null,null,null,null,null,null,null,null,null,null,null,null,{"$error":"#DIV/0!"}]
[null,101,null,null,null,null,null,null,null,null,null,null,null,null,null,null,null,null,null,null,null,null,null,null,null,null,null,null,null,null,null,null,null,null,null,null,null,null,null,null,{"$error":"#DIV/0!"}]
[null,102,null,null,null,null,null,null,null,null,null,null,null,null,null,null,null,null,null,null,null,null,null,null,null,null,null,null,null,null,null,null,null,null,null,null,null,null,null,null,{"$error":"#DIV/0!"}]
[null,103,null,null,null,null,null,null,null,null,null,null,null,null,null,null,null,null,null,null,null,null,null,null,null,null,null,null,null,null,null,null,null,null,null,null,null,null,null,null,{"$error":"#DIV/0!"}]
[null,104,null,null,null,null,null,null,null,null,null,null,null,null,null,null,null,null,null,null,null,null,null,null,null,null,null,null,null,null,null,null,null,null,null,null,null,null,null,null,{"$error":"#DIV/0!"}]
[null,105,null,null,null,null,null,null,null,null,null,null,null,null,null,null,null,null,null,null,null,null,null,null,null,null,null,null,null,null,null,null,null,null,null,null,null,null,null,null,{"$error":"#DIV/0!"}]
[null,106,null,null,null,null,null,null,null,null,null,null,null,null,null,null,null,null,null,null,null,null,null,null,null,null,null,null,null,null,null,null,null,null,null,null,null,null,null,null,{"$error":"#DIV/0!"}]
[null,107,null,null,null,null,null,null,null,null,null,null,null,null,null,null,null,null,null,null,null,null,null,null,null,null,null,null,null,null,null,null,null,null,null,null,null,null,null,null,{"$error":"#DIV/0!"}]
[null,108,null,null,null,null,null,null,null,null,null,null,null,null,null,null,null,null,null,null,null,null,null,null,null,null,null,null,null,null,null,null,null,null,null,null,null,null,null,null,{"$error":"#DIV/0!"}]
[null,109,null,null,null,null,null,null,null,null,null,null,null,null,null,null,null,null,null,null,null,null,null,null,null,null,null,null,null,null,null,null,null,null,null,null,null,null,null,null,{"$error":"#DIV/0!"}]
[null,110,null,null,null,null,null,null,null,null,null,null,null,null,null,null,null,null,null,null,null,null,null,null,null,null,null,null,null,null,null,null,null,null,null,null,null,null,null,null,{"$error":"#DIV/0!"}]
[null,111,null,null,null,null,null,null,null,null,null,null,null,null,null,null,null,null,null,null,null,null,null,null,null,null,null,null,null,null,null,null,null,null,null,null,null,null,null,null,{"$error":"#DIV/0!"}]
[null,112,null,null,null,null,null,null,null,null,null,null,null,null,null,null,null,null,null,null,null,null,null,null,null,null,null,null,null,null,null,null,null,null,null,null,null,null,null,null,{"$error":"#DIV/0!"}]
[null,113,null,null,null,null,null,null,null,null,null,null,null,null,null,null,null,null,null,null,null,null,null,null,null,null,null,null,null,null,null,null,null,null,null,null,null,null,null,null,{"$error":"#DIV/0!"}]
[null,114,null,null,null,null,null,null,null,null,null,null,null,null,null,null,null,null,null,null,null,null,null,null,null,null,null,null,null,null,null,null,null,null,null,null,null,null,null,null,{"$error":"#DIV/0!"}]
[null,null,"合計",{"$f":"SUM(D3:D116)","v":0},0,0,0,0,0,0,0,0,0,{"$f":"SUM(N3:N116)","v":0},0,0,0,0,0,0,0,0,0,0,0,0,0,0,0,0.125,0,0,0,{"$f":"SUM(AH3:AH116)","v":0},null,null,null,null,null,null,{"$f":"SUM(AO3:AO116)","v":{"$error":"#DIV/0!"}}]
[]
[]
[]
[]
[]
[null,null,null,null,null,null,null,null,null,null,null,null,null,null,null,null,null,null,null,null,null,null,null,null,null,null,null,null,null,null,null,null,null,null,null,null,null,null,null,null,null,null,{"$f":"SUM(AQ3:AQ111)","v":71},{"$f":"SUM(AR3:AR111)","v":99.25},{"$f":"SUM(AS3:AS111)","v":109.25}]

{"sheet":"マニュアル","index":3,"n_rows":24,"n_cols":2,"rows_kept":24,"cut":false,"hidden":false,"merged":[]}
["入力方法"]
[null,"①作業分類を入力"]
[null,"②日付、時間を入力"]
[null,"③作業№を入力"]
[null,"必要に応じて④備考を入力"]
[null,"開始時間と終了時間の差引で⑤時間が算出される"]
[]
["項目順序変更方法"]
[null,"「作業にかかった時間」列のVLOOKUPをコピー＆値の貼り付けで固定"]
[null,"「月次順番」列に変更したい順に数字を振る"]
[null,"「作業№」を「月次順番」に変更する"]
[null,"月次以外の雑務は月次№の次の番号から振り直す"]
[null,"並び替えで「作業№」順に並び替える"]
[null,"「№」列をVLOOKUPして、\n作業にかかった時間（ジャンル名）を参照もとにして作業No.を引っ張ってくる\nVLOOKUPの際に、作業分類列の右に作業№列を持ってくる工夫が必要"]
[null,"改めて「月次処理にかかった時間」列にVLOOKUPを設定"]
[]
["集計後、比較方法"]
[null,"１．まずは、単月の月次分の時間を算出する"]
[null,"①集計したい累計シートを末尾にコピー"]
[null,"先月分までのセルを選択して削除→雑務も含めた単月分の作業時間が算出できる"]
[null,"作業内容列（シート左）を集計表（シート右）にコピーし、SUMIF関数で各作業時間の集計"]
[null,"「時間内訳」列を金額の大きい順に並び替え"]
[null,"月次分（オレンジ塗りつぶし）のみを色フィルターをかけ、サブトータル関数（SUM）で集計"]
[null,"集計したものを月別一覧表にまとめる"]